Workbook

Sheet 開いたとき
C2: ● サンプルシートを使う前に
C5: ・ | D5: このファイルを開いたとき，メッセージバーに以下のような警告が表示される．
D6: ［セキュリティの警告 マクロが無効になりました］
D7: これは，マクロを自動的に実行してウィルスなどをパソコンに侵入させることを防ぐためのメッセージ（注意喚起用）であるが，
D8: このファイルの各シートに付いている「自動集計用マクロ」を使えるようにするためには，
D9: マクロを有効にする必要がある．
D10: ※ マクロの有効化（以下の操作）をしないと，自動集計用マクロは使用できない．
D12: ↓ Excel2013とExcel2010の場合
D14: ↓ Excel2007の場合
C25: ・ | D25: マクロを有効にするためには，
D26: Excel2013とExcel2010の場合は，「コンテンツの有効化」をクリックすればよい．
D27: Excel2007の場合は，「オプション」をクリックし，
D28: 次に出てくる「セキュリティオプション」画面の
D29: 「このコンテンツを有効にする」を選択してから，「OK」を押せばよい．

Sheet 使い方
C2: ● サンプルシートの使い方
C5: ・ | D5: サンプルシートは，各章ごとに2種類ある．
D6: 例えば，本書第2章用のサンプルシートは，「2章a」と「2章b」となっている．
C8: ・ | D8: 「a」が付いたシートは，各章のシミュレーターの様式（フォーマット）を用意した，練習用である．
D9: したがって，本書に書いてある内容を参照しながら必要事項を入力すれば，シミュレーションができる．
D11: シミュレーション結果の集計に関しては，
D12: 各章に書いたコピー・アンド・ペーストを繰り返す方法（手作業）を使ってもよいが，
D13: シミュレーション結果の自動集計用マクロボタンも使えるようにしてある．
C15: ・ | D15: 「b」が付いたシートは，完成したシミュレーターの動作を見ることができるようにした，デモ版である．
D16: つまり，練習用シートを用いてシミュレーターを作成する際の参考用である．
D17: 確認は同シート上のマクロボタンを押せばできる．
D19: ただし，読者の使い方（行と列の変更など）によるマクロの誤動作を防ぐために，
D20: 同シート上ではマクロボタンを押すこと以外の操作はできないようにしてあることを記しておく．
D22: ※ お使いのモニターのサイズが小さい場合は．ページレイアウトの表示倍率を適宜調節すればよい．

Sheet 2章_a
C3: 第2章： 暗闇の中の確率
P11: ♠ | Q11: 1 | R11: 2 | S11: 3 | T11: 4 | U11: 5 | V11: 6 | W11: 7 | X11: 8 | Y11: 9 | Z11: 10 | AI11: 結果 | AW11: MATCHMAKING
C13: TABLE-1 | F13: 乱数 | P13: TABLE-2 | U13: 割当て | AB13: TABLE-3 | AG13: チェック | AP13: TABLE-4
C15: 10 | D15: 1st | P15: ♥ | BC15: 50×10 | BD15: 500 | BE15: 1000 | BF15: 1500 | BG15: 2000 | BH15: 2500 | BI15: 3000 | BJ15: 3500 | BK15: 4000 | BL15: 4500 | BM15: 5000
D16: 2nd | BC16: 1st | BD16: =AP15 -> 0 | BE16: =AQ15 -> 0 | BF16: =AR15 -> 0 | BG16: =AS15 -> 0 | BH16: =AT15 -> 0 | BI16: =AU15 -> 0 | BJ16: =AV15 -> 0 | BK16: =AW15 -> 0 | BL16: =AX15 -> 0 | BM16: =AY15 -> 0
D17: 3rd | BC17: 2nd | BD17: 0 | BE17: 0 | BF17: 0 | BG17: 0 | BH17: 0 | BI17: 0 | BJ17: 0 | BK17: 0 | BL17: 0 | BM17: 0
D18: 4th | BC18: 3rd | BD18: 0 | BE18: 0 | BF18: 0 | BG18: 0 | BH18: 0 | BI18: 0 | BJ18: 0 | BK18: 0 | BL18: 0 | BM18: 0
D19: 5th | BC19: 4th | BD19: 0 | BE19: 0 | BF19: 0 | BG19: 0 | BH19: 0 | BI19: 0 | BJ19: 0 | BK19: 0 | BL19: 0 | BM19: 0
D20: 6th | BC20: 5th | BD20: 0 | BE20: 0 | BF20: 0 | BG20: 0 | BH20: 0 | BI20: 0 | BJ20: 0 | BK20: 0 | BL20: 0 | BM20: 0
D21: 7th | BC21: 6th | BD21: 0 | BE21: 0 | BF21: 0 | BG21: 0 | BH21: 0 | BI21: 0 | BJ21: 0 | BK21: 0 | BL21: 0 | BM21: 0
D22: 8th | BC22: 7th | BD22: 0 | BE22: 0 | BF22: 0 | BG22: 0 | BH22: 0 | BI22: 0 | BJ22: 0 | BK22: 0 | BL22: 0 | BM22: 0
D23: 9th | BC23: 8th | BD23: 0 | BE23: 0 | BF23: 0 | BG23: 0 | BH23: 0 | BI23: 0 | BJ23: 0 | BK23: 0 | BL23: 0 | BM23: 0
D24: 10th | BC24: 9th | BD24: 0 | BE24: 0 | BF24: 0 | BG24: 0 | BH24: 0 | BI24: 0 | BJ24: 0 | BK24: 0 | BL24: 0 | BM24: 0
BC25: 10th | BD25: 0 | BE25: 0 | BF25: 0 | BG25: 0 | BH25: 0 | BI25: 0 | BJ25: 0 | BK25: 0 | BL25: 0 | BM25: 0
C26: 20 | D26: 1st | P26: ♥ | BC26: 合計 | BD26: =SUM(BD16:BD25) -> 0 | BE26: 0 | BF26: 0 | BG26: 0 | BH26: 0 | BI26: 0 | BJ26: 0 | BK26: 0 | BL26: 0 | BM26: 0
D27: 2nd | BC27: 累計 | BD27: =BD26 -> 0 | BE27: =SUM($BD$26:BE26) -> 0 | BF27: =SUM($BD$26:BF26) -> 0 | BG27: =SUM($BD$26:BG26) -> 0 | BH27: =SUM($BD$26:BH26) -> 0 | BI27: =SUM($BD$26:BI26) -> 0 | BJ27: =SUM($BD$26:BJ26) -> 0 | BK27: =SUM($BD$26:BK26) -> 0 | BL27: =SUM($BD$26:BL26) -> 0 | BM27: =SUM($BD$26:BM26) -> 0
D28: 3rd | BC28: 割合 | BD28: =BD27/BD15 -> 0 | BE28: 0 | BF28: 0 | BG28: 0 | BH28: 0 | BI28: 0 | BJ28: 0 | BK28: 0 | BL28: 0 | BM28: 0
D29: 4th
D30: 5th
D31: 6th
D32: 7th
D33: 8th
D34: 9th
D35: 10th
C37: 30 | D37: 1st | P37: ♥
D38: 2nd
D39: 3rd
D40: 4th
D41: 5th
D42: 6th
D43: 7th
D44: 8th
D45: 9th
D46: 10th
C48: 40 | D48: 1st | P48: ♥
D49: 2nd
D50: 3rd
D51: 4th
D52: 5th
D53: 6th
D54: 7th
D55: 8th
D56: 9th
D57: 10th
C59: 50 | D59: 1st | P59: ♥
D60: 2nd
D61: 3rd
D62: 4th
D63: 5th
D64: 6th
D65: 7th
D66: 8th
D67: 9th
D68: 10th

Sheet 2章_b
C3: 第2章： 暗闇の中の確率
P11: ♠ | Q11: 1 | R11: 2 | S11: 3 | T11: 4 | U11: 5 | V11: 6 | W11: 7 | X11: 8 | Y11: 9 | Z11: 10 | AI11: 結果 | AL11: =SUM(AL15:AL68) -> 14 | AW11: MATCHMAKING
C13: TABLE-1 | F13: 乱数 | P13: TABLE-2 | U13: 割当て | AB13: TABLE-3 | AG13: チェック | AP13: TABLE-4
C15: 10 | D15: 1st | E15: =RAND() -> 0.08608110924 | F15: 0.3809299107 | G15: 0.6068053458 | H15: 0.6785122907 | I15: 0.7831872532 | J15: 0.7136925337 | K15: 0.2059608815 | L15: 0.6928373894 | M15: 0.5210227374 | N15: 0.1691313528 | P15: ♥ | Q15: =RANK(E15,$E15:$N15) -> 10 | R15: =RANK(F15,$E15:$N15) -> 7 | S15: =RANK(G15,$E15:$N15) -> 5 | T15: =RANK(H15,$E15:$N15) -> 4 | U15: =RANK(I15,$E15:$N15) -> 1 | V15: =RANK(J15,$E15:$N15) -> 2 | W15: =RANK(K15,$E15:$N15) -> 8 | X15: =RANK(L15,$E15:$N15) -> 3 | Y15: =RANK(M15,$E15:$N15) -> 6 | Z15: =RANK(N15,$E15:$N15) -> 9 | AB15: =IF(Q$11=Q15,"",1) -> 1 | AC15: =IF(R$11=R15,"",1) -> 1 | AD15: =IF(S$11=S15,"",1) -> 1 | AE15: =IF(T$11=T15,"",1) ->  | AF15: =IF(U$11=U15,"",1) -> 1 | AG15: =IF(V$11=V15,"",1) -> 1 | AH15: =IF(W$11=W15,"",1) -> 1 | AI15: =IF(X$11=X15,"",1) -> 1 | AJ15: =IF(Y$11=Y15,"",1) -> 1 | AK15: =IF(Z$11=Z15,"",1) -> 1 | AL15: =IF(SUM(AB15:AK15)=10,1,"") ->  | AP15: 14 | AQ15: 21 | AR15: 18 | AS15: 21 | AT15: 18 | AU15: 15 | AV15: 18 | AW15: 29 | AX15: 20 | AY15: 15 | BC15: 50×10 | BD15: 500 | BE15: 1000 | BF15: 1500 | BG15: 2000 | BH15: 2500 | BI15: 3000 | BJ15: 3500 | BK15: 4000 | BL15: 4500 | BM15: 5000
D16: 2nd | E16: 0.2761118037 | F16: 0.9070064515 | G16: 0.07787695657 | H16: 0.3196034255 | I16: 0.993744357 | J16: 0.8149652232 | K16: 0.3431445793 | L16: 0.1798783281 | M16: 0.5903038107 | N16: 0.472406181 | Q16: 8 | R16: 2 | S16: 10 | T16: 7 | U16: 1 | V16: 3 | W16: 6 | X16: 9 | Y16: 4 | Z16: 5 | AB16: 1 | AD16: 1 | AE16: 1 | AF16: 1 | AG16: 1 | AH16: 1 | AI16: 1 | AJ16: 1 | AK16: 1 | AP16: 24 | AQ16: 20 | AR16: 19 | AS16: 18 | AT16: 20 | AU16: 16 | AV16: 14 | AW16: 21 | AX16: 15 | AY16: 19 | BC16: 1st | BD16: =AP15 -> 14 | BE16: =AQ15 -> 21 | BF16: =AR15 -> 18 | BG16: =AS15 -> 21 | BH16: =AT15 -> 18 | BI16: =AU15 -> 15 | BJ16: =AV15 -> 18 | BK16: =AW15 -> 29 | BL16: =AX15 -> 20 | BM16: =AY15 -> 15
D17: 3rd | E17: 0.2922775913 | F17: 0.01802740597 | G17: 0.5537073158 | H17: 0.4630400507 | I17: 0.9326479558 | J17: 0.2625148559 | K17: 0.7016351861 | L17: 0.77019365 | M17: 0.5066711405 | N17: 0.8772405624 | Q17: 8 | R17: 10 | S17: 5 | T17: 7 | U17: 1 | V17: 9 | W17: 4 | X17: 3 | Y17: 6 | Z17: 2 | AB17: 1 | AC17: 1 | AD17: 1 | AE17: 1 | AF17: 1 | AG17: 1 | AH17: 1 | AI17: 1 | AJ17: 1 | AK17: 1 | AL17: 1 | AP17: 15 | AQ17: 19 | AR17: 20 | AS17: 20 | AT17: 20 | AU17: 20 | AV17: 21 | AW17: 15 | AX17: 16 | AY17: 19 | BC17: 2nd | BD17: 24 | BE17: 20 | BF17: 19 | BG17: 18 | BH17: 20 | BI17: 16 | BJ17: 14 | BK17: 21 | BL17: 15 | BM17: 19
D18: 4th | E18: 0.6313438494 | F18: 0.9068041418 | G18: 0.8769661517 | H18: 0.228443136 | I18: 0.2256616268 | J18: 0.9319055619 | K18: 0.6681238922 | L18: 0.2495309862 | M18: 0.1573133947 | N18: 0.8240348992 | Q18: 6 | R18: 2 | S18: 3 | T18: 8 | U18: 9 | V18: 1 | W18: 5 | X18: 7 | Y18: 10 | Z18: 4 | AB18: 1 | AE18: 1 | AF18: 1 | AG18: 1 | AH18: 1 | AI18: 1 | AJ18: 1 | AK18: 1 | AP18: 22 | AQ18: 20 | AR18: 16 | AS18: 20 | AT18: 18 | AU18: 21 | AV18: 17 | AW18: 20 | AX18: 17 | AY18: 20 | BC18: 3rd | BD18: 15 | BE18: 19 | BF18: 20 | BG18: 20 | BH18: 20 | BI18: 20 | BJ18: 21 | BK18: 15 | BL18: 16 | BM18: 19
D19: 5th | E19: 0.06935712794 | F19: 0.954431831 | G19: 0.03536131003 | H19: 0.5917881336 | I19: 0.266327438 | J19: 0.6506680678 | K19: 0.9662680384 | L19: 0.2401229582 | M19: 0.1251952318 | N19: 0.1681399703 | Q19: 9 | R19: 2 | S19: 10 | T19: 4 | U19: 5 | V19: 3 | W19: 1 | X19: 6 | Y19: 8 | Z19: 7 | AB19: 1 | AD19: 1 | AG19: 1 | AH19: 1 | AI19: 1 | AJ19: 1 | AK19: 1 | AP19: 21 | AQ19: 18 | AR19: 17 | AS19: 18 | AT19: 21 | AU19: 22 | AV19: 24 | AW19: 20 | AX19: 18 | AY19: 15 | BC19: 4th | BD19: 22 | BE19: 20 | BF19: 16 | BG19: 20 | BH19: 18 | BI19: 21 | BJ19: 17 | BK19: 20 | BL19: 17 | BM19: 20
D20: 6th | E20: 0.9067780832 | F20: 0.005166042414 | G20: 0.4714885711 | H20: 0.6040773867 | I20: 0.5304680806 | J20: 0.1365762195 | K20: 0.6879455837 | L20: 0.408026305 | M20: 0.5999495494 | N20: 0.5459684697 | Q20: 1 | R20: 10 | S20: 7 | T20: 3 | U20: 6 | V20: 9 | W20: 2 | X20: 8 | Y20: 4 | Z20: 5 | AC20: 1 | AD20: 1 | AE20: 1 | AF20: 1 | AG20: 1 | AH20: 1 | AJ20: 1 | AK20: 1 | AP20: 17 | AQ20: 15 | AR20: 20 | AS20: 21 | AT20: 20 | AU20: 16 | AV20: 15 | AW20: 16 | AX20: 19 | AY20: 13 | BC20: 5th | BD20: 21 | BE20: 18 | BF20: 17 | BG20: 18 | BH20: 21 | BI20: 22 | BJ20: 24 | BK20: 20 | BL20: 18 | BM20: 15
D21: 7th | E21: 0.2693827035 | F21: 0.659173351 | G21: 0.3879971934 | H21: 0.5800756066 | I21: 0.7542448206 | J21: 0.3942559893 | K21: 0.05813335228 | L21: 0.0954171064 | M21: 0.3549972528 | N21: 0.03475518754 | Q21: 7 | R21: 2 | S21: 5 | T21: 3 | U21: 1 | V21: 4 | W21: 9 | X21: 8 | Y21: 6 | Z21: 10 | AB21: 1 | AD21: 1 | AE21: 1 | AF21: 1 | AG21: 1 | AH21: 1 | AJ21: 1 | AP21: 20 | AQ21: 21 | AR21: 11 | AS21: 19 | AT21: 20 | AU21: 16 | AV21: 17 | AW21: 22 | AX21: 16 | AY21: 18 | BC21: 6th | BD21: 17 | BE21: 15 | BF21: 20 | BG21: 21 | BH21: 20 | BI21: 16 | BJ21: 15 | BK21: 16 | BL21: 19 | BM21: 13
D22: 8th | E22: 0.1163807633 | F22: 0.6062583482 | G22: 0.1964547776 | H22: 0.9911449799 | I22: 0.5243316663 | J22: 0.5377573124 | K22: 0.2232319146 | L22: 0.9291884586 | M22: 0.8448916781 | N22: 0.4087174789 | Q22: 10 | R22: 4 | S22: 9 | T22: 1 | U22: 6 | V22: 5 | W22: 8 | X22: 2 | Y22: 3 | Z22: 7 | AB22: 1 | AC22: 1 | AD22: 1 | AE22: 1 | AF22: 1 | AG22: 1 | AH22: 1 | AI22: 1 | AJ22: 1 | AK22: 1 | AL22: 1 | AP22: 17 | AQ22: 13 | AR22: 22 | AS22: 21 | AT22: 20 | AU22: 17 | AV22: 16 | AW22: 22 | AX22: 19 | AY22: 19 | BC22: 7th | BD22: 20 | BE22: 21 | BF22: 11 | BG22: 19 | BH22: 20 | BI22: 16 | BJ22: 17 | BK22: 22 | BL22: 16 | BM22: 18
D23: 9th | E23: 0.9595941099 | F23: 0.8096143269 | G23: 0.06551770061 | H23: 0.06887180871 | I23: 0.9121259598 | J23: 0.3791826112 | K23: 0.7106044653 | L23: 0.1173072807 | M23: 0.6012932716 | N23: 0.1329397883 | Q23: 1 | R23: 3 | S23: 10 | T23: 9 | U23: 2 | V23: 6 | W23: 4 | X23: 8 | Y23: 5 | Z23: 7 | AC23: 1 | AD23: 1 | AE23: 1 | AF23: 1 | AH23: 1 | AJ23: 1 | AK23: 1 | AP23: 23 | AQ23: 17 | AR23: 16 | AS23: 19 | AT23: 20 | AU23: 25 | AV23: 18 | AW23: 17 | AX23: 19 | AY23: 14 | BC23: 8th | BD23: 17 | BE23: 13 | BF23: 22 | BG23: 21 | BH23: 20 | BI23: 17 | BJ23: 16 | BK23: 22 | BL23: 19 | BM23: 19
D24: 10th | E24: 0.5123888055 | F24: 0.5812945331 | G24: 0.5428942555 | H24: 0.0390867339 | I24: 0.2485388827 | J24: 0.9909937218 | K24: 0.8654085902 | L24: 0.6039219806 | M24: 0.3620246131 | N24: 0.8523353798 | Q24: 7 | R24: 5 | S24: 6 | T24: 10 | U24: 9 | V24: 1 | W24: 2 | X24: 4 | Y24: 8 | Z24: 3 | AB24: 1 | AC24: 1 | AD24: 1 | AE24: 1 | AF24: 1 | AG24: 1 | AH24: 1 | AI24: 1 | AJ24: 1 | AK24: 1 | AL24: 1 | AP24: 15 | AQ24: 9 | AR24: 17 | AS24: 18 | AT24: 20 | AU24: 16 | AV24: 19 | AW24: 19 | AX24: 17 | AY24: 17 | BC24: 9th | BD24: 23 | BE24: 17 | BF24: 16 | BG24: 19 | BH24: 20 | BI24: 25 | BJ24: 18 | BK24: 17 | BL24: 19 | BM24: 14
BC25: 10th | BD25: 15 | BE25: 9 | BF25: 17 | BG25: 18 | BH25: 20 | BI25: 16 | BJ25: 19 | BK25: 19 | BL25: 17 | BM25: 17
C26: 20 | D26: 1st | E26: =RAND() -> 0.5716134977 | F26: 0.1774714065 | G26: 0.9681516556 | H26: 0.4318446892 | I26: 0.4117604272 | J26: 0.7480138247 | K26: 0.4385324283 | L26: 0.6820882906 | M26: 0.3225410806 | N26: 0.818151786 | P26: ♥ | Q26: =RANK(E26,$E26:$N26) -> 5 | R26: =RANK(F26,$E26:$N26) -> 10 | S26: =RANK(G26,$E26:$N26) -> 1 | T26: =RANK(H26,$E26:$N26) -> 7 | U26: =RANK(I26,$E26:$N26) -> 8 | V26: =RANK(J26,$E26:$N26) -> 3 | W26: =RANK(K26,$E26:$N26) -> 6 | X26: =RANK(L26,$E26:$N26) -> 4 | Y26: =RANK(M26,$E26:$N26) -> 9 | Z26: =RANK(N26,$E26:$N26) -> 2 | AB26: =IF(Q$11=Q26,"",1) -> 1 | AC26: =IF(R$11=R26,"",1) -> 1 | AD26: =IF(S$11=S26,"",1) -> 1 | AE26: =IF(T$11=T26,"",1) -> 1 | AF26: =IF(U$11=U26,"",1) -> 1 | AG26: =IF(V$11=V26,"",1) -> 1 | AH26: =IF(W$11=W26,"",1) -> 1 | AI26: =IF(X$11=X26,"",1) -> 1 | AJ26: =IF(Y$11=Y26,"",1) ->  | AK26: =IF(Z$11=Z26,"",1) -> 1 | AL26: =IF(SUM(AB26:AK26)=10,1,"") ->  | BC26: 合計 | BD26: =SUM(BD16:BD25) -> 188 | BE26: 173 | BF26: 176 | BG26: 195 | BH26: 197 | BI26: 184 | BJ26: 179 | BK26: 201 | BL26: 176 | BM26: 169
D27: 2nd | E27: 0.6267179338 | F27: 0.9679803256 | G27: 0.7205850971 | H27: 0.2259798001 | I27: 0.5993660633 | J27: 0.09605064097 | K27: 0.8413621117 | L27: 0.6248307611 | M27: 0.8750472818 | N27: 0.3509590885 | Q27: 5 | R27: 1 | S27: 4 | T27: 9 | U27: 7 | V27: 10 | W27: 3 | X27: 6 | Y27: 2 | Z27: 8 | AB27: 1 | AC27: 1 | AD27: 1 | AE27: 1 | AF27: 1 | AG27: 1 | AH27: 1 | AI27: 1 | AJ27: 1 | AK27: 1 | AL27: 1 | BC27: 累計 | BD27: =BD26 -> 188 | BE27: =SUM($BD$26:BE26) -> 361 | BF27: =SUM($BD$26:BF26) -> 537 | BG27: =SUM($BD$26:BG26) -> 732 | BH27: =SUM($BD$26:BH26) -> 929 | BI27: =SUM($BD$26:BI26) -> 1113 | BJ27: =SUM($BD$26:BJ26) -> 1292 | BK27: =SUM($BD$26:BK26) -> 1493 | BL27: =SUM($BD$26:BL26) -> 1669 | BM27: =SUM($BD$26:BM26) -> 1838
D28: 3rd | E28: 0.04071779003 | F28: 0.8016518707 | G28: 0.3366889761 | H28: 0.2443618767 | I28: 0.2532134872 | J28: 0.583865673 | K28: 0.3766966175 | L28: 0.7248271302 | M28: 0.3008238453 | N28: 0.4410234132 | Q28: 10 | R28: 1 | S28: 6 | T28: 9 | U28: 8 | V28: 3 | W28: 5 | X28: 2 | Y28: 7 | Z28: 4 | AB28: 1 | AC28: 1 | AD28: 1 | AE28: 1 | AF28: 1 | AG28: 1 | AH28: 1 | AI28: 1 | AJ28: 1 | AK28: 1 | AL28: 1 | BC28: 割合 | BD28: =BD27/BD15 -> 0.376 | BE28: 0.361 | BF28: 0.358 | BG28: 0.366 | BH28: 0.3716 | BI28: 0.371 | BJ28: 0.3691428571 | BK28: 0.37325 | BL28: 0.3708888889 | BM28: 0.3676
D29: 4th | E29: 0.6514993525 | F29: 0.6640536432 | G29: 0.06538983697 | H29: 0.4964461781 | I29: 0.2492214767 | J29: 0.6396828584 | K29: 0.3134533215 | L29: 0.3759174682 | M29: 0.1268563185 | N29: 0.4145674836 | Q29: 2 | R29: 1 | S29: 10 | T29: 4 | U29: 8 | V29: 3 | W29: 7 | X29: 6 | Y29: 9 | Z29: 5 | AB29: 1 | AC29: 1 | AD29: 1 | AF29: 1 | AG29: 1 | AI29: 1 | AK29: 1
D30: 5th | E30: 0.9243982474 | F30: 0.1606753047 | G30: 0.554706602 | H30: 0.1737323375 | I30: 0.9878337053 | J30: 0.211847757 | K30: 0.2742435203 | L30: 0.1325568332 | M30: 0.1882096403 | N30: 0.1193885385 | Q30: 2 | R30: 8 | S30: 3 | T30: 7 | U30: 1 | V30: 5 | W30: 4 | X30: 9 | Y30: 6 | Z30: 10 | AB30: 1 | AC30: 1 | AE30: 1 | AF30: 1 | AG30: 1 | AH30: 1 | AI30: 1 | AJ30: 1
D31: 6th | E31: 0.600756711 | F31: 0.5357712172 | G31: 0.1495832233 | H31: 0.7452163508 | I31: 0.7959321224 | J31: 0.03742122971 | K31: 0.4302113452 | L31: 0.4460851832 | M31: 0.9713970929 | N31: 0.7854986805 | Q31: 5 | R31: 6 | S31: 9 | T31: 4 | U31: 2 | V31: 10 | W31: 8 | X31: 7 | Y31: 1 | Z31: 3 | AB31: 1 | AC31: 1 | AD31: 1 | AF31: 1 | AG31: 1 | AH31: 1 | AI31: 1 | AJ31: 1 | AK31: 1
D32: 7th | E32: 0.1991447892 | F32: 0.3521813653 | G32: 0.9002447386 | H32: 0.1864690601 | I32: 0.9824888728 | J32: 0.04309748843 | K32: 0.1422225537 | L32: 0.6167537215 | M32: 0.7405299264 | N32: 0.666265423 | Q32: 7 | R32: 6 | S32: 2 | T32: 8 | U32: 1 | V32: 10 | W32: 9 | X32: 5 | Y32: 3 | Z32: 4 | AB32: 1 | AC32: 1 | AD32: 1 | AE32: 1 | AF32: 1 | AG32: 1 | AH32: 1 | AI32: 1 | AJ32: 1 | AK32: 1 | AL32: 1
D33: 8th | E33: 0.5862939017 | F33: 0.3359917098 | G33: 0.5914497312 | H33: 0.9153503609 | I33: 0.7121895273 | J33: 0.3897994554 | K33: 0.02613568591 | L33: 0.2586646421 | M33: 0.2310037325 | N33: 0.703540734 | Q33: 5 | R33: 7 | S33: 4 | T33: 1 | U33: 2 | V33: 6 | W33: 10 | X33: 8 | Y33: 9 | Z33: 3 | AB33: 1 | AC33: 1 | AD33: 1 | AE33: 1 | AF33: 1 | AH33: 1 | AK33: 1
D34: 9th | E34: 0.1111017395 | F34: 0.16112281 | G34: 0.6823273859 | H34: 0.05897212147 | I34: 0.369413476 | J34: 0.3527023329 | K34: 0.0840718758 | L34: 0.4054874742 | M34: 0.4057150886 | N34: 0.2854809349 | Q34: 8 | R34: 7 | S34: 1 | T34: 10 | U34: 4 | V34: 5 | W34: 9 | X34: 3 | Y34: 2 | Z34: 6 | AB34: 1 | AC34: 1 | AD34: 1 | AE34: 1 | AF34: 1 | AG34: 1 | AH34: 1 | AI34: 1 | AJ34: 1 | AK34: 1 | AL34: 1
D35: 10th | E35: 0.02391839921 | F35: 0.1387475398 | G35: 0.9184411662 | H35: 0.535856533 | I35: 0.9659073418 | J35: 0.1339388313 | K35: 0.06532785606 | L35: 0.5096494076 | M35: 0.5951423853 | N35: 0.2647454373 | Q35: 10 | R35: 7 | S35: 2 | T35: 4 | U35: 1 | V35: 8 | W35: 9 | X35: 5 | Y35: 3 | Z35: 6 | AB35: 1 | AC35: 1 | AD35: 1 | AF35: 1 | AG35: 1 | AH35: 1 | AI35: 1 | AJ35: 1 | AK35: 1
C37: 30 | D37: 1st | E37: =RAND() -> 0.7233881455 | F37: 0.4010821571 | G37: 0.9419827673 | H37: 0.774409786 | I37: 0.641157501 | J37: 0.7013799048 | K37: 0.9539635919 | L37: 0.4938315513 | M37: 0.845163013 | N37: 0.4649117557 | P37: ♥ | Q37: =RANK(E37,$E37:$N37) -> 5 | R37: =RANK(F37,$E37:$N37) -> 10 | S37: =RANK(G37,$E37:$N37) -> 2 | T37: =RANK(H37,$E37:$N37) -> 4 | U37: =RANK(I37,$E37:$N37) -> 7 | V37: =RANK(J37,$E37:$N37) -> 6 | W37: =RANK(K37,$E37:$N37) -> 1 | X37: =RANK(L37,$E37:$N37) -> 8 | Y37: =RANK(M37,$E37:$N37) -> 3 | Z37: =RANK(N37,$E37:$N37) -> 9 | AB37: =IF(Q$11=Q37,"",1) -> 1 | AC37: =IF(R$11=R37,"",1) -> 1 | AD37: =IF(S$11=S37,"",1) -> 1 | AE37: =IF(T$11=T37,"",1) ->  | AF37: =IF(U$11=U37,"",1) -> 1 | AG37: =IF(V$11=V37,"",1) ->  | AH37: =IF(W$11=W37,"",1) -> 1 | AI37: =IF(X$11=X37,"",1) ->  | AJ37: =IF(Y$11=Y37,"",1) -> 1 | AK37: =IF(Z$11=Z37,"",1) -> 1 | AL37: =IF(SUM(AB37:AK37)=10,1,"") -> 
D38: 2nd | E38: 0.8891321998 | F38: 0.09689353267 | G38: 0.2570354769 | H38: 0.4671790253 | I38: 0.5699177695 | J38: 0.850717026 | K38: 0.6095666453 | L38: 0.2177350245 | M38: 0.6832531731 | N38: 0.05978739095 | Q38: 1 | R38: 9 | S38: 7 | T38: 6 | U38: 5 | V38: 2 | W38: 4 | X38: 8 | Y38: 3 | Z38: 10 | AC38: 1 | AD38: 1 | AE38: 1 | AG38: 1 | AH38: 1 | AJ38: 1
D39: 3rd | E39: 0.7285323519 | F39: 0.3673717968 | G39: 0.1840609335 | H39: 0.2399124618 | I39: 0.0378807372 | J39: 0.9907434038 | K39: 0.5232545739 | L39: 0.5109631997 | M39: 0.05155827441 | N39: 0.674814393 | Q39: 2 | R39: 6 | S39: 8 | T39: 7 | U39: 10 | V39: 1 | W39: 4 | X39: 5 | Y39: 9 | Z39: 3 | AB39: 1 | AC39: 1 | AD39: 1 | AE39: 1 | AF39: 1 | AG39: 1 | AH39: 1 | AI39: 1 | AK39: 1
D40: 4th | E40: 0.2432312259 | F40: 0.6649719307 | G40: 0.5430920208 | H40: 0.5337379825 | I40: 0.1947373043 | J40: 0.6771912434 | K40: 0.2313920235 | L40: 0.0263107448 | M40: 0.8756595777 | N40: 0.520175927 | Q40: 7 | R40: 3 | S40: 4 | T40: 5 | U40: 9 | V40: 2 | W40: 8 | X40: 10 | Y40: 1 | Z40: 6 | AB40: 1 | AC40: 1 | AD40: 1 | AE40: 1 | AF40: 1 | AG40: 1 | AH40: 1 | AI40: 1 | AJ40: 1 | AK40: 1 | AL40: 1
D41: 5th | E41: 0.009733551763 | F41: 0.3173545685 | G41: 0.7953701731 | H41: 0.6885508288 | I41: 0.08820088777 | J41: 0.007037626964 | K41: 0.8920287722 | L41: 0.5275427538 | M41: 0.7879280798 | N41: 0.9445644715 | Q41: 9 | R41: 7 | S41: 3 | T41: 5 | U41: 8 | V41: 10 | W41: 2 | X41: 6 | Y41: 4 | Z41: 1 | AB41: 1 | AC41: 1 | AE41: 1 | AF41: 1 | AG41: 1 | AH41: 1 | AI41: 1 | AJ41: 1 | AK41: 1
D42: 6th | E42: 0.3539363454 | F42: 0.8345456568 | G42: 0.8149202181 | H42: 0.6815023041 | I42: 0.7984890114 | J42: 0.4648506473 | K42: 0.0894637976 | L42: 0.02213052399 | M42: 0.658897732 | N42: 0.9416735542 | Q42: 8 | R42: 2 | S42: 3 | T42: 5 | U42: 4 | V42: 7 | W42: 9 | X42: 10 | Y42: 6 | Z42: 1 | AB42: 1 | AE42: 1 | AF42: 1 | AG42: 1 | AH42: 1 | AI42: 1 | AJ42: 1 | AK42: 1
D43: 7th | E43: 0.02964363723 | F43: 0.006222390154 | G43: 0.6962640798 | H43: 0.8624837046 | I43: 0.9449435551 | J43: 0.4801600898 | K43: 0.04172046739 | L43: 0.09097099231 | M43: 0.4646459055 | N43: 0.2903314193 | Q43: 9 | R43: 10 | S43: 3 | T43: 2 | U43: 1 | V43: 4 | W43: 8 | X43: 7 | Y43: 5 | Z43: 6 | AB43: 1 | AC43: 1 | AE43: 1 | AF43: 1 | AG43: 1 | AH43: 1 | AI43: 1 | AJ43: 1 | AK43: 1
D44: 8th | E44: 0.3634870637 | F44: 0.3582144633 | G44: 0.2714740361 | H44: 0.4991016213 | I44: 0.4900170339 | J44: 0.1300720959 | K44: 0.1613343461 | L44: 0.6259195283 | M44: 0.8307022447 | N44: 0.6386763072 | Q44: 6 | R44: 7 | S44: 8 | T44: 4 | U44: 5 | V44: 10 | W44: 9 | X44: 3 | Y44: 1 | Z44: 2 | AB44: 1 | AC44: 1 | AD44: 1 | AG44: 1 | AH44: 1 | AI44: 1 | AJ44: 1 | AK44: 1
D45: 9th | E45: 0.3187833291 | F45: 0.8275364589 | G45: 0.1367784937 | H45: 0.01749855193 | I45: 0.1352758517 | J45: 0.06939618012 | K45: 0.7341201726 | L45: 0.3005697102 | M45: 0.03172784268 | N45: 0.06197559288 | Q45: 3 | R45: 1 | S45: 5 | T45: 10 | U45: 6 | V45: 7 | W45: 2 | X45: 4 | Y45: 9 | Z45: 8 | AB45: 1 | AC45: 1 | AD45: 1 | AE45: 1 | AF45: 1 | AG45: 1 | AH45: 1 | AI45: 1 | AK45: 1
D46: 10th | E46: 0.8418409007 | F46: 0.5942986213 | G46: 0.5324179487 | H46: 0.7859414419 | I46: 0.7783447259 | J46: 0.05377801258 | K46: 0.867557394 | L46: 0.8869583388 | M46: 0.6174684335 | N46: 0.487170063 | Q46: 3 | R46: 7 | S46: 8 | T46: 4 | U46: 5 | V46: 10 | W46: 2 | X46: 1 | Y46: 6 | Z46: 9 | AB46: 1 | AC46: 1 | AD46: 1 | AG46: 1 | AH46: 1 | AI46: 1 | AJ46: 1 | AK46: 1
C48: 40 | D48: 1st | E48: =RAND() -> 0.8144106343 | F48: 0.09679786535 | G48: 0.7785818024 | H48: 0.8265732526 | I48: 0.3817730401 | J48: 0.746826283 | K48: 0.06950378281 | L48: 0.1278058958 | M48: 0.1234872049 | N48: 0.4131946058 | P48: ♥ | Q48: =RANK(E48,$E48:$N48) -> 2 | R48: =RANK(F48,$E48:$N48) -> 9 | S48: =RANK(G48,$E48:$N48) -> 3 | T48: =RANK(H48,$E48:$N48) -> 1 | U48: =RANK(I48,$E48:$N48) -> 6 | V48: =RANK(J48,$E48:$N48) -> 4 | W48: =RANK(K48,$E48:$N48) -> 10 | X48: =RANK(L48,$E48:$N48) -> 7 | Y48: =RANK(M48,$E48:$N48) -> 8 | Z48: =RANK(N48,$E48:$N48) -> 5 | AB48: =IF(Q$11=Q48,"",1) -> 1 | AC48: =IF(R$11=R48,"",1) -> 1 | AD48: =IF(S$11=S48,"",1) ->  | AE48: =IF(T$11=T48,"",1) -> 1 | AF48: =IF(U$11=U48,"",1) -> 1 | AG48: =IF(V$11=V48,"",1) -> 1 | AH48: =IF(W$11=W48,"",1) -> 1 | AI48: =IF(X$11=X48,"",1) -> 1 | AJ48: =IF(Y$11=Y48,"",1) -> 1 | AK48: =IF(Z$11=Z48,"",1) -> 1 | AL48: =IF(SUM(AB48:AK48)=10,1,"") -> 
D49: 2nd | E49: 0.3272493166 | F49: 0.02430804367 | G49: 0.5794657047 | H49: 0.8910841407 | I49: 0.06989439934 | J49: 0.8771867152 | K49: 0.485827949 | L49: 0.217901989 | M49: 0.3470599066 | N49: 0.2671188214 | Q49: 6 | R49: 10 | S49: 3 | T49: 1 | U49: 9 | V49: 2 | W49: 4 | X49: 8 | Y49: 5 | Z49: 7 | AB49: 1 | AC49: 1 | AE49: 1 | AF49: 1 | AG49: 1 | AH49: 1 | AJ49: 1 | AK49: 1
D50: 3rd | E50: 0.4087729507 | F50: 0.813021708 | G50: 0.08186073614 | H50: 0.3395404998 | I50: 0.7128231226 | J50: 0.1317624729 | K50: 0.941357659 | L50: 0.3133030998 | M50: 0.679181321 | N50: 0.07736497527 | Q50: 5 | R50: 2 | S50: 9 | T50: 6 | U50: 3 | V50: 8 | W50: 1 | X50: 7 | Y50: 4 | Z50: 10 | AB50: 1 | AD50: 1 | AE50: 1 | AF50: 1 | AG50: 1 | AH50: 1 | AI50: 1 | AJ50: 1
D51: 4th | E51: 0.2525441656 | F51: 0.6197242172 | G51: 0.3212810477 | H51: 0.7085646425 | I51: 0.4740118775 | J51: 0.7859417457 | K51: 0.3171267622 | L51: 0.6761666121 | M51: 0.8379742324 | N51: 0.4683490408 | Q51: 10 | R51: 5 | S51: 8 | T51: 3 | U51: 6 | V51: 2 | W51: 9 | X51: 4 | Y51: 1 | Z51: 7 | AB51: 1 | AC51: 1 | AD51: 1 | AE51: 1 | AF51: 1 | AG51: 1 | AH51: 1 | AI51: 1 | AJ51: 1 | AK51: 1 | AL51: 1
D52: 5th | E52: 0.4743490079 | F52: 0.4107637032 | G52: 0.1715994826 | H52: 0.230668559 | I52: 0.7349216512 | J52: 0.8757347793 | K52: 0.01071279118 | L52: 0.7600965585 | M52: 0.110083405 | N52: 0.403916312 | Q52: 4 | R52: 5 | S52: 8 | T52: 7 | U52: 3 | V52: 1 | W52: 10 | X52: 2 | Y52: 9 | Z52: 6 | AB52: 1 | AC52: 1 | AD52: 1 | AE52: 1 | AF52: 1 | AG52: 1 | AH52: 1 | AI52: 1 | AK52: 1
D53: 6th | E53: 0.8970138034 | F53: 0.699348364 | G53: 0.7212757239 | H53: 0.8810516753 | I53: 0.7183667471 | J53: 0.2769304855 | K53: 0.3798584247 | L53: 0.3758638875 | M53: 0.9923757848 | N53: 0.4595374941 | Q53: 2 | R53: 6 | S53: 4 | T53: 3 | U53: 5 | V53: 10 | W53: 8 | X53: 9 | Y53: 1 | Z53: 7 | AB53: 1 | AC53: 1 | AD53: 1 | AE53: 1 | AG53: 1 | AH53: 1 | AI53: 1 | AJ53: 1 | AK53: 1
D54: 7th | E54: 0.4573844071 | F54: 0.7550167898 | G54: 0.5218099918 | H54: 0.7406389733 | I54: 0.9886382103 | J54: 0.1572013014 | K54: 0.2901691935 | L54: 0.6914749137 | M54: 0.4659206233 | N54: 0.5528967979 | Q54: 8 | R54: 2 | S54: 6 | T54: 3 | U54: 1 | V54: 10 | W54: 9 | X54: 4 | Y54: 7 | Z54: 5 | AB54: 1 | AD54: 1 | AE54: 1 | AF54: 1 | AG54: 1 | AH54: 1 | AI54: 1 | AJ54: 1 | AK54: 1
D55: 8th | E55: 0.5196429078 | F55: 0.7779923332 | G55: 0.1803908199 | H55: 0.1044555003 | I55: 0.9371711886 | J55: 0.8069746008 | K55: 0.6503808899 | L55: 0.5490561974 | M55: 0.4318086114 | N55: 0.5822824474 | Q55: 7 | R55: 3 | S55: 9 | T55: 10 | U55: 1 | V55: 2 | W55: 4 | X55: 6 | Y55: 8 | Z55: 5 | AB55: 1 | AC55: 1 | AD55: 1 | AE55: 1 | AF55: 1 | AG55: 1 | AH55: 1 | AI55: 1 | AJ55: 1 | AK55: 1 | AL55: 1
D56: 9th | E56: 0.4751561945 | F56: 0.220375755 | G56: 0.3220127802 | H56: 0.5147959011 | I56: 0.8087041864 | J56: 0.3039606767 | K56: 0.1780411931 | L56: 0.8688109365 | M56: 0.8925620413 | N56: 0.2917601126 | Q56: 5 | R56: 9 | S56: 6 | T56: 4 | U56: 3 | V56: 7 | W56: 10 | X56: 2 | Y56: 1 | Z56: 8 | AB56: 1 | AC56: 1 | AD56: 1 | AF56: 1 | AG56: 1 | AH56: 1 | AI56: 1 | AJ56: 1 | AK56: 1
D57: 10th | E57: 0.9914622239 | F57: 0.7433164063 | G57: 0.4629292041 | H57: 0.483468346 | I57: 0.1802269315 | J57: 0.8951203753 | K57: 0.9831090092 | L57: 0.9752445376 | M57: 0.1259958522 | N57: 0.8928449637 | Q57: 1 | R57: 6 | S57: 8 | T57: 7 | U57: 9 | V57: 4 | W57: 2 | X57: 3 | Y57: 10 | Z57: 5 | AC57: 1 | AD57: 1 | AE57: 1 | AF57: 1 | AG57: 1 | AH57: 1 | AI57: 1 | AJ57: 1 | AK57: 1
C59: 50 | D59: 1st | E59: =RAND() -> 0.07194895065 | F59: 0.4869487986 | G59: 0.0965539091 | H59: 0.6710111823 | I59: 0.3725312147 | J59: 0.1877093262 | K59: 0.5811662821 | L59: 0.6279670681 | M59: 0.8168083097 | N59: 0.4530617064 | P59: ♥ | Q59: =RANK(E59,$E59:$N59) -> 10 | R59: =RANK(F59,$E59:$N59) -> 5 | S59: =RANK(G59,$E59:$N59) -> 9 | T59: =RANK(H59,$E59:$N59) -> 2 | U59: =RANK(I59,$E59:$N59) -> 7 | V59: =RANK(J59,$E59:$N59) -> 8 | W59: =RANK(K59,$E59:$N59) -> 4 | X59: =RANK(L59,$E59:$N59) -> 3 | Y59: =RANK(M59,$E59:$N59) -> 1 | Z59: =RANK(N59,$E59:$N59) -> 6 | AB59: =IF(Q$11=Q59,"",1) -> 1 | AC59: =IF(R$11=R59,"",1) -> 1 | AD59: =IF(S$11=S59,"",1) -> 1 | AE59: =IF(T$11=T59,"",1) -> 1 | AF59: =IF(U$11=U59,"",1) -> 1 | AG59: =IF(V$11=V59,"",1) -> 1 | AH59: =IF(W$11=W59,"",1) -> 1 | AI59: =IF(X$11=X59,"",1) -> 1 | AJ59: =IF(Y$11=Y59,"",1) -> 1 | AK59: =IF(Z$11=Z59,"",1) -> 1 | AL59: =IF(SUM(AB59:AK59)=10,1,"") -> 1
D60: 2nd | E60: 0.6794355351 | F60: 0.1128964126 | G60: 0.7902033863 | H60: 0.5534476377 | I60: 0.6064113143 | J60: 0.8855711025 | K60: 0.5653027691 | L60: 0.7031769336 | M60: 0.7677269845 | N60: 0.7615376961 | Q60: 6 | R60: 10 | S60: 2 | T60: 9 | U60: 7 | V60: 1 | W60: 8 | X60: 5 | Y60: 3 | Z60: 4 | AB60: 1 | AC60: 1 | AD60: 1 | AE60: 1 | AF60: 1 | AG60: 1 | AH60: 1 | AI60: 1 | AJ60: 1 | AK60: 1 | AL60: 1
D61: 3rd | E61: 0.9394016621 | F61: 0.3683406235 | G61: 0.1368098322 | H61: 0.6084171084 | I61: 0.936752059 | J61: 0.230411658 | K61: 0.04836663373 | L61: 0.5587645872 | M61: 0.2657294415 | N61: 0.7597644816 | Q61: 1 | R61: 6 | S61: 9 | T61: 4 | U61: 2 | V61: 8 | W61: 10 | X61: 5 | Y61: 7 | Z61: 3 | AC61: 1 | AD61: 1 | AF61: 1 | AG61: 1 | AH61: 1 | AI61: 1 | AJ61: 1 | AK61: 1
D62: 4th | E62: 0.9046684025 | F62: 0.9065489573 | G62: 0.8764501772 | H62: 0.02518825334 | I62: 0.8433096911 | J62: 0.3192693218 | K62: 0.70695787 | L62: 0.5554827964 | M62: 0.9085701077 | N62: 0.9197138349 | Q62: 4 | R62: 3 | S62: 5 | T62: 10 | U62: 6 | V62: 9 | W62: 7 | X62: 8 | Y62: 2 | Z62: 1 | AB62: 1 | AC62: 1 | AD62: 1 | AE62: 1 | AF62: 1 | AG62: 1 | AJ62: 1 | AK62: 1
D63: 5th | E63: 0.5511888612 | F63: 0.04293485559 | G63: 0.3499138266 | H63: 0.5428202259 | I63: 0.8965201878 | J63: 0.9701215561 | K63: 0.1390001729 | L63: 0.5605065492 | M63: 0.7473751331 | N63: 0.94319149 | Q63: 6 | R63: 10 | S63: 8 | T63: 7 | U63: 3 | V63: 1 | W63: 9 | X63: 5 | Y63: 4 | Z63: 2 | AB63: 1 | AC63: 1 | AD63: 1 | AE63: 1 | AF63: 1 | AG63: 1 | AH63: 1 | AI63: 1 | AJ63: 1 | AK63: 1 | AL63: 1
D64: 6th | E64: 0.4379580572 | F64: 0.7106783554 | G64: 0.006792420961 | H64: 0.7370085725 | I64: 0.1478066683 | J64: 0.0580315376 | K64: 0.1589582508 | L64: 0.3483407913 | M64: 0.9266150251 | N64: 0.7024581791 | Q64: 5 | R64: 3 | S64: 10 | T64: 2 | U64: 8 | V64: 9 | W64: 7 | X64: 6 | Y64: 1 | Z64: 4 | AB64: 1 | AC64: 1 | AD64: 1 | AE64: 1 | AF64: 1 | AG64: 1 | AI64: 1 | AJ64: 1 | AK64: 1
D65: 7th | E65: 0.9151819821 | F65: 0.4865536639 | G65: 0.9386902181 | H65: 0.6167459158 | I65: 0.1564491745 | J65: 0.6029073834 | K65: 0.4115957339 | L65: 0.4311900271 | M65: 0.3246531604 | N65: 0.2565463273 | Q65: 2 | R65: 5 | S65: 1 | T65: 3 | U65: 10 | V65: 4 | W65: 7 | X65: 6 | Y65: 8 | Z65: 9 | AB65: 1 | AC65: 1 | AD65: 1 | AE65: 1 | AF65: 1 | AG65: 1 | AI65: 1 | AJ65: 1 | AK65: 1
D66: 8th | E66: 0.6367666768 | F66: 0.2183480036 | G66: 0.0291068613 | H66: 0.4617690267 | I66: 0.6045778417 | J66: 0.6022795091 | K66: 0.4528257947 | L66: 0.4416933065 | M66: 0.03508289571 | N66: 0.6209306741 | Q66: 1 | R66: 8 | S66: 10 | T66: 5 | U66: 3 | V66: 4 | W66: 6 | X66: 7 | Y66: 9 | Z66: 2 | AC66: 1 | AD66: 1 | AE66: 1 | AF66: 1 | AG66: 1 | AH66: 1 | AI66: 1 | AK66: 1
D67: 9th | E67: 0.2096987594 | F67: 0.4758274928 | G67: 0.7420802524 | H67: 0.6631652357 | I67: 0.662109177 | J67: 0.7381016269 | K67: 0.9379479636 | L67: 0.5913333251 | M67: 0.9322223734 | N67: 0.1159157132 | Q67: 9 | R67: 8 | S67: 3 | T67: 5 | U67: 6 | V67: 4 | W67: 1 | X67: 7 | Y67: 2 | Z67: 10 | AB67: 1 | AC67: 1 | AE67: 1 | AF67: 1 | AG67: 1 | AH67: 1 | AI67: 1 | AJ67: 1
D68: 10th | E68: 0.7074236985 | F68: 0.416747283 | G68: 0.5586255541 | H68: 0.1051695807 | I68: 0.8535986576 | J68: 0.9105368793 | K68: 0.1020263355 | L68: 0.5416613956 | M68: 0.2311059413 | N68: 0.902616949 | Q68: 4 | R68: 7 | S68: 5 | T68: 9 | U68: 3 | V68: 1 | W68: 10 | X68: 6 | Y68: 8 | Z68: 2 | AB68: 1 | AC68: 1 | AD68: 1 | AE68: 1 | AF68: 1 | AG68: 1 | AH68: 1 | AI68: 1 | AJ68: 1 | AK68: 1 | AL68: 1

Sheet 3章_a
C2: 第3章： 投資戦略の比較
AE4: CASINO
D5: TABLE 1 | K5: 1 Game | X5: TABLE 2 | AA5: 100 Games
D8: 資金 | X8: 勝ち数 | AI8: RESULTS
D9: 残金 | X9: 残金合計
D11: 基準 | G11: ↑ | I11: ↑ | K11: ↑ | M11: ↑ | O11: ↑ | Q11: ↑ | S11: ↑ | X11: COPY | AI11: TABLE 3 | AK11: 1000ゲームの結果 （勝ち数） | AR11: TABLE 4 | AU11: 勝ち数の順位
D13: R | E13: 判定 | G13: MG | I13: AM | K13: GM | M13: DB | O13: TP | Q13: OU | S13: RD | T13: 5 | X13: 100G | Y13: MG | Z13: AM | AA13: GM | AB13: DB | AC13: TP | AD13: OU | AE13: RD | AI13: 100×10 | AJ13: MG | AK13: AM | AL13: GM | AM13: DB | AN13: TP | AO13: OU | AP13: RD | AR13: MG | AS13: aMG | AT13: GM | AU13: DB | AV13: TP | AW13: OU | AX13: RD
G14: 賭金 | H14: 残額 | I14: 賭金 | J14: 残額 | K14: 賭金 | L14: 残額 | M14: 賭金 | N14: 残額 | O14: 賭金 | P14: 残額 | Q14: 賭金 | R14: 残額 | S14: 賭金 | T14: 残額
D15: 1 | X15: 1 | AI15: 1st | AR15: =RANK(AJ15,AJ15:AP15) ->  | AS15: =RANK(AK15,AJ15:AP15) ->  | AT15: =RANK(AL15,AJ15:AP15) ->  | AU15: =RANK(AM15,AJ15:AP15) ->  | AV15: =RANK(AN15,AJ15:AP15) ->  | AW15: =RANK(AO15,AJ15:AP15) ->  | AX15: =RANK(AP15,AJ15:AP15) -> 
D16: 2 | X16: 2 | AI16: 2nd | AR16: =RANK(AJ16,AJ16:AP16) ->  | AS16: =RANK(AK16,AJ16:AP16) ->  | AT16: =RANK(AL16,AJ16:AP16) ->  | AU16: =RANK(AM16,AJ16:AP16) ->  | AV16: =RANK(AN16,AJ16:AP16) ->  | AW16: =RANK(AO16,AJ16:AP16) ->  | AX16: =RANK(AP16,AJ16:AP16) -> 
D17: 3 | X17: 3 | AI17: 3rd
D18: 4 | X18: 4 | AI18: 4th
D19: 5 | X19: 5 | AI19: 5th
D20: 6 | X20: 6 | AI20: 6th
D21: 7 | X21: 7 | AI21: 7th
D22: 8 | X22: 8 | AI22: 8th
D23: 9 | X23: 9 | AI23: 9th
D24: 10 | X24: 10 | AI24: 10th
D25: 11 | X25: 11 | AI25: Sum | AJ25: =SUM(AJ15:AJ24) -> 0 | AK25: 0 | AL25: 0 | AM25: 0 | AN25: 0 | AO25: 0 | AP25: 0 | AR25: =RANK(AJ25,AJ25:AP25) -> 1 | AS25: =RANK(AK25,AJ25:AP25) -> 1 | AT25: =RANK(AL25,AJ25:AP25) -> 1 | AU25: =RANK(AM25,AJ25:AP25) -> 1 | AV25: =RANK(AN25,AJ25:AP25) -> 1 | AW25: =RANK(AO25,AJ25:AP25) -> 1 | AX25: =RANK(AP25,AJ25:AP25) -> 1
D26: 12 | X26: 12
D27: 13 | X27: 13 | AN27: =$AO$43/20000/100 -> 0 | AP27: OU勝率
D28: 14 | X28: 14
D29: 15 | X29: 15 | AI29: TABLE 5 | AK29: 1000ゲームの結果 （残金合計） | AR29: TABLE 6 | AU29: 残金合計の順位
D30: 16 | X30: 16
D31: 17 | X31: 17 | AI31: 100×10 | AJ31: MG | AK31: AM | AL31: GM | AM31: DB | AN31: TP | AO31: OU | AP31: RD | AR31: MG | AS31: aMG | AT31: GM | AU31: DB | AV31: TP | AW31: OU | AX31: RD
D32: 18 | X32: 18
D33: 19 | X33: 19 | AI33: 1st | AR33: =RANK(AJ33,AJ33:AP33) ->  | AS33: =RANK(AK33,AJ33:AP33) ->  | AT33: =RANK(AL33,AJ33:AP33) ->  | AU33: =RANK(AM33,AJ33:AP33) ->  | AV33: =RANK(AN33,AJ33:AP33) ->  | AW33: =RANK(AO33,AJ33:AP33) ->  | AX33: =RANK(AP33,AJ33:AP33) -> 
D34: 20 | X34: 20 | AI34: 2nd
D35: 21 | X35: 21 | AI35: 3rd
D36: 22 | X36: 22 | AI36: 4th
D37: 23 | X37: 23 | AI37: 5th
D38: 24 | X38: 24 | AI38: 6th
D39: 25 | X39: 25 | AI39: 7th
D40: 26 | X40: 26 | AI40: 8th
D41: 27 | X41: 27 | AI41: 9th
D42: 28 | X42: 28 | AI42: 10th
D43: 29 | X43: 29 | AI43: Sum | AJ43: =SUM(AJ33:AJ42) -> 0 | AK43: 0 | AL43: 0 | AM43: 0 | AN43: 0 | AO43: 0 | AP43: 0 | AR43: =RANK(AJ43,AJ43:AP43) -> 1 | AS43: =RANK(AK43,AJ43:AP43) -> 1 | AT43: =RANK(AL43,AJ43:AP43) -> 1 | AU43: =RANK(AM43,AJ43:AP43) -> 1 | AV43: =RANK(AN43,AJ43:AP43) -> 1 | AW43: =RANK(AO43,AJ43:AP43) -> 1 | AX43: =RANK(AP43,AJ43:AP43) -> 1
D44: 30 | X44: 30
D45: 31 | X45: 31
D46: 32 | X46: 32
D47: 33 | X47: 33
D48: 34 | X48: 34
D49: 35 | X49: 35
D50: 36 | X50: 36
D51: 37 | X51: 37
D52: 38 | X52: 38
D53: 39 | X53: 39
D54: 40 | X54: 40
D55: 41 | X55: 41
D56: 42 | X56: 42
D57: 43 | X57: 43
D58: 44 | X58: 44
D59: 45 | X59: 45
D60: 46 | X60: 46
D61: 47 | X61: 47
D62: 48 | X62: 48
D63: 49 | X63: 49
D64: 50 | X64: 50
D65: 51 | X65: 51
D66: 52 | X66: 52
D67: 53 | X67: 53
D68: 54 | X68: 54
D69: 55 | X69: 55
D70: 56 | X70: 56
D71: 57 | X71: 57
D72: 58 | X72: 58
D73: 59 | X73: 59
D74: 60 | X74: 60
D75: 61 | X75: 61
D76: 62 | X76: 62
D77: 63 | X77: 63
D78: 64 | X78: 64
D79: 65 | X79: 65
D80: 66 | X80: 66
D81: 67 | X81: 67
D82: 68 | X82: 68
D83: 69 | X83: 69
D84: 70 | X84: 70
D85: 71 | X85: 71
D86: 72 | X86: 72
D87: 73 | X87: 73
D88: 74 | X88: 74
D89: 75 | X89: 75
D90: 76 | X90: 76
D91: 77 | X91: 77
D92: 78 | X92: 78
D93: 79 | X93: 79
D94: 80 | X94: 80
D95: 81 | X95: 81
D96: 82 | X96: 82
D97: 83 | X97: 83
D98: 84 | X98: 84
D99: 85 | X99: 85
D100: 86 | X100: 86
D101: 87 | X101: 87
D102: 88 | X102: 88
D103: 89 | X103: 89
D104: 90 | X104: 90
D105: 91 | X105: 91
D106: 92 | X106: 92
D107: 93 | X107: 93
D108: 94 | X108: 94
D109: 95 | X109: 95
D110: 96 | X110: 96
D111: 97 | X111: 97
D112: 98 | X112: 98
D113: 99 | X113: 99
D114: 100 | X114: 100
X116: 100G | Y116: MG | Z116: AM | AA116: GM | AB116: DB | AC116: TP | AD116: OU | AE116: RD
X118: AVE | Y118: =AVERAGE(Y15:Y114) -> 
X119: MAX | Y119: =MAX(Y15:Y114) -> 0 | Z119: 0 | AA119: 0 | AB119: 0 | AC119: 0 | AD119: 0 | AE119: 0
X120: MIN | Y120: =MIN(Y15:Y114) -> 0 | Z120: 0 | AA120: 0 | AB120: 0 | AC120: 0 | AD120: 0 | AE120: 0
X121: 標準偏差 | Y121: =STDEV(Y15:Y114) -> 
W124: 残金範囲 | Y124: MG | Z124: AM | AA124: GM | AB124: DB | AC124: TP | AD124: OU | AE124: RD
U126: =COUNTIF(Y15:Y114,T126) -> 0 | W126: 0 | X126: 25 | Y126: =COUNTIF(Y15:Y114,"<="&$X126) -> 0 | Z126: 0 | AA126: 0 | AB126: 0 | AC126: 0 | AD126: 0 | AE126: 0
W127: 26 | X127: 50 | Y127: =COUNTIF(Y15:Y114,"<="&$X127)-Y126 -> 0 | Z127: 0 | AA127: 0 | AB127: 0 | AC127: 0 | AD127: 0 | AE127: 0
W128: 51 | X128: 75 | Y128: =COUNTIF(Y15:Y114,"<="&$X128)-SUM(Y126:Y127) -> 0 | Z128: 0 | AA128: 0 | AB128: 0 | AC128: 0 | AD128: 0 | AE128: 0
W129: 76 | X129: 100 | Y129: =COUNTIF(Y15:Y114,"<="&$X129)-SUM(Y126:Y128) -> 0 | Z129: 0 | AA129: 0 | AB129: 0 | AC129: 0 | AD129: 0 | AE129: 0
W130: 101 | X130: 125 | Y130: =IF((COUNTIF(Y15:Y114,"<="&$X130)-SUM(Y126:Y129))<=0,0,COUNTIF(Y15:Y114,"<="&$X130)-SUM(Y126:Y129)) -> 0 | Z130: 0 | AA130: 0 | AB130: 0 | AC130: 0 | AD130: 0 | AE130: 0
W131: 126 | X131: 150 | Y131: =IF((COUNTIF(Y15:Y114,"<="&$X131)-SUM(Y126:Y130))<=0,0,COUNTIF(Y15:Y114,"<="&$X131)-SUM(Y126:Y130)) -> 0 | Z131: 0 | AA131: 0 | AB131: 0 | AC131: 0 | AD131: 0 | AE131: 0
W132: 151 | X132: 175 | Y132: =IF((COUNTIF(Y15:Y114,"<="&$X132)-SUM(Y126:Y131))<=0,0,COUNTIF(Y15:Y114,"<="&$X132)-SUM(Y126:Y131)) -> 0 | Z132: 0 | AA132: 0 | AB132: 0 | AC132: 0 | AD132: 0 | AE132: 0
W133: 176 | X133: 200 | Y133: =IF((COUNTIF(Y15:Y114,"<="&$X133)-SUM(Y126:Y132))<=0,0,COUNTIF(Y15:Y114,"<="&$X133)-SUM(Y126:Y132)) -> 0 | Z133: 0 | AA133: 0 | AB133: 0 | AC133: 0 | AD133: 0 | AE133: 0
W134: 201 | X134: - | Y134: =COUNTIF(Y15:Y114,">"&$X$133) -> 0 | Z134: 0 | AA134: 0 | AB134: 0 | AC134: 0 | AD134: 0 | AE134: 0
W135: 計 | Y135: =SUM(Y126:Y134) -> 0 | Z135: 0 | AA135: 0 | AB135: 0 | AC135: 0 | AD135: 0 | AE135: 0

Sheet 3章_b
C2: 第3章： 投資戦略の比較
AE4: CASINO
D5: TABLE 1 | K5: 1 Game | X5: TABLE 2 | AA5: 100 Games
D8: 資金 | G8: 100 | I8: =G8 -> 100 | K8: =I8 -> 100 | M8: =K8 -> 100 | O8: 100 | Q8: =O8 -> 100 | S8: 100 | X8: 勝ち数 | Y8: =COUNTIF(Y15:Y114,">100") -> 64 | Z8: 1 | AA8: 45 | AB8: 28 | AC8: 26 | AD8: 43 | AE8: 41 | AI8: RESULTS
D9: 残金 | G9: =H114 -> 151 | I9: =J114 -> 52 | K9: =L114 -> 89 | M9: =N114 -> 107 | O9: =P114 -> 87 | Q9: =R114 -> 104 | S9: =T114 -> 113 | X9: 残金合計 | Y9: =SUM(Y15:Y114) -> 9574 | Z9: 5197 | AA9: 9899 | AB9: 9762 | AC9: 9486 | AD9: 9904 | AE9: 9659
D11: 基準 | E11: 3 | G11: ↑ | I11: ↑ | K11: ↑ | M11: ↑ | O11: ↑ | Q11: ↑ | S11: ↑ | X11: COPY | Y11: =G9 -> 151 | Z11: =I9 -> 52 | AA11: =K9 -> 89 | AB11: =M9 -> 107 | AC11: =O9 -> 87 | AD11: =Q9 -> 104 | AE11: =S9 -> 113 | AI11: TABLE 3 | AK11: 1000ゲームの結果 （勝ち数） | AR11: TABLE 4 | AU11: 勝ち数の順位
D13: R | E13: 判定 | G13: MG | I13: AM | K13: GM | M13: DB | O13: TP | Q13: OU | S13: RD | T13: 5 | X13: 100G | Y13: MG | Z13: AM | AA13: GM | AB13: DB | AC13: TP | AD13: OU | AE13: RD | AI13: 100×10 | AJ13: MG | AK13: AM | AL13: GM | AM13: DB | AN13: TP | AO13: OU | AP13: RD | AR13: MG | AS13: aMG | AT13: GM | AU13: DB | AV13: TP | AW13: OU | AX13: RD
G14: 賭金 | H14: 残額 | I14: 賭金 | J14: 残額 | K14: 賭金 | L14: 残額 | M14: 賭金 | N14: 残額 | O14: 賭金 | P14: 残額 | Q14: 賭金 | R14: 残額 | S14: 賭金 | T14: 残額
D15: 1 | E15: =RANDBETWEEN(1,6) -> 6 | G15: 1 | H15: =IF($E15<=$E$11,G8+G15,G8-G15) -> 99 | I15: 1 | J15: =IF($E15<=$E11,I8+I15,I8-I15) -> 99 | K15: 1 | L15: =IF($E15<=$E11,K8+K15,K8-K15) -> 99 | M15: 1 | N15: =IF($E15<=$E11,M8+M15,M8-M15) -> 99 | O15: =ROUND(O8*0.1,0) -> 10 | P15: =IF($E15<=$E11,O8+O15,O8-O15) -> 90 | Q15: =IF(Q8>0,1,0) -> 1 | R15: =IF($E15<=$E11,Q8+Q15,Q8-Q15) -> 99 | S15: =RANDBETWEEN(1,5) -> 2 | T15: =IF($E15<=$E11,S8+S15,S8-S15) -> 98 | X15: 1 | Y15: 0 | Z15: 52 | AA15: 121 | AB15: 67 | AC15: 93 | AD15: 104 | AE15: 88 | AI15: 1st | AJ15: 73 | AK15: 0 | AL15: 49 | AM15: 30 | AN15: 33 | AO15: 51 | AP15: 55 | AR15: =RANK(AJ15,AJ15:AP15) -> 1 | AS15: =RANK(AK15,AJ15:AP15) -> 7 | AT15: =RANK(AL15,AJ15:AP15) -> 4 | AU15: =RANK(AM15,AJ15:AP15) -> 6 | AV15: =RANK(AN15,AJ15:AP15) -> 5 | AW15: =RANK(AO15,AJ15:AP15) -> 3 | AX15: =RANK(AP15,AJ15:AP15) -> 2
D16: 2 | E16: 3 | G16: =IF(H15=0,0,IF(E15<=$E$11,1,IF(H15>=G15*2,G15*2,H15))) -> 2 | H16: =IF($E16<=$E$11,H15+G16,H15-G16) -> 101 | I16: =IF(J15=0,0,IF(E15<=$E$11,I15*2,1)) -> 1 | J16: =IF($E16<=$E$11,J15+I16,J15-I16) -> 100 | K16: =IF(L15=0,0,IF(E15<=$E$11,2,1)) -> 1 | L16: =IF($E16<=$E$11,L15+K16,L15-K16) -> 100 | M16: =IF(N15=0,0,IF(E15<=$E$11,M15+1,IF(M15=1,1,M15-1))) -> 1 | N16: =IF($E16<=$E$11,N15+M16,N15-M16) -> 100 | O16: =IF(P15=0,0,IF(P15<=4,P15,ROUND(P15*0.1,0))) -> 9 | P16: =IF($E16<=$E$11,P15+O16,P15-O16) -> 99 | Q16: =IF(R15>0,1,0) -> 1 | R16: =IF($E16<=$E$11,R15+Q16,R15-Q16) -> 100 | S16: =IF(T15=0,0,IF(T15<=4,T15,RANDBETWEEN(1,5))) -> 2 | T16: =IF($E16<=$E$11,T15+S16,T15-S16) -> 100 | X16: 2 | Y16: 120 | Z16: 51 | AA16: 106 | AB16: 79 | AC16: 76 | AD16: 102 | AE16: 123 | AI16: 2nd | AJ16: 72 | AK16: 1 | AL16: 50 | AM16: 36 | AN16: 34 | AO16: 53 | AP16: 54 | AR16: 1 | AS16: 7 | AT16: 4 | AU16: 5 | AV16: 6 | AW16: 3 | AX16: 2
D17: 3 | E17: 6 | G17: 1 | H17: 100 | I17: 2 | J17: 98 | K17: =IF(L16=0,0,IF(AND(E16<=$E$11,E15<=$E$11),3,IF(E16<=$E$11,2,1))) -> 2 | L17: 98 | M17: 2 | N17: 98 | O17: 10 | P17: 89 | Q17: 1 | R17: 99 | S17: 1 | T17: 99 | X17: 3 | Y17: 141 | Z17: 48 | AA17: 85 | AB17: 48 | AC17: 41 | AD17: 96 | AE17: 82 | AI17: 3rd | AJ17: 67 | AK17: 1 | AL17: 44 | AM17: 38 | AN17: 32 | AO17: 47 | AP17: 52 | AR17: 1 | AS17: 7 | AT17: 4 | AU17: 5 | AV17: 6 | AW17: 3 | AX17: 2
D18: 4 | E18: 5 | G18: 2 | H18: 98 | I18: 1 | J18: 97 | K18: =IF(L17=0,0,IF(AND(E17<=$E$11,E16<=$E$11,E15<=$E$11),5,IF(AND(E17<=$E$11,E16<=$E$11),3,IF(E17<=$E$11,2,1)))) -> 1 | L18: 97 | M18: 1 | N18: 97 | O18: 9 | P18: 80 | Q18: 1 | R18: 98 | S18: 2 | T18: 97 | X18: 4 | Y18: 155 | Z18: 70 | AA18: 109 | AB18: 226 | AC18: 161 | AD18: 110 | AE18: 138 | AI18: 4th | AJ18: 60 | AK18: 2 | AL18: 44 | AM18: 27 | AN18: 31 | AO18: 44 | AP18: 49 | AR18: 1 | AS18: 7 | AT18: 3 | AU18: 6 | AV18: 5 | AW18: 3 | AX18: 2
D19: 5 | E19: 3 | G19: 4 | H19: 102 | I19: 1 | J19: 98 | K19: 1 | L19: 98 | M19: 1 | N19: 98 | O19: 8 | P19: 88 | Q19: 1 | R19: 99 | S19: 3 | T19: 100 | X19: 5 | Y19: 147 | Z19: 48 | AA19: 95 | AB19: 84 | AC19: 38 | AD19: 96 | AE19: 84 | AI19: 5th | AJ19: 71 | AK19: 2 | AL19: 37 | AM19: 33 | AN19: 32 | AO19: 46 | AP19: 52 | AR19: 1 | AS19: 7 | AT19: 4 | AU19: 5 | AV19: 6 | AW19: 3 | AX19: 2
D20: 6 | E20: 5 | G20: 1 | H20: 101 | I20: 2 | J20: 96 | K20: 2 | L20: 96 | M20: 2 | N20: 96 | O20: 9 | P20: 79 | Q20: 1 | R20: 98 | S20: 3 | T20: 97 | X20: 6 | Y20: 152 | Z20: 55 | AA20: 96 | AB20: 88 | AC20: 92 | AD20: 104 | AE20: 105 | AI20: 6th | AJ20: 67 | AK20: 0 | AL20: 47 | AM20: 35 | AN20: 35 | AO20: 51 | AP20: 54 | AR20: 1 | AS20: 7 | AT20: 4 | AU20: 5 | AV20: 5 | AW20: 3 | AX20: 2
D21: 7 | E21: 4 | G21: 2 | H21: 99 | I21: 1 | J21: 95 | K21: 1 | L21: 95 | M21: 1 | N21: 95 | O21: 8 | P21: 71 | Q21: 1 | R21: 97 | S21: 5 | T21: 92 | X21: 7 | Y21: 0 | Z21: 50 | AA21: 91 | AB21: 50 | AC21: 48 | AD21: 98 | AE21: 100 | AI21: 7th | AJ21: 62 | AK21: 1 | AL21: 49 | AM21: 27 | AN21: 27 | AO21: 47 | AP21: 48 | AR21: 1 | AS21: 7 | AT21: 2 | AU21: 5 | AV21: 5 | AW21: 4 | AX21: 3
D22: 8 | E22: 4 | G22: 4 | H22: 95 | I22: 1 | J22: 94 | K22: 1 | L22: 94 | M22: 1 | N22: 94 | O22: 7 | P22: 64 | Q22: 1 | R22: 96 | S22: 1 | T22: 91 | X22: 8 | Y22: 147 | Z22: 57 | AA22: 114 | AB22: 177 | AC22: 245 | AD22: 114 | AE22: 151 | AI22: 8th | AJ22: 61 | AK22: 1 | AL22: 45 | AM22: 31 | AN22: 32 | AO22: 50 | AP22: 45 | AR22: 1 | AS22: 7 | AT22: 3 | AU22: 6 | AV22: 5 | AW22: 2 | AX22: 3
D23: 9 | E23: 1 | G23: 8 | H23: 103 | I23: 1 | J23: 95 | K23: 1 | L23: 95 | M23: 1 | N23: 95 | O23: 6 | P23: 70 | Q23: 1 | R23: 97 | S23: 4 | T23: 95 | X23: 9 | Y23: 153 | Z23: 54 | AA23: 94 | AB23: 81 | AC23: 110 | AD23: 106 | AE23: 117 | AI23: 9th | AJ23: 61 | AK23: 4 | AL23: 48 | AM23: 27 | AN23: 30 | AO23: 43 | AP23: 53 | AR23: 1 | AS23: 7 | AT23: 3 | AU23: 6 | AV23: 5 | AW23: 4 | AX23: 2
D24: 10 | E24: 5 | G24: 1 | H24: 102 | I24: 2 | J24: 93 | K24: 2 | L24: 93 | M24: 2 | N24: 93 | O24: 7 | P24: 63 | Q24: 1 | R24: 96 | S24: 5 | T24: 90 | X24: 10 | Y24: 0 | Z24: 53 | AA24: 99 | AB24: 80 | AC24: 87 | AD24: 104 | AE24: 102 | AI24: 10th | AJ24: 64 | AK24: 1 | AL24: 45 | AM24: 28 | AN24: 26 | AO24: 43 | AP24: 41 | AR24: 1 | AS24: 7 | AT24: 2 | AU24: 5 | AV24: 6 | AW24: 3 | AX24: 4
D25: 11 | E25: 5 | G25: 2 | H25: 100 | I25: 1 | J25: 92 | K25: 1 | L25: 92 | M25: 1 | N25: 92 | O25: 6 | P25: 57 | Q25: 1 | R25: 95 | S25: 3 | T25: 87 | X25: 11 | Y25: 147 | Z25: 50 | AA25: 106 | AB25: 105 | AC25: 62 | AD25: 100 | AE25: 99 | AI25: Sum | AJ25: =SUM(AJ15:AJ24) -> 658 | AK25: 13 | AL25: 458 | AM25: 312 | AN25: 312 | AO25: 475 | AP25: 503 | AR25: 1 | AS25: 7 | AT25: 4 | AU25: 5 | AV25: 5 | AW25: 3 | AX25: 2
D26: 12 | E26: 6 | G26: 4 | H26: 96 | I26: 1 | J26: 91 | K26: 1 | L26: 91 | M26: 1 | N26: 91 | O26: 6 | P26: 51 | Q26: 1 | R26: 94 | S26: 1 | T26: 86 | X26: 12 | Y26: 152 | Z26: 53 | AA26: 125 | AB26: 97 | AC26: 94 | AD26: 104 | AE26: 129
D27: 13 | E27: 2 | G27: 8 | H27: 104 | I27: 1 | J27: 92 | K27: 1 | L27: 92 | M27: 1 | N27: 92 | O27: 5 | P27: 56 | Q27: 1 | R27: 95 | S27: 5 | T27: 91 | X27: 13 | Y27: 0 | Z27: 53 | AA27: 141 | AB27: 108 | AC27: 109 | AD27: 106 | AE27: 131
D28: 14 | E28: 4 | G28: 1 | H28: 103 | I28: 2 | J28: 90 | K28: 2 | L28: 90 | M28: 2 | N28: 90 | O28: 6 | P28: 50 | Q28: 1 | R28: 94 | S28: 2 | T28: 89 | X28: 14 | Y28: 152 | Z28: 55 | AA28: 109 | AB28: 208 | AC28: 157 | AD28: 110 | AE28: 131
D29: 15 | E29: 3 | G29: 2 | H29: 105 | I29: 1 | J29: 91 | K29: 1 | L29: 91 | M29: 1 | N29: 91 | O29: 5 | P29: 55 | Q29: 1 | R29: 95 | S29: 1 | T29: 90 | X29: 15 | Y29: 151 | Z29: 52 | AA29: 95 | AB29: 97 | AC29: 85 | AD29: 104 | AE29: 114 | AI29: TABLE 5 | AK29: 1000ゲームの結果 （残金合計） | AR29: TABLE 6 | AU29: 残金合計の順位
D30: 16 | E30: 5 | G30: 1 | H30: 104 | I30: 2 | J30: 89 | K30: 2 | L30: 89 | M30: 2 | N30: 89 | O30: 6 | P30: 49 | Q30: 1 | R30: 94 | S30: 5 | T30: 85 | X30: 16 | Y30: 0 | Z30: 45 | AA30: 84 | AB30: 45 | AC30: 22 | AD30: 90 | AE30: 65
D31: 17 | E31: 3 | G31: 2 | H31: 106 | I31: 1 | J31: 90 | K31: 1 | L31: 90 | M31: 1 | N31: 90 | O31: 5 | P31: 54 | Q31: 1 | R31: 95 | S31: 2 | T31: 87 | X31: 17 | Y31: 29 | Z31: 45 | AA31: 85 | AB31: 48 | AC31: 22 | AD31: 90 | AE31: 60 | AI31: 100×10 | AJ31: MG | AK31: AM | AL31: GM | AM31: DB | AN31: TP | AO31: OU | AP31: RD | AR31: MG | AS31: aMG | AT31: GM | AU31: DB | AV31: TP | AW31: OU | AX31: RD
D32: 18 | E32: 2 | G32: 1 | H32: 107 | I32: 2 | J32: 92 | K32: 2 | L32: 92 | M32: 2 | N32: 92 | O32: 5 | P32: 59 | Q32: 1 | R32: 96 | S32: 4 | T32: 91 | X32: 18 | Y32: 0 | Z32: 52 | AA32: 130 | AB32: 96 | AC32: 70 | AD32: 102 | AE32: 91
D33: 19 | E33: 5 | G33: 1 | H33: 106 | I33: 4 | J33: 88 | K33: 3 | L33: 89 | M33: 3 | N33: 89 | O33: 6 | P33: 53 | Q33: 1 | R33: 95 | S33: 4 | T33: 87 | X33: 19 | Y33: 145 | Z33: 46 | AA33: 89 | AB33: 56 | AC33: 30 | AD33: 92 | AE33: 44 | AI33: 1st | AJ33: 10733 | AK33: 5241 | AL33: 10039 | AM33: 10100 | AN33: 10503 | AO33: 10122 | AP33: 10417 | AR33: =RANK(AJ33,AJ33:AP33) -> 1 | AS33: =RANK(AK33,AJ33:AP33) -> 7 | AT33: =RANK(AL33,AJ33:AP33) -> 6 | AU33: =RANK(AM33,AJ33:AP33) -> 5 | AV33: =RANK(AN33,AJ33:AP33) -> 2 | AW33: =RANK(AO33,AJ33:AP33) -> 4 | AX33: =RANK(AP33,AJ33:AP33) -> 3
D34: 20 | E34: 2 | G34: 2 | H34: 108 | I34: 1 | J34: 89 | K34: 1 | L34: 90 | M34: 2 | N34: 91 | O34: 5 | P34: 58 | Q34: 1 | R34: 96 | S34: 3 | T34: 90 | X34: 20 | Y34: 150 | Z34: 51 | AA34: 110 | AB34: 87 | AC34: 78 | AD34: 102 | AE34: 73 | AI34: 2nd | AJ34: 10651 | AK34: 9283 | AL34: 10225 | AM34: 10107 | AN34: 9570 | AO34: 10076 | AP34: 10016 | AR34: 1 | AS34: 7 | AT34: 2 | AU34: 3 | AV34: 6 | AW34: 4 | AX34: 5
D35: 21 | E35: 1 | G35: 1 | H35: 109 | I35: 2 | J35: 91 | K35: 2 | L35: 92 | M35: 3 | N35: 94 | O35: 6 | P35: 64 | Q35: 1 | R35: 97 | S35: 3 | T35: 93 | X35: 21 | Y35: 22 | Z35: 49 | AA35: 79 | AB35: 55 | AC35: 49 | AD35: 98 | AE35: 90 | AI35: 3rd | AJ35: 9985 | AK35: 5356 | AL35: 10261 | AM35: 11565 | AN35: 11880 | AO35: 10054 | AP35: 10303 | AR35: 6 | AS35: 7 | AT35: 4 | AU35: 2 | AV35: 1 | AW35: 5 | AX35: 3
D36: 22 | E36: 6 | G36: 1 | H36: 108 | I36: 4 | J36: 87 | K36: 3 | L36: 89 | M36: 4 | N36: 90 | O36: 6 | P36: 58 | Q36: 1 | R36: 96 | S36: 1 | T36: 92 | X36: 22 | Y36: 0 | Z36: 51 | AA36: 97 | AB36: 103 | AC36: 37 | AD36: 96 | AE36: 83 | AI36: 4th | AJ36: 9170 | AK36: 5344 | AL36: 9946 | AM36: 9867 | AN36: 10843 | AO36: 9942 | AP36: 9939 | AR36: 6 | AS36: 7 | AT36: 2 | AU36: 5 | AV36: 1 | AW36: 3 | AX36: 4
D37: 23 | E37: 1 | G37: 2 | H37: 110 | I37: 1 | J37: 88 | K37: 1 | L37: 90 | M37: 3 | N37: 93 | O37: 6 | P37: 64 | Q37: 1 | R37: 97 | S37: 1 | T37: 93 | X37: 23 | Y37: 0 | Z37: 49 | AA37: 102 | AB37: 84 | AC37: 36 | AD37: 96 | AE37: 91 | AI37: 5th | AJ37: 10688 | AK37: 5709 | AL37: 9794 | AM37: 9556 | AN37: 9658 | AO37: 9972 | AP37: 9911 | AR37: 1 | AS37: 7 | AT37: 4 | AU37: 6 | AV37: 5 | AW37: 2 | AX37: 3
D38: 24 | E38: 3 | G38: 1 | H38: 111 | I38: 2 | J38: 90 | K38: 2 | L38: 92 | M38: 4 | N38: 97 | O38: 6 | P38: 70 | Q38: 1 | R38: 98 | S38: 1 | T38: 94 | X38: 24 | Y38: 0 | Z38: 42 | AA38: 69 | AB38: 48 | AC38: 12 | AD38: 84 | AE38: 69 | AI38: 6th | AJ38: 10182 | AK38: 5160 | AL38: 10180 | AM38: 10455 | AN38: 11077 | AO38: 10050 | AP38: 10239 | AR38: 4 | AS38: 7 | AT38: 5 | AU38: 2 | AV38: 1 | AW38: 6 | AX38: 3
D39: 25 | E39: 1 | G39: 1 | H39: 112 | I39: 4 | J39: 94 | K39: 3 | L39: 95 | M39: 5 | N39: 102 | O39: 7 | P39: 77 | Q39: 1 | R39: 99 | S39: 5 | T39: 99 | X39: 25 | Y39: 0 | Z39: 42 | AA39: 71 | AB39: 57 | AC39: 12 | AD39: 84 | AE39: 70 | AI39: 7th | AJ39: 9523 | AK39: 6208 | AL39: 10053 | AM39: 9233 | AN39: 9180 | AO39: 10020 | AP39: 10060 | AR39: 4 | AS39: 7 | AT39: 2 | AU39: 5 | AV39: 6 | AW39: 3 | AX39: 1
D40: 26 | E40: 5 | G40: 1 | H40: 111 | I40: 8 | J40: 86 | K40: 5 | L40: 90 | M40: 6 | N40: 96 | O40: 8 | P40: 69 | Q40: 1 | R40: 98 | S40: 3 | T40: 96 | X40: 26 | Y40: 151 | Z40: 58 | AA40: 129 | AB40: 106 | AC40: 79 | AD40: 102 | AE40: 117 | AI40: 8th | AJ40: 9109 | AK40: 5431 | AL40: 9956 | AM40: 10019 | AN40: 9934 | AO40: 10026 | AP40: 9919 | AR40: 6 | AS40: 7 | AT40: 3 | AU40: 2 | AV40: 4 | AW40: 1 | AX40: 5
D41: 27 | E41: 2 | G41: 2 | H41: 113 | I41: 1 | J41: 87 | K41: 1 | L41: 91 | M41: 5 | N41: 101 | O41: 7 | P41: 76 | Q41: 1 | R41: 99 | S41: 3 | T41: 99 | X41: 27 | Y41: 154 | Z41: 55 | AA41: 102 | AB41: 110 | AC41: 167 | AD41: 110 | AE41: 130 | AI41: 9th | AJ41: 9207 | AK41: 5611 | AL41: 10145 | AM41: 10430 | AN41: 11430 | AO41: 10014 | AP41: 10242 | AR41: 6 | AS41: 7 | AT41: 4 | AU41: 2 | AV41: 1 | AW41: 5 | AX41: 3
D42: 28 | E42: 3 | G42: 1 | H42: 114 | I42: 2 | J42: 89 | K42: 2 | L42: 93 | M42: 6 | N42: 107 | O42: 8 | P42: 84 | Q42: 1 | R42: 100 | S42: 5 | T42: 104 | X42: 28 | Y42: 147 | Z42: 48 | AA42: 79 | AB42: 69 | AC42: 40 | AD42: 96 | AE42: 97 | AI42: 10th | AJ42: 9574 | AK42: 5197 | AL42: 9899 | AM42: 9762 | AN42: 9486 | AO42: 9904 | AP42: 9659 | AR42: 5 | AS42: 7 | AT42: 2 | AU42: 3 | AV42: 6 | AW42: 1 | AX42: 4
D43: 29 | E43: 2 | G43: 1 | H43: 115 | I43: 4 | J43: 93 | K43: 3 | L43: 96 | M43: 7 | N43: 114 | O43: 8 | P43: 92 | Q43: 1 | R43: 101 | S43: 3 | T43: 107 | X43: 29 | Y43: 149 | Z43: 50 | AA43: 83 | AB43: 52 | AC43: 46 | AD43: 98 | AE43: 80 | AI43: Sum | AJ43: =SUM(AJ33:AJ42) -> 98822 | AK43: 58540 | AL43: 100498 | AM43: 101094 | AN43: 103561 | AO43: 100180 | AP43: 100705 | AR43: 6 | AS43: 7 | AT43: 4 | AU43: 2 | AV43: 1 | AW43: 5 | AX43: 3
D44: 30 | E44: 1 | G44: 1 | H44: 116 | I44: 8 | J44: 101 | K44: 5 | L44: 101 | M44: 8 | N44: 122 | O44: 9 | P44: 101 | Q44: 1 | R44: 102 | S44: 3 | T44: 110 | X44: 30 | Y44: 0 | Z44: 45 | AA44: 73 | AB44: 57 | AC44: 13 | AD44: 84 | AE44: 44
D45: 31 | E45: 5 | G45: 1 | H45: 115 | I45: 16 | J45: 85 | K45: 5 | L45: 96 | M45: 9 | N45: 113 | O45: 10 | P45: 91 | Q45: 1 | R45: 101 | S45: 1 | T45: 109 | X45: 31 | Y45: 149 | Z45: 50 | AA45: 78 | AB45: 70 | AC45: 50 | AD45: 98 | AE45: 95
D46: 32 | E46: 2 | G46: 2 | H46: 117 | I46: 1 | J46: 86 | K46: 1 | L46: 97 | M46: 8 | N46: 121 | O46: 9 | P46: 100 | Q46: 1 | R46: 102 | S46: 2 | T46: 111 | X46: 32 | Y46: 146 | Z46: 49 | AA46: 98 | AB46: 104 | AC46: 47 | AD46: 98 | AE46: 78
D47: 33 | E47: =RANDBETWEEN(1,6) -> 5 | G47: 1 | H47: 116 | I47: 2 | J47: 84 | K47: 2 | L47: 95 | M47: 9 | N47: 112 | O47: 10 | P47: 90 | Q47: 1 | R47: 101 | S47: 4 | T47: 107 | X47: 33 | Y47: 153 | Z47: 54 | AA47: 105 | AB47: 90 | AC47: 139 | AD47: 108 | AE47: 124
D48: 34 | E48: 2 | G48: =IF(H47=0,0,IF(E47<=$E$11,1,IF(H47>=G47*2,G47*2,H47))) -> 2 | H48: =IF($E48<=$E$11,H47+G48,H47-G48) -> 118 | I48: =IF(J47=0,0,IF(E47<=$E$11,I47*2,1)) -> 1 | J48: =IF($E48<=$E$11,J47+I48,J47-I48) -> 85 | K48: 1 | L48: =IF($E48<=$E$11,L47+K48,L47-K48) -> 96 | M48: =IF(N47=0,0,IF(E47<=$E$11,M47+1,IF(M47=1,1,M47-1))) -> 8 | N48: =IF($E48<=$E$11,N47+M48,N47-M48) -> 120 | O48: =IF(P47=0,0,IF(P47<=4,P47,ROUND(P47*0.1,0))) -> 9 | P48: =IF($E48<=$E$11,P47+O48,P47-O48) -> 99 | Q48: =IF(R47>0,1,0) -> 1 | R48: =IF($E48<=$E$11,R47+Q48,R47-Q48) -> 102 | S48: =IF(T47=0,0,IF(T47<=4,T47,RANDBETWEEN(1,5))) -> 1 | T48: =IF($E48<=$E$11,T47+S48,T47-S48) -> 108 | X48: 34 | Y48: 0 | Z48: 42 | AA48: 71 | AB48: 42 | AC48: 13 | AD48: 84 | AE48: 30
D49: 35 | E49: 1 | G49: 1 | H49: 119 | I49: 2 | J49: 87 | K49: 2 | L49: 98 | M49: 9 | N49: 129 | O49: 10 | P49: 109 | Q49: 1 | R49: 103 | S49: 1 | T49: 109 | X49: 35 | Y49: 152 | Z49: 53 | AA49: 137 | AB49: 89 | AC49: 108 | AD49: 106 | AE49: 98
D50: 36 | E50: 4 | G50: 1 | H50: 118 | I50: 4 | J50: 83 | K50: =IF(L49=0,0,IF(AND(E49<=$E$11,E48<=$E$11,E47<=$E$11),5,IF(AND(E49<=$E$11,E48<=$E$11),3,IF(E49<=$E$11,2,1)))) -> 3 | L50: 95 | M50: 10 | N50: 119 | O50: 11 | P50: 98 | Q50: 1 | R50: 102 | S50: 5 | T50: 104 | X50: 36 | Y50: 0 | Z50: 50 | AA50: 113 | AB50: 78 | AC50: 60 | AD50: 100 | AE50: 93
D51: 37 | E51: 3 | G51: 2 | H51: 120 | I51: 1 | J51: 84 | K51: 1 | L51: 96 | M51: 9 | N51: 128 | O51: 10 | P51: 108 | Q51: 1 | R51: 103 | S51: 1 | T51: 105 | X51: 37 | Y51: 0 | Z51: 39 | AA51: 67 | AB51: 39 | AC51: 7 | AD51: 78 | AE51: 21
D52: 38 | E52: 1 | G52: 1 | H52: 121 | I52: 2 | J52: 86 | K52: 2 | L52: 98 | M52: 10 | N52: 138 | O52: 11 | P52: 119 | Q52: 1 | R52: 104 | S52: 5 | T52: 110 | X52: 38 | Y52: 162 | Z52: 93 | AA52: 138 | AB52: 362 | AC52: 674 | AD52: 124 | AE52: 198
D53: 39 | E53: 5 | G53: 1 | H53: 120 | I53: 4 | J53: 82 | K53: 3 | L53: 95 | M53: 11 | N53: 127 | O53: 12 | P53: 107 | Q53: 1 | R53: 103 | S53: 5 | T53: 105 | X53: 39 | Y53: 0 | Z53: 58 | AA53: 152 | AB53: 110 | AC53: 165 | AD53: 110 | AE53: 109
D54: 40 | E54: 4 | G54: 2 | H54: 118 | I54: 1 | J54: 81 | K54: 1 | L54: 94 | M54: 10 | N54: 117 | O54: 11 | P54: 96 | Q54: 1 | R54: 102 | S54: 1 | T54: 104 | X54: 40 | Y54: 0 | Z54: 52 | AA54: 121 | AB54: 52 | AC54: 48 | AD54: 98 | AE54: 111
D55: 41 | E55: 6 | G55: 4 | H55: 114 | I55: 1 | J55: 80 | K55: 1 | L55: 93 | M55: 9 | N55: 108 | O55: 10 | P55: 86 | Q55: 1 | R55: 101 | S55: 3 | T55: 101 | X55: 41 | Y55: 0 | Z55: 42 | AA55: 64 | AB55: 48 | AC55: 13 | AD55: 84 | AE55: 56
D56: 42 | E56: 3 | G56: 8 | H56: 122 | I56: 1 | J56: 81 | K56: 1 | L56: 94 | M56: 8 | N56: 116 | O56: 9 | P56: 95 | Q56: 1 | R56: 102 | S56: 1 | T56: 102 | X56: 42 | Y56: 160 | Z56: 61 | AA56: 114 | AB56: 313 | AC56: 446 | AD56: 120 | AE56: 158
D57: 43 | E57: 6 | G57: 1 | H57: 121 | I57: 2 | J57: 79 | K57: 2 | L57: 92 | M57: 9 | N57: 107 | O57: 10 | P57: 85 | Q57: 1 | R57: 101 | S57: 5 | T57: 97 | X57: 43 | Y57: 141 | Z57: 44 | AA57: 70 | AB57: 44 | AC57: 18 | AD57: 88 | AE57: 62
D58: 44 | E58: 6 | G58: 2 | H58: 119 | I58: 1 | J58: 78 | K58: 1 | L58: 91 | M58: 8 | N58: 99 | O58: 9 | P58: 76 | Q58: 1 | R58: 100 | S58: 2 | T58: 95 | X58: 44 | Y58: 146 | Z58: 47 | AA58: 90 | AB58: 47 | AC58: 31 | AD58: 94 | AE58: 77
D59: 45 | E59: 2 | G59: 4 | H59: 123 | I59: 1 | J59: 79 | K59: 1 | L59: 92 | M59: 7 | N59: 106 | O59: 8 | P59: 84 | Q59: 1 | R59: 101 | S59: 3 | T59: 98 | X59: 45 | Y59: 147 | Z59: 48 | AA59: 67 | AB59: 48 | AC59: 43 | AD59: 96 | AE59: 90
D60: 46 | E60: 1 | G60: 1 | H60: 124 | I60: 2 | J60: 81 | K60: 2 | L60: 94 | M60: 8 | N60: 114 | O60: 8 | P60: 92 | Q60: 1 | R60: 102 | S60: 5 | T60: 103 | X60: 46 | Y60: 149 | Z60: 56 | AA60: 116 | AB60: 77 | AC60: 47 | AD60: 98 | AE60: 90
D61: 47 | E61: 3 | G61: 1 | H61: 125 | I61: 4 | J61: 85 | K61: 3 | L61: 97 | M61: 9 | N61: 123 | O61: 9 | P61: 101 | Q61: 1 | R61: 103 | S61: 1 | T61: 104 | X61: 47 | Y61: 155 | Z61: 58 | AA61: 114 | AB61: 194 | AC61: 309 | AD61: 116 | AE61: 147
D62: 48 | E62: 6 | G62: 1 | H62: 124 | I62: 8 | J62: 77 | K62: 5 | L62: 92 | M62: 10 | N62: 113 | O62: 10 | P62: 91 | Q62: 1 | R62: 102 | S62: 3 | T62: 101 | X62: 48 | Y62: 127 | Z62: 60 | AA62: 80 | AB62: 55 | AC62: 21 | AD62: 90 | AE62: 67
D63: 49 | E63: 1 | G63: 2 | H63: 126 | I63: 1 | J63: 78 | K63: 1 | L63: 93 | M63: 9 | N63: 122 | O63: 9 | P63: 100 | Q63: 1 | R63: 103 | S63: 3 | T63: 104 | X63: 49 | Y63: 148 | Z63: 49 | AA63: 93 | AB63: 64 | AC63: 48 | AD63: 98 | AE63: 82
D64: 50 | E64: 5 | G64: 1 | H64: 125 | I64: 2 | J64: 76 | K64: 2 | L64: 91 | M64: 10 | N64: 112 | O64: 10 | P64: 90 | Q64: 1 | R64: 102 | S64: 5 | T64: 99 | X64: 50 | Y64: 154 | Z64: 57 | AA64: 146 | AB64: 210 | AC64: 247 | AD64: 114 | AE64: 134
D65: 51 | E65: 5 | G65: 2 | H65: 123 | I65: 1 | J65: 75 | K65: 1 | L65: 90 | M65: 9 | N65: 103 | O65: 9 | P65: 81 | Q65: 1 | R65: 101 | S65: 5 | T65: 94 | X65: 51 | Y65: 0 | Z65: 42 | AA65: 67 | AB65: 42 | AC65: 11 | AD65: 84 | AE65: 39
D66: 52 | E66: 6 | G66: 4 | H66: 119 | I66: 1 | J66: 74 | K66: 1 | L66: 89 | M66: 8 | N66: 95 | O66: 8 | P66: 73 | Q66: 1 | R66: 100 | S66: 4 | T66: 90 | X66: 52 | Y66: 0 | Z66: 46 | AA66: 80 | AB66: 48 | AC66: 21 | AD66: 90 | AE66: 59
D67: 53 | E67: 4 | G67: 8 | H67: 111 | I67: 1 | J67: 73 | K67: 1 | L67: 88 | M67: 7 | N67: 88 | O67: 7 | P67: 66 | Q67: 1 | R67: 99 | S67: 4 | T67: 86 | X67: 53 | Y67: 0 | Z67: 53 | AA67: 107 | AB67: 74 | AC67: 112 | AD67: 106 | AE67: 104
D68: 54 | E68: 2 | G68: 16 | H68: 127 | I68: 1 | J68: 74 | K68: 1 | L68: 89 | M68: 6 | N68: 94 | O68: 7 | P68: 73 | Q68: 1 | R68: 100 | S68: 5 | T68: 91 | X68: 54 | Y68: 0 | Z68: 48 | AA68: 94 | AB68: 63 | AC68: 40 | AD68: 96 | AE68: 99
D69: 55 | E69: 1 | G69: 1 | H69: 128 | I69: 2 | J69: 76 | K69: 2 | L69: 91 | M69: 7 | N69: 101 | O69: 7 | P69: 80 | Q69: 1 | R69: 101 | S69: 4 | T69: 95 | X69: 55 | Y69: 154 | Z69: 117 | AA69: 110 | AB69: 207 | AC69: 145 | AD69: 108 | AE69: 128
D70: 56 | E70: 6 | G70: 1 | H70: 127 | I70: 4 | J70: 72 | K70: 3 | L70: 88 | M70: 8 | N70: 93 | O70: 8 | P70: 72 | Q70: 1 | R70: 100 | S70: 1 | T70: 94 | X70: 56 | Y70: 152 | Z70: 53 | AA70: 102 | AB70: 88 | AC70: 95 | AD70: 104 | AE70: 92
D71: 57 | E71: 6 | G71: 2 | H71: 125 | I71: 1 | J71: 71 | K71: 1 | L71: 87 | M71: 7 | N71: 86 | O71: 7 | P71: 65 | Q71: 1 | R71: 99 | S71: 2 | T71: 92 | X71: 57 | Y71: 124 | Z71: 52 | AA71: 96 | AB71: 96 | AC71: 73 | AD71: 102 | AE71: 109
D72: 58 | E72: 5 | G72: 4 | H72: 121 | I72: 1 | J72: 70 | K72: 1 | L72: 86 | M72: 6 | N72: 80 | O72: 7 | P72: 58 | Q72: 1 | R72: 98 | S72: 5 | T72: 87 | X72: 58 | Y72: 155 | Z72: 56 | AA72: 105 | AB72: 121 | AC72: 167 | AD72: 110 | AE72: 130
D73: 59 | E73: 6 | G73: 8 | H73: 113 | I73: 1 | J73: 69 | K73: 1 | L73: 85 | M73: 5 | N73: 75 | O73: 6 | P73: 52 | Q73: 1 | R73: 97 | S73: 5 | T73: 82 | X73: 59 | Y73: 152 | Z73: 53 | AA73: 113 | AB73: 80 | AC73: 94 | AD73: 104 | AE73: 122
D74: 60 | E74: 2 | G74: 16 | H74: 129 | I74: 1 | J74: 70 | K74: 1 | L74: 86 | M74: 4 | N74: 79 | O74: 5 | P74: 57 | Q74: 1 | R74: 98 | S74: 3 | T74: 85 | X74: 60 | Y74: 0 | Z74: 43 | AA74: 93 | AB74: 46 | AC74: 13 | AD74: 86 | AE74: 60
D75: 61 | E75: 2 | G75: 1 | H75: 130 | I75: 2 | J75: 72 | K75: 2 | L75: 88 | M75: 5 | N75: 84 | O75: 6 | P75: 63 | Q75: 1 | R75: 99 | S75: 4 | T75: 89 | X75: 61 | Y75: 150 | Z75: 53 | AA75: 86 | AB75: 78 | AC75: 57 | AD75: 100 | AE75: 108
D76: 62 | E76: 5 | G76: 1 | H76: 129 | I76: 4 | J76: 68 | K76: 3 | L76: 85 | M76: 6 | N76: 78 | O76: 6 | P76: 57 | Q76: 1 | R76: 98 | S76: 3 | T76: 86 | X76: 62 | Y76: 64 | Z76: 93 | AA76: 183 | AB76: 362 | AC76: 679 | AD76: 124 | AE76: 186
D77: 63 | E77: 4 | G77: 2 | H77: 127 | I77: 1 | J77: 67 | K77: 1 | L77: 84 | M77: 5 | N77: 73 | O77: 6 | P77: 51 | Q77: 1 | R77: 97 | S77: 5 | T77: 81 | X77: 63 | Y77: 157 | Z77: 58 | AA77: 131 | AB77: 248 | AC77: 297 | AD77: 116 | AE77: 126
D78: 64 | E78: 3 | G78: 4 | H78: 131 | I78: 1 | J78: 68 | K78: 1 | L78: 85 | M78: 4 | N78: 77 | O78: 5 | P78: 56 | Q78: 1 | R78: 98 | S78: 1 | T78: 82 | X78: 64 | Y78: 149 | Z78: 50 | AA78: 100 | AB78: 115 | AC78: 44 | AD78: 98 | AE78: 91
D79: 65 | E79: =RANDBETWEEN(1,6) -> 6 | G79: 1 | H79: 130 | I79: 2 | J79: 66 | K79: 2 | L79: 83 | M79: 5 | N79: 72 | O79: 6 | P79: 50 | Q79: 1 | R79: 97 | S79: 2 | T79: 80 | X79: 65 | Y79: 84 | Z79: 41 | AA79: 59 | AB79: 41 | AC79: 9 | AD79: 82 | AE79: 49
D80: 66 | E80: 5 | G80: =IF(H79=0,0,IF(E79<=$E$11,1,IF(H79>=G79*2,G79*2,H79))) -> 2 | H80: =IF($E80<=$E$11,H79+G80,H79-G80) -> 128 | I80: =IF(J79=0,0,IF(E79<=$E$11,I79*2,1)) -> 1 | J80: =IF($E80<=$E$11,J79+I80,J79-I80) -> 65 | K80: 1 | L80: =IF($E80<=$E$11,L79+K80,L79-K80) -> 82 | M80: =IF(N79=0,0,IF(E79<=$E$11,M79+1,IF(M79=1,1,M79-1))) -> 4 | N80: =IF($E80<=$E$11,N79+M80,N79-M80) -> 68 | O80: =IF(P79=0,0,IF(P79<=4,P79,ROUND(P79*0.1,0))) -> 5 | P80: =IF($E80<=$E$11,P79+O80,P79-O80) -> 45 | Q80: =IF(R79>0,1,0) -> 1 | R80: =IF($E80<=$E$11,R79+Q80,R79-Q80) -> 96 | S80: =IF(T79=0,0,IF(T79<=4,T79,RANDBETWEEN(1,5))) -> 2 | T80: =IF($E80<=$E$11,T79+S80,T79-S80) -> 78 | X80: 66 | Y80: 138 | Z80: 45 | AA80: 65 | AB80: 45 | AC80: 21 | AD80: 90 | AE80: 49
D81: 67 | E81: 2 | G81: 4 | H81: 132 | I81: 1 | J81: 66 | K81: 1 | L81: 83 | M81: 3 | N81: 71 | O81: 5 | P81: 50 | Q81: 1 | R81: 97 | S81: 4 | T81: 82 | X81: 67 | Y81: 134 | Z81: 49 | AA81: 106 | AB81: 85 | AC81: 52 | AD81: 98 | AE81: 109
D82: 68 | E82: 2 | G82: 1 | H82: 133 | I82: 2 | J82: 68 | K82: =IF(L81=0,0,IF(AND(E81<=$E$11,E80<=$E$11,E79<=$E$11),5,IF(AND(E81<=$E$11,E80<=$E$11),3,IF(E81<=$E$11,2,1)))) -> 2 | L82: 85 | M82: 4 | N82: 75 | O82: 5 | P82: 55 | Q82: 1 | R82: 98 | S82: 5 | T82: 87 | X82: 68 | Y82: 148 | Z82: 51 | AA82: 102 | AB82: 79 | AC82: 74 | AD82: 102 | AE82: 128
D83: 69 | E83: 1 | G83: 1 | H83: 134 | I83: 4 | J83: 72 | K83: 3 | L83: 88 | M83: 5 | N83: 80 | O83: 6 | P83: 61 | Q83: 1 | R83: 99 | S83: 2 | T83: 89 | X83: 69 | Y83: 10 | Z83: 48 | AA83: 115 | AB83: 103 | AC83: 37 | AD83: 96 | AE83: 119
D84: 70 | E84: 5 | G84: 1 | H84: 133 | I84: 8 | J84: 64 | K84: 5 | L84: 83 | M84: 6 | N84: 74 | O84: 6 | P84: 55 | Q84: 1 | R84: 98 | S84: 4 | T84: 85 | X84: 70 | Y84: 128 | Z84: 51 | AA84: 117 | AB84: 66 | AC84: 75 | AD84: 102 | AE84: 100
D85: 71 | E85: 3 | G85: 2 | H85: 135 | I85: 1 | J85: 65 | K85: 1 | L85: 84 | M85: 5 | N85: 79 | O85: 6 | P85: 61 | Q85: 1 | R85: 99 | S85: 2 | T85: 87 | X85: 71 | Y85: 0 | Z85: 41 | AA85: 56 | AB85: 41 | AC85: 11 | AD85: 82 | AE85: 57
D86: 72 | E86: 2 | G86: 1 | H86: 136 | I86: 2 | J86: 67 | K86: 2 | L86: 86 | M86: 6 | N86: 85 | O86: 6 | P86: 67 | Q86: 1 | R86: 100 | S86: 4 | T86: 91 | X86: 72 | Y86: 146 | Z86: 53 | AA86: 121 | AB86: 98 | AC86: 112 | AD86: 106 | AE86: 130
D87: 73 | E87: 2 | G87: 1 | H87: 137 | I87: 4 | J87: 71 | K87: 3 | L87: 89 | M87: 7 | N87: 92 | O87: 7 | P87: 74 | Q87: 1 | R87: 101 | S87: 4 | T87: 95 | X87: 73 | Y87: 132 | Z87: 47 | AA87: 94 | AB87: 53 | AC87: 36 | AD87: 94 | AE87: 81
D88: 74 | E88: 1 | G88: 1 | H88: 138 | I88: 8 | J88: 79 | K88: 5 | L88: 94 | M88: 8 | N88: 100 | O88: 7 | P88: 81 | Q88: 1 | R88: 102 | S88: 4 | T88: 99 | X88: 74 | Y88: 0 | Z88: 49 | AA88: 92 | AB88: 55 | AC88: 49 | AD88: 98 | AE88: 94
D89: 75 | E89: 1 | G89: 1 | H89: 139 | I89: 16 | J89: 95 | K89: 5 | L89: 99 | M89: 9 | N89: 109 | O89: 8 | P89: 89 | Q89: 1 | R89: 103 | S89: 2 | T89: 101 | X89: 75 | Y89: 155 | Z89: 56 | AA89: 113 | AB89: 134 | AC89: 203 | AD89: 112 | AE89: 136
D90: 76 | E90: 4 | G90: 1 | H90: 138 | I90: 32 | J90: 63 | K90: 5 | L90: 94 | M90: 10 | N90: 99 | O90: 9 | P90: 80 | Q90: 1 | R90: 102 | S90: 3 | T90: 98 | X90: 76 | Y90: 129 | Z90: 49 | AA90: 92 | AB90: 94 | AC90: 49 | AD90: 98 | AE90: 97
D91: 77 | E91: 3 | G91: 2 | H91: 140 | I91: 1 | J91: 64 | K91: 1 | L91: 95 | M91: 9 | N91: 108 | O91: 8 | P91: 88 | Q91: 1 | R91: 103 | S91: 4 | T91: 102 | X91: 77 | Y91: 144 | Z91: 51 | AA91: 91 | AB91: 72 | AC91: 73 | AD91: 102 | AE91: 86
D92: 78 | E92: 3 | G92: 1 | H92: 141 | I92: 2 | J92: 66 | K92: 2 | L92: 97 | M92: 10 | N92: 118 | O92: 9 | P92: 97 | Q92: 1 | R92: 104 | S92: 4 | T92: 106 | X92: 78 | Y92: 148 | Z92: 49 | AA92: 87 | AB92: 50 | AC92: 48 | AD92: 98 | AE92: 120
D93: 79 | E93: 1 | G93: 1 | H93: 142 | I93: 4 | J93: 70 | K93: 3 | L93: 100 | M93: 11 | N93: 129 | O93: 10 | P93: 107 | Q93: 1 | R93: 105 | S93: 4 | T93: 110 | X93: 79 | Y93: 0 | Z93: 53 | AA93: 98 | AB93: 141 | AC93: 64 | AD93: 100 | AE93: 98
D94: 80 | E94: 5 | G94: 1 | H94: 141 | I94: 8 | J94: 62 | K94: 5 | L94: 95 | M94: 12 | N94: 117 | O94: 11 | P94: 96 | Q94: 1 | R94: 104 | S94: 4 | T94: 106 | X94: 80 | Y94: 0 | Z94: 48 | AA94: 105 | AB94: 126 | AC94: 40 | AD94: 96 | AE94: 82
D95: 81 | E95: 2 | G95: 2 | H95: 143 | I95: 1 | J95: 63 | K95: 1 | L95: 96 | M95: 11 | N95: 128 | O95: 10 | P95: 106 | Q95: 1 | R95: 105 | S95: 3 | T95: 109 | X95: 81 | Y95: 147 | Z95: 48 | AA95: 84 | AB95: 50 | AC95: 34 | AD95: 94 | AE95: 72
D96: 82 | E96: 5 | G96: 1 | H96: 142 | I96: 2 | J96: 61 | K96: 2 | L96: 94 | M96: 12 | N96: 116 | O96: 11 | P96: 95 | Q96: 1 | R96: 104 | S96: 1 | T96: 108 | X96: 82 | Y96: 26 | Z96: 53 | AA96: 111 | AB96: 144 | AC96: 109 | AD96: 106 | AE96: 116
D97: 83 | E97: 1 | G97: 2 | H97: 144 | I97: 1 | J97: 62 | K97: 1 | L97: 95 | M97: 11 | N97: 127 | O97: 10 | P97: 105 | Q97: 1 | R97: 105 | S97: 3 | T97: 111 | X97: 83 | Y97: 150 | Z97: 51 | AA97: 98 | AB97: 72 | AC97: 73 | AD97: 102 | AE97: 124
D98: 84 | E98: 4 | G98: 1 | H98: 143 | I98: 2 | J98: 60 | K98: 2 | L98: 93 | M98: 12 | N98: 115 | O98: 11 | P98: 94 | Q98: 1 | R98: 104 | S98: 2 | T98: 109 | X98: 84 | Y98: 141 | Z98: 48 | AA98: 74 | AB98: 49 | AC98: 40 | AD98: 96 | AE98: 121
D99: 85 | E99: 3 | G99: 2 | H99: 145 | I99: 1 | J99: 61 | K99: 1 | L99: 94 | M99: 11 | N99: 126 | O99: 9 | P99: 103 | Q99: 1 | R99: 105 | S99: 2 | T99: 111 | X99: 85 | Y99: 140 | Z99: 43 | AA99: 55 | AB99: 43 | AC99: 10 | AD99: 80 | AE99: 56
D100: 86 | E100: 3 | G100: 1 | H100: 146 | I100: 2 | J100: 63 | K100: 2 | L100: 96 | M100: 12 | N100: 138 | O100: 10 | P100: 113 | Q100: 1 | R100: 106 | S100: 2 | T100: 113 | X100: 86 | Y100: 155 | Z100: 70 | AA100: 142 | AB100: 175 | AC100: 169 | AD100: 110 | AE100: 134
D101: 87 | E101: 4 | G101: 1 | H101: 145 | I101: 4 | J101: 59 | K101: 3 | L101: 93 | M101: 13 | N101: 125 | O101: 11 | P101: 102 | Q101: 1 | R101: 105 | S101: 1 | T101: 112 | X101: 87 | Y101: 143 | Z101: 46 | AA101: 98 | AB101: 52 | AC101: 28 | AD101: 92 | AE101: 85
D102: 88 | E102: 3 | G102: 2 | H102: 147 | I102: 1 | J102: 60 | K102: 1 | L102: 94 | M102: 12 | N102: 137 | O102: 10 | P102: 112 | Q102: 1 | R102: 106 | S102: 1 | T102: 113 | X102: 88 | Y102: 160 | Z102: 61 | AA102: 127 | AB102: 314 | AC102: 558 | AD102: 122 | AE102: 161
D103: 89 | E103: 4 | G103: 1 | H103: 146 | I103: 2 | J103: 58 | K103: 2 | L103: 92 | M103: 13 | N103: 124 | O103: 11 | P103: 101 | Q103: 1 | R103: 105 | S103: 1 | T103: 112 | X103: 89 | Y103: 0 | Z103: 46 | AA103: 79 | AB103: 61 | AC103: 26 | AD103: 92 | AE103: 79
D104: 90 | E104: 4 | G104: 2 | H104: 144 | I104: 1 | J104: 57 | K104: 1 | L104: 91 | M104: 12 | N104: 112 | O104: 10 | P104: 91 | Q104: 1 | R104: 104 | S104: 1 | T104: 111 | X104: 90 | Y104: 152 | Z104: 67 | AA104: 134 | AB104: 97 | AC104: 88 | AD104: 104 | AE104: 98
D105: 91 | E105: 4 | G105: 4 | H105: 140 | I105: 1 | J105: 56 | K105: 1 | L105: 90 | M105: 11 | N105: 101 | O105: 9 | P105: 82 | Q105: 1 | R105: 103 | S105: 1 | T105: 110 | X105: 91 | Y105: 115 | Z105: 46 | AA105: 107 | AB105: 46 | AC105: 27 | AD105: 92 | AE105: 82
D106: 92 | E106: 4 | G106: 8 | H106: 132 | I106: 1 | J106: 55 | K106: 1 | L106: 89 | M106: 10 | N106: 91 | O106: 8 | P106: 74 | Q106: 1 | R106: 102 | S106: 4 | T106: 106 | X106: 92 | Y106: 141 | Z106: 57 | AA106: 117 | AB106: 99 | AC106: 135 | AD106: 108 | AE106: 123
D107: 93 | E107: 5 | G107: 16 | H107: 116 | I107: 1 | J107: 54 | K107: 1 | L107: 88 | M107: 9 | N107: 82 | O107: 7 | P107: 67 | Q107: 1 | R107: 101 | S107: 1 | T107: 105 | X107: 93 | Y107: 137 | Z107: 40 | AA107: 67 | AB107: 40 | AC107: 10 | AD107: 80 | AE107: 66
D108: 94 | E108: 3 | G108: 32 | H108: 148 | I108: 1 | J108: 55 | K108: 1 | L108: 89 | M108: 8 | N108: 90 | O108: 7 | P108: 74 | Q108: 1 | R108: 102 | S108: 2 | T108: 107 | X108: 94 | Y108: 0 | Z108: 47 | AA108: 100 | AB108: 56 | AC108: 28 | AD108: 92 | AE108: 71
D109: 95 | E109: 2 | G109: 1 | H109: 149 | I109: 2 | J109: 57 | K109: 2 | L109: 91 | M109: 9 | N109: 99 | O109: 7 | P109: 81 | Q109: 1 | R109: 103 | S109: 2 | T109: 109 | X109: 95 | Y109: 134 | Z109: 41 | AA109: 56 | AB109: 41 | AC109: 10 | AD109: 82 | AE109: 55
D110: 96 | E110: 1 | G110: 1 | H110: 150 | I110: 4 | J110: 61 | K110: 3 | L110: 94 | M110: 10 | N110: 109 | O110: 8 | P110: 89 | Q110: 1 | R110: 104 | S110: 4 | T110: 113 | X110: 96 | Y110: 0 | Z110: 39 | AA110: 55 | AB110: 39 | AC110: 0 | AD110: 76 | AE110: 19
D111: 97 | E111: 4 | G111: 1 | H111: 149 | I111: 8 | J111: 53 | K111: 5 | L111: 89 | M111: 11 | N111: 98 | O111: 9 | P111: 80 | Q111: 1 | R111: 103 | S111: 3 | T111: 110 | X111: 97 | Y111: 0 | Z111: 45 | AA111: 75 | AB111: 45 | AC111: 18 | AD111: 88 | AE111: 53
D112: 98 | E112: 2 | G112: 2 | H112: =IF($E112<=$E$11,H111+G112,H111-G112) -> 151 | I112: 1 | J112: =IF($E112<=$E$11,J111+I112,J111-I112) -> 54 | K112: 1 | L112: =IF($E112<=$E$11,L111+K112,L111-K112) -> 90 | M112: 10 | N112: =IF($E112<=$E$11,N111+M112,N111-M112) -> 108 | O112: 8 | P112: =IF($E112<=$E$11,P111+O112,P111-O112) -> 88 | Q112: 1 | R112: =IF($E112<=$E$11,R111+Q112,R111-Q112) -> 104 | S112: 3 | T112: =IF($E112<=$E$11,T111+S112,T111-S112) -> 113 | X112: 98 | Y112: 116 | Z112: 47 | AA112: 69 | AB112: 47 | AC112: 34 | AD112: 94 | AE112: 76
D113: 99 | E113: 3 | G113: 1 | H113: =IF($E113<=$E$11,H112+G113,H112-G113) -> 152 | I113: 2 | J113: =IF($E113<=$E$11,J112+I113,J112-I113) -> 56 | K113: 2 | L113: =IF($E113<=$E$11,L112+K113,L112-K113) -> 92 | M113: 11 | N113: =IF($E113<=$E$11,N112+M113,N112-M113) -> 119 | O113: 9 | P113: =IF($E113<=$E$11,P112+O113,P112-O113) -> 97 | Q113: 1 | R113: =IF($E113<=$E$11,R112+Q113,R112-Q113) -> 105 | S113: 4 | T113: =IF($E113<=$E$11,T112+S113,T112-S113) -> 117 | X113: 99 | Y113: 159 | Z113: 60 | AA113: 135 | AB113: 313 | AC113: 436 | AD113: 120 | AE113: 151
D114: 100 | E114: 5 | G114: 1 | H114: =IF($E114<=$E$11,H113+G114,H113-G114) -> 151 | I114: 4 | J114: =IF($E114<=$E$11,J113+I114,J113-I114) -> 52 | K114: =IF(L113=0,0,IF(AND(E113<=$E$11,E112<=$E$11,E111<=$E$11),5,IF(AND(E113<=$E$11,E112<=$E$11),3,IF(E113<=$E$11,2,1)))) -> 3 | L114: =IF($E114<=$E$11,L113+K114,L113-K114) -> 89 | M114: 12 | N114: =IF($E114<=$E$11,N113+M114,N113-M114) -> 107 | O114: 10 | P114: =IF($E114<=$E$11,P113+O114,P113-O114) -> 87 | Q114: 1 | R114: =IF($E114<=$E$11,R113+Q114,R113-Q114) -> 104 | S114: 4 | T114: =IF($E114<=$E$11,T113+S114,T113-S114) -> 113 | X114: 100 | Y114: 152 | Z114: 53 | AA114: 134 | AB114: 224 | AC114: 107 | AD114: 106 | AE114: 111
X116: 100G | Y116: MG | Z116: AM | AA116: GM | AB116: DB | AC116: TP | AD116: OU | AE116: RD
X118: AVE | Y118: =AVERAGE(Y15:Y114) -> 95.74 | Z118: 51.97 | AA118: 98.99 | AB118: 97.62 | AC118: 94.86 | AD118: 99.04 | AE118: 96.59
X119: MAX | Y119: =MAX(Y15:Y114) -> 162 | Z119: 117 | AA119: 183 | AB119: 362 | AC119: 679 | AD119: 124 | AE119: 198
X120: MIN | Y120: =MIN(Y15:Y114) -> 0 | Z120: 39 | AA120: 55 | AB120: 39 | AC120: 0 | AD120: 76 | AE120: 19
X121: 標準偏差 | Y121: =STDEV(Y15:Y114) -> 68.62644011 | Z121: 10.73411911 | AA121: 24.15793782 | AB121: 71.65387906 | AC121: 125.3800703 | AD121: 10.36107713 | AE121: 33.54782355
W124: 残金範囲 | Y124: MG | Z124: AM | AA124: GM | AB124: DB | AC124: TP | AD124: OU | AE124: RD
U126: =COUNTIF(Y15:Y114,T126) -> 30 | W126: 0 | X126: 25 | Y126: =COUNTIF(Y15:Y114,"<="&$X126) -> 32 | Z126: 0 | AA126: 0 | AB126: 0 | AC126: 21 | AD126: 0 | AE126: 2
W127: 26 | X127: 50 | Y127: =COUNTIF(Y15:Y114,"<="&$X127)-Y126 -> 2 | Z127: 51 | AA127: 0 | AB127: 27 | AC127: 31 | AD127: 0 | AE127: 6
W128: 51 | X128: 75 | Y128: =COUNTIF(Y15:Y114,"<="&$X128)-SUM(Y126:Y127) -> 1 | Z128: 46 | AA128: 19 | AB128: 21 | AC128: 11 | AD128: 0 | AE128: 17
W129: 76 | X129: 100 | Y129: =COUNTIF(Y15:Y114,"<="&$X129)-SUM(Y126:Y128) -> 1 | Z129: 2 | AA129: 36 | AB129: 24 | AC129: 11 | AD129: 57 | AE129: 34
W130: 101 | X130: 125 | Y130: =IF((COUNTIF(Y15:Y114,"<="&$X130)-SUM(Y126:Y129))<=0,0,COUNTIF(Y15:Y114,"<="&$X130)-SUM(Y126:Y129)) -> 4 | Z130: 1 | AA130: 31 | AB130: 10 | AC130: 7 | AD130: 43 | AE130: 21
W131: 126 | X131: 150 | Y131: =IF((COUNTIF(Y15:Y114,"<="&$X131)-SUM(Y126:Y130))<=0,0,COUNTIF(Y15:Y114,"<="&$X131)-SUM(Y126:Y130)) -> 35 | Z131: 0 | AA131: 12 | AB131: 4 | AC131: 3 | AD131: 0 | AE131: 14
W132: 151 | X132: 175 | Y132: =IF((COUNTIF(Y15:Y114,"<="&$X132)-SUM(Y126:Y131))<=0,0,COUNTIF(Y15:Y114,"<="&$X132)-SUM(Y126:Y131)) -> 25 | Z132: 0 | AA132: 1 | AB132: 1 | AC132: 6 | AD132: 0 | AE132: 4
W133: 176 | X133: 200 | Y133: =IF((COUNTIF(Y15:Y114,"<="&$X133)-SUM(Y126:Y132))<=0,0,COUNTIF(Y15:Y114,"<="&$X133)-SUM(Y126:Y132)) -> 0 | Z133: 0 | AA133: 1 | AB133: 2 | AC133: 0 | AD133: 0 | AE133: 2
W134: 201 | X134: - | Y134: =COUNTIF(Y15:Y114,">"&$X$133) -> 0 | Z134: 0 | AA134: 0 | AB134: 11 | AC134: 10 | AD134: 0 | AE134: 0
W135: 計 | Y135: =SUM(Y126:Y134) -> 100 | Z135: 100 | AA135: 100 | AB135: 100 | AC135: 100 | AD135: 100 | AE135: 100

Sheet 4章_a
C2: 第4章： 自販機における釣銭の適正補充問題
C6: TABLE 1 | S6: TABLE 2
C7: 出し方 | G7: おつり | H7: 支払 （ToPay） | L7: 入金 （InPut） | P7: 割合 | R7: 7 | S7: 出し方 | W7: おつり | X7: 支払 （ToPay） | AB7: 入金 （InPut）
C8: 番号 | D8: 金額 | E8: 内訳 | H8: ="- 500" -> - 500 | I8: ="- 100" -> - 100 | J8: ="- 50" -> - 50 | K8: ="- 10" -> - 10 | L8: ="+ 500" -> + 500 | M8: ="+ 100" -> + 100 | N8: ="+ 50" -> + 50 | O8: ="+ 10" -> + 10 | R8: 8 | S8: 番号 | T8: 金額 | U8: 内訳 | X8: ="- 500" -> - 500 | Y8: ="- 100" -> - 100 | Z8: ="- 50" -> - 50 | AA8: ="- 10" -> - 10 | AB8: ="+ 500" -> + 500 | AC8: ="+ 100" -> + 100 | AD8: ="+ 50" -> + 50 | AE8: ="+ 10" -> + 10
C9: 1 | D9: 120 | E9: 100+10×2 | G9: 0 | M9: 1 | O9: 2 | P9: 70 % | R9: 9 | S9: 1 | T9: 150 | U9: 100+10×5 | W9: 0 | AC9: 1 | AE9: 5
C10: 2 | D10: 120 | E10: 50×2+10×2 | G10: 0 | N10: 2 | O10: 2 | R10: 10 | S10: 2 | T10: 150 | U10: 50×2+10×5 | W10: 0 | AD10: 2 | AE10: 5
C11: 3 | D11: 150 | E11: 100+50×1 | G11: 30 | K11: 3 | M11: 1 | N11: 1 | R11: 11 | S11: 3 | T11: 150 | U11: 100+50×1 | W11: 0 | AC11: 1 | AD11: 1
C12: 4 | D12: 150 | E12: 50×3 | G12: 30 | K12: 3 | N12: 3 | Q12: 63 | R12: 12 | S12: 4 | T12: 150 | U12: 50×3 | W12: 0 | AD12: 3
C13: 5 | D13: 200 | E13: 100×2 | G13: 80 | J13: 1 | K13: 3 | M13: 2 | P13: 25 % | R13: 13 | S13: 5 | T13: 200 | U13: 100×2 | W13: 50 | Z13: 1 | AC13: 2
C14: 6 | D14: 500 | E14: 500×1 | G14: 380 | I14: 3 | J14: 1 | K14: 3 | L14: 1 | R14: 14 | S14: 6 | T14: 500 | U14: 500×1 | W14: 350 | Y14: 3 | Z14: 1 | AB14: 1
C15: 7 | D15: 520 | E15: 500+10×2 | G15: 400 | I15: 4 | L15: 1 | O15: 2 | R15: 15 | S15: 7 | T15: 550 | U15: 500+10×5 | W15: 400 | Y15: 4 | AB15: 1 | AE15: 5
C16: 8 | D16: 550 | E16: 500+50×1 | G16: 430 | I16: 4 | K16: 3 | L16: 1 | N16: 1 | Q16: 85 | R16: 16 | S16: 8 | T16: 550 | U16: 500+50×1 | W16: 400 | Y16: 4 | AB16: 1 | AD16: 1
C17: 9 | D17: 120 | E17: 50×1+10×7 | G17: 0 | N17: 1 | O17: 7 | P17: 5 % | R17: 17 | S17: 9 | T17: 150 | U17: 50×1+10×10 | W17: 0 | AD17: 1 | AE17: 10
C18: 10 | D18: 120 | E18: 10×12 | G18: 0 | O18: 12 | R18: 18 | S18: 10 | T18: 150 | U18: 10×15 | W18: 0 | AE18: 15
C19: 11 | D19: 1000 | E19: 1000×1 | G19: 880 | H19: 1 | I19: 3 | J19: 1 | K19: 3 | R19: 19 | S19: 11 | T19: 1000 | U19: 1000×1 | W19: 850 | X19: 1 | Y19: 3 | Z19: 1
C20: 12 | D20: 1020 | E20: 1000+20 | G20: 900 | H20: 1 | I20: 4 | O20: 2 | R20: 20 | S20: 12 | T20: 1050 | U20: 1000+10×5 | W20: 900 | X20: 1 | Y20: 4 | AE20: 5
C21: 13 | D21: 1050 | E21: 1000+50×1 | G21: 930 | H21: 1 | I21: 4 | K21: 3 | N21: 1 | Q21: 90 | R21: 21 | S21: 13 | T21: 1050 | U21: 1000+50×1 | W21: 900 | X21: 1 | Y21: 4 | AD21: 1
AD23: COIN
C26: 初期 | E26: 客数 | H26: 最大補充枚数 | K26: 最大補充枚数 | N26: 最大補充枚数 | Q26: 最大補充枚数 | T26: 件数 | U26: =IF(COUNTIF(U35:U134,"×")=0,"-",COUNTIF(U35:U134,"×")) -> - | W26: =IF(COUNTIF(W35:W134,0)=0,"-",COUNTIF(W35:W134,0)) -> - | X26: =IF(COUNTIF(X35:X134,0)=0,"-",COUNTIF(X35:X134,0)) -> - | Y26: =IF(COUNTIF(Y35:Y134,0)=0,"-",COUNTIF(Y35:Y134,0)) -> - | Z26: =IF(COUNTIF(Z35:Z134,0)=0,"-",COUNTIF(Z35:Z134,0)) -> - | AB26: 件数 | AC26: =IF(SUM(AC35:AC134)=0,"-",SUM(AC35:AC134)) -> - | AD26: =IF(SUM(AD35:AD134)=0,"-",SUM(AD35:AD134)) -> - | AE26: =IF(SUM(AE35:AE134)=0,"-",SUM(AE35:AE134)) -> -
C27: 設定 | H27: 実際補充枚数 | K27: 実際補充枚数 | N27: 実際補充枚数 | Q27: 実際補充枚数 | T27: 初回 | U27: =IF(COUNTIF(U35:U134,"×")>0,MATCH("×",U35:U134,FALSE),"-") -> - | W27: =IF(COUNTIF(W35:W134,0)>0,MATCH(0,W35:W134,FALSE),"-") -> - | X27: =IF(COUNTIF(X35:X134,0)>0,MATCH(0,X35:X134,FALSE),"-") -> - | Y27: =IF(COUNTIF(Y35:Y134,0)>0,MATCH(0,Y35:Y134,FALSE),"-") -> - | Z27: =IF(COUNTIF(Z35:Z134,0)>0,MATCH(0,Z35:Z134,FALSE),"-") -> - | AB27: 初回 | AC27: =IF(COUNTIF(AC35:AC134,1)>0,MATCH(1,AC35:AC134,FALSE),"-") -> - | AD27: =IF(COUNTIF(AD35:AD134,1)>0,MATCH(1,AD35:AD134,FALSE),"-") -> - | AE27: =IF(COUNTIF(AE35:AE134,1)>0,MATCH(1,AE35:AE134,FALSE),"-") -> - | AI27: TABLE 3a | AM27: TABLE 3b | AQ27: TABLE 5a | AW27: TABLE 5b | BF27: =J27&"-"&M27&"-"&P27&"-"&S27 -> ---
U29: ↑ | W29: ↑ | X29: ↑ | Y29: ↑ | Z29: ↑ | AB29: ↑ | AC29: ↑ | AD29: ↑ | AE29: ↑ | AI29: 釣銭切れ （初回） | AM29: 釣銭切れ （件数） | AQ29: 大量払い （初回） | AW29: 大量払い （件数）
C30: TABLE 3 | W30: TABLE 4 | AB30: TABLE 5 | AI30: min | AJ30: =MIN(AJ35:AJ134) -> 0 | AM30: 遭遇人数 | AN30: 発生回数 | AR30: 100 円 | AS30: 50 円 | AT30: 10 円 | AX30: 100 円 | AY30: 50 円 | AZ30: 10 円 | BA30: 発生回数 | BF30: 100×10 | BG30: 釣銭切れ | BI30: 大量払い
C31: 客番 | D31: 商品 | E31: 乱数 | F31: 出し方 | G31: おつり | H31: 【A】 500 円玉 | K31: 【B】 100 円玉 | N31: 【C】 50 円玉 | Q31: 【D】 10 円玉 | T31: 合計 | U31: 釣銭 切れ | W31: 釣銭在庫 | AB31: 大量払いチェック | AI31: max | AJ31: =MAX(AJ35:AJ134) -> 0 | AM31: （件数合計） | AQ31: min | AR31: =MIN(AR35:AR134) -> 0 | AS31: =MIN(AS35:AS134) -> 0 | AT31: =MIN(AT35:AT134) -> 0 | AW31: 遭遇人数 | AX31: =SUM(AX35:AX134) -> 0 | AY31: =SUM(AY35:AY134) -> 0 | AZ31: =SUM(AZ35:AZ134) -> 0 | BG31: 発生件数 | BH31: 遭遇人数 | BI31: 発生件数 | BJ31: 遭遇人数 | BK31: 内訳
H32: ToPay | I32: InPut | J32: Payable | K32: ToPay | L32: InPut | M32: Payable | N32: ToPay | O32: InPut | P32: Payable | Q32: ToPay | R32: InPut | S32: Payable | AI32: ave | AJ32: =AVERAGE(AJ35:AJ134) ->  | AM32: =SUM(AN35:AN134) -> 0 | AN32: =COUNT(AN35:AN134) -> 0 | AQ32: ave | AR32: =IF(SUM(AR35:AR134)=0,0,SUM(AR35:AR134)/COUNTIF(AR35:AR134,">0")) -> 0 | AS32: =SUM(AS35:AS134)/COUNTIF(AS35:AS134,">0") ->  | AT32: =IF(SUM(AT35:AT134)=0,0,SUM(AT35:AT134)/COUNTIF(AT35:AT134,">0")) -> 0 | AW32: （件数合計） | AX32: =SUM(AX31:AZ31) -> 0 | BA32: =SUM(BA35:BA134) -> 0 | BK32: 100 円 | BL32: 50 円 | BM32: 10 円
H33: - 500 | I33: + 500 | J33: 支払可 | K33: - 100 | L33: + 100 | M33: 支払可 | N33: - 50 | O33: + 50 | P33: 支払可 | Q33: - 10 | R33: + 10 | S33: 支払可 | W33: 500 円 | X33: 100 円 | Y33: 50 円 | Z33: 10 円 | AB33: 金種 | AC33: 100 円 | AD33: 50 円 | AE33: 10 円 | BF33: 1st | BG33: =AN32 -> 0 | BH33: =AM32 -> 0 | BI33: =BA32 -> 0 | BJ33: =AX32 -> 0 | BK33: =AX31 -> 0 | BL33: =AY31 -> 0 | BM33: =AZ31 -> 0
C34: 0 | D34: ・ | F34: ・ | G34: ・ | H34: ・ | I34: ・ | J34: ・ | K34: ・ | L34: ・ | M34: ・ | N34: ・ | O34: ・ | P34: ・ | Q34: ・ | R34: ・ | S34: ・ | T34: ・ | U34: ・ | AB34: 基準 | AI34: 補充 | AJ34: 初回 | AM34: 補充 | AN34: 件数 | AQ34: 補充 | AR34: 100 円 | AS34: 50 円 | AT34: 10 円 | AW34: 補充 | AX34: 100 円 | AY34: 50 円 | AZ34: 10 円 | BA34: チェック | BF34: 2nd
C35: 1 | AB35: 1 | AI35: 1 | AJ35: - | AM35: 1 | AN35: - | AQ35: 1 | AR35: - | AS35: - | AT35: - | AW35: 1 | AX35: - | AY35: - | AZ35: - | BF35: 3rd
C36: 2 | AB36: 2 | AI36: 2 | AJ36: - | AM36: 2 | AN36: - | AQ36: 2 | AR36: - | AS36: - | AT36: - | AW36: 2 | AX36: - | AY36: - | AZ36: - | BF36: 4th
C37: 3 | AB37: 3 | AI37: 3 | AJ37: - | AM37: 3 | AN37: - | AQ37: 3 | AR37: - | AS37: - | AT37: - | AW37: 3 | AX37: - | AY37: - | AZ37: - | BF37: 5th
C38: 4 | AB38: 4 | AI38: 4 | AJ38: - | AM38: 4 | AN38: - | AQ38: 4 | AR38: - | AS38: - | AT38: - | AW38: 4 | AX38: - | AY38: - | AZ38: - | BF38: 6th
C39: 5 | AB39: 5 | AI39: 5 | AJ39: - | AM39: 5 | AN39: - | AQ39: 5 | AR39: - | AS39: - | AT39: - | AW39: 5 | AX39: - | AY39: - | AZ39: - | BF39: 7th
C40: 6 | AB40: 6 | AI40: 6 | AJ40: - | AM40: 6 | AN40: - | AQ40: 6 | AR40: - | AS40: - | AT40: - | AW40: 6 | AX40: - | AY40: - | AZ40: - | BF40: 8th
C41: 7 | AB41: 7 | AI41: 7 | AJ41: - | AM41: 7 | AN41: - | AQ41: 7 | AR41: - | AS41: - | AT41: - | AW41: 7 | AX41: - | AY41: - | AZ41: - | BF41: 9th
C42: 8 | AB42: 8 | AI42: 8 | AJ42: - | AM42: 8 | AN42: - | AQ42: 8 | AR42: - | AS42: - | AT42: - | AW42: 8 | AX42: - | AY42: - | AZ42: - | BF42: 10th
C43: 9 | AB43: 9 | AI43: 9 | AJ43: - | AM43: 9 | AN43: - | AQ43: 9 | AR43: - | AS43: - | AT43: - | AW43: 9 | AX43: - | AY43: - | AZ43: - | BF43: 平均 | BG43: =AVERAGE(BG33:BG42) -> 0 | BH43: =AVERAGE(BH33:BH42) -> 0 | BI43: =AVERAGE(BI33:BI42) -> 0 | BJ43: =AVERAGE(BJ33:BJ42) -> 0 | BK43: 0 | BL43: =AVERAGE(BL33:BL42) -> 0 | BM43: =AVERAGE(BM33:BM42) -> 0
C44: 10 | AB44: 10 | AI44: 10 | AJ44: - | AM44: 10 | AN44: - | AQ44: 10 | AR44: - | AS44: - | AT44: - | AW44: 10 | AX44: - | AY44: - | AZ44: -
C45: 11 | AB45: 11 | AI45: 11 | AJ45: - | AM45: 11 | AN45: - | AQ45: 11 | AR45: - | AS45: - | AT45: - | AW45: 11 | AX45: - | AY45: - | AZ45: -
C46: 12 | AB46: 12 | AI46: 12 | AJ46: - | AM46: 12 | AN46: - | AQ46: 12 | AR46: - | AS46: - | AT46: - | AW46: 12 | AX46: - | AY46: - | AZ46: -
C47: 13 | AB47: 13 | AI47: 13 | AJ47: - | AM47: 13 | AN47: - | AQ47: 13 | AR47: - | AS47: - | AT47: - | AW47: 13 | AX47: - | AY47: - | AZ47: -
C48: 14 | AB48: 14 | AI48: 14 | AJ48: - | AM48: 14 | AN48: - | AQ48: 14 | AR48: - | AS48: - | AT48: - | AW48: 14 | AX48: - | AY48: - | AZ48: -
C49: 15 | AB49: 15 | AI49: 15 | AJ49: - | AM49: 15 | AN49: - | AQ49: 15 | AR49: - | AS49: - | AT49: - | AW49: 15 | AX49: - | AY49: - | AZ49: -
C50: 16 | AB50: 16 | AI50: 16 | AJ50: - | AM50: 16 | AN50: - | AQ50: 16 | AR50: - | AS50: - | AT50: - | AW50: 16 | AX50: - | AY50: - | AZ50: -
C51: 17 | AB51: 17 | AI51: 17 | AJ51: - | AM51: 17 | AN51: - | AQ51: 17 | AR51: - | AS51: - | AT51: - | AW51: 17 | AX51: - | AY51: - | AZ51: -
C52: 18 | AB52: 18 | AI52: 18 | AJ52: - | AM52: 18 | AN52: - | AQ52: 18 | AR52: - | AS52: - | AT52: - | AW52: 18 | AX52: - | AY52: - | AZ52: -
C53: 19 | AB53: 19 | AI53: 19 | AJ53: - | AM53: 19 | AN53: - | AQ53: 19 | AR53: - | AS53: - | AT53: - | AW53: 19 | AX53: - | AY53: - | AZ53: -
C54: 20 | AB54: 20 | AI54: 20 | AJ54: - | AM54: 20 | AN54: - | AQ54: 20 | AR54: - | AS54: - | AT54: - | AW54: 20 | AX54: - | AY54: - | AZ54: -
C55: 21 | AB55: 21 | AI55: 21 | AJ55: - | AM55: 21 | AN55: - | AQ55: 21 | AR55: - | AS55: - | AT55: - | AW55: 21 | AX55: - | AY55: - | AZ55: -
C56: 22 | AB56: 22 | AI56: 22 | AJ56: - | AM56: 22 | AN56: - | AQ56: 22 | AR56: - | AS56: - | AT56: - | AW56: 22 | AX56: - | AY56: - | AZ56: -
C57: 23 | AB57: 23 | AI57: 23 | AJ57: - | AM57: 23 | AN57: - | AQ57: 23 | AR57: - | AS57: - | AT57: - | AW57: 23 | AX57: - | AY57: - | AZ57: -
C58: 24 | AB58: 24 | AI58: 24 | AJ58: - | AM58: 24 | AN58: - | AQ58: 24 | AR58: - | AS58: - | AT58: - | AW58: 24 | AX58: - | AY58: - | AZ58: -
C59: 25 | AB59: 25 | AI59: 25 | AJ59: - | AM59: 25 | AN59: - | AQ59: 25 | AR59: - | AS59: - | AT59: - | AW59: 25 | AX59: - | AY59: - | AZ59: -
C60: 26 | AB60: 26 | AI60: 26 | AJ60: - | AM60: 26 | AN60: - | AQ60: 26 | AR60: - | AS60: - | AT60: - | AW60: 26 | AX60: - | AY60: - | AZ60: -
C61: 27 | AB61: 27 | AI61: 27 | AJ61: - | AM61: 27 | AN61: - | AQ61: 27 | AR61: - | AS61: - | AT61: - | AW61: 27 | AX61: - | AY61: - | AZ61: -
C62: 28 | AB62: 28 | AI62: 28 | AJ62: - | AM62: 28 | AN62: - | AQ62: 28 | AR62: - | AS62: - | AT62: - | AW62: 28 | AX62: - | AY62: - | AZ62: -
C63: 29 | AB63: 29 | AI63: 29 | AJ63: - | AM63: 29 | AN63: - | AQ63: 29 | AR63: - | AS63: - | AT63: - | AW63: 29 | AX63: - | AY63: - | AZ63: -
C64: 30 | AB64: 30 | AI64: 30 | AJ64: - | AM64: 30 | AN64: - | AQ64: 30 | AR64: - | AS64: - | AT64: - | AW64: 30 | AX64: - | AY64: - | AZ64: -
C65: 31 | AB65: 31 | AI65: 31 | AJ65: - | AM65: 31 | AN65: - | AQ65: 31 | AR65: - | AS65: - | AT65: - | AW65: 31 | AX65: - | AY65: - | AZ65: -
C66: 32 | AB66: 32 | AI66: 32 | AJ66: - | AM66: 32 | AN66: - | AQ66: 32 | AR66: - | AS66: - | AT66: - | AW66: 32 | AX66: - | AY66: - | AZ66: -
C67: 33 | AB67: 33 | AI67: 33 | AJ67: - | AM67: 33 | AN67: - | AQ67: 33 | AR67: - | AS67: - | AT67: - | AW67: 33 | AX67: - | AY67: - | AZ67: -
C68: 34 | AB68: 34 | AI68: 34 | AJ68: - | AM68: 34 | AN68: - | AQ68: 34 | AR68: - | AS68: - | AT68: - | AW68: 34 | AX68: - | AY68: - | AZ68: -
C69: 35 | AB69: 35 | AI69: 35 | AJ69: - | AM69: 35 | AN69: - | AQ69: 35 | AR69: - | AS69: - | AT69: - | AW69: 35 | AX69: - | AY69: - | AZ69: -
C70: 36 | AB70: 36 | AI70: 36 | AJ70: - | AM70: 36 | AN70: - | AQ70: 36 | AR70: - | AS70: - | AT70: - | AW70: 36 | AX70: - | AY70: - | AZ70: -
C71: 37 | AB71: 37 | AI71: 37 | AJ71: - | AM71: 37 | AN71: - | AQ71: 37 | AR71: - | AS71: - | AT71: - | AW71: 37 | AX71: - | AY71: - | AZ71: -
C72: 38 | AB72: 38 | AI72: 38 | AJ72: - | AM72: 38 | AN72: - | AQ72: 38 | AR72: - | AS72: - | AT72: - | AW72: 38 | AX72: - | AY72: - | AZ72: -
C73: 39 | AB73: 39 | AI73: 39 | AJ73: - | AM73: 39 | AN73: - | AQ73: 39 | AR73: - | AS73: - | AT73: - | AW73: 39 | AX73: - | AY73: - | AZ73: -
C74: 40 | AB74: 40 | AI74: 40 | AJ74: - | AM74: 40 | AN74: - | AQ74: 40 | AR74: - | AS74: - | AT74: - | AW74: 40 | AX74: - | AY74: - | AZ74: -
C75: 41 | AB75: 41 | AI75: 41 | AJ75: - | AM75: 41 | AN75: - | AQ75: 41 | AR75: - | AS75: - | AT75: - | AW75: 41 | AX75: - | AY75: - | AZ75: -
C76: 42 | AB76: 42 | AI76: 42 | AJ76: - | AM76: 42 | AN76: - | AQ76: 42 | AR76: - | AS76: - | AT76: - | AW76: 42 | AX76: - | AY76: - | AZ76: -
C77: 43 | AB77: 43 | AI77: 43 | AJ77: - | AM77: 43 | AN77: - | AQ77: 43 | AR77: - | AS77: - | AT77: - | AW77: 43 | AX77: - | AY77: - | AZ77: -
C78: 44 | AB78: 44 | AI78: 44 | AJ78: - | AM78: 44 | AN78: - | AQ78: 44 | AR78: - | AS78: - | AT78: - | AW78: 44 | AX78: - | AY78: - | AZ78: -
C79: 45 | AB79: 45 | AI79: 45 | AJ79: - | AM79: 45 | AN79: - | AQ79: 45 | AR79: - | AS79: - | AT79: - | AW79: 45 | AX79: - | AY79: - | AZ79: -
C80: 46 | AB80: 46 | AI80: 46 | AJ80: - | AM80: 46 | AN80: - | AQ80: 46 | AR80: - | AS80: - | AT80: - | AW80: 46 | AX80: - | AY80: - | AZ80: -
C81: 47 | AB81: 47 | AI81: 47 | AJ81: - | AM81: 47 | AN81: - | AQ81: 47 | AR81: - | AS81: - | AT81: - | AW81: 47 | AX81: - | AY81: - | AZ81: -
C82: 48 | AB82: 48 | AI82: 48 | AJ82: - | AM82: 48 | AN82: - | AQ82: 48 | AR82: - | AS82: - | AT82: - | AW82: 48 | AX82: - | AY82: - | AZ82: -
C83: 49 | AB83: 49 | AI83: 49 | AJ83: - | AM83: 49 | AN83: - | AQ83: 49 | AR83: - | AS83: - | AT83: - | AW83: 49 | AX83: - | AY83: - | AZ83: -
C84: 50 | AB84: 50 | AI84: 50 | AJ84: - | AM84: 50 | AN84: - | AQ84: 50 | AR84: - | AS84: - | AT84: - | AW84: 50 | AX84: - | AY84: - | AZ84: -
C85: 51 | AB85: 51 | AI85: 51 | AJ85: - | AM85: 51 | AN85: - | AQ85: 51 | AR85: - | AS85: - | AT85: - | AW85: 51 | AX85: - | AY85: - | AZ85: -
C86: 52 | AB86: 52 | AI86: 52 | AJ86: - | AM86: 52 | AN86: - | AQ86: 52 | AR86: - | AS86: - | AT86: - | AW86: 52 | AX86: - | AY86: - | AZ86: -
C87: 53 | AB87: 53 | AI87: 53 | AJ87: - | AM87: 53 | AN87: - | AQ87: 53 | AR87: - | AS87: - | AT87: - | AW87: 53 | AX87: - | AY87: - | AZ87: -
C88: 54 | AB88: 54 | AI88: 54 | AJ88: - | AM88: 54 | AN88: - | AQ88: 54 | AR88: - | AS88: - | AT88: - | AW88: 54 | AX88: - | AY88: - | AZ88: -
C89: 55 | AB89: 55 | AI89: 55 | AJ89: - | AM89: 55 | AN89: - | AQ89: 55 | AR89: - | AS89: - | AT89: - | AW89: 55 | AX89: - | AY89: - | AZ89: -
C90: 56 | AB90: 56 | AI90: 56 | AJ90: - | AM90: 56 | AN90: - | AQ90: 56 | AR90: - | AS90: - | AT90: - | AW90: 56 | AX90: - | AY90: - | AZ90: -
C91: 57 | AB91: 57 | AI91: 57 | AJ91: - | AM91: 57 | AN91: - | AQ91: 57 | AR91: - | AS91: - | AT91: - | AW91: 57 | AX91: - | AY91: - | AZ91: -
C92: 58 | AB92: 58 | AI92: 58 | AJ92: - | AM92: 58 | AN92: - | AQ92: 58 | AR92: - | AS92: - | AT92: - | AW92: 58 | AX92: - | AY92: - | AZ92: -
C93: 59 | AB93: 59 | AI93: 59 | AJ93: - | AM93: 59 | AN93: - | AQ93: 59 | AR93: - | AS93: - | AT93: - | AW93: 59 | AX93: - | AY93: - | AZ93: -
C94: 60 | AB94: 60 | AI94: 60 | AJ94: - | AM94: 60 | AN94: - | AQ94: 60 | AR94: - | AS94: - | AT94: - | AW94: 60 | AX94: - | AY94: - | AZ94: -
C95: 61 | AB95: 61 | AI95: 61 | AJ95: - | AM95: 61 | AN95: - | AQ95: 61 | AR95: - | AS95: - | AT95: - | AW95: 61 | AX95: - | AY95: - | AZ95: -
C96: 62 | AB96: 62 | AI96: 62 | AJ96: - | AM96: 62 | AN96: - | AQ96: 62 | AR96: - | AS96: - | AT96: - | AW96: 62 | AX96: - | AY96: - | AZ96: -
C97: 63 | AB97: 63 | AI97: 63 | AJ97: - | AM97: 63 | AN97: - | AQ97: 63 | AR97: - | AS97: - | AT97: - | AW97: 63 | AX97: - | AY97: - | AZ97: -
C98: 64 | AB98: 64 | AI98: 64 | AJ98: - | AM98: 64 | AN98: - | AQ98: 64 | AR98: - | AS98: - | AT98: - | AW98: 64 | AX98: - | AY98: - | AZ98: -
C99: 65 | AB99: 65 | AI99: 65 | AJ99: - | AM99: 65 | AN99: - | AQ99: 65 | AR99: - | AS99: - | AT99: - | AW99: 65 | AX99: - | AY99: - | AZ99: -
C100: 66 | AB100: 66 | AI100: 66 | AJ100: - | AM100: 66 | AN100: - | AQ100: 66 | AR100: - | AS100: - | AT100: - | AW100: 66 | AX100: - | AY100: - | AZ100: -
C101: 67 | AB101: 67 | AI101: 67 | AJ101: - | AM101: 67 | AN101: - | AQ101: 67 | AR101: - | AS101: - | AT101: - | AW101: 67 | AX101: - | AY101: - | AZ101: -
C102: 68 | AB102: 68 | AI102: 68 | AJ102: - | AM102: 68 | AN102: - | AQ102: 68 | AR102: - | AS102: - | AT102: - | AW102: 68 | AX102: - | AY102: - | AZ102: -
C103: 69 | AB103: 69 | AI103: 69 | AJ103: - | AM103: 69 | AN103: - | AQ103: 69 | AR103: - | AS103: - | AT103: - | AW103: 69 | AX103: - | AY103: - | AZ103: -
C104: 70 | AB104: 70 | AI104: 70 | AJ104: - | AM104: 70 | AN104: - | AQ104: 70 | AR104: - | AS104: - | AT104: - | AW104: 70 | AX104: - | AY104: - | AZ104: -
C105: 71 | AB105: 71 | AI105: 71 | AJ105: - | AM105: 71 | AN105: - | AQ105: 71 | AR105: - | AS105: - | AT105: - | AW105: 71 | AX105: - | AY105: - | AZ105: -
C106: 72 | AB106: 72 | AI106: 72 | AJ106: - | AM106: 72 | AN106: - | AQ106: 72 | AR106: - | AS106: - | AT106: - | AW106: 72 | AX106: - | AY106: - | AZ106: -
C107: 73 | AB107: 73 | AI107: 73 | AJ107: - | AM107: 73 | AN107: - | AQ107: 73 | AR107: - | AS107: - | AT107: - | AW107: 73 | AX107: - | AY107: - | AZ107: -
C108: 74 | AB108: 74 | AI108: 74 | AJ108: - | AM108: 74 | AN108: - | AQ108: 74 | AR108: - | AS108: - | AT108: - | AW108: 74 | AX108: - | AY108: - | AZ108: -
C109: 75 | AB109: 75 | AI109: 75 | AJ109: - | AM109: 75 | AN109: - | AQ109: 75 | AR109: - | AS109: - | AT109: - | AW109: 75 | AX109: - | AY109: - | AZ109: -
C110: 76 | AB110: 76 | AI110: 76 | AJ110: - | AM110: 76 | AN110: - | AQ110: 76 | AR110: - | AS110: - | AT110: - | AW110: 76 | AX110: - | AY110: - | AZ110: -
C111: 77 | AB111: 77 | AI111: 77 | AJ111: - | AM111: 77 | AN111: - | AQ111: 77 | AR111: - | AS111: - | AT111: - | AW111: 77 | AX111: - | AY111: - | AZ111: -
C112: 78 | AB112: 78 | AI112: 78 | AJ112: - | AM112: 78 | AN112: - | AQ112: 78 | AR112: - | AS112: - | AT112: - | AW112: 78 | AX112: - | AY112: - | AZ112: -
C113: 79 | AB113: 79 | AI113: 79 | AJ113: - | AM113: 79 | AN113: - | AQ113: 79 | AR113: - | AS113: - | AT113: - | AW113: 79 | AX113: - | AY113: - | AZ113: -
C114: 80 | AB114: 80 | AI114: 80 | AJ114: - | AM114: 80 | AN114: - | AQ114: 80 | AR114: - | AS114: - | AT114: - | AW114: 80 | AX114: - | AY114: - | AZ114: -
C115: 81 | AB115: 81 | AI115: 81 | AJ115: - | AM115: 81 | AN115: - | AQ115: 81 | AR115: - | AS115: - | AT115: - | AW115: 81 | AX115: - | AY115: - | AZ115: -
C116: 82 | AB116: 82 | AI116: 82 | AJ116: - | AM116: 82 | AN116: - | AQ116: 82 | AR116: - | AS116: - | AT116: - | AW116: 82 | AX116: - | AY116: - | AZ116: -
C117: 83 | AB117: 83 | AI117: 83 | AJ117: - | AM117: 83 | AN117: - | AQ117: 83 | AR117: - | AS117: - | AT117: - | AW117: 83 | AX117: - | AY117: - | AZ117: -
C118: 84 | AB118: 84 | AI118: 84 | AJ118: - | AM118: 84 | AN118: - | AQ118: 84 | AR118: - | AS118: - | AT118: - | AW118: 84 | AX118: - | AY118: - | AZ118: -
C119: 85 | AB119: 85 | AI119: 85 | AJ119: - | AM119: 85 | AN119: - | AQ119: 85 | AR119: - | AS119: - | AT119: - | AW119: 85 | AX119: - | AY119: - | AZ119: -
C120: 86 | AB120: 86 | AI120: 86 | AJ120: - | AM120: 86 | AN120: - | AQ120: 86 | AR120: - | AS120: - | AT120: - | AW120: 86 | AX120: - | AY120: - | AZ120: -
C121: 87 | AB121: 87 | AI121: 87 | AJ121: - | AM121: 87 | AN121: - | AQ121: 87 | AR121: - | AS121: - | AT121: - | AW121: 87 | AX121: - | AY121: - | AZ121: -
C122: 88 | AB122: 88 | AI122: 88 | AJ122: - | AM122: 88 | AN122: - | AQ122: 88 | AR122: - | AS122: - | AT122: - | AW122: 88 | AX122: - | AY122: - | AZ122: -
C123: 89 | AB123: 89 | AI123: 89 | AJ123: - | AM123: 89 | AN123: - | AQ123: 89 | AR123: - | AS123: - | AT123: - | AW123: 89 | AX123: - | AY123: - | AZ123: -
C124: 90 | AB124: 90 | AI124: 90 | AJ124: - | AM124: 90 | AN124: - | AQ124: 90 | AR124: - | AS124: - | AT124: - | AW124: 90 | AX124: - | AY124: - | AZ124: -
C125: 91 | AB125: 91 | AI125: 91 | AJ125: - | AM125: 91 | AN125: - | AQ125: 91 | AR125: - | AS125: - | AT125: - | AW125: 91 | AX125: - | AY125: - | AZ125: -
C126: 92 | AB126: 92 | AI126: 92 | AJ126: - | AM126: 92 | AN126: - | AQ126: 92 | AR126: - | AS126: - | AT126: - | AW126: 92 | AX126: - | AY126: - | AZ126: -
C127: 93 | AB127: 93 | AI127: 93 | AJ127: - | AM127: 93 | AN127: - | AQ127: 93 | AR127: - | AS127: - | AT127: - | AW127: 93 | AX127: - | AY127: - | AZ127: -
C128: 94 | AB128: 94 | AI128: 94 | AJ128: - | AM128: 94 | AN128: - | AQ128: 94 | AR128: - | AS128: - | AT128: - | AW128: 94 | AX128: - | AY128: - | AZ128: -
C129: 95 | AB129: 95 | AI129: 95 | AJ129: - | AM129: 95 | AN129: - | AQ129: 95 | AR129: - | AS129: - | AT129: - | AW129: 95 | AX129: - | AY129: - | AZ129: -
C130: 96 | AB130: 96 | AI130: 96 | AJ130: - | AM130: 96 | AN130: - | AQ130: 96 | AR130: - | AS130: - | AT130: - | AW130: 96 | AX130: - | AY130: - | AZ130: -
C131: 97 | AB131: 97 | AI131: 97 | AJ131: - | AM131: 97 | AN131: - | AQ131: 97 | AR131: - | AS131: - | AT131: - | AW131: 97 | AX131: - | AY131: - | AZ131: -
C132: 98 | AB132: 98 | AI132: 98 | AJ132: - | AM132: 98 | AN132: - | AQ132: 98 | AR132: - | AS132: - | AT132: - | AW132: 98 | AX132: - | AY132: - | AZ132: -
C133: 99 | AB133: 99 | AI133: 99 | AJ133: - | AM133: 99 | AN133: - | AQ133: 99 | AR133: - | AS133: - | AT133: - | AW133: 99 | AX133: - | AY133: - | AZ133: -
C134: 100 | AB134: 100 | AI134: 100 | AJ134: - | AM134: 100 | AN134: - | AQ134: 100 | AR134: - | AS134: - | AT134: - | AW134: 100 | AX134: - | AY134: - | AZ134: -
BA135: =IF(SUM(AX135:AZ135)<>0,1,"") -> 

Sheet 4章_b
C2: 第4章： 自販機における釣銭の適正補充問題
C6: TABLE 1 | S6: TABLE 2
C7: 出し方 | G7: おつり | H7: 支払 （ToPay） | L7: 入金 （InPut） | P7: 割合 | R7: 7 | S7: 出し方 | W7: おつり | X7: 支払 （ToPay） | AB7: 入金 （InPut）
C8: 番号 | D8: 金額 | E8: 内訳 | H8: ="- 500" -> - 500 | I8: ="- 100" -> - 100 | J8: ="- 50" -> - 50 | K8: ="- 10" -> - 10 | L8: ="+ 500" -> + 500 | M8: ="+ 100" -> + 100 | N8: ="+ 50" -> + 50 | O8: ="+ 10" -> + 10 | R8: 8 | S8: 番号 | T8: 金額 | U8: 内訳 | X8: ="- 500" -> - 500 | Y8: ="- 100" -> - 100 | Z8: ="- 50" -> - 50 | AA8: ="- 10" -> - 10 | AB8: ="+ 500" -> + 500 | AC8: ="+ 100" -> + 100 | AD8: ="+ 50" -> + 50 | AE8: ="+ 10" -> + 10
C9: 1 | D9: 120 | E9: 100+10×2 | G9: 0 | M9: 1 | O9: 2 | P9: 70 % | R9: 9 | S9: 1 | T9: 150 | U9: 100+10×5 | W9: 0 | AC9: 1 | AE9: 5
C10: 2 | D10: 120 | E10: 50×2+10×2 | G10: 0 | N10: 2 | O10: 2 | R10: 10 | S10: 2 | T10: 150 | U10: 50×2+10×5 | W10: 0 | AD10: 2 | AE10: 5
C11: 3 | D11: 150 | E11: 100+50×1 | G11: 30 | K11: 3 | M11: 1 | N11: 1 | R11: 11 | S11: 3 | T11: 150 | U11: 100+50×1 | W11: 0 | AC11: 1 | AD11: 1
C12: 4 | D12: 150 | E12: 50×3 | G12: 30 | K12: 3 | N12: 3 | Q12: 63 | R12: 12 | S12: 4 | T12: 150 | U12: 50×3 | W12: 0 | AD12: 3
C13: 5 | D13: 200 | E13: 100×2 | G13: 80 | J13: 1 | K13: 3 | M13: 2 | P13: 25 % | R13: 13 | S13: 5 | T13: 200 | U13: 100×2 | W13: 50 | Z13: 1 | AC13: 2
C14: 6 | D14: 500 | E14: 500×1 | G14: 380 | I14: 3 | J14: 1 | K14: 3 | L14: 1 | R14: 14 | S14: 6 | T14: 500 | U14: 500×1 | W14: 350 | Y14: 3 | Z14: 1 | AB14: 1
C15: 7 | D15: 520 | E15: 500+10×2 | G15: 400 | I15: 4 | L15: 1 | O15: 2 | R15: 15 | S15: 7 | T15: 550 | U15: 500+10×5 | W15: 400 | Y15: 4 | AB15: 1 | AE15: 5
C16: 8 | D16: 550 | E16: 500+50×1 | G16: 430 | I16: 4 | K16: 3 | L16: 1 | N16: 1 | Q16: 85 | R16: 16 | S16: 8 | T16: 550 | U16: 500+50×1 | W16: 400 | Y16: 4 | AB16: 1 | AD16: 1
C17: 9 | D17: 120 | E17: 50×1+10×7 | G17: 0 | N17: 1 | O17: 7 | P17: 5 % | R17: 17 | S17: 9 | T17: 150 | U17: 50×1+10×10 | W17: 0 | AD17: 1 | AE17: 10
C18: 10 | D18: 120 | E18: 10×12 | G18: 0 | O18: 12 | R18: 18 | S18: 10 | T18: 150 | U18: 10×15 | W18: 0 | AE18: 15
C19: 11 | D19: 1000 | E19: 1000×1 | G19: 880 | H19: 1 | I19: 3 | J19: 1 | K19: 3 | R19: 19 | S19: 11 | T19: 1000 | U19: 1000×1 | W19: 850 | X19: 1 | Y19: 3 | Z19: 1
C20: 12 | D20: 1020 | E20: 1000+20 | G20: 900 | H20: 1 | I20: 4 | O20: 2 | R20: 20 | S20: 12 | T20: 1050 | U20: 1000+10×5 | W20: 900 | X20: 1 | Y20: 4 | AE20: 5
C21: 13 | D21: 1050 | E21: 1000+50×1 | G21: 930 | H21: 1 | I21: 4 | K21: 3 | N21: 1 | Q21: 90 | R21: 21 | S21: 13 | T21: 1050 | U21: 1000+50×1 | W21: 900 | X21: 1 | Y21: 4 | AD21: 1
AD23: COIN
C26: 初期 | E26: 客数 | H26: 最大補充枚数 | J26: 70 | K26: 最大補充枚数 | M26: 80 | N26: 最大補充枚数 | P26: 80 | Q26: 最大補充枚数 | S26: 90 | T26: 件数 | U26: =IF(COUNTIF(U35:U134,"×")=0,"-",COUNTIF(U35:U134,"×")) -> 4 | W26: =IF(COUNTIF(W35:W134,0)=0,"-",COUNTIF(W35:W134,0)) -> - | X26: =IF(COUNTIF(X35:X134,0)=0,"-",COUNTIF(X35:X134,0)) -> 17 | Y26: =IF(COUNTIF(Y35:Y134,0)=0,"-",COUNTIF(Y35:Y134,0)) -> - | Z26: =IF(COUNTIF(Z35:Z134,0)=0,"-",COUNTIF(Z35:Z134,0)) -> 1 | AB26: 件数 | AC26: =IF(SUM(AC35:AC134)=0,"-",SUM(AC35:AC134)) -> - | AD26: =IF(SUM(AD35:AD134)=0,"-",SUM(AD35:AD134)) -> 3 | AE26: =IF(SUM(AE35:AE134)=0,"-",SUM(AE35:AE134)) -> -
C27: 設定 | E27: 90 | H27: 実際補充枚数 | J27: 5 | K27: 実際補充枚数 | M27: 5 | N27: 実際補充枚数 | P27: 5 | Q27: 実際補充枚数 | S27: 5 | T27: 初回 | U27: =IF(COUNTIF(U35:U134,"×")>0,MATCH("×",U35:U134,FALSE),"-") -> 2 | W27: =IF(COUNTIF(W35:W134,0)>0,MATCH(0,W35:W134,FALSE),"-") -> - | X27: =IF(COUNTIF(X35:X134,0)>0,MATCH(0,X35:X134,FALSE),"-") -> 26 | Y27: =IF(COUNTIF(Y35:Y134,0)>0,MATCH(0,Y35:Y134,FALSE),"-") -> - | Z27: =IF(COUNTIF(Z35:Z134,0)>0,MATCH(0,Z35:Z134,FALSE),"-") -> 10 | AB27: 初回 | AC27: =IF(COUNTIF(AC35:AC134,1)>0,MATCH(1,AC35:AC134,FALSE),"-") -> - | AD27: =IF(COUNTIF(AD35:AD134,1)>0,MATCH(1,AD35:AD134,FALSE),"-") -> 27 | AE27: =IF(COUNTIF(AE35:AE134,1)>0,MATCH(1,AE35:AE134,FALSE),"-") -> - | AI27: TABLE 3a | AM27: TABLE 3b | AQ27: TABLE 5a | AW27: TABLE 5b | BF27: =J27&"-"&M27&"-"&P27&"-"&S27 -> 5-5-5-5
U29: ↑ | W29: ↑ | X29: ↑ | Y29: ↑ | Z29: ↑ | AB29: ↑ | AC29: ↑ | AD29: ↑ | AE29: ↑ | AI29: 釣銭切れ （初回） | AM29: 釣銭切れ （件数） | AQ29: 大量払い （初回） | AW29: 大量払い （件数）
C30: TABLE 3 | W30: TABLE 4 | AB30: TABLE 5 | AI30: min | AJ30: =MIN(AJ35:AJ134) -> 2 | AM30: 遭遇人数 | AN30: 発生回数 | AR30: 100 円 | AS30: 50 円 | AT30: 10 円 | AX30: 100 円 | AY30: 50 円 | AZ30: 10 円 | BA30: 発生回数 | BF30: 100×10 | BG30: 釣銭切れ | BI30: 大量払い
C31: 客番 | D31: 商品 | E31: 乱数 | F31: 出し方 | G31: おつり | H31: 【A】 500 円玉 | K31: 【B】 100 円玉 | N31: 【C】 50 円玉 | Q31: 【D】 10 円玉 | T31: 合計 | U31: 釣銭 切れ | W31: 釣銭在庫 | AB31: 大量払いチェック | AI31: max | AJ31: =MAX(AJ35:AJ134) -> 82 | AM31: （件数合計） | AQ31: min | AR31: =MIN(AR35:AR134) -> 0 | AS31: =MIN(AS35:AS134) -> 6 | AT31: =MIN(AT35:AT134) -> 10 | AW31: 遭遇人数 | AX31: =SUM(AX35:AX134) -> 0 | AY31: =SUM(AY35:AY134) -> 330 | AZ31: =SUM(AZ35:AZ134) -> 59 | BG31: 発生件数 | BH31: 遭遇人数 | BI31: 発生件数 | BJ31: 遭遇人数 | BK31: 内訳
H32: ToPay | I32: InPut | J32: Payable | K32: ToPay | L32: InPut | M32: Payable | N32: ToPay | O32: InPut | P32: Payable | Q32: ToPay | R32: InPut | S32: Payable | AI32: ave | AJ32: =AVERAGE(AJ35:AJ134) -> 12.82608696 | AM32: =SUM(AN35:AN134) -> 185 | AN32: =COUNT(AN35:AN134) -> 46 | AQ32: ave | AR32: =IF(SUM(AR35:AR134)=0,0,SUM(AR35:AR134)/COUNTIF(AR35:AR134,">0")) -> 0 | AS32: =SUM(AS35:AS134)/COUNTIF(AS35:AS134,">0") -> 31.92473118 | AT32: =IF(SUM(AT35:AT134)=0,0,SUM(AT35:AT134)/COUNTIF(AT35:AT134,">0")) -> 37.62962963 | AW32: （件数合計） | AX32: =SUM(AX31:AZ31) -> 389 | BA32: =SUM(BA35:BA134) -> 93 | BK32: 100 円 | BL32: 50 円 | BM32: 10 円
H33: - 500 | I33: + 500 | J33: 支払可 | K33: - 100 | L33: + 100 | M33: 支払可 | N33: - 50 | O33: + 50 | P33: 支払可 | Q33: - 10 | R33: + 10 | S33: 支払可 | W33: 500 円 | X33: 100 円 | Y33: 50 円 | Z33: 10 円 | AB33: 金種 | AC33: 100 円 | AD33: 50 円 | AE33: 10 円 | BF33: 1st | BG33: =AN32 -> 46 | BH33: =AM32 -> 185 | BI33: =BA32 -> 93 | BJ33: =AX32 -> 389 | BK33: =AX31 -> 0 | BL33: =AY31 -> 330 | BM33: =AZ31 -> 59
C34: 0 | D34: ・ | F34: ・ | G34: ・ | H34: ・ | I34: ・ | J34: ・ | K34: ・ | L34: ・ | M34: ・ | N34: ・ | O34: ・ | P34: ・ | Q34: ・ | R34: ・ | S34: ・ | T34: ・ | U34: ・ | W34: =J27 -> 5 | X34: =M27 -> 5 | Y34: =P27 -> 5 | Z34: =S27 -> 5 | AB34: 基準 | AC34: 8 | AD34: 7 | AE34: 10 | AI34: 補充 | AJ34: 初回 | AM34: 補充 | AN34: 件数 | AQ34: 補充 | AR34: 100 円 | AS34: 50 円 | AT34: 10 円 | AW34: 補充 | AX34: 100 円 | AY34: 50 円 | AZ34: 10 円 | BA34: チェック | BF34: 2nd
C35: 1 | D35: =IF(C35>$E$27,"",RANDBETWEEN(1,2)) -> 1 | E35: =IF(C35>$E$27,"",RANDBETWEEN(1,$E$27)) -> 2 | F35: =IF(C35>$E$27,"",IF(E35<=63,RANDBETWEEN(1,4),IF(AND(E35>=64,E35<=85),RANDBETWEEN(5,8),RANDBETWEEN(9,13)))) -> 3 | G35: =IF(C35>$E$27,"",IF(D35=1,VLOOKUP(F35,$C$9:$O$21,5),VLOOKUP(F35,$S$9:$AE$21,5))) -> 30 | H35: =IF(C35>$E$27,"",IF(D35=1,VLOOKUP(F35,$C$9:$O$21,6),VLOOKUP(F35,$S$9:$AE$21,6))) -> 0 | I35: =IF(C35>$E$27,"",IF(D35=1,VLOOKUP(F35,$C$9:$O$21,10),VLOOKUP(F35,$S$9:$AE$21,10))) -> 0 | J35: =IF(C35>$E$27,"",IF(AND(H35=1,W34 >=1),1,0)) -> 0 | K35: =IF(C35>$E$27,"",IF(AND(D35=1,J35<H35),5+VLOOKUP(F35,$C$9:$O$21,7),IF(AND(D35=1,J35>=H35),VLOOKUP(F35,$C$9:$O$21,7),IF(AND(D35=2,J35<H35),5+VLOOKUP(F35,$S$9:$AE$21,7),VLOOKUP(F35,$S$9:$AE$21,7))))) -> 0 | L35: =IF(C35>$E$27,"",IF(D35=1,VLOOKUP(F35,$C$9:$O$21,11),VLOOKUP(F35,$S$9:$AE$21,11))) -> 1 | M35: =IF(C35>$E$27,"",IF(AND(K35>0,X34+L35>=K35),K35,IF(AND(K35>0,X34+L35<K35),X34+L35,0))) -> 0 | N35: =IF(C35>$E$27,"",IF(AND(D35=1,M35<K35),(K35-M35)*2+VLOOKUP(F35,$C$9:$O$21,8),IF(AND(D35=1,M35>=K35),VLOOKUP(F35,$C$9:$O$21,8),IF(AND(D35=2,M35<K35),(K35-M35)*2+VLOOKUP(F35,$S$9:$AE$21,8),VLOOKUP(F35,$S$9:$AE$21,8))))) -> 0 | O35: =IF(C35>$E$27,"",IF(D35=1,VLOOKUP(F35,$C$9:$O$21,12),VLOOKUP(F35,$S$9:$AE$21,12))) -> 1 | P35: =IF(C35>$E$27,"",IF(AND(N35>0,Y34+O35>=N35),N35,IF(AND(N35>0,Y34+O35<N35),Y34+O35,0))) -> 0 | Q35: =IF(C35>$E$27,"",IF(AND(D35=1,P35<N35),(N35-P35)*5+VLOOKUP(F35,$C$9:$O$21,9),IF(AND(D35=1,P35>=N35),VLOOKUP(F35,$C$9:$O$21,9),IF(AND(D35=2,P35<N35),(N35-P35)*5+VLOOKUP(F35,$S$9:$AE$21,9),VLOOKUP(F35,$S$9:$AE$21,9))))) -> 3 | R35: =IF(C35>$E$27,"",IF(D35=1,VLOOKUP(F35,$C$9:$O$21,13),VLOOKUP(F35,$S$9:$AE$21,13))) -> 0 | S35: =IF(C35>$E$27,"",IF(AND(Q35>0,Z34+R35>=Q35),Q35,IF(AND(Q35>0, Z34+R35<Q35),Z34+R35,0))) -> 3 | T35: =IF(C35>$E$27,"",(J35*500)+(M35*100)+(P35*50)+(S35*10)) -> 30 | U35: =IF(C35>$E$27,"",IF(G35>T35,"×","")) ->  | W35: =IF($C35>$E$27,"",IF($U35="×",W34,IF(J35>0,W34+I35-J35,IF(W34+I35>$J$26,$J$26,W34+I35)))) -> 5 | X35: =IF($C35>$E$27,"",IF($U35="×",X34,IF(M35>0,X34+L35-M35,IF(X34+L35>$M$26,$M$26,X34+L35)))) -> 6 | Y35: =IF($C35>$E$27,"",IF($U35="×",Y34,IF(P35>0,Y34+O35-P35,IF(Y34+O35>$P$26,$P$26,Y34+O35)))) -> 6 | Z35: =IF($C35>$E$27,"",IF($U35="×",Z34,IF(S35>0,Z34+R35-S35,IF(Z34+R35>$S$26,$S$26,Z34+R35)))) -> 2 | AB35: 1 | AC35: =IF(AB35>$E$27,"",IF(AND(U35<>"×",M35>=$AC$34),1,"")) ->  | AD35: =IF(AB35>$E$27,"",IF(AND(U35<>"×",P35>=$AD$34),1,"")) ->  | AE35: =IF(AB35>$E$27,"",IF(AND(U35<>"×",S35>=$AE$34),1,"")) ->  | AI35: 1 | AJ35: 28 | AM35: 1 | AN35: 1 | AQ35: 1 | AR35: - | AS35: 23 | AT35: - | AW35: 1 | AX35: - | AY35: 2 | AZ35: - | BA35: =IF(SUM(AX35:AZ35)>0,1,"") -> 1 | BF35: 3rd
C36: 2 | D36: 1 | E36: 67 | F36: 8 | G36: 430 | H36: 0 | I36: 1 | J36: 0 | K36: 4 | L36: 0 | M36: 4 | N36: 0 | O36: 1 | P36: 0 | Q36: 3 | R36: 0 | S36: 2 | T36: 420 | U36: × | W36: 5 | X36: 6 | Y36: 6 | Z36: 2 | AB36: 2 | AI36: 2 | AJ36: 5 | AM36: 2 | AN36: 2 | AQ36: 2 | AR36: - | AS36: 62 | AT36: - | AW36: 2 | AX36: - | AY36: 3 | AZ36: - | BA36: 1 | BF36: 4th
C37: 3 | D37: 1 | E37: 61 | F37: 1 | G37: 0 | H37: 0 | I37: 0 | J37: 0 | K37: 0 | L37: 1 | M37: 0 | N37: 0 | O37: 0 | P37: 0 | Q37: 0 | R37: 2 | S37: 0 | T37: 0 | W37: 5 | X37: 7 | Y37: 6 | Z37: 4 | AB37: 3 | AI37: 3 | AJ37: - | AM37: 3 | AN37: - | AQ37: 3 | AR37: - | AS37: 23 | AT37: - | AW37: 3 | AX37: - | AY37: 5 | AZ37: - | BA37: 1 | BF37: 5th
C38: 4 | D38: 2 | E38: 49 | F38: 3 | G38: 0 | H38: 0 | I38: 0 | J38: 0 | K38: 0 | L38: 1 | M38: 0 | N38: 0 | O38: 1 | P38: 0 | Q38: 0 | R38: 0 | S38: 0 | T38: 0 | W38: 5 | X38: 8 | Y38: 7 | Z38: 4 | AB38: 4 | AI38: 4 | AJ38: 16 | AM38: 4 | AN38: 1 | AQ38: 4 | AR38: - | AS38: 15 | AT38: - | AW38: 4 | AX38: - | AY38: 4 | AZ38: - | BA38: 1 | BF38: 6th
C39: 5 | D39: 1 | E39: 32 | F39: 3 | G39: 30 | H39: 0 | I39: 0 | J39: 0 | K39: 0 | L39: 1 | M39: 0 | N39: 0 | O39: 1 | P39: 0 | Q39: 3 | R39: 0 | S39: 3 | T39: 30 | W39: 5 | X39: 9 | Y39: 8 | Z39: 1 | AB39: 5 | AI39: 5 | AJ39: 39 | AM39: 5 | AN39: 9 | AQ39: 5 | AR39: - | AS39: 7 | AT39: 34 | AW39: 5 | AX39: - | AY39: 5 | AZ39: 2 | BA39: 1 | BF39: 7th
C40: 6 | D40: 1 | E40: 45 | F40: 4 | G40: 30 | H40: 0 | I40: 0 | J40: 0 | K40: 0 | L40: 0 | M40: 0 | N40: 0 | O40: 3 | P40: 0 | Q40: 3 | R40: 0 | S40: 1 | T40: 10 | U40: × | W40: 5 | X40: 9 | Y40: 8 | Z40: 1 | AB40: 6 | AI40: 6 | AJ40: 10 | AM40: 6 | AN40: 1 | AQ40: 6 | AR40: - | AS40: 56 | AT40: - | AW40: 6 | AX40: - | AY40: 4 | AZ40: - | BA40: 1 | BF40: 8th
C41: 7 | D41: 2 | E41: 38 | F41: 4 | G41: 0 | H41: 0 | I41: 0 | J41: 0 | K41: 0 | L41: 0 | M41: 0 | N41: 0 | O41: 3 | P41: 0 | Q41: 0 | R41: 0 | S41: 0 | T41: 0 | W41: 5 | X41: 9 | Y41: 11 | Z41: 1 | AB41: 7 | AI41: 7 | AJ41: - | AM41: 7 | AN41: - | AQ41: 7 | AR41: - | AS41: 45 | AT41: - | AW41: 7 | AX41: - | AY41: 2 | AZ41: - | BA41: 1 | BF41: 9th
C42: 8 | D42: 1 | E42: 20 | F42: 3 | G42: 30 | H42: 0 | I42: 0 | J42: 0 | K42: 0 | L42: 1 | M42: 0 | N42: 0 | O42: 1 | P42: 0 | Q42: 3 | R42: 0 | S42: 1 | T42: 10 | U42: × | W42: 5 | X42: 9 | Y42: 11 | Z42: 1 | AB42: 8 | AI42: 8 | AJ42: 7 | AM42: 8 | AN42: 6 | AQ42: 8 | AR42: - | AS42: 39 | AT42: - | AW42: 8 | AX42: - | AY42: 5 | AZ42: - | BA42: 1 | BF42: 10th
C43: 9 | D43: 1 | E43: 27 | F43: 2 | G43: 0 | H43: 0 | I43: 0 | J43: 0 | K43: 0 | L43: 0 | M43: 0 | N43: 0 | O43: 2 | P43: 0 | Q43: 0 | R43: 2 | S43: 0 | T43: 0 | W43: 5 | X43: 9 | Y43: 13 | Z43: 3 | AB43: 9 | AI43: 9 | AJ43: - | AM43: 9 | AN43: - | AQ43: 9 | AR43: - | AS43: 50 | AT43: - | AW43: 9 | AX43: - | AY43: 1 | AZ43: - | BA43: 1 | BF43: 平均 | BG43: =AVERAGE(BG33:BG42) -> 46 | BH43: =AVERAGE(BH33:BH42) -> 185 | BI43: =AVERAGE(BI33:BI42) -> 93 | BJ43: =AVERAGE(BJ33:BJ42) -> 389 | BK43: 0 | BL43: =AVERAGE(BL33:BL42) -> 330 | BM43: =AVERAGE(BM33:BM42) -> 59
C44: 10 | D44: 1 | E44: 24 | F44: 4 | G44: 30 | H44: 0 | I44: 0 | J44: 0 | K44: 0 | L44: 0 | M44: 0 | N44: 0 | O44: 3 | P44: 0 | Q44: 3 | R44: 0 | S44: 3 | T44: 30 | W44: 5 | X44: 9 | Y44: 16 | Z44: 0 | AB44: 10 | AI44: 10 | AJ44: - | AM44: 10 | AN44: - | AQ44: 10 | AR44: - | AS44: 38 | AT44: - | AW44: 10 | AX44: - | AY44: 6 | AZ44: - | BA44: 1
C45: 11 | D45: 1 | E45: 57 | F45: 2 | G45: 0 | H45: 0 | I45: 0 | J45: 0 | K45: 0 | L45: 0 | M45: 0 | N45: 0 | O45: 2 | P45: 0 | Q45: 0 | R45: 2 | S45: 0 | T45: 0 | W45: 5 | X45: 9 | Y45: 18 | Z45: 2 | AB45: 11 | AI45: 11 | AJ45: 4 | AM45: 11 | AN45: 10 | AQ45: 11 | AR45: - | AS45: 62 | AT45: 23 | AW45: 11 | AX45: - | AY45: 2 | AZ45: 2 | BA45: 1
C46: 12 | D46: 1 | E46: 28 | F46: 4 | G46: 30 | H46: 0 | I46: 0 | J46: 0 | K46: 0 | L46: 0 | M46: 0 | N46: 0 | O46: 3 | P46: 0 | Q46: 3 | R46: 0 | S46: 2 | T46: 20 | U46: × | W46: 5 | X46: 9 | Y46: 18 | Z46: 2 | AB46: 12 | AI46: 12 | AJ46: - | AM46: 12 | AN46: - | AQ46: 12 | AR46: - | AS46: 54 | AT46: - | AW46: 12 | AX46: - | AY46: 3 | AZ46: - | BA46: 1
C47: 13 | D47: 2 | E47: 20 | F47: 2 | G47: 0 | H47: 0 | I47: 0 | J47: 0 | K47: 0 | L47: 0 | M47: 0 | N47: 0 | O47: 2 | P47: 0 | Q47: 0 | R47: 5 | S47: 0 | T47: 0 | W47: 5 | X47: 9 | Y47: 20 | Z47: 7 | AB47: 13 | AI47: 13 | AJ47: - | AM47: 13 | AN47: - | AQ47: 13 | AR47: - | AS47: 31 | AT47: - | AW47: 13 | AX47: - | AY47: 1 | AZ47: - | BA47: 1
C48: 14 | D48: 1 | E48: 73 | F48: 7 | G48: 400 | H48: 0 | I48: 1 | J48: 0 | K48: 4 | L48: 0 | M48: 4 | N48: 0 | O48: 0 | P48: 0 | Q48: 0 | R48: 2 | S48: 0 | T48: 400 | W48: 6 | X48: 5 | Y48: 20 | Z48: 9 | AB48: 14 | AI48: 14 | AJ48: - | AM48: 14 | AN48: - | AQ48: 14 | AR48: - | AS48: 35 | AT48: - | AW48: 14 | AX48: - | AY48: 5 | AZ48: - | BA48: 1
C49: 15 | D49: 2 | E49: 50 | F49: 1 | G49: 0 | H49: 0 | I49: 0 | J49: 0 | K49: 0 | L49: 1 | M49: 0 | N49: 0 | O49: 0 | P49: 0 | Q49: 0 | R49: 5 | S49: 0 | T49: 0 | W49: 6 | X49: 6 | Y49: 20 | Z49: 14 | AB49: 15 | AI49: 15 | AJ49: - | AM49: 15 | AN49: - | AQ49: 15 | AR49: - | AS49: 70 | AT49: - | AW49: 15 | AX49: - | AY49: 3 | AZ49: - | BA49: 1
C50: 16 | D50: 1 | E50: 66 | F50: 7 | G50: 400 | H50: 0 | I50: 1 | J50: 0 | K50: 4 | L50: 0 | M50: 4 | N50: 0 | O50: 0 | P50: 0 | Q50: 0 | R50: 2 | S50: 0 | T50: 400 | W50: 7 | X50: 2 | Y50: 20 | Z50: 16 | AB50: 16 | AI50: 16 | AJ50: 3 | AM50: 16 | AN50: 4 | AQ50: 16 | AR50: - | AS50: 27 | AT50: 61 | AW50: 16 | AX50: - | AY50: 4 | AZ50: 4 | BA50: 1
C51: 17 | D51: 2 | E51: 25 | F51: 4 | G51: 0 | H51: 0 | I51: 0 | J51: 0 | K51: 0 | L51: 0 | M51: 0 | N51: 0 | O51: 3 | P51: 0 | Q51: 0 | R51: 0 | S51: 0 | T51: 0 | W51: 7 | X51: 2 | Y51: 23 | Z51: 16 | AB51: 17 | AI51: 17 | AJ51: - | AM51: 17 | AN51: - | AQ51: 17 | AR51: - | AS51: 17 | AT51: - | AW51: 17 | AX51: - | AY51: 7 | AZ51: - | BA51: 1
C52: 18 | D52: 1 | E52: 27 | F52: 3 | G52: 30 | H52: 0 | I52: 0 | J52: 0 | K52: 0 | L52: 1 | M52: 0 | N52: 0 | O52: 1 | P52: 0 | Q52: 3 | R52: 0 | S52: 3 | T52: 30 | W52: 7 | X52: 3 | Y52: 24 | Z52: 13 | AB52: 18 | AI52: 18 | AJ52: - | AM52: 18 | AN52: - | AQ52: 18 | AR52: - | AS52: 52 | AT52: - | AW52: 18 | AX52: - | AY52: 5 | AZ52: - | BA52: 1
C53: 19 | D53: 2 | E53: 2 | F53: 3 | G53: 0 | H53: 0 | I53: 0 | J53: 0 | K53: 0 | L53: 1 | M53: 0 | N53: 0 | O53: 1 | P53: 0 | Q53: 0 | R53: 0 | S53: 0 | T53: 0 | W53: 7 | X53: 4 | Y53: 25 | Z53: 13 | AB53: 19 | AI53: 19 | AJ53: 4 | AM53: 19 | AN53: 3 | AQ53: 19 | AR53: - | AS53: 7 | AT53: 39 | AW53: 19 | AX53: - | AY53: 3 | AZ53: 1 | BA53: 1
C54: 20 | D54: 1 | E54: 54 | F54: 1 | G54: 0 | H54: 0 | I54: 0 | J54: 0 | K54: 0 | L54: 1 | M54: 0 | N54: 0 | O54: 0 | P54: 0 | Q54: 0 | R54: 2 | S54: 0 | T54: 0 | W54: 7 | X54: 5 | Y54: 25 | Z54: 15 | AB54: 20 | AI54: 20 | AJ54: - | AM54: 20 | AN54: - | AQ54: 20 | AR54: - | AS54: 11 | AT54: - | AW54: 20 | AX54: - | AY54: 8 | AZ54: - | BA54: 1
C55: 21 | D55: 1 | E55: 10 | F55: 2 | G55: 0 | H55: 0 | I55: 0 | J55: 0 | K55: 0 | L55: 0 | M55: 0 | N55: 0 | O55: 2 | P55: 0 | Q55: 0 | R55: 2 | S55: 0 | T55: 0 | W55: 7 | X55: 5 | Y55: 27 | Z55: 17 | AB55: 21 | AI55: 21 | AJ55: - | AM55: 21 | AN55: - | AQ55: 21 | AR55: - | AS55: 24 | AT55: - | AW55: 21 | AX55: - | AY55: 4 | AZ55: - | BA55: 1
C56: 22 | D56: 2 | E56: 69 | F56: 7 | G56: 400 | H56: 0 | I56: 1 | J56: 0 | K56: 4 | L56: 0 | M56: 4 | N56: 0 | O56: 0 | P56: 0 | Q56: 0 | R56: 5 | S56: 0 | T56: 400 | W56: 8 | X56: 1 | Y56: 27 | Z56: 22 | AB56: 22 | AI56: 22 | AJ56: - | AM56: 22 | AN56: - | AQ56: 22 | AR56: - | AS56: 42 | AT56: - | AW56: 22 | AX56: - | AY56: 7 | AZ56: - | BA56: 1
C57: 23 | D57: 2 | E57: 60 | F57: 2 | G57: 0 | H57: 0 | I57: 0 | J57: 0 | K57: 0 | L57: 0 | M57: 0 | N57: 0 | O57: 2 | P57: 0 | Q57: 0 | R57: 5 | S57: 0 | T57: 0 | W57: 8 | X57: 1 | Y57: 29 | Z57: 27 | AB57: 23 | AI57: 23 | AJ57: 8 | AM57: 23 | AN57: 5 | AQ57: 23 | AR57: - | AS57: - | AT57: - | AW57: 23 | AX57: - | AY57: - | AZ57: -
C58: 24 | D58: 2 | E58: 3 | F58: 4 | G58: 0 | H58: 0 | I58: 0 | J58: 0 | K58: 0 | L58: 0 | M58: 0 | N58: 0 | O58: 3 | P58: 0 | Q58: 0 | R58: 0 | S58: 0 | T58: 0 | W58: 8 | X58: 1 | Y58: 32 | Z58: 27 | AB58: 24 | AI58: 24 | AJ58: - | AM58: 24 | AN58: - | AQ58: 24 | AR58: - | AS58: - | AT58: - | AW58: 24 | AX58: - | AY58: - | AZ58: -
C59: 25 | D59: 1 | E59: 44 | F59: 2 | G59: 0 | H59: 0 | I59: 0 | J59: 0 | K59: 0 | L59: 0 | M59: 0 | N59: 0 | O59: 2 | P59: 0 | Q59: 0 | R59: 2 | S59: 0 | T59: 0 | W59: 8 | X59: 1 | Y59: 34 | Z59: 29 | AB59: 25 | AI59: 25 | AJ59: 5 | AM59: 25 | AN59: 9 | AQ59: 25 | AR59: - | AS59: 16 | AT59: - | AW59: 25 | AX59: - | AY59: 2 | AZ59: - | BA59: 1
C60: 26 | D60: 1 | E60: 83 | F60: 8 | G60: 430 | H60: 0 | I60: 1 | J60: 0 | K60: 4 | L60: 0 | M60: 1 | N60: 6 | O60: 1 | P60: 6 | Q60: 3 | R60: 0 | S60: 3 | T60: 430 | W60: 9 | X60: 0 | Y60: 29 | Z60: 26 | AB60: 26 | AI60: 26 | AJ60: - | AM60: 26 | AN60: - | AQ60: 26 | AR60: - | AS60: 68 | AT60: - | AW60: 26 | AX60: - | AY60: 2 | AZ60: - | BA60: 1
C61: 27 | D61: 2 | E61: 85 | F61: 6 | G61: 350 | H61: 0 | I61: 1 | J61: 0 | K61: 3 | L61: 0 | M61: 0 | N61: 7 | O61: 0 | P61: 7 | Q61: 0 | R61: 0 | S61: 0 | T61: 350 | W61: 10 | X61: 0 | Y61: 22 | Z61: 26 | AB61: 27 | AD61: 1 | AI61: 27 | AJ61: - | AM61: 27 | AN61: - | AQ61: 27 | AR61: - | AS61: 9 | AT61: - | AW61: 27 | AX61: - | AY61: 2 | AZ61: - | BA61: 1
C62: 28 | D62: 2 | E62: 61 | F62: 4 | G62: 0 | H62: 0 | I62: 0 | J62: 0 | K62: 0 | L62: 0 | M62: 0 | N62: 0 | O62: 3 | P62: 0 | Q62: 0 | R62: 0 | S62: 0 | T62: 0 | W62: 10 | X62: 0 | Y62: 25 | Z62: 26 | AB62: 28 | AI62: 28 | AJ62: - | AM62: 28 | AN62: - | AQ62: 28 | AR62: - | AS62: 8 | AT62: 16 | AW62: 28 | AX62: - | AY62: 4 | AZ62: 3 | BA62: 1
C63: 29 | D63: 1 | E63: 60 | F63: 4 | G63: 30 | H63: 0 | I63: 0 | J63: 0 | K63: 0 | L63: 0 | M63: 0 | N63: 0 | O63: 3 | P63: 0 | Q63: 3 | R63: 0 | S63: 3 | T63: 30 | W63: 10 | X63: 0 | Y63: 28 | Z63: 23 | AB63: 29 | AI63: 29 | AJ63: - | AM63: 29 | AN63: - | AQ63: 29 | AR63: - | AS63: 64 | AT63: - | AW63: 29 | AX63: - | AY63: 1 | AZ63: - | BA63: 1
C64: 30 | D64: 1 | E64: 61 | F64: 4 | G64: 30 | H64: 0 | I64: 0 | J64: 0 | K64: 0 | L64: 0 | M64: 0 | N64: 0 | O64: 3 | P64: 0 | Q64: 3 | R64: 0 | S64: 3 | T64: 30 | W64: 10 | X64: 0 | Y64: 31 | Z64: 20 | AB64: 30 | AI64: 30 | AJ64: - | AM64: 30 | AN64: - | AQ64: 30 | AR64: - | AS64: 55 | AT64: - | AW64: 30 | AX64: - | AY64: 2 | AZ64: - | BA64: 1
C65: 31 | D65: 1 | E65: 5 | F65: 1 | G65: 0 | H65: 0 | I65: 0 | J65: 0 | K65: 0 | L65: 1 | M65: 0 | N65: 0 | O65: 0 | P65: 0 | Q65: 0 | R65: 2 | S65: 0 | T65: 0 | W65: 10 | X65: 1 | Y65: 31 | Z65: 22 | AB65: 31 | AI65: 31 | AJ65: 4 | AM65: 31 | AN65: 5 | AQ65: 31 | AR65: - | AS65: 14 | AT65: 17 | AW65: 31 | AX65: - | AY65: 3 | AZ65: 2 | BA65: 1
C66: 32 | D66: 1 | E66: 41 | F66: 4 | G66: 30 | H66: 0 | I66: 0 | J66: 0 | K66: 0 | L66: 0 | M66: 0 | N66: 0 | O66: 3 | P66: 0 | Q66: 3 | R66: 0 | S66: 3 | T66: 30 | W66: 10 | X66: 1 | Y66: 34 | Z66: 19 | AB66: 32 | AI66: 32 | AJ66: - | AM66: 32 | AN66: - | AQ66: 32 | AR66: - | AS66: 34 | AT66: - | AW66: 32 | AX66: - | AY66: 2 | AZ66: - | BA66: 1
C67: 33 | D67: =IF(C67>$E$27,"",RANDBETWEEN(1,2)) -> 2 | E67: =IF(C67>$E$27,"",RANDBETWEEN(1,$E$27)) -> 56 | F67: =IF(C67>$E$27,"",IF(E67<=63,RANDBETWEEN(1,4),IF(AND(E67>=64,E67<=85),RANDBETWEEN(5,8),RANDBETWEEN(9,13)))) -> 1 | G67: =IF(C67>$E$27,"",IF(D67=1,VLOOKUP(F67,$C$9:$O$21,5),VLOOKUP(F67,$S$9:$AE$21,5))) -> 0 | H67: =IF(C67>$E$27,"",IF(D67=1,VLOOKUP(F67,$C$9:$O$21,6),VLOOKUP(F67,$S$9:$AE$21,6))) -> 0 | I67: =IF(C67>$E$27,"",IF(D67=1,VLOOKUP(F67,$C$9:$O$21,10),VLOOKUP(F67,$S$9:$AE$21,10))) -> 0 | J67: =IF(C67>$E$27,"",IF(AND(H67=1,W66 >=1),1,0)) -> 0 | K67: =IF(C67>$E$27,"",IF(AND(D67=1,J67<H67),5+VLOOKUP(F67,$C$9:$O$21,7),IF(AND(D67=1,J67>=H67),VLOOKUP(F67,$C$9:$O$21,7),IF(AND(D67=2,J67<H67),5+VLOOKUP(F67,$S$9:$AE$21,7),VLOOKUP(F67,$S$9:$AE$21,7))))) -> 0 | L67: =IF(C67>$E$27,"",IF(D67=1,VLOOKUP(F67,$C$9:$O$21,11),VLOOKUP(F67,$S$9:$AE$21,11))) -> 1 | M67: =IF(C67>$E$27,"",IF(AND(K67>0,X66+L67>=K67),K67,IF(AND(K67>0,X66+L67<K67),X66+L67,0))) -> 0 | N67: =IF(C67>$E$27,"",IF(AND(D67=1,M67<K67),(K67-M67)*2+VLOOKUP(F67,$C$9:$O$21,8),IF(AND(D67=1,M67>=K67),VLOOKUP(F67,$C$9:$O$21,8),IF(AND(D67=2,M67<K67),(K67-M67)*2+VLOOKUP(F67,$S$9:$AE$21,8),VLOOKUP(F67,$S$9:$AE$21,8))))) -> 0 | O67: =IF(C67>$E$27,"",IF(D67=1,VLOOKUP(F67,$C$9:$O$21,12),VLOOKUP(F67,$S$9:$AE$21,12))) -> 0 | P67: =IF(C67>$E$27,"",IF(AND(N67>0,Y66+O67>=N67),N67,IF(AND(N67>0,Y66+O67<N67),Y66+O67,0))) -> 0 | Q67: =IF(C67>$E$27,"",IF(AND(D67=1,P67<N67),(N67-P67)*5+VLOOKUP(F67,$C$9:$O$21,9),IF(AND(D67=1,P67>=N67),VLOOKUP(F67,$C$9:$O$21,9),IF(AND(D67=2,P67<N67),(N67-P67)*5+VLOOKUP(F67,$S$9:$AE$21,9),VLOOKUP(F67,$S$9:$AE$21,9))))) -> 0 | R67: =IF(C67>$E$27,"",IF(D67=1,VLOOKUP(F67,$C$9:$O$21,13),VLOOKUP(F67,$S$9:$AE$21,13))) -> 5 | S67: =IF(C67>$E$27,"",IF(AND(Q67>0,Z66+R67>=Q67),Q67,IF(AND(Q67>0, Z66+R67<Q67),Z66+R67,0))) -> 0 | T67: =IF(C67>$E$27,"",(J67*500)+(M67*100)+(P67*50)+(S67*10)) -> 0 | U67: =IF(C67>$E$27,"",IF(G67>T67,"×","")) ->  | W67: =IF($C67>$E$27,"",IF($U67="×",W66,IF(J67>0,W66+I67-J67,IF(W66+I67>$J$26,$J$26,W66+I67)))) -> 10 | X67: =IF($C67>$E$27,"",IF($U67="×",X66,IF(M67>0,X66+L67-M67,IF(X66+L67>$M$26,$M$26,X66+L67)))) -> 2 | Y67: =IF($C67>$E$27,"",IF($U67="×",Y66,IF(P67>0,Y66+O67-P67,IF(Y66+O67>$P$26,$P$26,Y66+O67)))) -> 34 | Z67: =IF($C67>$E$27,"",IF($U67="×",Z66,IF(S67>0,Z66+R67-S67,IF(Z66+R67>$S$26,$S$26,Z66+R67)))) -> 24 | AB67: 33 | AC67: =IF(AB67>$E$27,"",IF(AND(U67<>"×",M67>=$AC$34),1,"")) ->  | AD67: =IF(AB67>$E$27,"",IF(AND(U67<>"×",P67>=$AD$34),1,"")) ->  | AE67: =IF(AB67>$E$27,"",IF(AND(U67<>"×",S67>=$AE$34),1,"")) ->  | AI67: 33 | AJ67: - | AM67: 33 | AN67: - | AQ67: 33 | AR67: - | AS67: 21 | AT67: - | AW67: 33 | AX67: - | AY67: 7 | AZ67: - | BA67: =IF(SUM(AX67:AZ67)>0,1,"") -> 1
C68: 34 | D68: 1 | E68: 11 | F68: 2 | G68: 0 | H68: 0 | I68: 0 | J68: 0 | K68: 0 | L68: 0 | M68: 0 | N68: 0 | O68: 2 | P68: 0 | Q68: 0 | R68: 2 | S68: 0 | T68: 0 | W68: 10 | X68: 2 | Y68: 36 | Z68: 26 | AB68: 34 | AI68: 34 | AJ68: - | AM68: 34 | AN68: - | AQ68: 34 | AR68: - | AS68: 28 | AT68: - | AW68: 34 | AX68: - | AY68: 2 | AZ68: - | BA68: 1
C69: 35 | D69: 2 | E69: 88 | F69: 9 | G69: 0 | H69: 0 | I69: 0 | J69: 0 | K69: 0 | L69: 0 | M69: 0 | N69: 0 | O69: 1 | P69: 0 | Q69: 0 | R69: 10 | S69: 0 | T69: 0 | W69: 10 | X69: 2 | Y69: 37 | Z69: 36 | AB69: 35 | AI69: 35 | AJ69: - | AM69: 35 | AN69: - | AQ69: 35 | AR69: - | AS69: 6 | AT69: - | AW69: 35 | AX69: - | AY69: 8 | AZ69: - | BA69: 1
C70: 36 | D70: 1 | E70: 6 | F70: 3 | G70: 30 | H70: 0 | I70: 0 | J70: 0 | K70: 0 | L70: 1 | M70: 0 | N70: 0 | O70: 1 | P70: 0 | Q70: 3 | R70: 0 | S70: 3 | T70: 30 | W70: 10 | X70: 3 | Y70: 38 | Z70: 33 | AB70: 36 | AI70: 36 | AJ70: 14 | AM70: 36 | AN70: 12 | AQ70: 36 | AR70: - | AS70: 9 | AT70: 13 | AW70: 36 | AX70: - | AY70: 4 | AZ70: 1 | BA70: 1
C71: 37 | D71: 1 | E71: 39 | F71: 2 | G71: 0 | H71: 0 | I71: 0 | J71: 0 | K71: 0 | L71: 0 | M71: 0 | N71: 0 | O71: 2 | P71: 0 | Q71: 0 | R71: 2 | S71: 0 | T71: 0 | W71: 10 | X71: 3 | Y71: 40 | Z71: 35 | AB71: 37 | AI71: 37 | AJ71: - | AM71: 37 | AN71: - | AQ71: 37 | AR71: - | AS71: 50 | AT71: - | AW71: 37 | AX71: - | AY71: 4 | AZ71: - | BA71: 1
C72: 38 | D72: 1 | E72: 56 | F72: 2 | G72: 0 | H72: 0 | I72: 0 | J72: 0 | K72: 0 | L72: 0 | M72: 0 | N72: 0 | O72: 2 | P72: 0 | Q72: 0 | R72: 2 | S72: 0 | T72: 0 | W72: 10 | X72: 3 | Y72: 42 | Z72: 37 | AB72: 38 | AI72: 38 | AJ72: - | AM72: 38 | AN72: - | AQ72: 38 | AR72: - | AS72: 58 | AT72: - | AW72: 38 | AX72: - | AY72: 1 | AZ72: - | BA72: 1
C73: 39 | D73: 1 | E73: 13 | F73: 4 | G73: 30 | H73: 0 | I73: 0 | J73: 0 | K73: 0 | L73: 0 | M73: 0 | N73: 0 | O73: 3 | P73: 0 | Q73: 3 | R73: 0 | S73: 3 | T73: 30 | W73: 10 | X73: 3 | Y73: 45 | Z73: 34 | AB73: 39 | AI73: 39 | AJ73: - | AM73: 39 | AN73: - | AQ73: 39 | AR73: - | AS73: 33 | AT73: - | AW73: 39 | AX73: - | AY73: 2 | AZ73: - | BA73: 1
C74: 40 | D74: 1 | E74: 12 | F74: 1 | G74: 0 | H74: 0 | I74: 0 | J74: 0 | K74: 0 | L74: 1 | M74: 0 | N74: 0 | O74: 0 | P74: 0 | Q74: 0 | R74: 2 | S74: 0 | T74: 0 | W74: 10 | X74: 4 | Y74: 45 | Z74: 36 | AB74: 40 | AI74: 40 | AJ74: 4 | AM74: 40 | AN74: 3 | AQ74: 40 | AR74: - | AS74: 36 | AT74: 83 | AW74: 40 | AX74: - | AY74: 6 | AZ74: 2 | BA74: 1
C75: 41 | D75: 1 | E75: 25 | F75: 2 | G75: 0 | H75: 0 | I75: 0 | J75: 0 | K75: 0 | L75: 0 | M75: 0 | N75: 0 | O75: 2 | P75: 0 | Q75: 0 | R75: 2 | S75: 0 | T75: 0 | W75: 10 | X75: 4 | Y75: 47 | Z75: 38 | AB75: 41 | AI75: 41 | AJ75: - | AM75: 41 | AN75: - | AQ75: 41 | AR75: - | AS75: 16 | AT75: - | AW75: 41 | AX75: - | AY75: 6 | AZ75: - | BA75: 1
C76: 42 | D76: 1 | E76: 4 | F76: 4 | G76: 30 | H76: 0 | I76: 0 | J76: 0 | K76: 0 | L76: 0 | M76: 0 | N76: 0 | O76: 3 | P76: 0 | Q76: 3 | R76: 0 | S76: 3 | T76: 30 | W76: 10 | X76: 4 | Y76: 50 | Z76: 35 | AB76: 42 | AI76: 42 | AJ76: - | AM76: 42 | AN76: - | AQ76: 42 | AR76: - | AS76: 16 | AT76: - | AW76: 42 | AX76: - | AY76: 4 | AZ76: - | BA76: 1
C77: 43 | D77: 2 | E77: 71 | F77: 5 | G77: 50 | H77: 0 | I77: 0 | J77: 0 | K77: 0 | L77: 2 | M77: 0 | N77: 1 | O77: 0 | P77: 1 | Q77: 0 | R77: 0 | S77: 0 | T77: 50 | W77: 10 | X77: 6 | Y77: 49 | Z77: 35 | AB77: 43 | AI77: 43 | AJ77: - | AM77: 43 | AN77: - | AQ77: 43 | AR77: - | AS77: 18 | AT77: 22 | AW77: 43 | AX77: - | AY77: 1 | AZ77: 1 | BA77: 1
C78: 44 | D78: 1 | E78: 20 | F78: 4 | G78: 30 | H78: 0 | I78: 0 | J78: 0 | K78: 0 | L78: 0 | M78: 0 | N78: 0 | O78: 3 | P78: 0 | Q78: 3 | R78: 0 | S78: 3 | T78: 30 | W78: 10 | X78: 6 | Y78: 52 | Z78: 32 | AB78: 44 | AI78: 44 | AJ78: - | AM78: 44 | AN78: - | AQ78: 44 | AR78: - | AS78: 9 | AT78: - | AW78: 44 | AX78: - | AY78: 5 | AZ78: - | BA78: 1
C79: 45 | D79: 2 | E79: 40 | F79: 2 | G79: 0 | H79: 0 | I79: 0 | J79: 0 | K79: 0 | L79: 0 | M79: 0 | N79: 0 | O79: 2 | P79: 0 | Q79: 0 | R79: 5 | S79: 0 | T79: 0 | W79: 10 | X79: 6 | Y79: 54 | Z79: 37 | AB79: 45 | AI79: 45 | AJ79: - | AM79: 45 | AN79: - | AQ79: 45 | AR79: - | AS79: 11 | AT79: - | AW79: 45 | AX79: - | AY79: 2 | AZ79: - | BA79: 1
C80: 46 | D80: 2 | E80: 6 | F80: 4 | G80: 0 | H80: 0 | I80: 0 | J80: 0 | K80: 0 | L80: 0 | M80: 0 | N80: 0 | O80: 3 | P80: 0 | Q80: 0 | R80: 0 | S80: 0 | T80: 0 | W80: 10 | X80: 6 | Y80: 57 | Z80: 37 | AB80: 46 | AI80: 46 | AJ80: - | AM80: 46 | AN80: - | AQ80: 46 | AR80: - | AS80: 47 | AT80: - | AW80: 46 | AX80: - | AY80: 4 | AZ80: - | BA80: 1
C81: 47 | D81: 2 | E81: 70 | F81: 5 | G81: 50 | H81: 0 | I81: 0 | J81: 0 | K81: 0 | L81: 2 | M81: 0 | N81: 1 | O81: 0 | P81: 1 | Q81: 0 | R81: 0 | S81: 0 | T81: 50 | W81: 10 | X81: 8 | Y81: 56 | Z81: 37 | AB81: 47 | AI81: 47 | AJ81: - | AM81: 47 | AN81: - | AQ81: 47 | AR81: - | AS81: 24 | AT81: - | AW81: 47 | AX81: - | AY81: 4 | AZ81: - | BA81: 1
C82: 48 | D82: 2 | E82: 6 | F82: 4 | G82: 0 | H82: 0 | I82: 0 | J82: 0 | K82: 0 | L82: 0 | M82: 0 | N82: 0 | O82: 3 | P82: 0 | Q82: 0 | R82: 0 | S82: 0 | T82: 0 | W82: 10 | X82: 8 | Y82: 59 | Z82: 37 | AB82: 48 | AI82: 48 | AJ82: 56 | AM82: 48 | AN82: 1 | AQ82: 48 | AR82: - | AS82: 9 | AT82: 53 | AW82: 48 | AX82: - | AY82: 8 | AZ82: 2 | BA82: 1
C83: 49 | D83: 2 | E83: 88 | F83: 13 | G83: 900 | H83: 1 | I83: 0 | J83: 1 | K83: 4 | L83: 0 | M83: 4 | N83: 0 | O83: 1 | P83: 0 | Q83: 0 | R83: 0 | S83: 0 | T83: 900 | W83: 9 | X83: 4 | Y83: 60 | Z83: 37 | AB83: 49 | AI83: 49 | AJ83: 15 | AM83: 49 | AN83: 3 | AQ83: 49 | AR83: - | AS83: 61 | AT83: - | AW83: 49 | AX83: - | AY83: 3 | AZ83: - | BA83: 1
C84: 50 | D84: 2 | E84: 9 | F84: 2 | G84: 0 | H84: 0 | I84: 0 | J84: 0 | K84: 0 | L84: 0 | M84: 0 | N84: 0 | O84: 2 | P84: 0 | Q84: 0 | R84: 5 | S84: 0 | T84: 0 | W84: 9 | X84: 4 | Y84: 62 | Z84: 42 | AB84: 50 | AI84: 50 | AJ84: - | AM84: 50 | AN84: - | AQ84: 50 | AR84: - | AS84: 55 | AT84: - | AW84: 50 | AX84: - | AY84: 7 | AZ84: - | BA84: 1
C85: 51 | D85: 2 | E85: 64 | F85: 8 | G85: 400 | H85: 0 | I85: 1 | J85: 0 | K85: 4 | L85: 0 | M85: 4 | N85: 0 | O85: 1 | P85: 0 | Q85: 0 | R85: 0 | S85: 0 | T85: 400 | W85: 10 | X85: 0 | Y85: 63 | Z85: 42 | AB85: 51 | AI85: 51 | AJ85: - | AM85: 51 | AN85: - | AQ85: 51 | AR85: - | AS85: 80 | AT85: - | AW85: 51 | AX85: - | AY85: 1 | AZ85: - | BA85: 1
C86: 52 | D86: 1 | E86: 27 | F86: 1 | G86: 0 | H86: 0 | I86: 0 | J86: 0 | K86: 0 | L86: 1 | M86: 0 | N86: 0 | O86: 0 | P86: 0 | Q86: 0 | R86: 2 | S86: 0 | T86: 0 | W86: 10 | X86: 1 | Y86: 63 | Z86: 44 | AB86: 52 | AI86: 52 | AJ86: 3 | AM86: 52 | AN86: 1 | AQ86: 52 | AR86: - | AS86: 53 | AT86: - | AW86: 52 | AX86: - | AY86: 2 | AZ86: - | BA86: 1
C87: 53 | D87: 1 | E87: 38 | F87: 3 | G87: 30 | H87: 0 | I87: 0 | J87: 0 | K87: 0 | L87: 1 | M87: 0 | N87: 0 | O87: 1 | P87: 0 | Q87: 3 | R87: 0 | S87: 3 | T87: 30 | W87: 10 | X87: 2 | Y87: 64 | Z87: 41 | AB87: 53 | AI87: 53 | AJ87: - | AM87: 53 | AN87: - | AQ87: 53 | AR87: - | AS87: - | AT87: - | AW87: 53 | AX87: - | AY87: - | AZ87: -
C88: 54 | D88: 1 | E88: 87 | F88: 10 | G88: 0 | H88: 0 | I88: 0 | J88: 0 | K88: 0 | L88: 0 | M88: 0 | N88: 0 | O88: 0 | P88: 0 | Q88: 0 | R88: 12 | S88: 0 | T88: 0 | W88: 10 | X88: 2 | Y88: 64 | Z88: 53 | AB88: 54 | AI88: 54 | AJ88: 14 | AM88: 54 | AN88: 1 | AQ88: 54 | AR88: - | AS88: 12 | AT88: - | AW88: 54 | AX88: - | AY88: 4 | AZ88: - | BA88: 1
C89: 55 | D89: 2 | E89: 50 | F89: 2 | G89: 0 | H89: 0 | I89: 0 | J89: 0 | K89: 0 | L89: 0 | M89: 0 | N89: 0 | O89: 2 | P89: 0 | Q89: 0 | R89: 5 | S89: 0 | T89: 0 | W89: 10 | X89: 2 | Y89: 66 | Z89: 58 | AB89: 55 | AI89: 55 | AJ89: 4 | AM89: 55 | AN89: 4 | AQ89: 55 | AR89: - | AS89: 15 | AT89: - | AW89: 55 | AX89: - | AY89: 3 | AZ89: - | BA89: 1
C90: 56 | D90: 1 | E90: 86 | F90: 12 | G90: 900 | H90: 1 | I90: 0 | J90: 1 | K90: 4 | L90: 0 | M90: 2 | N90: 4 | O90: 0 | P90: 4 | Q90: 0 | R90: 2 | S90: 0 | T90: 900 | W90: 9 | X90: 0 | Y90: 62 | Z90: 60 | AB90: 56 | AI90: 56 | AJ90: 27 | AM90: 56 | AN90: 5 | AQ90: 56 | AR90: - | AS90: 23 | AT90: 26 | AW90: 56 | AX90: - | AY90: 3 | AZ90: 4 | BA90: 1
C91: 57 | D91: 2 | E91: 34 | F91: 1 | G91: 0 | H91: 0 | I91: 0 | J91: 0 | K91: 0 | L91: 1 | M91: 0 | N91: 0 | O91: 0 | P91: 0 | Q91: 0 | R91: 5 | S91: 0 | T91: 0 | W91: 9 | X91: 1 | Y91: 62 | Z91: 65 | AB91: 57 | AI91: 57 | AJ91: - | AM91: 57 | AN91: - | AQ91: 57 | AR91: - | AS91: 58 | AT91: - | AW91: 57 | AX91: - | AY91: 3 | AZ91: - | BA91: 1
C92: 58 | D92: 1 | E92: 23 | F92: 1 | G92: 0 | H92: 0 | I92: 0 | J92: 0 | K92: 0 | L92: 1 | M92: 0 | N92: 0 | O92: 0 | P92: 0 | Q92: 0 | R92: 2 | S92: 0 | T92: 0 | W92: 9 | X92: 2 | Y92: 62 | Z92: 67 | AB92: 58 | AI92: 58 | AJ92: - | AM92: 58 | AN92: - | AQ92: 58 | AR92: - | AS92: 31 | AT92: - | AW92: 58 | AX92: - | AY92: 4 | AZ92: - | BA92: 1
C93: 59 | D93: 1 | E93: 7 | F93: 3 | G93: 30 | H93: 0 | I93: 0 | J93: 0 | K93: 0 | L93: 1 | M93: 0 | N93: 0 | O93: 1 | P93: 0 | Q93: 3 | R93: 0 | S93: 3 | T93: 30 | W93: 9 | X93: 3 | Y93: 63 | Z93: 64 | AB93: 59 | AI93: 59 | AJ93: 12 | AM93: 59 | AN93: 1 | AQ93: 59 | AR93: - | AS93: 11 | AT93: - | AW93: 59 | AX93: - | AY93: 2 | AZ93: - | BA93: 1
C94: 60 | D94: 2 | E94: 36 | F94: 2 | G94: 0 | H94: 0 | I94: 0 | J94: 0 | K94: 0 | L94: 0 | M94: 0 | N94: 0 | O94: 2 | P94: 0 | Q94: 0 | R94: 5 | S94: 0 | T94: 0 | W94: 9 | X94: 3 | Y94: 65 | Z94: 69 | AB94: 60 | AI94: 60 | AJ94: - | AM94: 60 | AN94: - | AQ94: 60 | AR94: - | AS94: 7 | AT94: 76 | AW94: 60 | AX94: - | AY94: 4 | AZ94: 3 | BA94: 1
C95: 61 | D95: 2 | E95: 73 | F95: 7 | G95: 400 | H95: 0 | I95: 1 | J95: 0 | K95: 4 | L95: 0 | M95: 3 | N95: 2 | O95: 0 | P95: 2 | Q95: 0 | R95: 5 | S95: 0 | T95: 400 | W95: 10 | X95: 0 | Y95: 63 | Z95: 74 | AB95: 61 | AI95: 61 | AJ95: 4 | AM95: 61 | AN95: 2 | AQ95: 61 | AR95: - | AS95: 38 | AT95: 68 | AW95: 61 | AX95: - | AY95: 5 | AZ95: 1 | BA95: 1
C96: 62 | D96: 2 | E96: 48 | F96: 4 | G96: 0 | H96: 0 | I96: 0 | J96: 0 | K96: 0 | L96: 0 | M96: 0 | N96: 0 | O96: 3 | P96: 0 | Q96: 0 | R96: 0 | S96: 0 | T96: 0 | W96: 10 | X96: 0 | Y96: 66 | Z96: 74 | AB96: 62 | AI96: 62 | AJ96: 11 | AM96: 62 | AN96: 3 | AQ96: 62 | AR96: - | AS96: 7 | AT96: 21 | AW96: 62 | AX96: - | AY96: 2 | AZ96: 1 | BA96: 1
C97: 63 | D97: 2 | E97: 11 | F97: 4 | G97: 0 | H97: 0 | I97: 0 | J97: 0 | K97: 0 | L97: 0 | M97: 0 | N97: 0 | O97: 3 | P97: 0 | Q97: 0 | R97: 0 | S97: 0 | T97: 0 | W97: 10 | X97: 0 | Y97: 69 | Z97: 74 | AB97: 63 | AI97: 63 | AJ97: - | AM97: 63 | AN97: - | AQ97: 63 | AR97: - | AS97: 37 | AT97: - | AW97: 63 | AX97: - | AY97: 3 | AZ97: - | BA97: 1
C98: 64 | D98: 2 | E98: 73 | F98: 8 | G98: 400 | H98: 0 | I98: 1 | J98: 0 | K98: 4 | L98: 0 | M98: 0 | N98: 8 | O98: 1 | P98: 8 | Q98: 0 | R98: 0 | S98: 0 | T98: 400 | W98: 11 | X98: 0 | Y98: 62 | Z98: 74 | AB98: 64 | AD98: 1 | AI98: 64 | AJ98: 3 | AM98: 64 | AN98: 5 | AQ98: 64 | AR98: - | AS98: 34 | AT98: - | AW98: 64 | AX98: - | AY98: 6 | AZ98: - | BA98: 1
C99: 65 | D99: =IF(C99>$E$27,"",RANDBETWEEN(1,2)) -> 1 | E99: =IF(C99>$E$27,"",RANDBETWEEN(1,$E$27)) -> 3 | F99: =IF(C99>$E$27,"",IF(E99<=63,RANDBETWEEN(1,4),IF(AND(E99>=64,E99<=85),RANDBETWEEN(5,8),RANDBETWEEN(9,13)))) -> 1 | G99: =IF(C99>$E$27,"",IF(D99=1,VLOOKUP(F99,$C$9:$O$21,5),VLOOKUP(F99,$S$9:$AE$21,5))) -> 0 | H99: =IF(C99>$E$27,"",IF(D99=1,VLOOKUP(F99,$C$9:$O$21,6),VLOOKUP(F99,$S$9:$AE$21,6))) -> 0 | I99: =IF(C99>$E$27,"",IF(D99=1,VLOOKUP(F99,$C$9:$O$21,10),VLOOKUP(F99,$S$9:$AE$21,10))) -> 0 | J99: =IF(C99>$E$27,"",IF(AND(H99=1,W98 >=1),1,0)) -> 0 | K99: =IF(C99>$E$27,"",IF(AND(D99=1,J99<H99),5+VLOOKUP(F99,$C$9:$O$21,7),IF(AND(D99=1,J99>=H99),VLOOKUP(F99,$C$9:$O$21,7),IF(AND(D99=2,J99<H99),5+VLOOKUP(F99,$S$9:$AE$21,7),VLOOKUP(F99,$S$9:$AE$21,7))))) -> 0 | L99: =IF(C99>$E$27,"",IF(D99=1,VLOOKUP(F99,$C$9:$O$21,11),VLOOKUP(F99,$S$9:$AE$21,11))) -> 1 | M99: =IF(C99>$E$27,"",IF(AND(K99>0,X98+L99>=K99),K99,IF(AND(K99>0,X98+L99<K99),X98+L99,0))) -> 0 | N99: =IF(C99>$E$27,"",IF(AND(D99=1,M99<K99),(K99-M99)*2+VLOOKUP(F99,$C$9:$O$21,8),IF(AND(D99=1,M99>=K99),VLOOKUP(F99,$C$9:$O$21,8),IF(AND(D99=2,M99<K99),(K99-M99)*2+VLOOKUP(F99,$S$9:$AE$21,8),VLOOKUP(F99,$S$9:$AE$21,8))))) -> 0 | O99: =IF(C99>$E$27,"",IF(D99=1,VLOOKUP(F99,$C$9:$O$21,12),VLOOKUP(F99,$S$9:$AE$21,12))) -> 0 | P99: =IF(C99>$E$27,"",IF(AND(N99>0,Y98+O99>=N99),N99,IF(AND(N99>0,Y98+O99<N99),Y98+O99,0))) -> 0 | Q99: =IF(C99>$E$27,"",IF(AND(D99=1,P99<N99),(N99-P99)*5+VLOOKUP(F99,$C$9:$O$21,9),IF(AND(D99=1,P99>=N99),VLOOKUP(F99,$C$9:$O$21,9),IF(AND(D99=2,P99<N99),(N99-P99)*5+VLOOKUP(F99,$S$9:$AE$21,9),VLOOKUP(F99,$S$9:$AE$21,9))))) -> 0 | R99: =IF(C99>$E$27,"",IF(D99=1,VLOOKUP(F99,$C$9:$O$21,13),VLOOKUP(F99,$S$9:$AE$21,13))) -> 2 | S99: =IF(C99>$E$27,"",IF(AND(Q99>0,Z98+R99>=Q99),Q99,IF(AND(Q99>0, Z98+R99<Q99),Z98+R99,0))) -> 0 | T99: =IF(C99>$E$27,"",(J99*500)+(M99*100)+(P99*50)+(S99*10)) -> 0 | U99: =IF(C99>$E$27,"",IF(G99>T99,"×","")) ->  | W99: =IF($C99>$E$27,"",IF($U99="×",W98,IF(J99>0,W98+I99-J99,IF(W98+I99>$J$26,$J$26,W98+I99)))) -> 11 | X99: =IF($C99>$E$27,"",IF($U99="×",X98,IF(M99>0,X98+L99-M99,IF(X98+L99>$M$26,$M$26,X98+L99)))) -> 1 | Y99: =IF($C99>$E$27,"",IF($U99="×",Y98,IF(P99>0,Y98+O99-P99,IF(Y98+O99>$P$26,$P$26,Y98+O99)))) -> 62 | Z99: =IF($C99>$E$27,"",IF($U99="×",Z98,IF(S99>0,Z98+R99-S99,IF(Z98+R99>$S$26,$S$26,Z98+R99)))) -> 76 | AB99: 65 | AC99: =IF(AB99>$E$27,"",IF(AND(U99<>"×",M99>=$AC$34),1,"")) ->  | AD99: =IF(AB99>$E$27,"",IF(AND(U99<>"×",P99>=$AD$34),1,"")) ->  | AE99: =IF(AB99>$E$27,"",IF(AND(U99<>"×",S99>=$AE$34),1,"")) ->  | AI99: 65 | AJ99: 7 | AM99: 65 | AN99: 2 | AQ99: 65 | AR99: - | AS99: 36 | AT99: - | AW99: 65 | AX99: - | AY99: 6 | AZ99: - | BA99: =IF(SUM(AX99:AZ99)>0,1,"") -> 1
C100: 66 | D100: 1 | E100: 37 | F100: 4 | G100: 30 | H100: 0 | I100: 0 | J100: 0 | K100: 0 | L100: 0 | M100: 0 | N100: 0 | O100: 3 | P100: 0 | Q100: 3 | R100: 0 | S100: 3 | T100: 30 | W100: 11 | X100: 1 | Y100: 65 | Z100: 73 | AB100: 66 | AI100: 66 | AJ100: - | AM100: 66 | AN100: - | AQ100: 66 | AR100: - | AS100: 53 | AT100: - | AW100: 66 | AX100: - | AY100: 1 | AZ100: - | BA100: 1
C101: 67 | D101: 2 | E101: 86 | F101: 12 | G101: 900 | H101: 1 | I101: 0 | J101: 1 | K101: 4 | L101: 0 | M101: 1 | N101: 6 | O101: 0 | P101: 6 | Q101: 0 | R101: 5 | S101: 0 | T101: 900 | W101: 10 | X101: 0 | Y101: 59 | Z101: 78 | AB101: 67 | AI101: 67 | AJ101: 2 | AM101: 67 | AN101: 3 | AQ101: 67 | AR101: - | AS101: 64 | AT101: - | AW101: 67 | AX101: - | AY101: 1 | AZ101: - | BA101: 1
C102: 68 | D102: 1 | E102: 82 | F102: 7 | G102: 400 | H102: 0 | I102: 1 | J102: 0 | K102: 4 | L102: 0 | M102: 0 | N102: 8 | O102: 0 | P102: 8 | Q102: 0 | R102: 2 | S102: 0 | T102: 400 | W102: 11 | X102: 0 | Y102: 51 | Z102: 80 | AB102: 68 | AD102: 1 | AI102: 68 | AJ102: 8 | AM102: 68 | AN102: 10 | AQ102: 68 | AR102: - | AS102: 15 | AT102: 34 | AW102: 68 | AX102: - | AY102: 3 | AZ102: 4 | BA102: 1
C103: 69 | D103: 2 | E103: 23 | F103: 4 | G103: 0 | H103: 0 | I103: 0 | J103: 0 | K103: 0 | L103: 0 | M103: 0 | N103: 0 | O103: 3 | P103: 0 | Q103: 0 | R103: 0 | S103: 0 | T103: 0 | W103: 11 | X103: 0 | Y103: 54 | Z103: 80 | AB103: 69 | AI103: 69 | AJ103: 21 | AM103: 69 | AN103: 4 | AQ103: 69 | AR103: - | AS103: 18 | AT103: 20 | AW103: 69 | AX103: - | AY103: 3 | AZ103: 1 | BA103: 1
C104: 70 | D104: 2 | E104: 27 | F104: 4 | G104: 0 | H104: 0 | I104: 0 | J104: 0 | K104: 0 | L104: 0 | M104: 0 | N104: 0 | O104: 3 | P104: 0 | Q104: 0 | R104: 0 | S104: 0 | T104: 0 | W104: 11 | X104: 0 | Y104: 57 | Z104: 80 | AB104: 70 | AI104: 70 | AJ104: - | AM104: 70 | AN104: - | AQ104: 70 | AR104: - | AS104: 54 | AT104: - | AW104: 70 | AX104: - | AY104: 1 | AZ104: - | BA104: 1
C105: 71 | D105: 2 | E105: 48 | F105: 3 | G105: 0 | H105: 0 | I105: 0 | J105: 0 | K105: 0 | L105: 1 | M105: 0 | N105: 0 | O105: 1 | P105: 0 | Q105: 0 | R105: 0 | S105: 0 | T105: 0 | W105: 11 | X105: 1 | Y105: 58 | Z105: 80 | AB105: 71 | AI105: 71 | AJ105: 31 | AM105: 71 | AN105: 1 | AQ105: 71 | AR105: - | AS105: 16 | AT105: 18 | AW105: 71 | AX105: - | AY105: 3 | AZ105: 2 | BA105: 1
C106: 72 | D106: 2 | E106: 3 | F106: 2 | G106: 0 | H106: 0 | I106: 0 | J106: 0 | K106: 0 | L106: 0 | M106: 0 | N106: 0 | O106: 2 | P106: 0 | Q106: 0 | R106: 5 | S106: 0 | T106: 0 | W106: 11 | X106: 1 | Y106: 60 | Z106: 85 | AB106: 72 | AI106: 72 | AJ106: - | AM106: 72 | AN106: - | AQ106: 72 | AR106: - | AS106: 6 | AT106: - | AW106: 72 | AX106: - | AY106: 3 | AZ106: - | BA106: 1
C107: 73 | D107: 2 | E107: 24 | F107: 4 | G107: 0 | H107: 0 | I107: 0 | J107: 0 | K107: 0 | L107: 0 | M107: 0 | N107: 0 | O107: 3 | P107: 0 | Q107: 0 | R107: 0 | S107: 0 | T107: 0 | W107: 11 | X107: 1 | Y107: 63 | Z107: 85 | AB107: 73 | AI107: 73 | AJ107: 2 | AM107: 73 | AN107: 1 | AQ107: 73 | AR107: - | AS107: 58 | AT107: - | AW107: 73 | AX107: - | AY107: 2 | AZ107: - | BA107: 1
C108: 74 | D108: 2 | E108: 10 | F108: 4 | G108: 0 | H108: 0 | I108: 0 | J108: 0 | K108: 0 | L108: 0 | M108: 0 | N108: 0 | O108: 3 | P108: 0 | Q108: 0 | R108: 0 | S108: 0 | T108: 0 | W108: 11 | X108: 1 | Y108: 66 | Z108: 85 | AB108: 74 | AI108: 74 | AJ108: 82 | AM108: 74 | AN108: 1 | AQ108: 74 | AR108: - | AS108: 12 | AT108: 79 | AW108: 74 | AX108: - | AY108: 5 | AZ108: 2 | BA108: 1
C109: 75 | D109: 1 | E109: 18 | F109: 4 | G109: 30 | H109: 0 | I109: 0 | J109: 0 | K109: 0 | L109: 0 | M109: 0 | N109: 0 | O109: 3 | P109: 0 | Q109: 3 | R109: 0 | S109: 3 | T109: 30 | W109: 11 | X109: 1 | Y109: 69 | Z109: 82 | AB109: 75 | AI109: 75 | AJ109: 38 | AM109: 75 | AN109: 7 | AQ109: 75 | AR109: - | AS109: 23 | AT109: 33 | AW109: 75 | AX109: - | AY109: 3 | AZ109: 2 | BA109: 1
C110: 76 | D110: 1 | E110: 87 | F110: 13 | G110: 930 | H110: 1 | I110: 0 | J110: 1 | K110: 4 | L110: 0 | M110: 1 | N110: 6 | O110: 1 | P110: 6 | Q110: 3 | R110: 0 | S110: 3 | T110: 930 | W110: 10 | X110: 0 | Y110: 64 | Z110: 79 | AB110: 76 | AI110: 76 | AJ110: 2 | AM110: 76 | AN110: 1 | AQ110: 76 | AR110: - | AS110: - | AT110: - | AW110: 76 | AX110: - | AY110: - | AZ110: -
C111: 77 | D111: 1 | E111: 54 | F111: 3 | G111: 30 | H111: 0 | I111: 0 | J111: 0 | K111: 0 | L111: 1 | M111: 0 | N111: 0 | O111: 1 | P111: 0 | Q111: 3 | R111: 0 | S111: 3 | T111: 30 | W111: 10 | X111: 1 | Y111: 65 | Z111: 76 | AB111: 77 | AI111: 77 | AJ111: - | AM111: 77 | AN111: - | AQ111: 77 | AR111: - | AS111: 36 | AT111: - | AW111: 77 | AX111: - | AY111: 4 | AZ111: - | BA111: 1
C112: 78 | D112: 1 | E112: 33 | F112: 3 | G112: 30 | H112: 0 | I112: 0 | J112: 0 | K112: 0 | L112: 1 | M112: 0 | N112: 0 | O112: 1 | P112: 0 | Q112: 3 | R112: 0 | S112: 3 | T112: 30 | W112: 10 | X112: 2 | Y112: 66 | Z112: 73 | AB112: 78 | AI112: 78 | AJ112: 14 | AM112: 78 | AN112: 4 | AQ112: 78 | AR112: - | AS112: - | AT112: - | AW112: 78 | AX112: - | AY112: - | AZ112: -
C113: 79 | D113: 2 | E113: 77 | F113: 6 | G113: 350 | H113: 0 | I113: 1 | J113: 0 | K113: 3 | L113: 0 | M113: 2 | N113: 3 | O113: 0 | P113: 3 | Q113: 0 | R113: 0 | S113: 0 | T113: 350 | W113: 11 | X113: 0 | Y113: 63 | Z113: 73 | AB113: 79 | AI113: 79 | AJ113: 5 | AM113: 79 | AN113: 1 | AQ113: 79 | AR113: - | AS113: 26 | AT113: - | AW113: 79 | AX113: - | AY113: 3 | AZ113: - | BA113: 1
C114: 80 | D114: 2 | E114: 9 | F114: 3 | G114: 0 | H114: 0 | I114: 0 | J114: 0 | K114: 0 | L114: 1 | M114: 0 | N114: 0 | O114: 1 | P114: 0 | Q114: 0 | R114: 0 | S114: 0 | T114: 0 | W114: 11 | X114: 1 | Y114: 64 | Z114: 73 | AB114: 80 | AI114: 80 | AJ114: 2 | AM114: 80 | AN114: 8 | AQ114: 80 | AR114: - | AS114: 26 | AT114: 41 | AW114: 80 | AX114: - | AY114: 4 | AZ114: 2 | BA114: 1
C115: 81 | D115: 2 | E115: 54 | F115: 3 | G115: 0 | H115: 0 | I115: 0 | J115: 0 | K115: 0 | L115: 1 | M115: 0 | N115: 0 | O115: 1 | P115: 0 | Q115: 0 | R115: 0 | S115: 0 | T115: 0 | W115: 11 | X115: 2 | Y115: 65 | Z115: 73 | AB115: 81 | AI115: 81 | AJ115: 2 | AM115: 81 | AN115: 6 | AQ115: 81 | AR115: - | AS115: 26 | AT115: - | AW115: 81 | AX115: - | AY115: 5 | AZ115: - | BA115: 1
C116: 82 | D116: 2 | E116: 76 | F116: 5 | G116: 50 | H116: 0 | I116: 0 | J116: 0 | K116: 0 | L116: 2 | M116: 0 | N116: 1 | O116: 0 | P116: 1 | Q116: 0 | R116: 0 | S116: 0 | T116: 50 | W116: 11 | X116: 4 | Y116: 64 | Z116: 73 | AB116: 82 | AI116: 82 | AJ116: 22 | AM116: 82 | AN116: 8 | AQ116: 82 | AR116: - | AS116: 17 | AT116: 51 | AW116: 82 | AX116: - | AY116: 6 | AZ116: 3 | BA116: 1
C117: 83 | D117: 2 | E117: 47 | F117: 1 | G117: 0 | H117: 0 | I117: 0 | J117: 0 | K117: 0 | L117: 1 | M117: 0 | N117: 0 | O117: 0 | P117: 0 | Q117: 0 | R117: 5 | S117: 0 | T117: 0 | W117: 11 | X117: 5 | Y117: 64 | Z117: 78 | AB117: 83 | AI117: 83 | AJ117: - | AM117: 83 | AN117: - | AQ117: 83 | AR117: - | AS117: 31 | AT117: - | AW117: 83 | AX117: - | AY117: 2 | AZ117: - | BA117: 1
C118: 84 | D118: 2 | E118: 58 | F118: 4 | G118: 0 | H118: 0 | I118: 0 | J118: 0 | K118: 0 | L118: 0 | M118: 0 | N118: 0 | O118: 3 | P118: 0 | Q118: 0 | R118: 0 | S118: 0 | T118: 0 | W118: 11 | X118: 5 | Y118: 67 | Z118: 78 | AB118: 84 | AI118: 84 | AJ118: - | AM118: 84 | AN118: - | AQ118: 84 | AR118: - | AS118: 50 | AT118: - | AW118: 84 | AX118: - | AY118: 1 | AZ118: - | BA118: 1
C119: 85 | D119: 2 | E119: 12 | F119: 2 | G119: 0 | H119: 0 | I119: 0 | J119: 0 | K119: 0 | L119: 0 | M119: 0 | N119: 0 | O119: 2 | P119: 0 | Q119: 0 | R119: 5 | S119: 0 | T119: 0 | W119: 11 | X119: 5 | Y119: 69 | Z119: 83 | AB119: 85 | AI119: 85 | AJ119: - | AM119: 85 | AN119: - | AQ119: 85 | AR119: - | AS119: - | AT119: - | AW119: 85 | AX119: - | AY119: - | AZ119: -
C120: 86 | D120: 2 | E120: 3 | F120: 3 | G120: 0 | H120: 0 | I120: 0 | J120: 0 | K120: 0 | L120: 1 | M120: 0 | N120: 0 | O120: 1 | P120: 0 | Q120: 0 | R120: 0 | S120: 0 | T120: 0 | W120: 11 | X120: 6 | Y120: 70 | Z120: 83 | AB120: 86 | AI120: 86 | AJ120: - | AM120: 86 | AN120: - | AQ120: 86 | AR120: - | AS120: 26 | AT120: - | AW120: 86 | AX120: - | AY120: 6 | AZ120: - | BA120: 1
C121: 87 | D121: 1 | E121: 10 | F121: 2 | G121: 0 | H121: 0 | I121: 0 | J121: 0 | K121: 0 | L121: 0 | M121: 0 | N121: 0 | O121: 2 | P121: 0 | Q121: 0 | R121: 2 | S121: 0 | T121: 0 | W121: 11 | X121: 6 | Y121: 72 | Z121: 85 | AB121: 87 | AI121: 87 | AJ121: 3 | AM121: 87 | AN121: 3 | AQ121: 87 | AR121: - | AS121: - | AT121: - | AW121: 87 | AX121: - | AY121: - | AZ121: -
C122: 88 | D122: 1 | E122: 45 | F122: 4 | G122: 30 | H122: 0 | I122: 0 | J122: 0 | K122: 0 | L122: 0 | M122: 0 | N122: 0 | O122: 3 | P122: 0 | Q122: 3 | R122: 0 | S122: 3 | T122: 30 | W122: 11 | X122: 6 | Y122: 75 | Z122: 82 | AB122: 88 | AI122: 88 | AJ122: 19 | AM122: 88 | AN122: 7 | AQ122: 88 | AR122: - | AS122: 18 | AT122: 22 | AW122: 88 | AX122: - | AY122: 2 | AZ122: 2 | BA122: 1
C123: 89 | D123: 1 | E123: 46 | F123: 1 | G123: 0 | H123: 0 | I123: 0 | J123: 0 | K123: 0 | L123: 1 | M123: 0 | N123: 0 | O123: 0 | P123: 0 | Q123: 0 | R123: 2 | S123: 0 | T123: 0 | W123: 11 | X123: 7 | Y123: 75 | Z123: 84 | AB123: 89 | AI123: 89 | AJ123: - | AM123: 89 | AN123: - | AQ123: 89 | AR123: - | AS123: 29 | AT123: - | AW123: 89 | AX123: - | AY123: 4 | AZ123: - | BA123: 1
C124: 90 | D124: 2 | E124: 69 | F124: 5 | G124: 50 | H124: 0 | I124: 0 | J124: 0 | K124: 0 | L124: 2 | M124: 0 | N124: 1 | O124: 0 | P124: 1 | Q124: 0 | R124: 0 | S124: 0 | T124: 50 | W124: 11 | X124: 9 | Y124: 74 | Z124: 84 | AB124: 90 | AI124: 90 | AJ124: 7 | AM124: 90 | AN124: 4 | AQ124: 90 | AR124: - | AS124: 79 | AT124: - | AW124: 90 | AX124: - | AY124: 1 | AZ124: - | BA124: 1
C125: 91 | AB125: 91 | AI125: 91 | AJ125: 12 | AM125: 91 | AN125: 4 | AQ125: 91 | AR125: - | AS125: 10 | AT125: 15 | AW125: 91 | AX125: - | AY125: 5 | AZ125: 3 | BA125: 1
C126: 92 | AB126: 92 | AI126: 92 | AJ126: - | AM126: 92 | AN126: - | AQ126: 92 | AR126: - | AS126: 59 | AT126: - | AW126: 92 | AX126: - | AY126: 3 | AZ126: - | BA126: 1
C127: 93 | AB127: 93 | AI127: 93 | AJ127: - | AM127: 93 | AN127: - | AQ127: 93 | AR127: - | AS127: 25 | AT127: - | AW127: 93 | AX127: - | AY127: 2 | AZ127: - | BA127: 1
C128: 94 | AB128: 94 | AI128: 94 | AJ128: 2 | AM128: 94 | AN128: 2 | AQ128: 94 | AR128: - | AS128: 40 | AT128: 90 | AW128: 94 | AX128: - | AY128: 5 | AZ128: 1 | BA128: 1
C129: 95 | AB129: 95 | AI129: 95 | AJ129: 3 | AM129: 95 | AN129: 5 | AQ129: 95 | AR129: - | AS129: 21 | AT129: 38 | AW129: 95 | AX129: - | AY129: 6 | AZ129: 4 | BA129: 1
C130: 96 | AB130: 96 | AI130: 96 | AJ130: - | AM130: 96 | AN130: - | AQ130: 96 | AR130: - | AS130: 26 | AT130: - | AW130: 96 | AX130: - | AY130: 2 | AZ130: - | BA130: 1
C131: 97 | D131: =IF(C131>$E$27,"",RANDBETWEEN(1,2)) ->  | F131: =IF(C131>$E$27,"",IF(E131<=63,RANDBETWEEN(1,4),IF(AND(E131>=64,E131<=85),RANDBETWEEN(5,8),RANDBETWEEN(9,13)))) ->  | G131: =IF(C131>$E$27,"",IF(D131=1,VLOOKUP(F131,$C$9:$O$21,5),VLOOKUP(F131,$S$9:$AE$21,5))) ->  | K131: =IF(C131>$E$27,"",IF(AND(D131=1,J131<H131),5+VLOOKUP(F131,$C$9:$O$21,7),IF(AND(D131=1,J131>=H131),VLOOKUP(F131,$C$9:$O$21,7),IF(AND(D131=2,J131<H131),5+VLOOKUP(F131,$S$9:$AE$21,7),VLOOKUP(F131,$S$9:$AE$21,7))))) ->  | M131: =IF(C131>$E$27,"",IF(AND(K131>0,X130+L131>=K131),K131,IF(AND(K131>0,X130+L131<K131),X130+L131,0))) ->  | N131: =IF(C131>$E$27,"",IF(AND(D131=1,M131<K131),(K131-M131)*2+VLOOKUP(F131,$C$9:$O$21,8),IF(AND(D131=1,M131>=K131),VLOOKUP(F131,$C$9:$O$21,8),IF(AND(D131=2,M131<K131),(K131-M131)*2+VLOOKUP(F131,$S$9:$AE$21,8),VLOOKUP(F131,$S$9:$AE$21,8))))) ->  | P131: =IF(C131>$E$27,"",IF(AND(N131>0,Y130+O131>=N131),N131,IF(AND(N131>0,Y130+O131<N131),Y130+O131,0))) ->  | Q131: =IF(C131>$E$27,"",IF(AND(D131=1,P131<N131),(N131-P131)*5+VLOOKUP(F131,$C$9:$O$21,9),IF(AND(D131=1,P131>=N131),VLOOKUP(F131,$C$9:$O$21,9),IF(AND(D131=2,P131<N131),(N131-P131)*5+VLOOKUP(F131,$S$9:$AE$21,9),VLOOKUP(F131,$S$9:$AE$21,9))))) ->  | S131: =IF(C131>$E$27,"",IF(AND(Q131>0,Z130+R131>=Q131),Q131,IF(AND(Q131>0, Z130+R131<Q131),Z130+R131,0))) ->  | T131: =IF(C131>$E$27,"",(J131*500)+(M131*100)+(P131*50)+(S131*10)) ->  | U131: =IF(C131>$E$27,"",IF(G131>T131,"×","")) ->  | AB131: 97 | AC131: =IF(AB131>$E$27,"",IF(AND(U131<>"×",M131>=$AC$34),1,"")) ->  | AI131: 97 | AJ131: - | AM131: 97 | AN131: - | AQ131: 97 | AR131: - | AS131: 28 | AT131: - | AW131: 97 | AX131: - | AY131: 1 | AZ131: - | BA131: =IF(SUM(AX131:AZ131)>0,1,"") -> 1
C132: 98 | D132: =IF(C132>$E$27,"",RANDBETWEEN(1,2)) ->  | F132: =IF(C132>$E$27,"",IF(E132<=63,RANDBETWEEN(1,4),IF(AND(E132>=64,E132<=85),RANDBETWEEN(5,8),RANDBETWEEN(9,13)))) ->  | G132: =IF(C132>$E$27,"",IF(D132=1,VLOOKUP(F132,$C$9:$O$21,5),VLOOKUP(F132,$S$9:$AE$21,5))) ->  | K132: =IF(C132>$E$27,"",IF(AND(D132=1,J132<H132),5+VLOOKUP(F132,$C$9:$O$21,7),IF(AND(D132=1,J132>=H132),VLOOKUP(F132,$C$9:$O$21,7),IF(AND(D132=2,J132<H132),5+VLOOKUP(F132,$S$9:$AE$21,7),VLOOKUP(F132,$S$9:$AE$21,7))))) ->  | M132: =IF(C132>$E$27,"",IF(AND(K132>0,X131+L132>=K132),K132,IF(AND(K132>0,X131+L132<K132),X131+L132,0))) ->  | N132: =IF(C132>$E$27,"",IF(AND(D132=1,M132<K132),(K132-M132)*2+VLOOKUP(F132,$C$9:$O$21,8),IF(AND(D132=1,M132>=K132),VLOOKUP(F132,$C$9:$O$21,8),IF(AND(D132=2,M132<K132),(K132-M132)*2+VLOOKUP(F132,$S$9:$AE$21,8),VLOOKUP(F132,$S$9:$AE$21,8))))) ->  | P132: =IF(C132>$E$27,"",IF(AND(N132>0,Y131+O132>=N132),N132,IF(AND(N132>0,Y131+O132<N132),Y131+O132,0))) ->  | Q132: =IF(C132>$E$27,"",IF(AND(D132=1,P132<N132),(N132-P132)*5+VLOOKUP(F132,$C$9:$O$21,9),IF(AND(D132=1,P132>=N132),VLOOKUP(F132,$C$9:$O$21,9),IF(AND(D132=2,P132<N132),(N132-P132)*5+VLOOKUP(F132,$S$9:$AE$21,9),VLOOKUP(F132,$S$9:$AE$21,9))))) ->  | S132: =IF(C132>$E$27,"",IF(AND(Q132>0,Z131+R132>=Q132),Q132,IF(AND(Q132>0, Z131+R132<Q132),Z131+R132,0))) ->  | T132: =IF(C132>$E$27,"",(J132*500)+(M132*100)+(P132*50)+(S132*10)) ->  | U132: =IF(C132>$E$27,"",IF(G132>T132,"×","")) ->  | AB132: 98 | AC132: =IF(AB132>$E$27,"",IF(AND(U132<>"×",M132>=$AC$34),1,"")) ->  | AI132: 98 | AJ132: 4 | AM132: 98 | AN132: 3 | AQ132: 98 | AR132: - | AS132: 51 | AT132: 10 | AW132: 98 | AX132: - | AY132: 2 | AZ132: 2 | BA132: =IF(SUM(AX132:AZ132)>0,1,"") -> 1
C133: 99 | D133: =IF(C133>$E$27,"",RANDBETWEEN(1,2)) ->  | F133: =IF(C133>$E$27,"",IF(E133<=63,RANDBETWEEN(1,4),IF(AND(E133>=64,E133<=85),RANDBETWEEN(5,8),RANDBETWEEN(9,13)))) ->  | G133: =IF(C133>$E$27,"",IF(D133=1,VLOOKUP(F133,$C$9:$O$21,5),VLOOKUP(F133,$S$9:$AE$21,5))) ->  | K133: =IF(C133>$E$27,"",IF(AND(D133=1,J133<H133),5+VLOOKUP(F133,$C$9:$O$21,7),IF(AND(D133=1,J133>=H133),VLOOKUP(F133,$C$9:$O$21,7),IF(AND(D133=2,J133<H133),5+VLOOKUP(F133,$S$9:$AE$21,7),VLOOKUP(F133,$S$9:$AE$21,7))))) ->  | M133: =IF(C133>$E$27,"",IF(AND(K133>0,X132+L133>=K133),K133,IF(AND(K133>0,X132+L133<K133),X132+L133,0))) ->  | N133: =IF(C133>$E$27,"",IF(AND(D133=1,M133<K133),(K133-M133)*2+VLOOKUP(F133,$C$9:$O$21,8),IF(AND(D133=1,M133>=K133),VLOOKUP(F133,$C$9:$O$21,8),IF(AND(D133=2,M133<K133),(K133-M133)*2+VLOOKUP(F133,$S$9:$AE$21,8),VLOOKUP(F133,$S$9:$AE$21,8))))) ->  | P133: =IF(C133>$E$27,"",IF(AND(N133>0,Y132+O133>=N133),N133,IF(AND(N133>0,Y132+O133<N133),Y132+O133,0))) ->  | Q133: =IF(C133>$E$27,"",IF(AND(D133=1,P133<N133),(N133-P133)*5+VLOOKUP(F133,$C$9:$O$21,9),IF(AND(D133=1,P133>=N133),VLOOKUP(F133,$C$9:$O$21,9),IF(AND(D133=2,P133<N133),(N133-P133)*5+VLOOKUP(F133,$S$9:$AE$21,9),VLOOKUP(F133,$S$9:$AE$21,9))))) ->  | S133: =IF(C133>$E$27,"",IF(AND(Q133>0,Z132+R133>=Q133),Q133,IF(AND(Q133>0, Z132+R133<Q133),Z132+R133,0))) ->  | T133: =IF(C133>$E$27,"",(J133*500)+(M133*100)+(P133*50)+(S133*10)) ->  | U133: =IF(C133>$E$27,"",IF(G133>T133,"×","")) ->  | AB133: 99 | AC133: =IF(AB133>$E$27,"",IF(AND(U133<>"×",M133>=$AC$34),1,"")) ->  | AI133: 99 | AJ133: - | AM133: 99 | AN133: - | AQ133: 99 | AR133: - | AS133: 11 | AT133: - | AW133: 99 | AX133: - | AY133: 3 | AZ133: - | BA133: =IF(SUM(AX133:AZ133)>0,1,"") -> 1
C134: 100 | D134: =IF(C134>$E$27,"",RANDBETWEEN(1,2)) ->  | F134: =IF(C134>$E$27,"",IF(E134<=63,RANDBETWEEN(1,4),IF(AND(E134>=64,E134<=85),RANDBETWEEN(5,8),RANDBETWEEN(9,13)))) ->  | G134: =IF(C134>$E$27,"",IF(D134=1,VLOOKUP(F134,$C$9:$O$21,5),VLOOKUP(F134,$S$9:$AE$21,5))) ->  | K134: =IF(C134>$E$27,"",IF(AND(D134=1,J134<H134),5+VLOOKUP(F134,$C$9:$O$21,7),IF(AND(D134=1,J134>=H134),VLOOKUP(F134,$C$9:$O$21,7),IF(AND(D134=2,J134<H134),5+VLOOKUP(F134,$S$9:$AE$21,7),VLOOKUP(F134,$S$9:$AE$21,7))))) ->  | M134: =IF(C134>$E$27,"",IF(AND(K134>0,X133+L134>=K134),K134,IF(AND(K134>0,X133+L134<K134),X133+L134,0))) ->  | N134: =IF(C134>$E$27,"",IF(AND(D134=1,M134<K134),(K134-M134)*2+VLOOKUP(F134,$C$9:$O$21,8),IF(AND(D134=1,M134>=K134),VLOOKUP(F134,$C$9:$O$21,8),IF(AND(D134=2,M134<K134),(K134-M134)*2+VLOOKUP(F134,$S$9:$AE$21,8),VLOOKUP(F134,$S$9:$AE$21,8))))) ->  | P134: =IF(C134>$E$27,"",IF(AND(N134>0,Y133+O134>=N134),N134,IF(AND(N134>0,Y133+O134<N134),Y133+O134,0))) ->  | Q134: =IF(C134>$E$27,"",IF(AND(D134=1,P134<N134),(N134-P134)*5+VLOOKUP(F134,$C$9:$O$21,9),IF(AND(D134=1,P134>=N134),VLOOKUP(F134,$C$9:$O$21,9),IF(AND(D134=2,P134<N134),(N134-P134)*5+VLOOKUP(F134,$S$9:$AE$21,9),VLOOKUP(F134,$S$9:$AE$21,9))))) ->  | S134: =IF(C134>$E$27,"",IF(AND(Q134>0,Z133+R134>=Q134),Q134,IF(AND(Q134>0, Z133+R134<Q134),Z133+R134,0))) ->  | T134: =IF(C134>$E$27,"",(J134*500)+(M134*100)+(P134*50)+(S134*10)) ->  | U134: =IF(C134>$E$27,"",IF(G134>T134,"×","")) ->  | AB134: 100 | AC134: =IF(AB134>$E$27,"",IF(AND(U134<>"×",M134>=$AC$34),1,"")) ->  | AI134: 100 | AJ134: 2 | AM134: 100 | AN134: 3 | AQ134: 100 | AR134: - | AS134: 8 | AT134: 13 | AW134: 100 | AX134: - | AY134: 5 | AZ134: 2 | BA134: =IF(SUM(AX134:AZ134)>0,1,"") -> 1
BA135: =IF(SUM(AX135:AZ135)<>0,1,"") -> 

Sheet 5章_a
C2: 第5章： 在庫管理方式の比較
D4: TABLE-1 | J4: TABLE-2 | R4: TABLE-3
E6: 実績 | F6: 乱数 | J6: 定量 | K6: 発注量 | R6: 定期 | S6: 基本発注量
D7: 平均 | K7: 発注点 | S7: 発注間隔
D8: 標準偏差 | K8: リードタイム | S8: リードタイム
D10: 需要合計 | J10: 販売数計 | K10: 品切数計 | L10: 品切日計 | M10: 平均在庫 | N10: 発注回数 | R10: 販売数計 | S10: 品切数計 | T10: 品切日計 | U10: 平均在庫 | V10: 発注回数
D13: 日数 | E13: 乱数 | F13: 需要 | J13: 販売数 | K13: 品切数 | L13: 品切日 | M13: 在庫 | N13: サイン | R13: 販売数 | S13: 品切数 | T13: 品切日 | U13: 在庫 | V13: サイン
J14: - | K14: - | N14: - | R14: - | S14: - | V14: -
D15: 1 | AB15: =IF(J15=R15,"",1) -> 
D16: 2 | AB16: =IF(J16=R16,"",1) -> 
D17: 3 | AB17: =IF(J17=R17,"",1) -> 
D18: 4 | AB18: =IF(J18=R18,"",1) -> 
D19: 5 | AB19: =IF(J19=R19,"",1) -> 
D20: 6
D21: 7
D22: 8 | Y22: 20回 | Z22: 合計 | AA22: =SUM(AA34:AA53) -> 0 | AB22: 0 | AC22: 0 | AD22: 0 | AE22: 0 | AF22: 0 | AG22: 0 | AH22: 0 | AI22: 0 | AJ22: 0 | AK22: 0
D23: 9 | Z23: 平均 | AA23: =AVERAGE(AA34:AA53) -> 
D24: 10
D25: 11 | Y25: 100回 | Z25: 合計 | AA25: =SUM(AA34:AA133) -> 0 | AB25: 0 | AC25: 0 | AD25: 0 | AE25: 0 | AF25: 0 | AG25: 0 | AH25: 0 | AI25: 0 | AJ25: 0 | AK25: 0
D26: 12 | Z26: 平均 | AA26: =AVERAGE(AA34:AA133) -> 
D27: 13
D28: 14
D29: 15
D30: 16
D31: 17
D32: 18 | Z32: 実験 | AA32: 総需要 | AB32: 定量発注方式 | AG32: 定期発注方式
D33: 19 | X33: INVENTORY | Z33: 番号 | AB33: 販売合計 | AC33: 品切数計 | AD33: 品切日計 | AE33: 平均在庫 | AF33: 発注回数 | AG33: 販売合計 | AH33: 品切数計 | AI33: 品切日計 | AJ33: 平均在庫 | AK33: 発注回数
D34: 20 | Z34: 1
D35: 21 | Z35: 2
D36: 22 | Z36: 3
D37: 23 | Z37: 4
D38: 24 | Z38: 5
D39: 25 | Z39: 6
D40: 26 | Z40: 7
D41: 27 | Z41: 8
D42: 28 | Z42: 9
D43: 29 | Z43: 10
D44: 30 | Z44: 11
D45: 31 | Z45: 12
D46: 32 | Z46: 13
D47: 33 | Z47: 14
D48: 34 | Z48: 15
D49: 35 | Z49: 16
D50: 36 | Z50: 17
D51: 37 | Z51: 18
D52: 38 | Z52: 19
D53: 39 | Z53: 20
D54: 40 | Z54: 21
D55: 41 | Z55: 22
D56: 42 | Z56: 23
D57: 43 | Z57: 24
D58: 44 | Z58: 25
D59: 45 | Z59: 26
D60: 46 | Z60: 27
D61: 47 | Z61: 28
D62: 48 | Z62: 29
D63: 49 | Z63: 30
D64: 50 | Z64: 31
D65: 51 | Z65: 32
D66: 52 | Z66: 33
D67: 53 | Z67: 34
D68: 54 | Z68: 35
D69: 55 | Z69: 36
D70: 56 | Z70: 37
D71: 57 | Z71: 38
D72: 58 | Z72: 39
D73: 59 | Z73: 40
D74: 60 | Z74: 41
D75: 61 | Z75: 42
D76: 62 | Z76: 43
D77: 63 | Z77: 44
D78: 64 | Z78: 45
D79: 65 | Z79: 46
D80: 66 | Z80: 47
D81: 67 | Z81: 48
D82: 68 | Z82: 49
D83: 69 | Z83: 50
D84: 70 | Z84: 51
D85: 71 | Z85: 52
D86: 72 | Z86: 53
D87: 73 | Z87: 54
D88: 74 | Z88: 55
D89: 75 | Z89: 56
D90: 76 | Z90: 57
D91: 77 | Z91: 58
D92: 78 | Z92: 59
D93: 79 | Z93: 60
D94: 80 | Z94: 61
D95: 81 | Z95: 62
D96: 82 | Z96: 63
D97: 83 | Z97: 64
D98: 84 | Z98: 65
D99: 85 | Z99: 66
D100: 86 | Z100: 67
D101: 87 | Z101: 68
D102: 88 | Z102: 69
D103: 89 | Z103: 70
D104: 90 | Z104: 71
D105: 91 | Z105: 72
D106: 92 | Z106: 73
D107: 93 | Z107: 74
D108: 94 | Z108: 75
D109: 95 | Z109: 76
D110: 96 | Z110: 77
D111: 97 | Z111: 78
D112: 98 | Z112: 79
D113: 99 | Z113: 80
D114: 100 | Z114: 81
D115: 101 | Z115: 82
D116: 102 | Z116: 83
D117: 103 | Z117: 84
D118: 104 | Z118: 85
D119: 105 | Z119: 86
D120: 106 | Z120: 87
D121: 107 | Z121: 88
D122: 108 | Z122: 89
D123: 109 | Z123: 90
D124: 110 | Z124: 91
D125: 111 | Z125: 92
D126: 112 | Z126: 93
D127: 113 | Z127: 94
D128: 114 | Z128: 95
D129: 115 | Z129: 96
D130: 116 | Z130: 97
D131: 117 | Z131: 98
D132: 118 | Z132: 99
D133: 119 | Z133: 100
D134: 120

Sheet 5章_b
C2: 第5章： 在庫管理方式の比較
D4: TABLE-1 | J4: TABLE-2 | R4: TABLE-3
E6: 実績 | F6: 乱数 | J6: 定量 | K6: 発注量 | N6: 140 | R6: 定期 | S6: 基本発注量 | V6: 170
D7: 平均 | E7: 5.36 | F7: =AVERAGE(F15:F134) -> 5.633333333 | K7: 発注点 | N7: 40 | S7: 発注間隔 | V7: 21
D8: 標準偏差 | E8: 3.58 | F8: =STDEVP(F15:F134) -> 3.301346527 | K8: リードタイム | N8: 5 | S8: リードタイム | V8: 5
D10: 需要合計 | J10: 販売数計 | K10: 品切数計 | L10: 品切日計 | M10: 平均在庫 | N10: 発注回数 | R10: 販売数計 | S10: 品切数計 | T10: 品切日計 | U10: 平均在庫 | V10: 発注回数
D11: =SUM(F15:F134) -> 676 | J11: =SUM(J15:J134) -> 676 | K11: =SUM(K15:K134) -> 0 | L11: =COUNTIF(L15:L134,"品切") -> 0 | M11: =AVERAGE(M15:M134) -> 75.06666667 | N11: =COUNTIF(N15:N134,">0") -> 5 | R11: =SUM(R15:R134) -> 676 | S11: =SUM(S15:S134) -> 0 | T11: =COUNTIF(T15:T134,"品切") -> 0 | U11: =AVERAGE(U15:U134) -> 86.95833333 | V11: =COUNTIF(V15:V134,">0") -> 5
D13: 日数 | E13: 乱数 | F13: 需要 | J13: 販売数 | K13: 品切数 | L13: 品切日 | M13: 在庫 | N13: サイン | R13: 販売数 | S13: 品切数 | T13: 品切日 | U13: 在庫 | V13: サイン
J14: - | K14: - | M14: =N6 -> 140 | N14: - | R14: - | S14: - | U14: =V6 -> 170 | V14: -
D15: 1 | E15: =NORMINV(RAND(),$E$7,$E$8) -> -0.8478820015 | F15: =IF(E15<0,0,ROUND(E15,0)) -> 0 | J15: =IF(N14="入検",$F15,IF($F15<=M14,$F15,M14)) -> 0 | K15: =IF($F15=J15,"",J15-$F15) ->  | L15: =IF(K15<0,"品切","") ->  | M15: =IF(N14="入検",M14+$N$6-J15,M14-J15) -> 140 | N15: =IF(D14<$N$8,"",IF(AND(M14>=$N$7,M15<$N$7),$N$6,IF(OFFSET(N15,-$N$8,0,1,1)=$N$6,"入検",""))) ->  | R15: =IF(V14="入検",$F15,IF($F15<=U14,$F15,U14)) -> 0 | S15: =IF($F15=R15,"",R15-$F15) ->  | T15: =IF(S15<0,"品切","") ->  | U15: =IF(V14="入検",U14+OFFSET(V14,-$V$8,0,1,1)-R15,U14-R15) -> 170 | V15: =IF(D15<$V$7,"",IF(MOD(D15,$V$7)=0,$V$6-U15,IF(MOD(D15,$V$7)=$V$8,"入検",""))) ->  | AB15: =IF(J15=R15,"",1) -> 
D16: 2 | E16: 8.077667924 | F16: 8 | J16: 8 | M16: 132 | R16: 8 | U16: 162 | AB16: =IF(J16=R16,"",1) -> 
D17: 3 | E17: 3.892593827 | F17: 4 | J17: 4 | M17: 128 | R17: 4 | U17: 158 | AB17: =IF(J17=R17,"",1) -> 
D18: 4 | E18: 6.110755421 | F18: 6 | J18: 6 | M18: 122 | R18: 6 | U18: 152 | AB18: =IF(J18=R18,"",1) -> 
D19: 5 | E19: 5.517965949 | F19: 6 | J19: 6 | M19: 116 | R19: 6 | U19: 146 | AB19: =IF(J19=R19,"",1) -> 
D20: 6 | E20: 6.912132812 | F20: 7 | J20: 7 | M20: 109 | R20: 7 | U20: 139
D21: 7 | E21: 8.218159999 | F21: 8 | J21: 8 | M21: 101 | R21: 8 | U21: 131
D22: 8 | E22: -1.592248992 | F22: 0 | J22: 0 | M22: 101 | R22: 0 | U22: 131 | Y22: 20回 | Z22: 合計 | AA22: =SUM(AA34:AA53) -> 12983 | AB22: 12948 | AC22: -35 | AD22: 10 | AE22: 1568.3 | AF22: 87 | AG22: 12962 | AH22: -21 | AI22: 5 | AJ22: 1789.908333 | AK22: 100
D23: 9 | E23: -3.286745116 | F23: 0 | J23: 0 | M23: 101 | R23: 0 | U23: 131 | Z23: 平均 | AA23: =AVERAGE(AA34:AA53) -> 649.15 | AB23: 647.4 | AC23: -1.75 | AD23: 0.5 | AE23: 78.415 | AF23: 4.35 | AG23: 648.1 | AH23: -1.05 | AI23: 0.25 | AJ23: 89.49541667 | AK23: 5
D24: 10 | E24: -0.3333839056 | F24: 0 | J24: 0 | M24: 101 | R24: 0 | U24: 131
D25: 11 | E25: -1.885420904 | F25: 0 | J25: 0 | M25: 101 | R25: 0 | U25: 131 | Y25: 100回 | Z25: 合計 | AA25: =SUM(AA34:AA133) -> 65850 | AB25: 65640 | AC25: -210 | AD25: 63 | AE25: 7815.925 | AF25: 447 | AG25: 65670 | AH25: -180 | AI25: 43 | AJ25: 8814.066667 | AK25: 500
D26: 12 | E26: 6.064926157 | F26: 6 | J26: 6 | M26: 95 | R26: 6 | U26: 125 | Z26: 平均 | AA26: =AVERAGE(AA34:AA133) -> 658.5 | AB26: 656.4 | AC26: -2.1 | AD26: 0.63 | AE26: 78.15925 | AF26: 4.47 | AG26: 656.7 | AH26: -1.8 | AI26: 0.43 | AJ26: 88.14066667 | AK26: 5
D27: 13 | E27: 1.948700781 | F27: 2 | J27: 2 | M27: 93 | R27: 2 | U27: 123
D28: 14 | E28: 5.114514978 | F28: 5 | J28: 5 | M28: 88 | R28: 5 | U28: 118
D29: 15 | E29: 8.484292027 | F29: 8 | J29: 8 | M29: 80 | R29: 8 | U29: 110
D30: 16 | E30: 11.24277964 | F30: 11 | J30: 11 | M30: 69 | R30: 11 | U30: 99
D31: 17 | E31: 9.3710673 | F31: 9 | J31: 9 | M31: 60 | R31: 9 | U31: 90
D32: 18 | E32: 10.6443018 | F32: 11 | J32: 11 | M32: 49 | R32: 11 | U32: 79 | Z32: 実験 | AA32: 総需要 | AB32: 定量発注方式 | AG32: 定期発注方式
D33: 19 | E33: 2.52089559 | F33: 3 | J33: 3 | M33: 46 | R33: 3 | U33: 76 | X33: INVENTORY1 | Z33: 番号 | AB33: 販売合計 | AC33: 品切数計 | AD33: 品切日計 | AE33: 平均在庫 | AF33: 発注回数 | AG33: 販売合計 | AH33: 品切数計 | AI33: 品切日計 | AJ33: 平均在庫 | AK33: 発注回数
D34: 20 | E34: 7.214906302 | F34: 7 | J34: 7 | M34: 39 | N34: 140 | R34: 7 | U34: 69 | Z34: 1 | AA34: 638 | AB34: 631 | AC34: -7 | AD34: 2 | AE34: 78.29166667 | AF34: 4 | AG34: 638 | AH34: 0 | AI34: 0 | AJ34: 93.56666667 | AK34: 5
D35: 21 | E35: -0.2884609583 | F35: 0 | J35: 0 | M35: 39 | R35: 0 | U35: 69 | V35: 101 | Z35: 2 | AA35: 592 | AB35: 592 | AC35: 0 | AD35: 0 | AE35: 81.45 | AF35: 4 | AG35: 592 | AH35: 0 | AI35: 0 | AJ35: 93.26666667 | AK35: 5
D36: 22 | E36: 8.154737319 | F36: 8 | J36: 8 | M36: 31 | R36: 8 | U36: 61 | Z36: 3 | AA36: 698 | AB36: 686 | AC36: -12 | AD36: 3 | AE36: 72.075 | AF36: 5 | AG36: 684 | AH36: -14 | AI36: 3 | AJ36: 83.06666667 | AK36: 5
D37: 23 | E37: 3.005778827 | F37: 3 | J37: 3 | M37: 28 | R37: 3 | U37: 58 | Z37: 4 | AA37: 682 | AB37: 682 | AC37: 0 | AD37: 0 | AE37: 75.09166667 | AF37: 5 | AG37: 682 | AH37: 0 | AI37: 0 | AJ37: 85.81666667 | AK37: 5
D38: 24 | E38: 10.85495521 | F38: 11 | J38: 11 | M38: 17 | R38: 11 | U38: 47 | Z38: 5 | AA38: 612 | AB38: 612 | AC38: 0 | AD38: 0 | AE38: 81.875 | AF38: 4 | AG38: 612 | AH38: 0 | AI38: 0 | AJ38: 95.125 | AK38: 5
D39: 25 | E39: 7.979705733 | F39: 8 | J39: 8 | M39: 9 | N39: 入検 | R39: 8 | U39: 39 | Z39: 6 | AA39: 671 | AB39: 671 | AC39: 0 | AD39: 0 | AE39: 79.35833333 | AF39: 5 | AG39: 668 | AH39: -3 | AI39: 1 | AJ39: 89.18333333 | AK39: 5
D40: 26 | E40: 4.252780731 | F40: 4 | J40: 4 | M40: 145 | R40: 4 | U40: 35 | V40: 入検 | Z40: 7 | AA40: 644 | AB40: 644 | AC40: 0 | AD40: 0 | AE40: 79.95833333 | AF40: 4 | AG40: 644 | AH40: 0 | AI40: 0 | AJ40: 91.15833333 | AK40: 5
D41: 27 | E41: 5.880919082 | F41: 6 | J41: 6 | M41: 139 | R41: 6 | U41: 130 | Z41: 8 | AA41: 624 | AB41: 624 | AC41: 0 | AD41: 0 | AE41: 81.475 | AF41: 4 | AG41: 624 | AH41: 0 | AI41: 0 | AJ41: 92.24166667 | AK41: 5
D42: 28 | E42: 3.758838548 | F42: 4 | J42: 4 | M42: 135 | R42: 4 | U42: 126 | Z42: 9 | AA42: 645 | AB42: 644 | AC42: -1 | AD42: 1 | AE42: 77.83333333 | AF42: 4 | AG42: 645 | AH42: 0 | AI42: 0 | AJ42: 87.76666667 | AK42: 5
D43: 29 | E43: 6.279471148 | F43: 6 | J43: 6 | M43: 129 | R43: 6 | U43: 120 | Z43: 10 | AA43: 694 | AB43: 694 | AC43: 0 | AD43: 0 | AE43: 80.15833333 | AF43: 5 | AG43: 694 | AH43: 0 | AI43: 0 | AJ43: 82.10833333 | AK43: 5
D44: 30 | E44: 6.124747184 | F44: 6 | J44: 6 | M44: 123 | R44: 6 | U44: 114 | Z44: 11 | AA44: 641 | AB44: 641 | AC44: 0 | AD44: 0 | AE44: 81.86666667 | AF44: 4 | AG44: 641 | AH44: 0 | AI44: 0 | AJ44: 90.71666667 | AK44: 5
D45: 31 | E45: 3.544457941 | F45: 4 | J45: 4 | M45: 119 | R45: 4 | U45: 110 | Z45: 12 | AA45: 626 | AB45: 625 | AC45: -1 | AD45: 1 | AE45: 78.475 | AF45: 4 | AG45: 626 | AH45: 0 | AI45: 0 | AJ45: 93.73333333 | AK45: 5
D46: 32 | E46: 8.813420748 | F46: 9 | J46: 9 | M46: 110 | R46: 9 | U46: 101 | Z46: 13 | AA46: 619 | AB46: 619 | AC46: 0 | AD46: 0 | AE46: 83.50833333 | AF46: 4 | AG46: 619 | AH46: 0 | AI46: 0 | AJ46: 95.21666667 | AK46: 5
D47: 33 | E47: =NORMINV(RAND(),$E$7,$E$8) -> 5.91725662 | F47: =IF(E47<0,0,ROUND(E47,0)) -> 6 | J47: =IF(N46="入検",$F47,IF($F47<=M46,$F47,M46)) -> 6 | K47: =IF($F47=J47,"",J47-$F47) ->  | L47: =IF(K47<0,"品切","") ->  | M47: =IF(N46="入検",M46+$N$6-J47,M46-J47) -> 104 | N47: =IF(D46<$N$8,"",IF(AND(M46>=$N$7,M47<$N$7),$N$6,IF(OFFSET(N47,-$N$8,0,1,1)=$N$6,"入検",""))) ->  | R47: =IF(V46="入検",$F47,IF($F47<=U46,$F47,U46)) -> 6 | S47: =IF($F47=R47,"",R47-$F47) ->  | T47: =IF(S47<0,"品切","") ->  | U47: =IF(V46="入検",U46+OFFSET(V46,-$V$8,0,1,1)-R47,U46-R47) -> 95 | V47: =IF(D47<$V$7,"",IF(MOD(D47,$V$7)=0,$V$6-U47,IF(MOD(D47,$V$7)=$V$8,"入検",""))) ->  | Z47: 14 | AA47: 699 | AB47: 691 | AC47: -8 | AD47: 2 | AE47: 74.73333333 | AF47: 5 | AG47: 699 | AH47: 0 | AI47: 0 | AJ47: 81.73333333 | AK47: 5
D48: 34 | E48: 5.350047875 | F48: 5 | J48: 5 | M48: 99 | R48: 5 | U48: 90 | Z48: 15 | AA48: 644 | AB48: 644 | AC48: 0 | AD48: 0 | AE48: 77.85833333 | AF48: 4 | AG48: 644 | AH48: 0 | AI48: 0 | AJ48: 87.19166667 | AK48: 5
D49: 35 | E49: 5.687060333 | F49: 6 | J49: 6 | M49: 93 | R49: 6 | U49: 84 | Z49: 16 | AA49: 717 | AB49: 717 | AC49: 0 | AD49: 0 | AE49: 72.95 | AF49: 5 | AG49: 713 | AH49: -4 | AI49: 1 | AJ49: 79.41666667 | AK49: 5
D50: 36 | E50: 6.785965758 | F50: 7 | J50: 7 | M50: 86 | R50: 7 | U50: 77 | Z50: 17 | AA50: 649 | AB50: 649 | AC50: 0 | AD50: 0 | AE50: 76.89166667 | AF50: 4 | AG50: 649 | AH50: 0 | AI50: 0 | AJ50: 90.075 | AK50: 5
D51: 37 | E51: 8.264030283 | F51: 8 | J51: 8 | M51: 78 | R51: 8 | U51: 69 | Z51: 18 | AA51: 611 | AB51: 611 | AC51: 0 | AD51: 0 | AE51: 77.86666667 | AF51: 4 | AG51: 611 | AH51: 0 | AI51: 0 | AJ51: 96.96666667 | AK51: 5
D52: 38 | E52: 0.3589067308 | F52: 0 | J52: 0 | M52: 78 | R52: 0 | U52: 69 | Z52: 19 | AA52: 665 | AB52: 665 | AC52: 0 | AD52: 0 | AE52: 78.45833333 | AF52: 5 | AG52: 665 | AH52: 0 | AI52: 0 | AJ52: 88.99166667 | AK52: 5
D53: 39 | E53: 2.905151312 | F53: 3 | J53: 3 | M53: 75 | R53: 3 | U53: 66 | Z53: 20 | AA53: 612 | AB53: 606 | AC53: -6 | AD53: 1 | AE53: 78.125 | AF53: 4 | AG53: 612 | AH53: 0 | AI53: 0 | AJ53: 92.56666667 | AK53: 5
D54: 40 | E54: 7.743079394 | F54: 8 | J54: 8 | M54: 67 | R54: 8 | U54: 58 | Z54: 21 | AA54: 707 | AB54: 700 | AC54: -7 | AD54: 2 | AE54: 74.11666667 | AF54: 5 | AG54: 698 | AH54: -9 | AI54: 2 | AJ54: 83.425 | AK54: 5
D55: 41 | E55: 4.107619693 | F55: 4 | J55: 4 | M55: 63 | R55: 4 | U55: 54 | Z55: 22 | AA55: 625 | AB55: 625 | AC55: 0 | AD55: 0 | AE55: 81.11666667 | AF55: 4 | AG55: 625 | AH55: 0 | AI55: 0 | AJ55: 91.53333333 | AK55: 5
D56: 42 | E56: 5.500744699 | F56: 6 | J56: 6 | M56: 57 | R56: 6 | U56: 48 | V56: 122 | Z56: 23 | AA56: 712 | AB56: 711 | AC56: -1 | AD56: 1 | AE56: 75.48333333 | AF56: 5 | AG56: 712 | AH56: 0 | AI56: 0 | AJ56: 81.175 | AK56: 5
D57: 43 | E57: 2.013971428 | F57: 2 | J57: 2 | M57: 55 | R57: 2 | U57: 46 | Z57: 24 | AA57: 675 | AB57: 675 | AC57: 0 | AD57: 0 | AE57: 80.09166667 | AF57: 5 | AG57: 666 | AH57: -9 | AI57: 2 | AJ57: 89.03333333 | AK57: 5
D58: 44 | E58: 4.043644349 | F58: 4 | J58: 4 | M58: 51 | R58: 4 | U58: 42 | Z58: 25 | AA58: 677 | AB58: 672 | AC58: -5 | AD58: 2 | AE58: 74.275 | AF58: 5 | AG58: 676 | AH58: -1 | AI58: 1 | AJ58: 86.075 | AK58: 5
D59: 45 | E59: -5.508382602 | F59: 0 | J59: 0 | M59: 51 | R59: 0 | U59: 42 | Z59: 26 | AA59: 660 | AB59: 656 | AC59: -4 | AD59: 1 | AE59: 77.46666667 | AF59: 4 | AG59: 660 | AH59: 0 | AI59: 0 | AJ59: 87.95 | AK59: 5
D60: 46 | E60: 8.474235838 | F60: 8 | J60: 8 | M60: 43 | R60: 8 | U60: 34 | Z60: 27 | AA60: 715 | AB60: 702 | AC60: -13 | AD60: 2 | AE60: 73.7 | AF60: 5 | AG60: 714 | AH60: -1 | AI60: 1 | AJ60: 79.56666667 | AK60: 5
D61: 47 | E61: 11.59341647 | F61: 12 | J61: 12 | M61: 31 | N61: 140 | R61: 12 | U61: 22 | V61: 入検 | Z61: 28 | AA61: 674 | AB61: 674 | AC61: 0 | AD61: 0 | AE61: 77.93333333 | AF61: 5 | AG61: 674 | AH61: 0 | AI61: 0 | AJ61: 85.39166667 | AK61: 5
D62: 48 | E62: 9.853348431 | F62: 10 | J62: 10 | M62: 21 | R62: 10 | U62: 134 | Z62: 29 | AA62: 674 | AB62: 669 | AC62: -5 | AD62: 2 | AE62: 75.38333333 | AF62: 5 | AG62: 662 | AH62: -12 | AI62: 3 | AJ62: 85.99166667 | AK62: 5
D63: 49 | E63: 6.243895089 | F63: 6 | J63: 6 | M63: 15 | R63: 6 | U63: 128 | Z63: 30 | AA63: 623 | AB63: 623 | AC63: 0 | AD63: 0 | AE63: 83.725 | AF63: 4 | AG63: 623 | AH63: 0 | AI63: 0 | AJ63: 92.2 | AK63: 5
D64: 50 | E64: 1.504695464 | F64: 2 | J64: 2 | M64: 13 | R64: 2 | U64: 126 | Z64: 31 | AA64: 612 | AB64: 612 | AC64: 0 | AD64: 0 | AE64: 83.43333333 | AF64: 4 | AG64: 612 | AH64: 0 | AI64: 0 | AJ64: 92.99166667 | AK64: 5
D65: 51 | E65: 5.53772421 | F65: 6 | J65: 6 | M65: 7 | R65: 6 | U65: 120 | Z65: 32 | AA65: 692 | AB65: 689 | AC65: -3 | AD65: 2 | AE65: 73.01666667 | AF65: 5 | AG65: 687 | AH65: -5 | AI65: 1 | AJ65: 80.4 | AK65: 5
D66: 52 | E66: 6.58874068 | F66: 7 | J66: 7 | M66: 0 | N66: 入検 | R66: 7 | U66: 113 | Z66: 33 | AA66: 626 | AB66: 625 | AC66: -1 | AD66: 1 | AE66: 80.63333333 | AF66: 4 | AG66: 626 | AH66: 0 | AI66: 0 | AJ66: 89.80833333 | AK66: 5
D67: 53 | E67: 5.811744542 | F67: 6 | J67: 6 | M67: 134 | R67: 6 | U67: 107 | Z67: 34 | AA67: 642 | AB67: 639 | AC67: -3 | AD67: 1 | AE67: 79.14166667 | AF67: 4 | AG67: 642 | AH67: 0 | AI67: 0 | AJ67: 90.68333333 | AK67: 5
D68: 54 | E68: -0.04130681512 | F68: 0 | J68: 0 | M68: 134 | R68: 0 | U68: 107 | Z68: 35 | AA68: 681 | AB68: 680 | AC68: -1 | AD68: 1 | AE68: 73.19166667 | AF68: 5 | AG68: 681 | AH68: 0 | AI68: 0 | AJ68: 82.5 | AK68: 5
D69: 55 | E69: 6.817516643 | F69: 7 | J69: 7 | M69: 127 | R69: 7 | U69: 100 | Z69: 36 | AA69: 623 | AB69: 623 | AC69: 0 | AD69: 0 | AE69: 81.55 | AF69: 4 | AG69: 623 | AH69: 0 | AI69: 0 | AJ69: 93.14166667 | AK69: 5
D70: 56 | E70: 10.61341532 | F70: 11 | J70: 11 | M70: 116 | R70: 11 | U70: 89 | Z70: 37 | AA70: 635 | AB70: 635 | AC70: 0 | AD70: 0 | AE70: 80.675 | AF70: 4 | AG70: 635 | AH70: 0 | AI70: 0 | AJ70: 95.6 | AK70: 5
D71: 57 | E71: 4.917361429 | F71: 5 | J71: 5 | M71: 111 | R71: 5 | U71: 84 | Z71: 38 | AA71: 623 | AB71: 623 | AC71: 0 | AD71: 0 | AE71: 79.25833333 | AF71: 4 | AG71: 623 | AH71: 0 | AI71: 0 | AJ71: 91.84166667 | AK71: 5
D72: 58 | E72: 4.683864243 | F72: 5 | J72: 5 | M72: 106 | R72: 5 | U72: 79 | Z72: 39 | AA72: 694 | AB72: 692 | AC72: -2 | AD72: 1 | AE72: 76.575 | AF72: 5 | AG72: 675 | AH72: -19 | AI72: 2 | AJ72: 83.1 | AK72: 5
D73: 59 | E73: 9.345916048 | F73: 9 | J73: 9 | M73: 97 | R73: 9 | U73: 70 | Z73: 40 | AA73: 684 | AB73: 678 | AC73: -6 | AD73: 2 | AE73: 74.15833333 | AF73: 5 | AG73: 684 | AH73: 0 | AI73: 0 | AJ73: 84.66666667 | AK73: 5
D74: 60 | E74: 7.112013896 | F74: 7 | J74: 7 | M74: 90 | R74: 7 | U74: 63 | Z74: 41 | AA74: 664 | AB74: 664 | AC74: 0 | AD74: 0 | AE74: 79.09166667 | AF74: 5 | AG74: 664 | AH74: 0 | AI74: 0 | AJ74: 89.50833333 | AK74: 5
D75: 61 | E75: 9.076346327 | F75: 9 | J75: 9 | M75: 81 | R75: 9 | U75: 54 | Z75: 42 | AA75: 710 | AB75: 700 | AC75: -10 | AD75: 3 | AE75: 73.81666667 | AF75: 5 | AG75: 703 | AH75: -7 | AI75: 1 | AJ75: 83.68333333 | AK75: 5
D76: 62 | E76: 1.711021727 | F76: 2 | J76: 2 | M76: 79 | R76: 2 | U76: 52 | Z76: 43 | AA76: 705 | AB76: 704 | AC76: -1 | AD76: 1 | AE76: 75.41666667 | AF76: 5 | AG76: 705 | AH76: 0 | AI76: 0 | AJ76: 82.51666667 | AK76: 5
D77: 63 | E77: 8.824403496 | F77: 9 | J77: 9 | M77: 70 | R77: 9 | U77: 43 | V77: 127 | Z77: 44 | AA77: 713 | AB77: 707 | AC77: -6 | AD77: 1 | AE77: 77.85 | AF77: 5 | AG77: 713 | AH77: 0 | AI77: 0 | AJ77: 81.925 | AK77: 5
D78: 64 | E78: 2.582557177 | F78: 3 | J78: 3 | M78: 67 | R78: 3 | U78: 40 | Z78: 45 | AA78: 713 | AB78: 708 | AC78: -5 | AD78: 2 | AE78: 73.35833333 | AF78: 5 | AG78: 713 | AH78: 0 | AI78: 0 | AJ78: 77.73333333 | AK78: 5
D79: 65 | E79: =NORMINV(RAND(),$E$7,$E$8) -> 3.389152151 | F79: =IF(E79<0,0,ROUND(E79,0)) -> 3 | J79: =IF(N78="入検",$F79,IF($F79<=M78,$F79,M78)) -> 3 | K79: =IF($F79=J79,"",J79-$F79) ->  | L79: =IF(K79<0,"品切","") ->  | M79: =IF(N78="入検",M78+$N$6-J79,M78-J79) -> 64 | N79: =IF(D78<$N$8,"",IF(AND(M78>=$N$7,M79<$N$7),$N$6,IF(OFFSET(N79,-$N$8,0,1,1)=$N$6,"入検",""))) ->  | R79: =IF(V78="入検",$F79,IF($F79<=U78,$F79,U78)) -> 3 | S79: =IF($F79=R79,"",R79-$F79) ->  | T79: =IF(S79<0,"品切","") ->  | U79: =IF(V78="入検",U78+OFFSET(V78,-$V$8,0,1,1)-R79,U78-R79) -> 37 | V79: =IF(D79<$V$7,"",IF(MOD(D79,$V$7)=0,$V$6-U79,IF(MOD(D79,$V$7)=$V$8,"入検",""))) ->  | Z79: 46 | AA79: 670 | AB79: 660 | AC79: -10 | AD79: 3 | AE79: 75.43333333 | AF79: 4 | AG79: 670 | AH79: 0 | AI79: 0 | AJ79: 88.26666667 | AK79: 5
D80: 66 | E80: -0.7968468837 | F80: 0 | J80: 0 | M80: 64 | R80: 0 | U80: 37 | Z80: 47 | AA80: 611 | AB80: 599 | AC80: -12 | AD80: 4 | AE80: 78.58333333 | AF80: 4 | AG80: 611 | AH80: 0 | AI80: 0 | AJ80: 96.96666667 | AK80: 5
D81: 67 | E81: 12.18217542 | F81: 12 | J81: 12 | M81: 52 | R81: 12 | U81: 25 | Z81: 48 | AA81: 688 | AB81: 685 | AC81: -3 | AD81: 1 | AE81: 74.23333333 | AF81: 5 | AG81: 688 | AH81: 0 | AI81: 0 | AJ81: 84.30833333 | AK81: 5
D82: 68 | E82: 6.319999984 | F82: 6 | J82: 6 | M82: 46 | R82: 6 | U82: 19 | V82: 入検 | Z82: 49 | AA82: 731 | AB82: 727 | AC82: -4 | AD82: 1 | AE82: 78.49166667 | AF82: 5 | AG82: 720 | AH82: -11 | AI82: 3 | AJ82: 80.03333333 | AK82: 5
D83: 69 | E83: 5.945423663 | F83: 6 | J83: 6 | M83: 40 | R83: 6 | U83: 140 | Z83: 50 | AA83: 613 | AB83: 613 | AC83: 0 | AD83: 0 | AE83: 81.15833333 | AF83: 4 | AG83: 613 | AH83: 0 | AI83: 0 | AJ83: 94.475 | AK83: 5
D84: 70 | E84: 5.371756356 | F84: 5 | J84: 5 | M84: 35 | N84: 140 | R84: 5 | U84: 135 | Z84: 51 | AA84: 614 | AB84: 614 | AC84: 0 | AD84: 0 | AE84: 82.46666667 | AF84: 4 | AG84: 614 | AH84: 0 | AI84: 0 | AJ84: 91.34166667 | AK84: 5
D85: 71 | E85: 9.207487645 | F85: 9 | J85: 9 | M85: 26 | R85: 9 | U85: 126 | Z85: 52 | AA85: 666 | AB85: 666 | AC85: 0 | AD85: 0 | AE85: 71.575 | AF85: 5 | AG85: 666 | AH85: 0 | AI85: 0 | AJ85: 86.51666667 | AK85: 5
D86: 72 | E86: -0.6269306588 | F86: 0 | J86: 0 | M86: 26 | R86: 0 | U86: 126 | Z86: 53 | AA86: 669 | AB86: 662 | AC86: -7 | AD86: 1 | AE86: 75.05833333 | AF86: 5 | AG86: 667 | AH86: -2 | AI86: 1 | AJ86: 83.85833333 | AK86: 5
D87: 73 | E87: 8.152870859 | F87: 8 | J87: 8 | M87: 18 | R87: 8 | U87: 118 | Z87: 54 | AA87: 662 | AB87: 662 | AC87: 0 | AD87: 0 | AE87: 78.56666667 | AF87: 5 | AG87: 661 | AH87: -1 | AI87: 1 | AJ87: 86.50833333 | AK87: 5
D88: 74 | E88: 2.67872558 | F88: 3 | J88: 3 | M88: 15 | R88: 3 | U88: 115 | Z88: 55 | AA88: 657 | AB88: 656 | AC88: -1 | AD88: 1 | AE88: 76.18333333 | AF88: 4 | AG88: 657 | AH88: 0 | AI88: 0 | AJ88: 85.38333333 | AK88: 5
D89: 75 | E89: 8.171485271 | F89: 8 | J89: 8 | M89: 7 | N89: 入検 | R89: 8 | U89: 107 | Z89: 56 | AA89: 626 | AB89: 626 | AC89: 0 | AD89: 0 | AE89: 81 | AF89: 4 | AG89: 626 | AH89: 0 | AI89: 0 | AJ89: 94.3 | AK89: 5
D90: 76 | E90: 2.689082687 | F90: 3 | J90: 3 | M90: 144 | R90: 3 | U90: 104 | Z90: 57 | AA90: 692 | AB90: 679 | AC90: -13 | AD90: 2 | AE90: 75.48333333 | AF90: 5 | AG90: 682 | AH90: -10 | AI90: 3 | AJ90: 83.75833333 | AK90: 5
D91: 77 | E91: 14.42482916 | F91: 14 | J91: 14 | M91: 130 | R91: 14 | U91: 90 | Z91: 58 | AA91: 709 | AB91: 703 | AC91: -6 | AD91: 1 | AE91: 76.34166667 | AF91: 5 | AG91: 706 | AH91: -3 | AI91: 1 | AJ91: 80.10833333 | AK91: 5
D92: 78 | E92: 5.266478689 | F92: 5 | J92: 5 | M92: 125 | R92: 5 | U92: 85 | Z92: 59 | AA92: 659 | AB92: 659 | AC92: 0 | AD92: 0 | AE92: 83.95 | AF92: 4 | AG92: 658 | AH92: -1 | AI92: 1 | AJ92: 90.25833333 | AK92: 5
D93: 79 | E93: 9.553838949 | F93: 10 | J93: 10 | M93: 115 | R93: 10 | U93: 75 | Z93: 60 | AA93: 694 | AB93: 694 | AC93: 0 | AD93: 0 | AE93: 77.05833333 | AF93: 5 | AG93: 687 | AH93: -7 | AI93: 2 | AJ93: 79.14166667 | AK93: 5
D94: 80 | E94: 12.85810385 | F94: 13 | J94: 13 | M94: 102 | R94: 13 | U94: 62 | Z94: 61 | AA94: 645 | AB94: 645 | AC94: 0 | AD94: 0 | AE94: 78.20833333 | AF94: 4 | AG94: 645 | AH94: 0 | AI94: 0 | AJ94: 91.11666667 | AK94: 5
D95: 81 | E95: 6.051904644 | F95: 6 | J95: 6 | M95: 96 | R95: 6 | U95: 56 | Z95: 62 | AA95: 687 | AB95: 685 | AC95: -2 | AD95: 1 | AE95: 76.68333333 | AF95: 5 | AG95: 687 | AH95: 0 | AI95: 0 | AJ95: 86.73333333 | AK95: 5
D96: 82 | E96: 6.975695666 | F96: 7 | J96: 7 | M96: 89 | R96: 7 | U96: 49 | Z96: 63 | AA96: 668 | AB96: 665 | AC96: -3 | AD96: 1 | AE96: 75.675 | AF96: 5 | AG96: 668 | AH96: 0 | AI96: 0 | AJ96: 86.46666667 | AK96: 5
D97: 83 | E97: 2.613835672 | F97: 3 | J97: 3 | M97: 86 | R97: 3 | U97: 46 | Z97: 64 | AA97: 593 | AB97: 593 | AC97: 0 | AD97: 0 | AE97: 82.69166667 | AF97: 4 | AG97: 593 | AH97: 0 | AI97: 0 | AJ97: 98.33333333 | AK97: 5
D98: 84 | E98: 8.584913271 | F98: 9 | J98: 9 | M98: 77 | R98: 9 | U98: 37 | V98: 133 | Z98: 65 | AA98: 609 | AB98: 609 | AC98: 0 | AD98: 0 | AE98: 84.775 | AF98: 4 | AG98: 609 | AH98: 0 | AI98: 0 | AJ98: 95.54166667 | AK98: 5
D99: 85 | E99: 6.698584082 | F99: 7 | J99: 7 | M99: 70 | R99: 7 | U99: 30 | Z99: 66 | AA99: 678 | AB99: 678 | AC99: 0 | AD99: 0 | AE99: 78.16666667 | AF99: 5 | AG99: 678 | AH99: 0 | AI99: 0 | AJ99: 89.46666667 | AK99: 5
D100: 86 | E100: 4.922149263 | F100: 5 | J100: 5 | M100: 65 | R100: 5 | U100: 25 | Z100: 67 | AA100: 647 | AB100: 647 | AC100: 0 | AD100: 0 | AE100: 77.96666667 | AF100: 4 | AG100: 647 | AH100: 0 | AI100: 0 | AJ100: 89.35833333 | AK100: 5
D101: 87 | E101: 10.70368861 | F101: 11 | J101: 11 | M101: 54 | R101: 11 | U101: 14 | Z101: 68 | AA101: 634 | AB101: 632 | AC101: -2 | AD101: 1 | AE101: 78.83333333 | AF101: 4 | AG101: 630 | AH101: -4 | AI101: 1 | AJ101: 91.23333333 | AK101: 5
D102: 88 | E102: 3.726255378 | F102: 4 | J102: 4 | M102: 50 | R102: 4 | U102: 10 | Z102: 69 | AA102: 652 | AB102: 652 | AC102: 0 | AD102: 0 | AE102: 78.7 | AF102: 4 | AG102: 652 | AH102: 0 | AI102: 0 | AJ102: 87.44166667 | AK102: 5
D103: 89 | E103: 1.666575238 | F103: 2 | J103: 2 | M103: 48 | R103: 2 | U103: 8 | V103: 入検 | Z103: 70 | AA103: 695 | AB103: 695 | AC103: 0 | AD103: 0 | AE103: 71.71666667 | AF103: 5 | AG103: 695 | AH103: 0 | AI103: 0 | AJ103: 82.73333333 | AK103: 5
D104: 90 | E104: 6.998369169 | F104: 7 | J104: 7 | M104: 41 | R104: 7 | U104: 134 | Z104: 71 | AA104: 678 | AB104: 678 | AC104: 0 | AD104: 0 | AE104: 79.575 | AF104: 5 | AG104: 677 | AH104: -1 | AI104: 1 | AJ104: 87.00833333 | AK104: 5
D105: 91 | E105: 3.373793861 | F105: 3 | J105: 3 | M105: 38 | N105: 140 | R105: 3 | U105: 131 | Z105: 72 | AA105: 645 | AB105: 645 | AC105: 0 | AD105: 0 | AE105: 77.425 | AF105: 4 | AG105: 645 | AH105: 0 | AI105: 0 | AJ105: 88.20833333 | AK105: 5
D106: 92 | E106: 8.48302338 | F106: 8 | J106: 8 | M106: 30 | R106: 8 | U106: 123 | Z106: 73 | AA106: 639 | AB106: 639 | AC106: 0 | AD106: 0 | AE106: 77.19166667 | AF106: 4 | AG106: 639 | AH106: 0 | AI106: 0 | AJ106: 93.55833333 | AK106: 5
D107: 93 | E107: 5.086062598 | F107: 5 | J107: 5 | M107: 25 | R107: 5 | U107: 118 | Z107: 74 | AA107: 675 | AB107: 675 | AC107: 0 | AD107: 0 | AE107: 76.43333333 | AF107: 5 | AG107: 675 | AH107: 0 | AI107: 0 | AJ107: 85.13333333 | AK107: 5
D108: 94 | E108: 3.281474981 | F108: 3 | J108: 3 | M108: 22 | R108: 3 | U108: 115 | Z108: 75 | AA108: 641 | AB108: 641 | AC108: 0 | AD108: 0 | AE108: 80.91666667 | AF108: 4 | AG108: 641 | AH108: 0 | AI108: 0 | AJ108: 84.84166667 | AK108: 5
D109: 95 | E109: 7.607190366 | F109: 8 | J109: 8 | M109: 14 | R109: 8 | U109: 107 | Z109: 76 | AA109: 647 | AB109: 635 | AC109: -12 | AD109: 1 | AE109: 79.94166667 | AF109: 4 | AG109: 647 | AH109: 0 | AI109: 0 | AJ109: 85.20833333 | AK109: 5
D110: 96 | E110: 1.336636807 | F110: 1 | J110: 1 | M110: 13 | N110: 入検 | R110: 1 | U110: 106 | Z110: 77 | AA110: 631 | AB110: 622 | AC110: -9 | AD110: 2 | AE110: 76.25 | AF110: 4 | AG110: 631 | AH110: 0 | AI110: 0 | AJ110: 93.58333333 | AK110: 5
D111: 97 | E111: =NORMINV(RAND(),$E$7,$E$8) -> 8.425623534 | F111: =IF(E111<0,0,ROUND(E111,0)) -> 8 | J111: =IF(N110="入検",$F111,IF($F111<=M110,$F111,M110)) -> 8 | K111: =IF($F111=J111,"",J111-$F111) ->  | L111: =IF(K111<0,"品切","") ->  | M111: =IF(N110="入検",M110+$N$6-J111,M110-J111) -> 145 | N111: =IF(D110<$N$8,"",IF(AND(M110>=$N$7,M111<$N$7),$N$6,IF(OFFSET(N111,-$N$8,0,1,1)=$N$6,"入検",""))) ->  | R111: =IF(V110="入検",$F111,IF($F111<=U110,$F111,U110)) -> 8 | S111: =IF($F111=R111,"",R111-$F111) ->  | T111: =IF(S111<0,"品切","") ->  | U111: =IF(V110="入検",U110+OFFSET(V110,-$V$8,0,1,1)-R111,U110-R111) -> 98 | V111: =IF(D111<$V$7,"",IF(MOD(D111,$V$7)=0,$V$6-U111,IF(MOD(D111,$V$7)=$V$8,"入検",""))) ->  | Z111: 78 | AA111: 648 | AB111: 648 | AC111: 0 | AD111: 0 | AE111: 85.45833333 | AF111: 4 | AG111: 648 | AH111: 0 | AI111: 0 | AJ111: 89.525 | AK111: 5
D112: 98 | E112: 4.117096842 | F112: 4 | J112: 4 | M112: 141 | R112: 4 | U112: 94 | Z112: 79 | AA112: 618 | AB112: 618 | AC112: 0 | AD112: 0 | AE112: 83.01666667 | AF112: 4 | AG112: 618 | AH112: 0 | AI112: 0 | AJ112: 95.10833333 | AK112: 5
D113: 99 | E113: 10.01468441 | F113: 10 | J113: 10 | M113: 131 | R113: 10 | U113: 84 | Z113: 80 | AA113: 684 | AB113: 684 | AC113: 0 | AD113: 0 | AE113: 75.66666667 | AF113: 5 | AG113: 684 | AH113: 0 | AI113: 0 | AJ113: 85.09166667 | AK113: 5
D114: 100 | E114: 5.410124097 | F114: 5 | J114: 5 | M114: 126 | R114: 5 | U114: 79 | Z114: 81 | AA114: 567 | AB114: 567 | AC114: 0 | AD114: 0 | AE114: 80.925 | AF114: 4 | AG114: 567 | AH114: 0 | AI114: 0 | AJ114: 101.6333333 | AK114: 5
D115: 101 | E115: 5.006662591 | F115: 5 | J115: 5 | M115: 121 | R115: 5 | U115: 74 | Z115: 82 | AA115: 614 | AB115: 614 | AC115: 0 | AD115: 0 | AE115: 78.08333333 | AF115: 4 | AG115: 614 | AH115: 0 | AI115: 0 | AJ115: 92.93333333 | AK115: 5
D116: 102 | E116: 6.592511697 | F116: 7 | J116: 7 | M116: 114 | R116: 7 | U116: 67 | Z116: 83 | AA116: 628 | AB116: 627 | AC116: -1 | AD116: 1 | AE116: 76.58333333 | AF116: 4 | AG116: 628 | AH116: 0 | AI116: 0 | AJ116: 90.15 | AK116: 5
D117: 103 | E117: 7.091832118 | F117: 7 | J117: 7 | M117: 107 | R117: 7 | U117: 60 | Z117: 84 | AA117: 649 | AB117: 649 | AC117: 0 | AD117: 0 | AE117: 78.59166667 | AF117: 4 | AG117: 649 | AH117: 0 | AI117: 0 | AJ117: 91.48333333 | AK117: 5
D118: 104 | E118: 7.745752673 | F118: 8 | J118: 8 | M118: 99 | R118: 8 | U118: 52 | Z118: 85 | AA118: 642 | AB118: 642 | AC118: 0 | AD118: 0 | AE118: 82.275 | AF118: 4 | AG118: 642 | AH118: 0 | AI118: 0 | AJ118: 90.16666667 | AK118: 5
D119: 105 | E119: 0.267368897 | F119: 0 | J119: 0 | M119: 99 | R119: 0 | U119: 52 | V119: 118 | Z119: 86 | AA119: 708 | AB119: 706 | AC119: -2 | AD119: 1 | AE119: 74.13333333 | AF119: 5 | AG119: 705 | AH119: -3 | AI119: 1 | AJ119: 79.86666667 | AK119: 5
D120: 106 | E120: 3.350889063 | F120: 3 | J120: 3 | M120: 96 | R120: 3 | U120: 49 | Z120: 87 | AA120: 630 | AB120: 629 | AC120: -1 | AD120: 1 | AE120: 82.9 | AF120: 4 | AG120: 630 | AH120: 0 | AI120: 0 | AJ120: 89.75 | AK120: 5
D121: 107 | E121: 6.447741343 | F121: 6 | J121: 6 | M121: 90 | R121: 6 | U121: 43 | Z121: 88 | AA121: 732 | AB121: 728 | AC121: -4 | AD121: 1 | AE121: 77.9 | AF121: 5 | AG121: 728 | AH121: -4 | AI121: 1 | AJ121: 79.88333333 | AK121: 5
D122: 108 | E122: 5.98555758 | F122: 6 | J122: 6 | M122: 84 | R122: 6 | U122: 37 | Z122: 89 | AA122: 637 | AB122: 637 | AC122: 0 | AD122: 0 | AE122: 81.2 | AF122: 4 | AG122: 637 | AH122: 0 | AI122: 0 | AJ122: 89.5 | AK122: 5
D123: 109 | E123: 7.419020832 | F123: 7 | J123: 7 | M123: 77 | R123: 7 | U123: 30 | Z123: 90 | AA123: 669 | AB123: 666 | AC123: -3 | AD123: 1 | AE123: 76.96666667 | AF123: 5 | AG123: 666 | AH123: -3 | AI123: 1 | AJ123: 85.075 | AK123: 5
D124: 110 | E124: 8.9175401 | F124: 9 | J124: 9 | M124: 68 | R124: 9 | U124: 21 | V124: 入検 | Z124: 91 | AA124: 609 | AB124: 609 | AC124: 0 | AD124: 0 | AE124: 82.68333333 | AF124: 4 | AG124: 609 | AH124: 0 | AI124: 0 | AJ124: 92.80833333 | AK124: 5
D125: 111 | E125: 0.5489577155 | F125: 1 | J125: 1 | M125: 67 | R125: 1 | U125: 138 | Z125: 92 | AA125: 702 | AB125: 697 | AC125: -5 | AD125: 2 | AE125: 76.725 | AF125: 5 | AG125: 697 | AH125: -5 | AI125: 1 | AJ125: 82.34166667 | AK125: 5
D126: 112 | E126: 7.132174106 | F126: 7 | J126: 7 | M126: 60 | R126: 7 | U126: 131 | Z126: 93 | AA126: 636 | AB126: 636 | AC126: 0 | AD126: 0 | AE126: 78.01666667 | AF126: 4 | AG126: 636 | AH126: 0 | AI126: 0 | AJ126: 91.33333333 | AK126: 5
D127: 113 | E127: 0.4512497256 | F127: 0 | J127: 0 | M127: 60 | R127: 0 | U127: 131 | Z127: 94 | AA127: 671 | AB127: 671 | AC127: 0 | AD127: 0 | AE127: 75.65 | AF127: 5 | AG127: 671 | AH127: 0 | AI127: 0 | AJ127: 86.94166667 | AK127: 5
D128: 114 | E128: 2.104718127 | F128: 2 | J128: 2 | M128: 58 | R128: 2 | U128: 129 | Z128: 95 | AA128: 704 | AB128: 704 | AC128: 0 | AD128: 0 | AE128: 73.66666667 | AF128: 5 | AG128: 680 | AH128: -24 | AI128: 3 | AJ128: 83.41666667 | AK128: 5
D129: 115 | E129: 1.966810565 | F129: 2 | J129: 2 | M129: 56 | R129: 2 | U129: 127 | Z129: 96 | AA129: 634 | AB129: 634 | AC129: 0 | AD129: 0 | AE129: 85.28333333 | AF129: 4 | AG129: 634 | AH129: 0 | AI129: 0 | AJ129: 93.14166667 | AK129: 5
D130: 116 | E130: 7.050020624 | F130: 7 | J130: 7 | M130: 49 | R130: 7 | U130: 120 | Z130: 97 | AA130: 717 | AB130: 717 | AC130: 0 | AD130: 0 | AE130: 76.75833333 | AF130: 5 | AG130: 700 | AH130: -17 | AI130: 4 | AJ130: 84.01666667 | AK130: 5
D131: 117 | E131: 7.726614328 | F131: 8 | J131: 8 | M131: 41 | R131: 8 | U131: 112 | Z131: 98 | AA131: 684 | AB131: 682 | AC131: -2 | AD131: 1 | AE131: 75.8 | AF131: 5 | AG131: 684 | AH131: 0 | AI131: 0 | AJ131: 84.45833333 | AK131: 5
D132: 118 | E132: -0.249241849 | F132: 0 | J132: 0 | M132: 41 | R132: 0 | U132: 112 | Z132: 99 | AA132: 692 | AB132: 692 | AC132: 0 | AD132: 0 | AE132: 76.49166667 | AF132: 5 | AG132: 692 | AH132: 0 | AI132: 0 | AJ132: 86.15 | AK132: 5
D133: 119 | E133: 7.965690606 | F133: 8 | J133: 8 | M133: 33 | N133: 140 | R133: 8 | U133: 104 | Z133: 100 | AA133: 608 | AB133: 608 | AC133: 0 | AD133: 0 | AE133: 81.65833333 | AF133: 4 | AG133: 608 | AH133: 0 | AI133: 0 | AJ133: 95.75 | AK133: 5
D134: 120 | E134: 8.510282587 | F134: 9 | J134: 9 | M134: 24 | R134: 9 | U134: 95

Sheet 6章_a
C2: 第6章：ＴＯＣと工程管理
D10: LINE | E10: A | G10: Min | H10: Max | L10: Min | M10: Max
D13: 時間 | E13: 資材 | G13: A1 | K13: A2 | P13: 搬出 | W13: LINE | Y13: K1 | AA13: Min | AB13: Max | AK13: 区分 | AL13: 工程 | AN13: 平均/日 | AO13: 転記用 | AP13: 1st | AQ13: 2nd | AR13: 3rd | AS13: 4th | AT13: 5th | AU13: 6th | AV13: 7th | AW13: 8th | AX13: 9th | AY13: 10th | AZ13: 11th | BA13: 12th | BB13: 13th | BC13: 14th | BD13: 15th | BE13: 16th | BF13: 17th | BG13: 18th | BH13: 19th | BI13: 20th | BM13: 100 回の結果
G14: 加工 | K14: 搬入 | L14: 能力 | M14: 加工 | N14: 残留 | AK14: 仕掛在庫 | AL14: A2 | AN14: =AVERAGE(AP14:BI14) ->  | BN14: Sum | BO14: Ave
D15: 1H | AL15: B2 | BM15: A2 | BN15: =AO27+AO40+AO53+AO66+AO79 -> 0 | BO15: =BN15/100 -> 0
D16: 2H | W16: 搬入 | Y16: 能力 | Z16: 組立 | AA16: 残留 | AD16: 搬出 | AI16: TOC | AL16: C2 | BM16: B2 | BN16: 0 | BO16: 0
D17: 3H | W17: a2 | X17: b2 | AA17: a2 | AB17: b2 | AL17: K1 | AM17: a2 | BM17: C2 | BN17: 0 | BO17: 0
D18: 4H | AM18: b2 | BM18: a2 | BN18: 0 | BO18: 0
D19: 5H | AL19: K2 | AM19: b2 | BM19: b2 | BN19: 0 | BO19: 0
D20: 6H | AM20: c2 | BM20: b2 | BN20: 0 | BO20: 0
D21: 7H | AK21: 完成 | AL21: K1 | AM21: X | BM21: c2 | BN21: 0 | BO21: 0
D22: 8H | AL22: K2 | AM22: Y | BM22: X | BN22: 0 | BO22: 0
M23: 在庫→ | AL23: 平均/週 | AM23: X | AN23: 0 | AP23: =SUM(AP21:AT21) -> 0 | AU23: =SUM(AU21:AY21) -> 0 | AZ23: =SUM(AZ21:BD21) -> 0 | BE23: =SUM(BE21:BI21) -> 0 | BM23: Y | BN23: 0 | BO23: 0
AM24: Y | AN24: 0 | AP24: =SUM(AP22:AT22) -> 0 | AU24: =SUM(AU22:AY22) -> 0 | AZ24: =SUM(AZ22:BD22) -> 0 | BE24: =SUM(BE22:BI22) -> 0
BM25: 1ヶ月の平均生産台数
AN26: AVE | AO26: SUM
D27: LINE | E27: B | G27: Min | H27: Max | L27: Min | M27: Max | R27: 配分 | AA27: ↑ | AD27: ↑ | AL27: 1st | AM27: A2 | AN27: =AVERAGE(AP27:BI27) ->  | AO27: =SUM(AP27:BI27) -> 0 | BM27: X | BN27: =AO36+AO49+AO62+AO75+AO88 -> 0 | BO27: =BN27/20 -> 0
AA28: 在庫 | AD28: 完成 | AM28: B2 | AO28: 0 | BM28: Y | BN28: =AO37+AO50+AO63+AO76+AO89 -> 0 | BO28: =BN28/20 -> 0
AM29: C2 | AO29: 0
D30: 時間 | E30: 資材 | G30: B1 | K30: B2 | P30: 搬出 | R30: K1 | S30: K2 | AM30: a2 | AO30: 0
G31: 加工 | K31: 搬入 | L31: 能力 | M31: 加工 | N31: 残留 | U31: TABLE-1 | W31: 当日分の翌日搬入処理テーブル | AM31: b2 | AO31: 0
D32: 1H | AM32: b2 | AO32: 0
D33: 2H | U33: 送り先 | V33: A2 | W33: B2 | X33: C2 | Y33: K1 | AA33: K2 | AM33: c2 | AO33: 0
D34: 3H | U34: 品物 | V34: a1 | W34: b1 | X34: c1 | Y34: a2 | Z34: b2 | AA34: b2 | AB34: c2 | AM34: X | AO34: 0
D35: 4H | U35: 待機用 | AM35: Y | AO35: 0
D36: 5H | U36: 搬入用 | AN36: 0 | AO36: 0 | AP36: =SUM(AP34:AT34) -> 0 | AU36: =SUM(AU34:AY34) -> 0 | AZ36: =SUM(AZ34:BD34) -> 0 | BE36: =SUM(BE34:BI34) -> 0
D37: 6H | AN37: 0 | AO37: 0 | AP37: =SUM(AP35:AT35) -> 0 | AU37: =SUM(AU35:AY35) -> 0 | AZ37: =SUM(AZ35:BD35) -> 0 | BE37: =SUM(BE35:BI35) -> 0
D38: 7H
D39: 8H | AN39: AVE | AO39: SUM
M40: 在庫→ | W40: LINE | Y40: K2 | AA40: Min | AB40: Max | AL40: 2nd | AM40: A2 | AN40: =AVERAGE(AP40:BI40) ->  | AO40: =SUM(AP40:BI40) -> 0
AA41: 2 | AB41: 3 | AM41: B2 | AO41: 0
AM42: C2 | AO42: 0
W43: 搬入 | Y43: 能力 | Z43: 組立 | AA43: 残留 | AD43: 搬出 | AM43: a2 | AO43: 0
D44: LINE | E44: C | G44: Min | H44: Max | L44: Min | M44: Max | W44: b2 | X44: c2 | AA44: b2 | AB44: c2 | AM44: b2 | AO44: 0
AM45: b2 | AO45: 0
AM46: c2 | AO46: 0
D47: 時間 | E47: 資材 | G47: C1 | K47: C2 | P47: 搬出 | AM47: X | AO47: 0
G48: 加工 | K48: 搬入 | L48: 能力 | M48: 加工 | N48: 残留 | AM48: Y | AO48: 0
D49: 1H | AN49: 0 | AO49: 0 | AP49: =SUM(AP47:AT47) -> 0 | AU49: =SUM(AU47:AY47) -> 0 | AZ49: =SUM(AZ47:BD47) -> 0 | BE49: =SUM(BE47:BI47) -> 0
D50: 2H | AN50: 0 | AO50: 0 | AP50: =SUM(AP48:AT48) -> 0 | AU50: =SUM(AU48:AY48) -> 0 | AZ50: =SUM(AZ48:BD48) -> 0 | BE50: =SUM(BE48:BI48) -> 0
D51: 3H
D52: 4H | AN52: AVE | AO52: SUM
D53: 5H | AL53: 3rd | AM53: A2 | AN53: =AVERAGE(AP53:BI53) ->  | AO53: =SUM(AP53:BI53) -> 0
D54: 6H | AA54: ↑ | AD54: ↑ | AM54: B2 | AO54: 0
D55: 7H | AA55: 在庫 | AD55: 完成 | AM55: C2 | AO55: 0
D56: 8H | AM56: a2 | AO56: 0
M57: 在庫→ | AM57: b2 | AO57: 0
AM58: b2 | AO58: 0
AM59: c2 | AO59: 0
AM60: X | AO60: 0
AM61: Y | AO61: 0
AN62: 0 | AO62: 0 | AP62: =SUM(AP60:AT60) -> 0 | AU62: =SUM(AU60:AY60) -> 0 | AZ62: =SUM(AZ60:BD60) -> 0 | BE62: =SUM(BE60:BI60) -> 0
AN63: 0 | AO63: 0 | AP63: =SUM(AP61:AT61) -> 0 | AU63: =SUM(AU61:AY61) -> 0 | AZ63: =SUM(AZ61:BD61) -> 0 | BE63: =SUM(BE61:BI61) -> 0
AN65: AVE | AO65: SUM
AL66: 4th | AM66: A2 | AN66: =AVERAGE(AP66:BI66) ->  | AO66: =SUM(AP66:BI66) -> 0
AM67: B2 | AO67: 0
AM68: C2 | AO68: 0
AM69: a2 | AO69: 0
AM70: b2 | AO70: 0
AM71: b2 | AO71: 0
AM72: c2 | AO72: 0
AM73: X | AO73: 0
AM74: Y | AO74: 0
AN75: 0 | AO75: 0 | AP75: =SUM(AP73:AT73) -> 0 | AU75: =SUM(AU73:AY73) -> 0 | AZ75: =SUM(AZ73:BD73) -> 0 | BE75: =SUM(BE73:BI73) -> 0
AN76: 0 | AO76: 0 | AP76: =SUM(AP74:AT74) -> 0 | AU76: =SUM(AU74:AY74) -> 0 | AZ76: =SUM(AZ74:BD74) -> 0 | BE76: =SUM(BE74:BI74) -> 0
AN78: AVE | AO78: SUM
AL79: 5th | AM79: A2 | AN79: =AVERAGE(AP79:BI79) ->  | AO79: =SUM(AP79:BI79) -> 0
AM80: B2 | AO80: 0
AM81: C2 | AO81: 0
AM82: a2 | AO82: 0
AM83: b2 | AO83: 0
AM84: b2 | AO84: 0
AM85: c2 | AO85: 0
AM86: X | AO86: 0
AM87: Y | AO87: 0
AN88: 0 | AO88: 0 | AP88: =SUM(AP86:AT86) -> 0 | AU88: =SUM(AU86:AY86) -> 0 | AZ88: =SUM(AZ86:BD86) -> 0 | BE88: =SUM(BE86:BI86) -> 0
AN89: 0 | AO89: 0 | AP89: =SUM(AP87:AT87) -> 0 | AU89: =SUM(AU87:AY87) -> 0 | AZ89: =SUM(AZ87:BD87) -> 0 | BE89: =SUM(BE87:BI87) -> 0

Sheet 6章_b
C2: 第6章：ＴＯＣと工程管理
D10: LINE | E10: A | G10: Min | H10: Max | L10: Min | M10: Max
G11: 3 | H11: 4 | L11: 1 | M11: 2
D13: 時間 | E13: 資材 | G13: A1 | K13: A2 | P13: 搬出 | W13: LINE | Y13: K1 | AA13: Min | AB13: Max | AK13: 区分 | AL13: 工程 | AN13: 平均/日 | AO13: 転記用 | AP13: 1st | AQ13: 2nd | AR13: 3rd | AS13: 4th | AT13: 5th | AU13: 6th | AV13: 7th | AW13: 8th | AX13: 9th | AY13: 10th | AZ13: 11th | BA13: 12th | BB13: 13th | BC13: 14th | BD13: 15th | BE13: 16th | BF13: 17th | BG13: 18th | BH13: 19th | BI13: 20th | BM13: 100 回の結果
G14: 加工 | K14: 搬入 | L14: 能力 | M14: 加工 | N14: 残留 | AA14: 2 | AB14: 3 | AK14: 仕掛在庫 | AL14: A2 | AN14: =AVERAGE(AP14:BI14) -> 16.3 | AO14: =N23 -> 15 | AP14: 17 | AQ14: 16 | AR14: 15 | AS14: 15 | AT14: 15 | AU14: 12 | AV14: 16 | AW14: 14 | AX14: 15 | AY14: 19 | AZ14: 15 | BA14: 21 | BB14: 17 | BC14: 17 | BD14: 18 | BE14: 16 | BF14: 20 | BG14: 16 | BH14: 12 | BI14: 20 | BN14: Sum | BO14: Ave
D15: 1H | E15: 30 | H15: =RANDBETWEEN($G$11,$H$11) -> 4 | K15: =V36 -> 4 | L15: =RANDBETWEEN($L$11,$M$11) -> 2 | M15: =IF(L15<=K15,L15,K15) -> 2 | N15: =K15-M15 -> 2 | P15: =M15 -> 2 | AL15: B2 | AN15: 1.55 | AO15: =N40 -> 3 | AP15: 2 | AQ15: 0 | AR15: 2 | AS15: 4 | AT15: 2 | AU15: 2 | AV15: 1 | AW15: 2 | AX15: 0 | AY15: 1 | AZ15: 1 | BA15: 0 | BB15: 0 | BC15: 3 | BD15: 3 | BE15: 0 | BF15: 3 | BG15: 1 | BH15: 1 | BI15: 3 | BM15: A2 | BN15: =AO27+AO40+AO53+AO66+AO79 -> 1638 | BO15: =BN15/100 -> 16.38
D16: 2H | E16: =E15-H15 -> 26 | H16: 4 | K16: =H15+N15 -> 6 | L16: 1 | M16: 1 | N16: 5 | P16: 1 | W16: 搬入 | Y16: 能力 | Z16: 組立 | AA16: 残留 | AD16: 搬出 | AI16: TOC1 | AL16: C2 | AN16: 16.5 | AO16: =N57 -> 16 | AP16: 19 | AQ16: 14 | AR16: 16 | AS16: 17 | AT16: 20 | AU16: 16 | AV16: 17 | AW16: 14 | AX16: 17 | AY16: 13 | AZ16: 17 | BA16: 19 | BB16: 15 | BC16: 18 | BD16: 15 | BE16: 18 | BF16: 16 | BG16: 17 | BH16: 18 | BI16: 14 | BM16: B2 | BN16: =AO28+AO41+AO54+AO67+AO80 -> 116 | BO16: 1.16
D17: 3H | E17: =E16-H16 -> 22 | H17: 4 | K17: 9 | L17: 2 | M17: 2 | N17: 7 | P17: 2 | W17: a2 | X17: b2 | AA17: a2 | AB17: b2 | AL17: K1 | AM17: a2 | AN17: 0 | AO17: =AA26 -> 0 | AP17: 0 | AQ17: 0 | AR17: 0 | AS17: 0 | AT17: 0 | AU17: 0 | AV17: 0 | AW17: 0 | AX17: 0 | AY17: 0 | AZ17: 0 | BA17: 0 | BB17: 0 | BC17: 0 | BD17: 0 | BE17: 0 | BF17: 0 | BG17: 0 | BH17: 0 | BI17: 0 | BM17: C2 | BN17: 1619 | BO17: 16.19
D18: 4H | E18: 18 | H18: 3 | K18: 11 | L18: 2 | M18: 2 | N18: 9 | P18: 2 | W18: =Y36 -> 1 | X18: =Z36 -> 2 | Y18: =RANDBETWEEN($AA$14,$AB$14) -> 2 | Z18: =IF(Y18<MIN(W18:X18),Y18,MIN(W18:X18)) -> 1 | AA18: =W18-Z18 -> 0 | AB18: =X18-Z18 -> 1 | AD18: =Z18 -> 1 | AM18: b2 | AN18: 4.2 | AO18: =AB26 -> 3 | AP18: 4 | AQ18: 4 | AR18: 3 | AS18: 4 | AT18: 4 | AU18: 1 | AV18: 4 | AW18: 4 | AX18: 5 | AY18: 4 | AZ18: 4 | BA18: 5 | BB18: 6 | BC18: 4 | BD18: 5 | BE18: 4 | BF18: 6 | BG18: 6 | BH18: 2 | BI18: 5 | BM18: a2 | BN18: 0 | BO18: 0
D19: 5H | E19: 15 | H19: 4 | K19: 12 | L19: 1 | M19: 1 | N19: 11 | P19: 1 | W19: =P15+AA18 -> 2 | X19: =R32+AB18 -> 3 | Y19: 3 | Z19: 2 | AA19: 0 | AB19: 1 | AD19: 2 | AL19: K2 | AM19: b2 | AN19: 0.2 | AO19: =AA53 -> 0 | AP19: 1 | AQ19: 0 | AR19: 0 | AS19: 0 | AT19: 1 | AU19: 1 | AV19: 0 | AW19: 0 | AX19: 0 | AY19: 0 | AZ19: 0 | BA19: 0 | BB19: 0 | BC19: 0 | BD19: 0 | BE19: 1 | BF19: 0 | BG19: 0 | BH19: 0 | BI19: 0 | BM19: b2 | BN19: 409 | BO19: 4.09
D20: 6H | E20: 11 | H20: 3 | K20: 15 | L20: 2 | M20: 2 | N20: 13 | P20: 2 | W20: 1 | X20: 3 | Y20: 2 | Z20: 1 | AA20: 0 | AB20: 2 | AD20: 1 | AM20: c2 | AN20: 1.4 | AO20: =AB53 -> 2 | AP20: 0 | AQ20: 2 | AR20: 3 | AS20: 4 | AT20: 0 | AU20: 0 | AV20: 0 | AW20: 4 | AX20: 1 | AY20: 0 | AZ20: 3 | BA20: 1 | BB20: 1 | BC20: 1 | BD20: 1 | BE20: 0 | BF20: 2 | BG20: 1 | BH20: 0 | BI20: 4 | BM20: b2 | BN20: 24 | BO20: 0.24
D21: 7H | E21: 8 | H21: 3 | K21: 16 | L21: 2 | M21: 2 | N21: 14 | P21: 2 | W21: 2 | X21: 4 | Y21: 3 | Z21: 2 | AA21: 0 | AB21: 2 | AD21: 2 | AK21: 完成 | AL21: K1 | AM21: X | AN21: 11.8 | AO21: =AD26 -> 13 | AP21: 12 | AQ21: 12 | AR21: 13 | AS21: 12 | AT21: 12 | AU21: 15 | AV21: 12 | AW21: 12 | AX21: 11 | AY21: 12 | AZ21: 12 | BA21: 11 | BB21: 10 | BC21: 12 | BD21: 11 | BE21: 12 | BF21: 10 | BG21: 10 | BH21: 14 | BI21: 11 | BM21: c2 | BN21: 112 | BO21: 1.12
D22: 8H | E22: 5 | H22: 3 | K22: 17 | L22: 2 | M22: 2 | N22: 15 | P22: 2 | W22: 2 | X22: 4 | Y22: 2 | Z22: 2 | AA22: 0 | AB22: 2 | AD22: 2 | AL22: K2 | AM22: Y | AN22: 10.35 | AO22: =AD53 -> 11 | AP22: 9 | AQ22: 11 | AR22: 10 | AS22: 9 | AT22: 9 | AU22: 11 | AV22: 12 | AW22: 10 | AX22: 10 | AY22: 12 | AZ22: 10 | BA22: 9 | BB22: 11 | BC22: 11 | BD22: 11 | BE22: 11 | BF22: 11 | BG22: 11 | BH22: 10 | BI22: 9 | BM22: X | BN22: 1191 | BO22: 11.91
M23: 在庫→ | N23: =N22 -> 15 | P23: =SUM(P15:P22) -> 14 | W23: 1 | X23: 4 | Y23: 2 | Z23: 1 | AA23: 0 | AB23: 3 | AD23: 1 | AL23: 平均/週 | AM23: X | AN23: 59 | AP23: =SUM(AP21:AT21) -> 61 | AU23: =SUM(AU21:AY21) -> 62 | AZ23: =SUM(AZ21:BD21) -> 56 | BE23: =SUM(BE21:BI21) -> 57 | BM23: Y | BN23: 1069 | BO23: 10.69
W24: 2 | X24: 5 | Y24: 2 | Z24: 2 | AA24: 0 | AB24: 3 | AD24: 2 | AM24: Y | AN24: 51.75 | AP24: =SUM(AP22:AT22) -> 48 | AU24: =SUM(AU22:AY22) -> 55 | AZ24: =SUM(AZ22:BD22) -> 52 | BE24: =SUM(BE22:BI22) -> 52
W25: 2 | X25: 5 | Y25: 3 | Z25: 2 | AA25: 0 | AB25: 3 | AD25: 2 | BM25: 1ヶ月の平均生産台数
AA26: =AA25 -> 0 | AB26: =AB25 -> 3 | AD26: =SUM(AD18:AD25) -> 13 | AN26: AVE | AO26: SUM
D27: LINE | E27: B | G27: Min | H27: Max | L27: Min | M27: Max | R27: 配分 | AA27: ↑ | AD27: ↑ | AL27: 1st | AM27: A2 | AN27: =AVERAGE(AP27:BI27) -> 17.05 | AO27: =SUM(AP27:BI27) -> 341 | AP27: 20 | AQ27: 15 | AR27: 17 | AS27: 18 | AT27: 12 | AU27: 15 | AV27: 16 | AW27: 17 | AX27: 22 | AY27: 20 | AZ27: 19 | BA27: 15 | BB27: 18 | BC27: 16 | BD27: 15 | BE27: 19 | BF27: 13 | BG27: 18 | BH27: 18 | BI27: 18 | BM27: X | BN27: =AO36+AO49+AO62+AO75+AO88 -> 1191 | BO27: =BN27/20 -> 59.55
G28: 3 | H28: 4 | L28: 3 | M28: 4 | R28: 0.5 | S28: =1-R28 -> 0.5 | AA28: 在庫 | AD28: 完成 | AM28: B2 | AN28: 1.45 | AO28: 29 | AP28: 3 | AQ28: 2 | AR28: 0 | AS28: 1 | AT28: 2 | AU28: 4 | AV28: 0 | AW28: 0 | AX28: 1 | AY28: 0 | AZ28: 4 | BA28: 3 | BB28: 4 | BC28: 1 | BD28: 0 | BE28: 1 | BF28: 0 | BG28: 0 | BH28: 0 | BI28: 3 | BM28: Y | BN28: =AO37+AO50+AO63+AO76+AO89 -> 1069 | BO28: =BN28/20 -> 53.45
AM29: C2 | AN29: 16.2 | AO29: 324 | AP29: 18 | AQ29: 18 | AR29: 17 | AS29: 17 | AT29: 15 | AU29: 17 | AV29: 17 | AW29: 15 | AX29: 14 | AY29: 18 | AZ29: 17 | BA29: 15 | BB29: 15 | BC29: 16 | BD29: 15 | BE29: 11 | BF29: 16 | BG29: 15 | BH29: 19 | BI29: 19
D30: 時間 | E30: 資材 | G30: B1 | K30: B2 | P30: 搬出 | R30: K1 | S30: K2 | AM30: a2 | AN30: 0 | AO30: 0 | AP30: 0 | AQ30: 0 | AR30: 0 | AS30: 0 | AT30: 0 | AU30: 0 | AV30: 0 | AW30: 0 | AX30: 0 | AY30: 0 | AZ30: 0 | BA30: 0 | BB30: 0 | BC30: 0 | BD30: 0 | BE30: 0 | BF30: 0 | BG30: 0 | BH30: 0 | BI30: 0
G31: 加工 | K31: 搬入 | L31: 能力 | M31: 加工 | N31: 残留 | U31: TABLE-1 | W31: 当日分の翌日搬入処理テーブル | AM31: b2 | AN31: 4.3 | AO31: 86 | AP31: 5 | AQ31: 5 | AR31: 4 | AS31: 5 | AT31: 3 | AU31: 2 | AV31: 5 | AW31: 5 | AX31: 7 | AY31: 6 | AZ31: 3 | BA31: 4 | BB31: 5 | BC31: 5 | BD31: 4 | BE31: 5 | BF31: 3 | BG31: 3 | BH31: 4 | BI31: 3
D32: 1H | E32: 30 | H32: =RANDBETWEEN($G$28,$H$28) -> 3 | K32: =W36 -> 4 | L32: =RANDBETWEEN($L$28,$M$28) -> 4 | M32: =IF(L32<=K32,L32,K32) -> 4 | N32: =K32-M32 -> 0 | P32: =M32 -> 4 | R32: =ROUND(P32*$R$28,0) -> 2 | S32: =P32-R32 -> 2 | AM32: b2 | AN32: 0.15 | AO32: 3 | AP32: 0 | AQ32: 0 | AR32: 0 | AS32: 2 | AT32: 0 | AU32: 0 | AV32: 0 | AW32: 0 | AX32: 0 | AY32: 0 | AZ32: 0 | BA32: 0 | BB32: 0 | BC32: 0 | BD32: 0 | BE32: 0 | BF32: 1 | BG32: 0 | BH32: 0 | BI32: 0
D33: 2H | E33: =E32-H32 -> 27 | H33: 3 | K33: =H32+N32 -> 3 | L33: 4 | M33: 3 | N33: 0 | P33: 3 | R33: 2 | S33: 1 | U33: 送り先 | V33: A2 | W33: B2 | X33: C2 | Y33: K1 | AA33: K2 | AM33: c2 | AN33: 1.35 | AO33: 27 | AP33: 0 | AQ33: 2 | AR33: 0 | AS33: 0 | AT33: 3 | AU33: 2 | AV33: 0 | AW33: 3 | AX33: 3 | AY33: 0 | AZ33: 2 | BA33: 1 | BB33: 5 | BC33: 3 | BD33: 1 | BE33: 0 | BF33: 0 | BG33: 0 | BH33: 1 | BI33: 1
D34: 3H | E34: =E33-H33 -> 24 | H34: 4 | K34: 3 | L34: 4 | M34: 3 | N34: 0 | P34: 3 | R34: 2 | S34: 1 | U34: 品物 | V34: a1 | W34: b1 | X34: c1 | Y34: a2 | Z34: b2 | AA34: b2 | AB34: c2 | AM34: X | AN34: 11.7 | AO34: 234 | AP34: 11 | AQ34: 11 | AR34: 12 | AS34: 11 | AT34: 13 | AU34: 14 | AV34: 11 | AW34: 11 | AX34: 9 | AY34: 10 | AZ34: 13 | BA34: 12 | BB34: 11 | BC34: 11 | BD34: 12 | BE34: 11 | BF34: 13 | BG34: 13 | BH34: 12 | BI34: 13
D35: 4H | E35: 20 | H35: 4 | K35: 4 | L35: 3 | M35: 3 | N35: 1 | P35: 3 | R35: 2 | S35: 1 | U35: 待機用 | V35: =H22 -> 3 | W35: =H39 -> 4 | X35: =H56 -> 3 | Y35: =P22 -> 2 | Z35: =R39 -> 2 | AA35: =S39 -> 1 | AB35: =P56 -> 1 | AM35: Y | AN35: 10.85 | AO35: 217 | AP35: 12 | AQ35: 10 | AR35: 10 | AS35: 12 | AT35: 10 | AU35: 11 | AV35: 11 | AW35: 11 | AX35: 11 | AY35: 11 | AZ35: 10 | BA35: 10 | BB35: 9 | BC35: 10 | BD35: 12 | BE35: 13 | BF35: 12 | BG35: 10 | BH35: 11 | BI35: 11
D36: 5H | E36: 16 | H36: 4 | K36: 5 | L36: 3 | M36: 3 | N36: 2 | P36: 3 | R36: 2 | S36: 1 | U36: 搬入用 | V36: 4 | W36: 4 | X36: 3 | Y36: 1 | Z36: 2 | AA36: 2 | AB36: 2 | AN36: 58.5 | AO36: 234 | AP36: =SUM(AP34:AT34) -> 58 | AU36: =SUM(AU34:AY34) -> 55 | AZ36: =SUM(AZ34:BD34) -> 59 | BE36: =SUM(BE34:BI34) -> 62
D37: 6H | E37: 12 | H37: 4 | K37: 6 | L37: 4 | M37: 4 | N37: 2 | P37: 4 | R37: 2 | S37: 2 | AN37: 54.25 | AO37: 217 | AP37: =SUM(AP35:AT35) -> 54 | AU37: =SUM(AU35:AY35) -> 55 | AZ37: =SUM(AZ35:BD35) -> 51 | BE37: =SUM(BE35:BI35) -> 57
D38: 7H | E38: 8 | H38: 3 | K38: 6 | L38: 3 | M38: 3 | N38: 3 | P38: 3 | R38: 2 | S38: 1
D39: 8H | E39: 5 | H39: 4 | K39: 6 | L39: 3 | M39: 3 | N39: 3 | P39: 3 | R39: 2 | S39: 1 | AN39: AVE | AO39: SUM
M40: 在庫→ | N40: =N39 -> 3 | P40: =SUM(P32:P39) -> 26 | W40: LINE | Y40: K2 | AA40: Min | AB40: Max | AL40: 2nd | AM40: A2 | AN40: =AVERAGE(AP40:BI40) -> 16.25 | AO40: =SUM(AP40:BI40) -> 325 | AP40: 19 | AQ40: 18 | AR40: 15 | AS40: 14 | AT40: 21 | AU40: 16 | AV40: 17 | AW40: 20 | AX40: 17 | AY40: 17 | AZ40: 14 | BA40: 13 | BB40: 14 | BC40: 17 | BD40: 16 | BE40: 15 | BF40: 15 | BG40: 14 | BH40: 18 | BI40: 15
AA41: 2 | AB41: 3 | AM41: B2 | AN41: 0.85 | AO41: 17 | AP41: 0 | AQ41: 0 | AR41: 1 | AS41: 0 | AT41: 1 | AU41: 1 | AV41: 0 | AW41: 3 | AX41: 2 | AY41: 5 | AZ41: 0 | BA41: 1 | BB41: 0 | BC41: 0 | BD41: 0 | BE41: 0 | BF41: 0 | BG41: 0 | BH41: 0 | BI41: 3
AM42: C2 | AN42: 15.65 | AO42: 313 | AP42: 17 | AQ42: 17 | AR42: 15 | AS42: 21 | AT42: 18 | AU42: 14 | AV42: 14 | AW42: 15 | AX42: 14 | AY42: 19 | AZ42: 14 | BA42: 16 | BB42: 16 | BC42: 14 | BD42: 14 | BE42: 16 | BF42: 13 | BG42: 17 | BH42: 14 | BI42: 15
W43: 搬入 | Y43: 能力 | Z43: 組立 | AA43: 残留 | AD43: 搬出 | AM43: a2 | AN43: 0 | AO43: 0 | AP43: 0 | AQ43: 0 | AR43: 0 | AS43: 0 | AT43: 0 | AU43: 0 | AV43: 0 | AW43: 0 | AX43: 0 | AY43: 0 | AZ43: 0 | BA43: 0 | BB43: 0 | BC43: 0 | BD43: 0 | BE43: 0 | BF43: 0 | BG43: 0 | BH43: 0 | BI43: 0
D44: LINE | E44: C | G44: Min | H44: Max | L44: Min | M44: Max | W44: b2 | X44: c2 | AA44: b2 | AB44: c2 | AM44: b2 | AN44: 4 | AO44: 80 | AP44: 7 | AQ44: 6 | AR44: 5 | AS44: 1 | AT44: 5 | AU44: 4 | AV44: 4 | AW44: 8 | AX44: 5 | AY44: 5 | AZ44: 2 | BA44: 2 | BB44: 3 | BC44: 4 | BD44: 4 | BE44: 3 | BF44: 1 | BG44: 3 | BH44: 4 | BI44: 4
G45: 2 | H45: 3 | L45: 1 | M45: 2 | W45: =AA36 -> 2 | X45: =AB36 -> 2 | Y45: =RANDBETWEEN($AA$41,$AB$41) -> 2 | Z45: =IF(Y45<MIN(W45:X45),Y45,MIN(W45:X45)) -> 2 | AA45: =W45-Z45 -> 0 | AB45: =X45-Z45 -> 0 | AD45: =Z45 -> 2 | AM45: b2 | AN45: 0.35 | AO45: 7 | AP45: 2 | AQ45: 1 | AR45: 0 | AS45: 0 | AT45: 1 | AU45: 0 | AV45: 0 | AW45: 0 | AX45: 0 | AY45: 0 | AZ45: 0 | BA45: 2 | BB45: 0 | BC45: 0 | BD45: 0 | BE45: 1 | BF45: 0 | BG45: 0 | BH45: 0 | BI45: 0
W46: =S32+AA45 -> 2 | X46: =P49+AB45 -> 1 | Y46: 2 | Z46: 1 | AA46: 1 | AB46: 0 | AD46: 1 | AM46: c2 | AN46: 1 | AO46: 20 | AP46: 0 | AQ46: 0 | AR46: 1 | AS46: 0 | AT46: 0 | AU46: 3 | AV46: 0 | AW46: 5 | AX46: 2 | AY46: 1 | AZ46: 0 | BA46: 0 | BB46: 0 | BC46: 0 | BD46: 2 | BE46: 0 | BF46: 2 | BG46: 1 | BH46: 1 | BI46: 2
D47: 時間 | E47: 資材 | G47: C1 | K47: C2 | P47: 搬出 | W47: 2 | X47: 2 | Y47: 3 | Z47: 2 | AA47: 0 | AB47: 0 | AD47: 2 | AM47: X | AN47: 12 | AO47: 240 | AP47: 9 | AQ47: 10 | AR47: 11 | AS47: 15 | AT47: 11 | AU47: 12 | AV47: 12 | AW47: 8 | AX47: 11 | AY47: 11 | AZ47: 14 | BA47: 14 | BB47: 13 | BC47: 12 | BD47: 12 | BE47: 13 | BF47: 15 | BG47: 13 | BH47: 12 | BI47: 12
G48: 加工 | K48: 搬入 | L48: 能力 | M48: 加工 | N48: 残留 | W48: 1 | X48: 2 | Y48: 2 | Z48: 1 | AA48: 0 | AB48: 1 | AD48: 1 | AM48: Y | AN48: 10.8 | AO48: 216 | AP48: 11 | AQ48: 10 | AR48: 11 | AS48: 10 | AT48: 12 | AU48: 10 | AV48: 11 | AW48: 9 | AX48: 11 | AY48: 10 | AZ48: 12 | BA48: 12 | BB48: 11 | BC48: 12 | BD48: 10 | BE48: 11 | BF48: 11 | BG48: 10 | BH48: 12 | BI48: 10
D49: 1H | E49: 25 | H49: =RANDBETWEEN($G$11,$H$11) -> 4 | K49: =X36 -> 3 | L49: =RANDBETWEEN($L$45,$M$45) -> 1 | M49: =IF(L49<=K49,L49,K49) -> 1 | N49: =K49-M49 -> 2 | P49: =M49 -> 1 | W49: 1 | X49: 2 | Y49: 2 | Z49: 1 | AA49: 0 | AB49: 1 | AD49: 1 | AN49: 60 | AO49: 240 | AP49: =SUM(AP47:AT47) -> 56 | AU49: =SUM(AU47:AY47) -> 54 | AZ49: =SUM(AZ47:BD47) -> 65 | BE49: =SUM(BE47:BI47) -> 65
D50: 2H | E50: =E49-H49 -> 21 | H50: 4 | K50: =H49+N49 -> 6 | L50: 2 | M50: 2 | N50: 4 | P50: 2 | W50: 1 | X50: 3 | Y50: 2 | Z50: 1 | AA50: 0 | AB50: 2 | AD50: 1 | AN50: 54 | AO50: 216 | AP50: =SUM(AP48:AT48) -> 54 | AU50: =SUM(AU48:AY48) -> 51 | AZ50: =SUM(AZ48:BD48) -> 57 | BE50: =SUM(BE48:BI48) -> 54
D51: 3H | E51: =E50-H50 -> 17 | H51: 4 | K51: 8 | L51: 2 | M51: 2 | N51: 6 | P51: 2 | W51: 2 | X51: 3 | Y51: 2 | Z51: 2 | AA51: 0 | AB51: 1 | AD51: 2
D52: 4H | E52: 13 | H52: 4 | K52: 10 | L52: 1 | M52: 1 | N52: 9 | P52: 1 | W52: 1 | X52: 3 | Y52: 2 | Z52: 1 | AA52: 0 | AB52: 2 | AD52: 1 | AN52: AVE | AO52: SUM
D53: 5H | E53: 9 | H53: 3 | K53: 13 | L53: 2 | M53: 2 | N53: 11 | P53: 2 | AA53: =AA52 -> 0 | AB53: =AB52 -> 2 | AD53: =SUM(AD45:AD52) -> 11 | AL53: 3rd | AM53: A2 | AN53: =AVERAGE(AP53:BI53) -> 16.05 | AO53: =SUM(AP53:BI53) -> 321 | AP53: 16 | AQ53: 16 | AR53: 15 | AS53: 15 | AT53: 17 | AU53: 18 | AV53: 14 | AW53: 17 | AX53: 16 | AY53: 15 | AZ53: 15 | BA53: 16 | BB53: 16 | BC53: 16 | BD53: 15 | BE53: 19 | BF53: 18 | BG53: 16 | BH53: 15 | BI53: 16
D54: 6H | E54: 6 | H54: 3 | K54: 14 | L54: 1 | M54: 1 | N54: 13 | P54: 1 | AA54: ↑ | AD54: ↑ | AM54: B2 | AN54: 0.95 | AO54: 19 | AP54: 0 | AQ54: 1 | AR54: 1 | AS54: 1 | AT54: 6 | AU54: 0 | AV54: 0 | AW54: 2 | AX54: 1 | AY54: 0 | AZ54: 0 | BA54: 1 | BB54: 2 | BC54: 0 | BD54: 2 | BE54: 0 | BF54: 0 | BG54: 0 | BH54: 2 | BI54: 0
D55: 7H | E55: 3 | H55: 3 | K55: 16 | L55: 2 | M55: 2 | N55: 14 | P55: 2 | AA55: 在庫 | AD55: 完成 | AM55: C2 | AN55: 16.6 | AO55: 332 | AP55: 20 | AQ55: 14 | AR55: 16 | AS55: 17 | AT55: 20 | AU55: 17 | AV55: 15 | AW55: 15 | AX55: 13 | AY55: 17 | AZ55: 15 | BA55: 16 | BB55: 14 | BC55: 20 | BD55: 17 | BE55: 17 | BF55: 15 | BG55: 16 | BH55: 21 | BI55: 17
D56: 8H | E56: 0 | H56: 3 | K56: 17 | L56: 1 | M56: 1 | N56: 16 | P56: 1 | AM56: a2 | AN56: 0 | AO56: 0 | AP56: 0 | AQ56: 0 | AR56: 0 | AS56: 0 | AT56: 0 | AU56: 0 | AV56: 0 | AW56: 0 | AX56: 0 | AY56: 0 | AZ56: 0 | BA56: 0 | BB56: 0 | BC56: 0 | BD56: 0 | BE56: 0 | BF56: 0 | BG56: 0 | BH56: 0 | BI56: 0
M57: 在庫→ | N57: =N56 -> 16 | P57: =SUM(P49:P56) -> 12 | AM57: b2 | AN57: 3.95 | AO57: 79 | AP57: 4 | AQ57: 3 | AR57: 4 | AS57: 2 | AT57: 5 | AU57: 6 | AV57: 2 | AW57: 6 | AX57: 3 | AY57: 2 | AZ57: 5 | BA57: 5 | BB57: 3 | BC57: 3 | BD57: 4 | BE57: 5 | BF57: 6 | BG57: 5 | BH57: 4 | BI57: 2
AM58: b2 | AN58: 0.15 | AO58: 3 | AP58: 0 | AQ58: 0 | AR58: 1 | AS58: 0 | AT58: 0 | AU58: 0 | AV58: 0 | AW58: 0 | AX58: 0 | AY58: 0 | AZ58: 1 | BA58: 0 | BB58: 0 | BC58: 0 | BD58: 0 | BE58: 0 | BF58: 0 | BG58: 1 | BH58: 0 | BI58: 0
AM59: c2 | AN59: 0.95 | AO59: 19 | AP59: 0 | AQ59: 0 | AR59: 0 | AS59: 0 | AT59: 2 | AU59: 1 | AV59: 2 | AW59: 2 | AX59: 4 | AY59: 0 | AZ59: 0 | BA59: 1 | BB59: 5 | BC59: 0 | BD59: 0 | BE59: 0 | BF59: 1 | BG59: 0 | BH59: 0 | BI59: 1
AM60: X | AN60: 12.05 | AO60: 241 | AP60: 12 | AQ60: 13 | AR60: 12 | AS60: 14 | AT60: 11 | AU60: 10 | AV60: 14 | AW60: 10 | AX60: 13 | AY60: 14 | AZ60: 11 | BA60: 11 | BB60: 13 | BC60: 13 | BD60: 12 | BE60: 11 | BF60: 10 | BG60: 11 | BH60: 12 | BI60: 14
AM61: Y | AN61: 10.65 | AO61: 213 | AP61: 11 | AQ61: 12 | AR61: 11 | AS61: 11 | AT61: 9 | AU61: 11 | AV61: 10 | AW61: 11 | AX61: 10 | AY61: 11 | AZ61: 11 | BA61: 10 | BB61: 10 | BC61: 12 | BD61: 11 | BE61: 11 | BF61: 11 | BG61: 11 | BH61: 10 | BI61: 9
AN62: 60.25 | AO62: 241 | AP62: =SUM(AP60:AT60) -> 62 | AU62: =SUM(AU60:AY60) -> 61 | AZ62: =SUM(AZ60:BD60) -> 60 | BE62: =SUM(BE60:BI60) -> 58
AN63: 53.25 | AO63: 213 | AP63: =SUM(AP61:AT61) -> 54 | AU63: =SUM(AU61:AY61) -> 53 | AZ63: =SUM(AZ61:BD61) -> 54 | BE63: =SUM(BE61:BI61) -> 52
AN65: AVE | AO65: SUM
AL66: 4th | AM66: A2 | AN66: =AVERAGE(AP66:BI66) -> 16.25 | AO66: =SUM(AP66:BI66) -> 325 | AP66: 17 | AQ66: 18 | AR66: 17 | AS66: 17 | AT66: 12 | AU66: 17 | AV66: 16 | AW66: 16 | AX66: 15 | AY66: 16 | AZ66: 15 | BA66: 17 | BB66: 21 | BC66: 17 | BD66: 15 | BE66: 14 | BF66: 18 | BG66: 12 | BH66: 17 | BI66: 18
AM67: B2 | AN67: 1 | AO67: 20 | AP67: 2 | AQ67: 3 | AR67: 0 | AS67: 0 | AT67: 0 | AU67: 2 | AV67: 2 | AW67: 0 | AX67: 1 | AY67: 0 | AZ67: 1 | BA67: 1 | BB67: 1 | BC67: 2 | BD67: 0 | BE67: 2 | BF67: 0 | BG67: 1 | BH67: 0 | BI67: 2
AM68: C2 | AN68: 16 | AO68: 320 | AP68: 15 | AQ68: 15 | AR68: 17 | AS68: 16 | AT68: 18 | AU68: 13 | AV68: 13 | AW68: 16 | AX68: 18 | AY68: 16 | AZ68: 16 | BA68: 13 | BB68: 13 | BC68: 17 | BD68: 18 | BE68: 20 | BF68: 17 | BG68: 19 | BH68: 16 | BI68: 14
AM69: a2 | AN69: 0 | AO69: 0 | AP69: 0 | AQ69: 0 | AR69: 0 | AS69: 0 | AT69: 0 | AU69: 0 | AV69: 0 | AW69: 0 | AX69: 0 | AY69: 0 | AZ69: 0 | BA69: 0 | BB69: 0 | BC69: 0 | BD69: 0 | BE69: 0 | BF69: 0 | BG69: 0 | BH69: 0 | BI69: 0
AM70: b2 | AN70: 4 | AO70: 80 | AP70: 4 | AQ70: 5 | AR70: 3 | AS70: 3 | AT70: 3 | AU70: 3 | AV70: 6 | AW70: 4 | AX70: 2 | AY70: 5 | AZ70: 2 | BA70: 4 | BB70: 6 | BC70: 5 | BD70: 5 | BE70: 2 | BF70: 6 | BG70: 3 | BH70: 3 | BI70: 6
AM71: b2 | AN71: 0.35 | AO71: 7 | AP71: 0 | AQ71: 0 | AR71: 3 | AS71: 2 | AT71: 0 | AU71: 0 | AV71: 0 | AW71: 0 | AX71: 0 | AY71: 0 | AZ71: 0 | BA71: 0 | BB71: 0 | BC71: 1 | BD71: 0 | BE71: 0 | BF71: 1 | BG71: 0 | BH71: 0 | BI71: 0
AM72: c2 | AN72: 0.9 | AO72: 18 | AP72: 2 | AQ72: 2 | AR72: 0 | AS72: 0 | AT72: 0 | AU72: 3 | AV72: 3 | AW72: 0 | AX72: 0 | AY72: 0 | AZ72: 0 | BA72: 0 | BB72: 6 | BC72: 0 | BD72: 0 | BE72: 0 | BF72: 0 | BG72: 0 | BH72: 0 | BI72: 2
AM73: X | AN73: 12 | AO73: 240 | AP73: 12 | AQ73: 11 | AR73: 13 | AS73: 13 | AT73: 13 | AU73: 13 | AV73: 10 | AW73: 12 | AX73: 14 | AY73: 11 | AZ73: 14 | BA73: 12 | BB73: 10 | BC73: 11 | BD73: 11 | BE73: 14 | BF73: 10 | BG73: 13 | BH73: 13 | BI73: 10
AM74: Y | AN74: 10.8 | AO74: 216 | AP74: 11 | AQ74: 10 | AR74: 11 | AS74: 10 | AT74: 12 | AU74: 10 | AV74: 11 | AW74: 11 | AX74: 12 | AY74: 11 | AZ74: 12 | BA74: 11 | BB74: 8 | BC74: 10 | BD74: 12 | BE74: 11 | BF74: 10 | BG74: 10 | BH74: 12 | BI74: 11
AN75: 60 | AO75: 240 | AP75: =SUM(AP73:AT73) -> 62 | AU75: =SUM(AU73:AY73) -> 60 | AZ75: =SUM(AZ73:BD73) -> 58 | BE75: =SUM(BE73:BI73) -> 60
AN76: 54 | AO76: 216 | AP76: =SUM(AP74:AT74) -> 54 | AU76: =SUM(AU74:AY74) -> 55 | AZ76: =SUM(AZ74:BD74) -> 53 | BE76: =SUM(BE74:BI74) -> 54
AN78: AVE | AO78: SUM
AL79: 5th | AM79: A2 | AN79: =AVERAGE(AP79:BI79) -> 16.3 | AO79: =SUM(AP79:BI79) -> 326 | AP79: 17 | AQ79: 16 | AR79: 15 | AS79: 15 | AT79: 15 | AU79: 12 | AV79: 16 | AW79: 14 | AX79: 15 | AY79: 19 | AZ79: 15 | BA79: 21 | BB79: 17 | BC79: 17 | BD79: 18 | BE79: 16 | BF79: 20 | BG79: 16 | BH79: 12 | BI79: 20
AM80: B2 | AN80: 1.55 | AO80: 31 | AP80: 2 | AQ80: 0 | AR80: 2 | AS80: 4 | AT80: 2 | AU80: 2 | AV80: 1 | AW80: 2 | AX80: 0 | AY80: 1 | AZ80: 1 | BA80: 0 | BB80: 0 | BC80: 3 | BD80: 3 | BE80: 0 | BF80: 3 | BG80: 1 | BH80: 1 | BI80: 3
AM81: C2 | AN81: 16.5 | AO81: 330 | AP81: 19 | AQ81: 14 | AR81: 16 | AS81: 17 | AT81: 20 | AU81: 16 | AV81: 17 | AW81: 14 | AX81: 17 | AY81: 13 | AZ81: 17 | BA81: 19 | BB81: 15 | BC81: 18 | BD81: 15 | BE81: 18 | BF81: 16 | BG81: 17 | BH81: 18 | BI81: 14
AM82: a2 | AN82: 0 | AO82: 0 | AP82: 0 | AQ82: 0 | AR82: 0 | AS82: 0 | AT82: 0 | AU82: 0 | AV82: 0 | AW82: 0 | AX82: 0 | AY82: 0 | AZ82: 0 | BA82: 0 | BB82: 0 | BC82: 0 | BD82: 0 | BE82: 0 | BF82: 0 | BG82: 0 | BH82: 0 | BI82: 0
AM83: b2 | AN83: 4.2 | AO83: 84 | AP83: 4 | AQ83: 4 | AR83: 3 | AS83: 4 | AT83: 4 | AU83: 1 | AV83: 4 | AW83: 4 | AX83: 5 | AY83: 4 | AZ83: 4 | BA83: 5 | BB83: 6 | BC83: 4 | BD83: 5 | BE83: 4 | BF83: 6 | BG83: 6 | BH83: 2 | BI83: 5
AM84: b2 | AN84: 0.2 | AO84: 4 | AP84: 1 | AQ84: 0 | AR84: 0 | AS84: 0 | AT84: 1 | AU84: 1 | AV84: 0 | AW84: 0 | AX84: 0 | AY84: 0 | AZ84: 0 | BA84: 0 | BB84: 0 | BC84: 0 | BD84: 0 | BE84: 1 | BF84: 0 | BG84: 0 | BH84: 0 | BI84: 0
AM85: c2 | AN85: 1.4 | AO85: 28 | AP85: 0 | AQ85: 2 | AR85: 3 | AS85: 4 | AT85: 0 | AU85: 0 | AV85: 0 | AW85: 4 | AX85: 1 | AY85: 0 | AZ85: 3 | BA85: 1 | BB85: 1 | BC85: 1 | BD85: 1 | BE85: 0 | BF85: 2 | BG85: 1 | BH85: 0 | BI85: 4
AM86: X | AN86: 11.8 | AO86: 236 | AP86: 12 | AQ86: 12 | AR86: 13 | AS86: 12 | AT86: 12 | AU86: 15 | AV86: 12 | AW86: 12 | AX86: 11 | AY86: 12 | AZ86: 12 | BA86: 11 | BB86: 10 | BC86: 12 | BD86: 11 | BE86: 12 | BF86: 10 | BG86: 10 | BH86: 14 | BI86: 11
AM87: Y | AN87: 10.35 | AO87: 207 | AP87: 9 | AQ87: 11 | AR87: 10 | AS87: 9 | AT87: 9 | AU87: 11 | AV87: 12 | AW87: 10 | AX87: 10 | AY87: 12 | AZ87: 10 | BA87: 9 | BB87: 11 | BC87: 11 | BD87: 11 | BE87: 11 | BF87: 11 | BG87: 11 | BH87: 10 | BI87: 9
AN88: 59 | AO88: 236 | AP88: =SUM(AP86:AT86) -> 61 | AU88: =SUM(AU86:AY86) -> 62 | AZ88: =SUM(AZ86:BD86) -> 56 | BE88: =SUM(BE86:BI86) -> 57
AN89: 51.75 | AO89: 207 | AP89: =SUM(AP87:AT87) -> 48 | AU89: =SUM(AU87:AY87) -> 55 | AZ89: =SUM(AZ87:BD87) -> 52 | BE89: =SUM(BE87:BI87) -> 52

Sheet 7章_a
C2: 第7章： 適正ポイント還元率の決定
D6: TABLE-7 | O6: TABLE-1 | AH6: TABLE-6 | AK6: A : 支払額合計 B : 発生PT合計 C : 使用PT合計
D8: 売上合計 | O8: PT還元率 | S8: PT使用度 | W8: CP額 | AH8: 集計 | AI8: A
D9: 発生PT合計 | I9: 未使用PT内訳 | AI9: B
D10: 使用PT合計 | I10: 平均 | O10: 商品 | P10: 1 | Q10: 2 | R10: 3 | S10: 4 | T10: 5 | U10: 6 | V10: 7 | W10: 8 | X10: 9 | Y10: 10 | AI10: C
D11: 未使用PT合計 | I11: 平均以上人数 | O11: 価格
D12: 発行CP合計 | I12: 平均未満人数 | O12: 還元率
D13: 失効PT合計 | I13: CP還元対象者
X14: =IF(ISERROR(VLOOKUP(D21,$P$21:$P$51,1,FALSE)),"",1) -> 
D17: TABLE-2 | O17: TABLE-3 | Q17: 客数 | R17: =RANDBETWEEN(U17-Y17,U17+Y17) -> 11 | S17: ← | T17: 想定値 | U17: 10 | W17: 変動幅 | X17: ± | Y17: 3 | AD17: TABLE-4 | AH17: TABLE-5 | AK17: a : 支払額 b : 発生PT c : 使用PT
D19: 客番 | E19: 乱数 | F19: 順位 | G19: 発生PT計 | H19: 使用PT計 | I19: 保有PT | J19: 発行CP | K19: 失効PT | O19: 順位 | P19: 客番 | Q19: 保有PT | R19: 商品 | S19: 価格 | T19: PT使用 | V19: 使用PT | W19: 支払額 | X19: 還元率 | Y19: 発生PT | AD19: 転記用 | AH19: 客番 | AI19: 区分 | AJ19: 1 | AK19: 2 | AL19: 3 | AM19: 4 | AN19: 5 | AO19: 6 | AP19: 7 | AQ19: 8 | AR19: 9 | AS19: 10 | AT19: 11 | AU19: 12 | AV19: 13 | AW19: 14 | AX19: 15 | AY19: 16 | AZ19: 17 | BA19: 18 | BB19: 19 | BC19: 20 | BD19: 21 | BE19: 22 | BF19: 23 | BG19: 24 | BH19: 25 | BI19: 26 | BJ19: 27 | BK19: 28 | BL19: 29 | BM19: 30
D21: 1 | AD21: =IF(ISERROR(VLOOKUP(D21,$P$21:$P$60,1,FALSE)),"",VLOOKUP(D21,$P$21:$W$60,8,FALSE)) ->  | AH21: 1 | AI21: a
AD22: =IF(ISERROR(VLOOKUP(D21,$P$21:$P$60,1,FALSE)),"",VLOOKUP(D21,$P$21:$Y$60,10,FALSE)) ->  | AI22: b
AD23: =IF(ISERROR(VLOOKUP(D21,$P$21:$P$60,1,FALSE)),"",VLOOKUP(D21,$P$21:$V$60,7,FALSE)) ->  | AI23: c
D24: 2 | AD24: =IF(ISERROR(VLOOKUP(D24,$P$21:$P$60,1,FALSE)),"",VLOOKUP(D24,$P$21:$W$60,8,FALSE)) ->  | AH24: 2 | AI24: a
AD25: =IF(ISERROR(VLOOKUP(D24,$P$21:$P$60,1,FALSE)),"",VLOOKUP(D24,$P$21:$Y$60,10,FALSE)) ->  | AI25: b
AD26: =IF(ISERROR(VLOOKUP(D24,$P$21:$P$60,1,FALSE)),"",VLOOKUP(D24,$P$21:$V$60,7,FALSE)) ->  | AI26: c
D27: 3 | AD27: =IF(ISERROR(VLOOKUP(D27,$P$21:$P$60,1,FALSE)),"",VLOOKUP(D27,$P$21:$W$60,8,FALSE)) ->  | AH27: 3 | AI27: a
AD28: =IF(ISERROR(VLOOKUP(D27,$P$21:$P$60,1,FALSE)),"",VLOOKUP(D27,$P$21:$Y$60,10,FALSE)) ->  | AI28: b
AD29: =IF(ISERROR(VLOOKUP(D27,$P$21:$P$60,1,FALSE)),"",VLOOKUP(D27,$P$21:$V$60,7,FALSE)) ->  | AI29: c
D30: 4 | AD30: =IF(ISERROR(VLOOKUP(D30,$P$21:$P$60,1,FALSE)),"",VLOOKUP(D30,$P$21:$W$60,8,FALSE)) ->  | AH30: 4 | AI30: a
AD31: =IF(ISERROR(VLOOKUP(D30,$P$21:$P$60,1,FALSE)),"",VLOOKUP(D30,$P$21:$Y$60,10,FALSE)) ->  | AI31: b
AD32: =IF(ISERROR(VLOOKUP(D30,$P$21:$P$60,1,FALSE)),"",VLOOKUP(D30,$P$21:$V$60,7,FALSE)) ->  | AI32: c
D33: 5 | AD33: =IF(ISERROR(VLOOKUP(D33,$P$21:$P$60,1,FALSE)),"",VLOOKUP(D33,$P$21:$W$60,8,FALSE)) ->  | AH33: 5 | AI33: a
AD34: =IF(ISERROR(VLOOKUP(D33,$P$21:$P$60,1,FALSE)),"",VLOOKUP(D33,$P$21:$Y$60,10,FALSE)) ->  | AI34: b
AD35: =IF(ISERROR(VLOOKUP(D33,$P$21:$P$60,1,FALSE)),"",VLOOKUP(D33,$P$21:$V$60,7,FALSE)) ->  | AI35: c
D36: 6 | AD36: =IF(ISERROR(VLOOKUP(D36,$P$21:$P$60,1,FALSE)),"",VLOOKUP(D36,$P$21:$W$60,8,FALSE)) ->  | AH36: 6 | AI36: a
AD37: =IF(ISERROR(VLOOKUP(D36,$P$21:$P$60,1,FALSE)),"",VLOOKUP(D36,$P$21:$Y$60,10,FALSE)) ->  | AI37: b
AD38: =IF(ISERROR(VLOOKUP(D36,$P$21:$P$60,1,FALSE)),"",VLOOKUP(D36,$P$21:$V$60,7,FALSE)) ->  | AI38: c
D39: 7 | AD39: =IF(ISERROR(VLOOKUP(D39,$P$21:$P$60,1,FALSE)),"",VLOOKUP(D39,$P$21:$W$60,8,FALSE)) ->  | AH39: 7 | AI39: a
AD40: =IF(ISERROR(VLOOKUP(D39,$P$21:$P$60,1,FALSE)),"",VLOOKUP(D39,$P$21:$Y$60,10,FALSE)) ->  | AI40: b
AD41: =IF(ISERROR(VLOOKUP(D39,$P$21:$P$60,1,FALSE)),"",VLOOKUP(D39,$P$21:$V$60,7,FALSE)) ->  | AI41: c
D42: 8 | AD42: =IF(ISERROR(VLOOKUP(D42,$P$21:$P$60,1,FALSE)),"",VLOOKUP(D42,$P$21:$W$60,8,FALSE)) ->  | AH42: 8 | AI42: a
AD43: =IF(ISERROR(VLOOKUP(D42,$P$21:$P$60,1,FALSE)),"",VLOOKUP(D42,$P$21:$Y$60,10,FALSE)) ->  | AI43: b
AD44: =IF(ISERROR(VLOOKUP(D42,$P$21:$P$60,1,FALSE)),"",VLOOKUP(D42,$P$21:$V$60,7,FALSE)) ->  | AI44: c
D45: 9 | AD45: =IF(ISERROR(VLOOKUP(D45,$P$21:$P$60,1,FALSE)),"",VLOOKUP(D45,$P$21:$W$60,8,FALSE)) ->  | AH45: 9 | AI45: a
AD46: =IF(ISERROR(VLOOKUP(D45,$P$21:$P$60,1,FALSE)),"",VLOOKUP(D45,$P$21:$Y$60,10,FALSE)) ->  | AI46: b
AD47: =IF(ISERROR(VLOOKUP(D45,$P$21:$P$60,1,FALSE)),"",VLOOKUP(D45,$P$21:$V$60,7,FALSE)) ->  | AI47: c
D48: 10 | AD48: =IF(ISERROR(VLOOKUP(D48,$P$21:$P$60,1,FALSE)),"",VLOOKUP(D48,$P$21:$W$60,8,FALSE)) ->  | AH48: 10 | AI48: a
AD49: =IF(ISERROR(VLOOKUP(D48,$P$21:$P$60,1,FALSE)),"",VLOOKUP(D48,$P$21:$Y$60,10,FALSE)) ->  | AI49: b
AD50: =IF(ISERROR(VLOOKUP(D48,$P$21:$P$60,1,FALSE)),"",VLOOKUP(D48,$P$21:$V$60,7,FALSE)) ->  | AI50: c
D51: 11 | AD51: =IF(ISERROR(VLOOKUP(D51,$P$21:$P$60,1,FALSE)),"",VLOOKUP(D51,$P$21:$W$60,8,FALSE)) ->  | AH51: 11 | AI51: a
AD52: =IF(ISERROR(VLOOKUP(D51,$P$21:$P$60,1,FALSE)),"",VLOOKUP(D51,$P$21:$Y$60,10,FALSE)) ->  | AI52: b
AD53: =IF(ISERROR(VLOOKUP(D51,$P$21:$P$60,1,FALSE)),"",VLOOKUP(D51,$P$21:$V$60,7,FALSE)) ->  | AI53: c
D54: 12 | AD54: =IF(ISERROR(VLOOKUP(D54,$P$21:$P$60,1,FALSE)),"",VLOOKUP(D54,$P$21:$W$60,8,FALSE)) ->  | AH54: 12 | AI54: a
AD55: =IF(ISERROR(VLOOKUP(D54,$P$21:$P$60,1,FALSE)),"",VLOOKUP(D54,$P$21:$Y$60,10,FALSE)) ->  | AI55: b
AD56: =IF(ISERROR(VLOOKUP(D54,$P$21:$P$60,1,FALSE)),"",VLOOKUP(D54,$P$21:$V$60,7,FALSE)) ->  | AI56: c
D57: 13 | AD57: =IF(ISERROR(VLOOKUP(D57,$P$21:$P$60,1,FALSE)),"",VLOOKUP(D57,$P$21:$W$60,8,FALSE)) ->  | AH57: 13 | AI57: a
AD58: =IF(ISERROR(VLOOKUP(D57,$P$21:$P$60,1,FALSE)),"",VLOOKUP(D57,$P$21:$Y$60,10,FALSE)) ->  | AI58: b
AD59: =IF(ISERROR(VLOOKUP(D57,$P$21:$P$60,1,FALSE)),"",VLOOKUP(D57,$P$21:$V$60,7,FALSE)) ->  | AI59: c
D60: 14 | AD60: =IF(ISERROR(VLOOKUP(D60,$P$21:$P$60,1,FALSE)),"",VLOOKUP(D60,$P$21:$W$60,8,FALSE)) ->  | AH60: 14 | AI60: a
AD61: =IF(ISERROR(VLOOKUP(D60,$P$21:$P$60,1,FALSE)),"",VLOOKUP(D60,$P$21:$Y$60,10,FALSE)) ->  | AI61: b
AD62: =IF(ISERROR(VLOOKUP(D60,$P$21:$P$60,1,FALSE)),"",VLOOKUP(D60,$P$21:$V$60,7,FALSE)) ->  | AI62: c
D63: 15 | AD63: =IF(ISERROR(VLOOKUP(D63,$P$21:$P$60,1,FALSE)),"",VLOOKUP(D63,$P$21:$W$60,8,FALSE)) ->  | AH63: 15 | AI63: a
O64: 境界 | P64: 人数 | Q64: 未使用PT計 | AD64: =IF(ISERROR(VLOOKUP(D63,$P$21:$P$60,1,FALSE)),"",VLOOKUP(D63,$P$21:$Y$60,10,FALSE)) ->  | AI64: b
O65: 0 | AD65: =IF(ISERROR(VLOOKUP(D63,$P$21:$P$60,1,FALSE)),"",VLOOKUP(D63,$P$21:$V$60,7,FALSE)) ->  | AI65: c
D66: 16 | O66: 100 | AD66: =IF(ISERROR(VLOOKUP(D66,$P$21:$P$60,1,FALSE)),"",VLOOKUP(D66,$P$21:$W$60,8,FALSE)) ->  | AH66: 16 | AI66: a
O67: 200 | AD67: =IF(ISERROR(VLOOKUP(D66,$P$21:$P$60,1,FALSE)),"",VLOOKUP(D66,$P$21:$Y$60,10,FALSE)) ->  | AI67: b
O68: 300 | AD68: =IF(ISERROR(VLOOKUP(D66,$P$21:$P$60,1,FALSE)),"",VLOOKUP(D66,$P$21:$V$60,7,FALSE)) ->  | AI68: c
D69: 17 | O69: 400 | AD69: =IF(ISERROR(VLOOKUP(D69,$P$21:$P$60,1,FALSE)),"",VLOOKUP(D69,$P$21:$W$60,8,FALSE)) ->  | AH69: 17 | AI69: a
O70: 500 | AD70: =IF(ISERROR(VLOOKUP(D69,$P$21:$P$60,1,FALSE)),"",VLOOKUP(D69,$P$21:$Y$60,10,FALSE)) ->  | AI70: b
O71: 600 | AD71: =IF(ISERROR(VLOOKUP(D69,$P$21:$P$60,1,FALSE)),"",VLOOKUP(D69,$P$21:$V$60,7,FALSE)) ->  | AI71: c
D72: 18 | O72: 700 | AD72: =IF(ISERROR(VLOOKUP(D72,$P$21:$P$60,1,FALSE)),"",VLOOKUP(D72,$P$21:$W$60,8,FALSE)) ->  | AH72: 18 | AI72: a
O73: 800 | AD73: =IF(ISERROR(VLOOKUP(D72,$P$21:$P$60,1,FALSE)),"",VLOOKUP(D72,$P$21:$Y$60,10,FALSE)) ->  | AI73: b
O74: 900 | AD74: =IF(ISERROR(VLOOKUP(D72,$P$21:$P$60,1,FALSE)),"",VLOOKUP(D72,$P$21:$V$60,7,FALSE)) ->  | AI74: c
D75: 19 | O75: 1000 | AD75: =IF(ISERROR(VLOOKUP(D75,$P$21:$P$60,1,FALSE)),"",VLOOKUP(D75,$P$21:$W$60,8,FALSE)) ->  | AH75: 19 | AI75: a
O76: 1100 | AD76: =IF(ISERROR(VLOOKUP(D75,$P$21:$P$60,1,FALSE)),"",VLOOKUP(D75,$P$21:$Y$60,10,FALSE)) ->  | AI76: b
O77: 1200 | AD77: =IF(ISERROR(VLOOKUP(D75,$P$21:$P$60,1,FALSE)),"",VLOOKUP(D75,$P$21:$V$60,7,FALSE)) ->  | AI77: c
D78: 20 | O78: 1300 | AD78: =IF(ISERROR(VLOOKUP(D78,$P$21:$P$60,1,FALSE)),"",VLOOKUP(D78,$P$21:$W$60,8,FALSE)) ->  | AH78: 20 | AI78: a
O79: 1400 | AD79: =IF(ISERROR(VLOOKUP(D78,$P$21:$P$60,1,FALSE)),"",VLOOKUP(D78,$P$21:$Y$60,10,FALSE)) ->  | AI79: b
O80: 1500 | AD80: =IF(ISERROR(VLOOKUP(D78,$P$21:$P$60,1,FALSE)),"",VLOOKUP(D78,$P$21:$V$60,7,FALSE)) ->  | AI80: c
D81: 21 | O81: 1600 | AD81: =IF(ISERROR(VLOOKUP(D81,$P$21:$P$60,1,FALSE)),"",VLOOKUP(D81,$P$21:$W$60,8,FALSE)) ->  | AH81: 21 | AI81: a
O82: 1700 | AD82: =IF(ISERROR(VLOOKUP(D81,$P$21:$P$60,1,FALSE)),"",VLOOKUP(D81,$P$21:$Y$60,10,FALSE)) ->  | AI82: b
O83: 1800 | AD83: =IF(ISERROR(VLOOKUP(D81,$P$21:$P$60,1,FALSE)),"",VLOOKUP(D81,$P$21:$V$60,7,FALSE)) ->  | AI83: c
D84: 22 | O84: 1900 | AD84: =IF(ISERROR(VLOOKUP(D84,$P$21:$P$60,1,FALSE)),"",VLOOKUP(D84,$P$21:$W$60,8,FALSE)) ->  | AH84: 22 | AI84: a
O85: 2000 | AD85: =IF(ISERROR(VLOOKUP(D84,$P$21:$P$60,1,FALSE)),"",VLOOKUP(D84,$P$21:$Y$60,10,FALSE)) ->  | AI85: b
O86: 2100 | AD86: =IF(ISERROR(VLOOKUP(D84,$P$21:$P$60,1,FALSE)),"",VLOOKUP(D84,$P$21:$V$60,7,FALSE)) ->  | AI86: c
D87: 23 | O87: 2200 | AD87: =IF(ISERROR(VLOOKUP(D87,$P$21:$P$60,1,FALSE)),"",VLOOKUP(D87,$P$21:$W$60,8,FALSE)) ->  | AH87: 23 | AI87: a
O88: 2300 | AD88: =IF(ISERROR(VLOOKUP(D87,$P$21:$P$60,1,FALSE)),"",VLOOKUP(D87,$P$21:$Y$60,10,FALSE)) ->  | AI88: b
O89: 2400 | AD89: =IF(ISERROR(VLOOKUP(D87,$P$21:$P$60,1,FALSE)),"",VLOOKUP(D87,$P$21:$V$60,7,FALSE)) ->  | AI89: c
D90: 24 | O90: 2500 | AD90: =IF(ISERROR(VLOOKUP(D90,$P$21:$P$60,1,FALSE)),"",VLOOKUP(D90,$P$21:$W$60,8,FALSE)) ->  | AH90: 24 | AI90: a
O91: 合計 | AD91: =IF(ISERROR(VLOOKUP(D90,$P$21:$P$60,1,FALSE)),"",VLOOKUP(D90,$P$21:$Y$60,10,FALSE)) ->  | AI91: b
AD92: =IF(ISERROR(VLOOKUP(D90,$P$21:$P$60,1,FALSE)),"",VLOOKUP(D90,$P$21:$V$60,7,FALSE)) ->  | AI92: c
D93: 25 | AD93: =IF(ISERROR(VLOOKUP(D93,$P$21:$P$60,1,FALSE)),"",VLOOKUP(D93,$P$21:$W$60,8,FALSE)) ->  | AH93: 25 | AI93: a
AD94: =IF(ISERROR(VLOOKUP(D93,$P$21:$P$60,1,FALSE)),"",VLOOKUP(D93,$P$21:$Y$60,10,FALSE)) ->  | AI94: b
AD95: =IF(ISERROR(VLOOKUP(D93,$P$21:$P$60,1,FALSE)),"",VLOOKUP(D93,$P$21:$V$60,7,FALSE)) ->  | AI95: c
D96: 26 | AD96: =IF(ISERROR(VLOOKUP(D96,$P$21:$P$60,1,FALSE)),"",VLOOKUP(D96,$P$21:$W$60,8,FALSE)) ->  | AH96: 26 | AI96: a
AD97: =IF(ISERROR(VLOOKUP(D96,$P$21:$P$60,1,FALSE)),"",VLOOKUP(D96,$P$21:$Y$60,10,FALSE)) ->  | AI97: b
AD98: =IF(ISERROR(VLOOKUP(D96,$P$21:$P$60,1,FALSE)),"",VLOOKUP(D96,$P$21:$V$60,7,FALSE)) ->  | AI98: c
D99: 27 | AD99: =IF(ISERROR(VLOOKUP(D99,$P$21:$P$60,1,FALSE)),"",VLOOKUP(D99,$P$21:$W$60,8,FALSE)) ->  | AH99: 27 | AI99: a
AD100: =IF(ISERROR(VLOOKUP(D99,$P$21:$P$60,1,FALSE)),"",VLOOKUP(D99,$P$21:$Y$60,10,FALSE)) ->  | AI100: b
AD101: =IF(ISERROR(VLOOKUP(D99,$P$21:$P$60,1,FALSE)),"",VLOOKUP(D99,$P$21:$V$60,7,FALSE)) ->  | AI101: c
D102: 28 | AD102: =IF(ISERROR(VLOOKUP(D102,$P$21:$P$60,1,FALSE)),"",VLOOKUP(D102,$P$21:$W$60,8,FALSE)) ->  | AH102: 28 | AI102: a
AD103: =IF(ISERROR(VLOOKUP(D102,$P$21:$P$60,1,FALSE)),"",VLOOKUP(D102,$P$21:$Y$60,10,FALSE)) ->  | AI103: b
AD104: =IF(ISERROR(VLOOKUP(D102,$P$21:$P$60,1,FALSE)),"",VLOOKUP(D102,$P$21:$V$60,7,FALSE)) ->  | AI104: c
D105: 29 | AD105: =IF(ISERROR(VLOOKUP(D105,$P$21:$P$60,1,FALSE)),"",VLOOKUP(D105,$P$21:$W$60,8,FALSE)) ->  | AH105: 29 | AI105: a
AD106: =IF(ISERROR(VLOOKUP(D105,$P$21:$P$60,1,FALSE)),"",VLOOKUP(D105,$P$21:$Y$60,10,FALSE)) ->  | AI106: b
AD107: =IF(ISERROR(VLOOKUP(D105,$P$21:$P$60,1,FALSE)),"",VLOOKUP(D105,$P$21:$V$60,7,FALSE)) ->  | AI107: c
D108: 30 | AD108: =IF(ISERROR(VLOOKUP(D108,$P$21:$P$60,1,FALSE)),"",VLOOKUP(D108,$P$21:$W$60,8,FALSE)) ->  | AH108: 30 | AI108: a
AD109: =IF(ISERROR(VLOOKUP(D108,$P$21:$P$60,1,FALSE)),"",VLOOKUP(D108,$P$21:$Y$60,10,FALSE)) ->  | AI109: b
AD110: =IF(ISERROR(VLOOKUP(D108,$P$21:$P$60,1,FALSE)),"",VLOOKUP(D108,$P$21:$V$60,7,FALSE)) ->  | AI110: c
D111: 31 | AD111: =IF(ISERROR(VLOOKUP(D111,$P$21:$P$60,1,FALSE)),"",VLOOKUP(D111,$P$21:$W$60,8,FALSE)) ->  | AH111: 31 | AI111: a
AD112: =IF(ISERROR(VLOOKUP(D111,$P$21:$P$60,1,FALSE)),"",VLOOKUP(D111,$P$21:$Y$60,10,FALSE)) ->  | AI112: b
AD113: =IF(ISERROR(VLOOKUP(D111,$P$21:$P$60,1,FALSE)),"",VLOOKUP(D111,$P$21:$V$60,7,FALSE)) ->  | AI113: c
D114: 32 | AD114: =IF(ISERROR(VLOOKUP(D114,$P$21:$P$60,1,FALSE)),"",VLOOKUP(D114,$P$21:$W$60,8,FALSE)) ->  | AH114: 32 | AI114: a
AD115: =IF(ISERROR(VLOOKUP(D114,$P$21:$P$60,1,FALSE)),"",VLOOKUP(D114,$P$21:$Y$60,10,FALSE)) ->  | AI115: b
AD116: =IF(ISERROR(VLOOKUP(D114,$P$21:$P$60,1,FALSE)),"",VLOOKUP(D114,$P$21:$V$60,7,FALSE)) ->  | AI116: c
D117: 33 | AD117: =IF(ISERROR(VLOOKUP(D117,$P$21:$P$60,1,FALSE)),"",VLOOKUP(D117,$P$21:$W$60,8,FALSE)) ->  | AH117: 33 | AI117: a
AD118: =IF(ISERROR(VLOOKUP(D117,$P$21:$P$60,1,FALSE)),"",VLOOKUP(D117,$P$21:$Y$60,10,FALSE)) ->  | AI118: b
AD119: =IF(ISERROR(VLOOKUP(D117,$P$21:$P$60,1,FALSE)),"",VLOOKUP(D117,$P$21:$V$60,7,FALSE)) ->  | AI119: c
D120: 34 | AD120: =IF(ISERROR(VLOOKUP(D120,$P$21:$P$60,1,FALSE)),"",VLOOKUP(D120,$P$21:$W$60,8,FALSE)) ->  | AH120: 34 | AI120: a
AD121: =IF(ISERROR(VLOOKUP(D120,$P$21:$P$60,1,FALSE)),"",VLOOKUP(D120,$P$21:$Y$60,10,FALSE)) ->  | AI121: b
AD122: =IF(ISERROR(VLOOKUP(D120,$P$21:$P$60,1,FALSE)),"",VLOOKUP(D120,$P$21:$V$60,7,FALSE)) ->  | AI122: c
D123: 35 | AD123: =IF(ISERROR(VLOOKUP(D123,$P$21:$P$60,1,FALSE)),"",VLOOKUP(D123,$P$21:$W$60,8,FALSE)) ->  | AH123: 35 | AI123: a
AD124: =IF(ISERROR(VLOOKUP(D123,$P$21:$P$60,1,FALSE)),"",VLOOKUP(D123,$P$21:$Y$60,10,FALSE)) ->  | AI124: b
AD125: =IF(ISERROR(VLOOKUP(D123,$P$21:$P$60,1,FALSE)),"",VLOOKUP(D123,$P$21:$V$60,7,FALSE)) ->  | AI125: c
D126: 36 | AD126: =IF(ISERROR(VLOOKUP(D126,$P$21:$P$60,1,FALSE)),"",VLOOKUP(D126,$P$21:$W$60,8,FALSE)) ->  | AH126: 36 | AI126: a
AD127: =IF(ISERROR(VLOOKUP(D126,$P$21:$P$60,1,FALSE)),"",VLOOKUP(D126,$P$21:$Y$60,10,FALSE)) ->  | AI127: b
AD128: =IF(ISERROR(VLOOKUP(D126,$P$21:$P$60,1,FALSE)),"",VLOOKUP(D126,$P$21:$V$60,7,FALSE)) ->  | AI128: c
D129: 37 | AD129: =IF(ISERROR(VLOOKUP(D129,$P$21:$P$60,1,FALSE)),"",VLOOKUP(D129,$P$21:$W$60,8,FALSE)) ->  | AH129: 37 | AI129: a
AD130: =IF(ISERROR(VLOOKUP(D129,$P$21:$P$60,1,FALSE)),"",VLOOKUP(D129,$P$21:$Y$60,10,FALSE)) ->  | AI130: b
AD131: =IF(ISERROR(VLOOKUP(D129,$P$21:$P$60,1,FALSE)),"",VLOOKUP(D129,$P$21:$V$60,7,FALSE)) ->  | AI131: c
D132: 38 | AD132: =IF(ISERROR(VLOOKUP(D132,$P$21:$P$60,1,FALSE)),"",VLOOKUP(D132,$P$21:$W$60,8,FALSE)) ->  | AH132: 38 | AI132: a
AD133: =IF(ISERROR(VLOOKUP(D132,$P$21:$P$60,1,FALSE)),"",VLOOKUP(D132,$P$21:$Y$60,10,FALSE)) ->  | AI133: b
AD134: =IF(ISERROR(VLOOKUP(D132,$P$21:$P$60,1,FALSE)),"",VLOOKUP(D132,$P$21:$V$60,7,FALSE)) ->  | AI134: c
D135: 39 | AD135: =IF(ISERROR(VLOOKUP(D135,$P$21:$P$60,1,FALSE)),"",VLOOKUP(D135,$P$21:$W$60,8,FALSE)) ->  | AH135: 39 | AI135: a
AD136: =IF(ISERROR(VLOOKUP(D135,$P$21:$P$60,1,FALSE)),"",VLOOKUP(D135,$P$21:$Y$60,10,FALSE)) ->  | AI136: b
AD137: =IF(ISERROR(VLOOKUP(D135,$P$21:$P$60,1,FALSE)),"",VLOOKUP(D135,$P$21:$V$60,7,FALSE)) ->  | AI137: c
D138: 40 | AD138: =IF(ISERROR(VLOOKUP(D138,$P$21:$P$60,1,FALSE)),"",VLOOKUP(D138,$P$21:$W$60,8,FALSE)) ->  | AH138: 40 | AI138: a
AD139: =IF(ISERROR(VLOOKUP(D138,$P$21:$P$60,1,FALSE)),"",VLOOKUP(D138,$P$21:$Y$60,10,FALSE)) ->  | AI139: b
AD140: =IF(ISERROR(VLOOKUP(D138,$P$21:$P$60,1,FALSE)),"",VLOOKUP(D138,$P$21:$V$60,7,FALSE)) ->  | AI140: c
D141: 41 | AD141: =IF(ISERROR(VLOOKUP(D141,$P$21:$P$60,1,FALSE)),"",VLOOKUP(D141,$P$21:$W$60,8,FALSE)) ->  | AH141: 41 | AI141: a
AD142: =IF(ISERROR(VLOOKUP(D141,$P$21:$P$60,1,FALSE)),"",VLOOKUP(D141,$P$21:$Y$60,10,FALSE)) ->  | AI142: b
AD143: =IF(ISERROR(VLOOKUP(D141,$P$21:$P$60,1,FALSE)),"",VLOOKUP(D141,$P$21:$V$60,7,FALSE)) ->  | AI143: c
D144: 42 | AD144: =IF(ISERROR(VLOOKUP(D144,$P$21:$P$60,1,FALSE)),"",VLOOKUP(D144,$P$21:$W$60,8,FALSE)) ->  | AH144: 42 | AI144: a
AD145: =IF(ISERROR(VLOOKUP(D144,$P$21:$P$60,1,FALSE)),"",VLOOKUP(D144,$P$21:$Y$60,10,FALSE)) ->  | AI145: b
AD146: =IF(ISERROR(VLOOKUP(D144,$P$21:$P$60,1,FALSE)),"",VLOOKUP(D144,$P$21:$V$60,7,FALSE)) ->  | AI146: c
D147: 43 | AD147: =IF(ISERROR(VLOOKUP(D147,$P$21:$P$60,1,FALSE)),"",VLOOKUP(D147,$P$21:$W$60,8,FALSE)) ->  | AH147: 43 | AI147: a
AD148: =IF(ISERROR(VLOOKUP(D147,$P$21:$P$60,1,FALSE)),"",VLOOKUP(D147,$P$21:$Y$60,10,FALSE)) ->  | AI148: b
AD149: =IF(ISERROR(VLOOKUP(D147,$P$21:$P$60,1,FALSE)),"",VLOOKUP(D147,$P$21:$V$60,7,FALSE)) ->  | AI149: c
D150: 44 | AD150: =IF(ISERROR(VLOOKUP(D150,$P$21:$P$60,1,FALSE)),"",VLOOKUP(D150,$P$21:$W$60,8,FALSE)) ->  | AH150: 44 | AI150: a
AD151: =IF(ISERROR(VLOOKUP(D150,$P$21:$P$60,1,FALSE)),"",VLOOKUP(D150,$P$21:$Y$60,10,FALSE)) ->  | AI151: b
AD152: =IF(ISERROR(VLOOKUP(D150,$P$21:$P$60,1,FALSE)),"",VLOOKUP(D150,$P$21:$V$60,7,FALSE)) ->  | AI152: c
D153: 45 | AD153: =IF(ISERROR(VLOOKUP(D153,$P$21:$P$60,1,FALSE)),"",VLOOKUP(D153,$P$21:$W$60,8,FALSE)) ->  | AH153: 45 | AI153: a
AD154: =IF(ISERROR(VLOOKUP(D153,$P$21:$P$60,1,FALSE)),"",VLOOKUP(D153,$P$21:$Y$60,10,FALSE)) ->  | AI154: b
AD155: =IF(ISERROR(VLOOKUP(D153,$P$21:$P$60,1,FALSE)),"",VLOOKUP(D153,$P$21:$V$60,7,FALSE)) ->  | AI155: c
D156: 46 | AD156: =IF(ISERROR(VLOOKUP(D156,$P$21:$P$60,1,FALSE)),"",VLOOKUP(D156,$P$21:$W$60,8,FALSE)) ->  | AH156: 46 | AI156: a
AD157: =IF(ISERROR(VLOOKUP(D156,$P$21:$P$60,1,FALSE)),"",VLOOKUP(D156,$P$21:$Y$60,10,FALSE)) ->  | AI157: b
AD158: =IF(ISERROR(VLOOKUP(D156,$P$21:$P$60,1,FALSE)),"",VLOOKUP(D156,$P$21:$V$60,7,FALSE)) ->  | AI158: c
D159: 47 | AD159: =IF(ISERROR(VLOOKUP(D159,$P$21:$P$60,1,FALSE)),"",VLOOKUP(D159,$P$21:$W$60,8,FALSE)) ->  | AH159: 47 | AI159: a
AD160: =IF(ISERROR(VLOOKUP(D159,$P$21:$P$60,1,FALSE)),"",VLOOKUP(D159,$P$21:$Y$60,10,FALSE)) ->  | AI160: b
AD161: =IF(ISERROR(VLOOKUP(D159,$P$21:$P$60,1,FALSE)),"",VLOOKUP(D159,$P$21:$V$60,7,FALSE)) ->  | AI161: c
D162: 48 | AD162: =IF(ISERROR(VLOOKUP(D162,$P$21:$P$60,1,FALSE)),"",VLOOKUP(D162,$P$21:$W$60,8,FALSE)) ->  | AH162: 48 | AI162: a
AD163: =IF(ISERROR(VLOOKUP(D162,$P$21:$P$60,1,FALSE)),"",VLOOKUP(D162,$P$21:$Y$60,10,FALSE)) ->  | AI163: b
AD164: =IF(ISERROR(VLOOKUP(D162,$P$21:$P$60,1,FALSE)),"",VLOOKUP(D162,$P$21:$V$60,7,FALSE)) ->  | AI164: c
D165: 49 | AD165: =IF(ISERROR(VLOOKUP(D165,$P$21:$P$60,1,FALSE)),"",VLOOKUP(D165,$P$21:$W$60,8,FALSE)) ->  | AH165: 49 | AI165: a
AD166: =IF(ISERROR(VLOOKUP(D165,$P$21:$P$60,1,FALSE)),"",VLOOKUP(D165,$P$21:$Y$60,10,FALSE)) ->  | AI166: b
AD167: =IF(ISERROR(VLOOKUP(D165,$P$21:$P$60,1,FALSE)),"",VLOOKUP(D165,$P$21:$V$60,7,FALSE)) ->  | AI167: c
D168: 50 | AD168: =IF(ISERROR(VLOOKUP(D168,$P$21:$P$60,1,FALSE)),"",VLOOKUP(D168,$P$21:$W$60,8,FALSE)) ->  | AH168: 50 | AI168: a
AD169: =IF(ISERROR(VLOOKUP(D168,$P$21:$P$60,1,FALSE)),"",VLOOKUP(D168,$P$21:$Y$60,10,FALSE)) ->  | AI169: b
AD170: =IF(ISERROR(VLOOKUP(D168,$P$21:$P$60,1,FALSE)),"",VLOOKUP(D168,$P$21:$V$60,7,FALSE)) ->  | AI170: c
D171: 51 | AD171: =IF(ISERROR(VLOOKUP(D171,$P$21:$P$60,1,FALSE)),"",VLOOKUP(D171,$P$21:$W$60,8,FALSE)) ->  | AH171: 51 | AI171: a
AD172: =IF(ISERROR(VLOOKUP(D171,$P$21:$P$60,1,FALSE)),"",VLOOKUP(D171,$P$21:$Y$60,10,FALSE)) ->  | AI172: b
AD173: =IF(ISERROR(VLOOKUP(D171,$P$21:$P$60,1,FALSE)),"",VLOOKUP(D171,$P$21:$V$60,7,FALSE)) ->  | AI173: c
D174: 52 | AD174: =IF(ISERROR(VLOOKUP(D174,$P$21:$P$60,1,FALSE)),"",VLOOKUP(D174,$P$21:$W$60,8,FALSE)) ->  | AH174: 52 | AI174: a
AD175: =IF(ISERROR(VLOOKUP(D174,$P$21:$P$60,1,FALSE)),"",VLOOKUP(D174,$P$21:$Y$60,10,FALSE)) ->  | AI175: b
AD176: =IF(ISERROR(VLOOKUP(D174,$P$21:$P$60,1,FALSE)),"",VLOOKUP(D174,$P$21:$V$60,7,FALSE)) ->  | AI176: c
D177: 53 | AD177: =IF(ISERROR(VLOOKUP(D177,$P$21:$P$60,1,FALSE)),"",VLOOKUP(D177,$P$21:$W$60,8,FALSE)) ->  | AH177: 53 | AI177: a
AD178: =IF(ISERROR(VLOOKUP(D177,$P$21:$P$60,1,FALSE)),"",VLOOKUP(D177,$P$21:$Y$60,10,FALSE)) ->  | AI178: b
AD179: =IF(ISERROR(VLOOKUP(D177,$P$21:$P$60,1,FALSE)),"",VLOOKUP(D177,$P$21:$V$60,7,FALSE)) ->  | AI179: c
D180: 54 | AD180: =IF(ISERROR(VLOOKUP(D180,$P$21:$P$60,1,FALSE)),"",VLOOKUP(D180,$P$21:$W$60,8,FALSE)) ->  | AH180: 54 | AI180: a
AD181: =IF(ISERROR(VLOOKUP(D180,$P$21:$P$60,1,FALSE)),"",VLOOKUP(D180,$P$21:$Y$60,10,FALSE)) ->  | AI181: b
AD182: =IF(ISERROR(VLOOKUP(D180,$P$21:$P$60,1,FALSE)),"",VLOOKUP(D180,$P$21:$V$60,7,FALSE)) ->  | AI182: c
D183: 55 | AD183: =IF(ISERROR(VLOOKUP(D183,$P$21:$P$60,1,FALSE)),"",VLOOKUP(D183,$P$21:$W$60,8,FALSE)) ->  | AH183: 55 | AI183: a
AD184: =IF(ISERROR(VLOOKUP(D183,$P$21:$P$60,1,FALSE)),"",VLOOKUP(D183,$P$21:$Y$60,10,FALSE)) ->  | AI184: b
AD185: =IF(ISERROR(VLOOKUP(D183,$P$21:$P$60,1,FALSE)),"",VLOOKUP(D183,$P$21:$V$60,7,FALSE)) ->  | AI185: c
D186: 56 | AD186: =IF(ISERROR(VLOOKUP(D186,$P$21:$P$60,1,FALSE)),"",VLOOKUP(D186,$P$21:$W$60,8,FALSE)) ->  | AH186: 56 | AI186: a
AD187: =IF(ISERROR(VLOOKUP(D186,$P$21:$P$60,1,FALSE)),"",VLOOKUP(D186,$P$21:$Y$60,10,FALSE)) ->  | AI187: b
AD188: =IF(ISERROR(VLOOKUP(D186,$P$21:$P$60,1,FALSE)),"",VLOOKUP(D186,$P$21:$V$60,7,FALSE)) ->  | AI188: c
D189: 57 | AD189: =IF(ISERROR(VLOOKUP(D189,$P$21:$P$60,1,FALSE)),"",VLOOKUP(D189,$P$21:$W$60,8,FALSE)) ->  | AH189: 57 | AI189: a
AD190: =IF(ISERROR(VLOOKUP(D189,$P$21:$P$60,1,FALSE)),"",VLOOKUP(D189,$P$21:$Y$60,10,FALSE)) ->  | AI190: b
AD191: =IF(ISERROR(VLOOKUP(D189,$P$21:$P$60,1,FALSE)),"",VLOOKUP(D189,$P$21:$V$60,7,FALSE)) ->  | AI191: c
D192: 58 | AD192: =IF(ISERROR(VLOOKUP(D192,$P$21:$P$60,1,FALSE)),"",VLOOKUP(D192,$P$21:$W$60,8,FALSE)) ->  | AH192: 58 | AI192: a
AD193: =IF(ISERROR(VLOOKUP(D192,$P$21:$P$60,1,FALSE)),"",VLOOKUP(D192,$P$21:$Y$60,10,FALSE)) ->  | AI193: b
AD194: =IF(ISERROR(VLOOKUP(D192,$P$21:$P$60,1,FALSE)),"",VLOOKUP(D192,$P$21:$V$60,7,FALSE)) ->  | AI194: c
D195: 59 | AD195: =IF(ISERROR(VLOOKUP(D195,$P$21:$P$60,1,FALSE)),"",VLOOKUP(D195,$P$21:$W$60,8,FALSE)) ->  | AH195: 59 | AI195: a
AD196: =IF(ISERROR(VLOOKUP(D195,$P$21:$P$60,1,FALSE)),"",VLOOKUP(D195,$P$21:$Y$60,10,FALSE)) ->  | AI196: b
AD197: =IF(ISERROR(VLOOKUP(D195,$P$21:$P$60,1,FALSE)),"",VLOOKUP(D195,$P$21:$V$60,7,FALSE)) ->  | AI197: c
D198: 60 | AD198: =IF(ISERROR(VLOOKUP(D198,$P$21:$P$60,1,FALSE)),"",VLOOKUP(D198,$P$21:$W$60,8,FALSE)) ->  | AH198: 60 | AI198: a
AD199: =IF(ISERROR(VLOOKUP(D198,$P$21:$P$60,1,FALSE)),"",VLOOKUP(D198,$P$21:$Y$60,10,FALSE)) ->  | AI199: b
AD200: =IF(ISERROR(VLOOKUP(D198,$P$21:$P$60,1,FALSE)),"",VLOOKUP(D198,$P$21:$V$60,7,FALSE)) ->  | AI200: c
D201: 61 | AD201: =IF(ISERROR(VLOOKUP(D201,$P$21:$P$60,1,FALSE)),"",VLOOKUP(D201,$P$21:$W$60,8,FALSE)) ->  | AH201: 61 | AI201: a
AD202: =IF(ISERROR(VLOOKUP(D201,$P$21:$P$60,1,FALSE)),"",VLOOKUP(D201,$P$21:$Y$60,10,FALSE)) ->  | AI202: b
AD203: =IF(ISERROR(VLOOKUP(D201,$P$21:$P$60,1,FALSE)),"",VLOOKUP(D201,$P$21:$V$60,7,FALSE)) ->  | AI203: c
D204: 62 | AD204: =IF(ISERROR(VLOOKUP(D204,$P$21:$P$60,1,FALSE)),"",VLOOKUP(D204,$P$21:$W$60,8,FALSE)) ->  | AH204: 62 | AI204: a
AD205: =IF(ISERROR(VLOOKUP(D204,$P$21:$P$60,1,FALSE)),"",VLOOKUP(D204,$P$21:$Y$60,10,FALSE)) ->  | AI205: b
AD206: =IF(ISERROR(VLOOKUP(D204,$P$21:$P$60,1,FALSE)),"",VLOOKUP(D204,$P$21:$V$60,7,FALSE)) ->  | AI206: c
D207: 63 | AD207: =IF(ISERROR(VLOOKUP(D207,$P$21:$P$60,1,FALSE)),"",VLOOKUP(D207,$P$21:$W$60,8,FALSE)) ->  | AH207: 63 | AI207: a
AD208: =IF(ISERROR(VLOOKUP(D207,$P$21:$P$60,1,FALSE)),"",VLOOKUP(D207,$P$21:$Y$60,10,FALSE)) ->  | AI208: b
AD209: =IF(ISERROR(VLOOKUP(D207,$P$21:$P$60,1,FALSE)),"",VLOOKUP(D207,$P$21:$V$60,7,FALSE)) ->  | AI209: c
... 111 more rows

Sheet 7章_b
C2: 第7章： 適正ポイント還元率の決定
D6: TABLE-7 | O6: TABLE-1 | AH6: TABLE-6 | AK6: A : 支払額合計 B : 発生PT合計 C : 使用PT合計
D8: 売上合計 | F8: =SUM(AJ8:BM8) -> 1008689 | O8: PT還元率 | Q8: 0.1 | S8: PT使用度 | U8: 0.2 | W8: CP額 | Y8: 100 | AH8: 集計 | AI8: A | AJ8: =SUMIF($AI$21:$AI$320,"a",AJ$21:AJ$320) -> 22500 | AK8: 39300 | AL8: 38200 | AM8: 53930 | AN8: 32400 | AO8: 43900 | AP8: 27950 | AQ8: 42855 | AR8: 17900 | AS8: 40400 | AT8: 35210 | AU8: 45050 | AV8: 30650 | AW8: 25505 | AX8: 25150 | AY8: 25425 | AZ8: 46424 | BA8: 37300 | BB8: 35300 | BC8: 16600 | BD8: 18000 | BE8: 27100 | BF8: 25350 | BG8: 34715 | BH8: 44555 | BI8: 31400 | BJ8: 44515 | BK8: 18510 | BL8: 39295 | BM8: 43300
D9: 発生PT合計 | F9: =SUM(AJ9:BM9) -> 100865 | I9: 未使用PT内訳 | AI9: B | AJ9: =SUMIF($AI$21:$AI$320,"b",AJ$21:AJ$320) -> 2250 | AK9: 3930 | AL9: 3820 | AM9: 5393 | AN9: 3240 | AO9: 4390 | AP9: 2795 | AQ9: 4285 | AR9: 1790 | AS9: 4040 | AT9: 3521 | AU9: 4505 | AV9: 3065 | AW9: 2550 | AX9: 2515 | AY9: 2542 | AZ9: 4642 | BA9: 3730 | BB9: 3530 | BC9: 1660 | BD9: 1800 | BE9: 2710 | BF9: 2535 | BG9: 3471 | BH9: 4455 | BI9: 3140 | BJ9: 4451 | BK9: 1851 | BL9: 3929 | BM9: 4330
D10: 使用PT合計 | F10: =(SUM(AJ10:BM10)) -> 32311 | I10: 平均 | K10: =AVERAGE(I21:I320) -> 685.54 | O10: 商品 | P10: 1 | Q10: 2 | R10: 3 | S10: 4 | T10: 5 | U10: 6 | V10: 7 | W10: 8 | X10: 9 | Y10: 10 | AI10: C | AJ10: =SUMIF($AI$21:$AI$320,"c",AJ$21:AJ$320) -> 0 | AK10: 700 | AL10: 300 | AM10: 1070 | AN10: 1100 | AO10: 600 | AP10: 1050 | AQ10: 1145 | AR10: 100 | AS10: 600 | AT10: 790 | AU10: 1450 | AV10: 850 | AW10: 995 | AX10: 850 | AY10: 575 | AZ10: 2076 | BA10: 1200 | BB10: 700 | BC10: 400 | BD10: 500 | BE10: 900 | BF10: 1650 | BG10: 1285 | BH10: 1445 | BI10: 1100 | BJ10: 1485 | BK10: 1990 | BL10: 1705 | BM10: 3700
D11: 未使用PT合計 | F11: =F9-F10 -> 68554 | I11: 平均以上人数 | K11: =COUNTIF($I$21:$I$320,">="&$K$10) -> 40 | O11: 価格 | P11: 1000 | Q11: 1500 | R11: 2000 | S11: 2500 | T11: 3000 | U11: 3500 | V11: 4000 | W11: 4500 | X11: 5000 | Y11: 5500
D12: 発行CP合計 | F12: =SUM(J21:J320) -> 65400 | I12: 平均未満人数 | K12: =COUNTIF($I$21:$I$320,"<"&$K$10) -> 60 | O12: 還元率 | P12: =$Q$8 -> 0.1 | Q12: 0.1 | R12: 0.1 | S12: 0.1 | T12: 0.1 | U12: 0.1 | V12: 0.1 | W12: 0.1 | X12: 0.1 | Y12: 0.1
D13: 失効PT合計 | F13: =F11-F12 -> 3154 | I13: CP還元対象者 | K13: =COUNTIF(J21:J320,">="&Y8) -> 93
X14: =IF(ISERROR(VLOOKUP(D21,$P$21:$P$51,1,FALSE)),"",1) -> 1
D17: TABLE-2 | O17: TABLE-3 | Q17: 客数 | R17: =RANDBETWEEN(U17-Y17,U17+Y17) -> 8 | S17: ← | T17: 想定値 | U17: 10 | W17: 変動幅 | X17: ± | Y17: 3 | AD17: TABLE-4 | AH17: TABLE-5 | AK17: a : 支払額 b : 発生PT c : 使用PT
BO18: 個人別集計(平均）
D19: 客番 | E19: 乱数 | F19: 順位 | G19: 発生PT計 | H19: 使用PT計 | I19: 保有PT | J19: 発行CP | K19: 失効PT | O19: 順位 | P19: 客番 | Q19: 保有PT | R19: 商品 | S19: 価格 | T19: PT使用 | V19: 使用PT | W19: 支払額 | X19: 還元率 | Y19: 発生PT | AD19: 転記用 | AH19: 客番 | AI19: 区分 | AJ19: 1 | AK19: 2 | AL19: 3 | AM19: 4 | AN19: 5 | AO19: 6 | AP19: 7 | AQ19: 8 | AR19: 9 | AS19: 10 | AT19: 11 | AU19: 12 | AV19: 13 | AW19: 14 | AX19: 15 | AY19: 16 | AZ19: 17 | BA19: 18 | BB19: 19 | BC19: 20 | BD19: 21 | BE19: 22 | BF19: 23 | BG19: 24 | BH19: 25 | BI19: 26 | BJ19: 27 | BK19: 28 | BL19: 29 | BM19: 30 | BO19: 回数 | BP19: 売上
BO20: =AVERAGE(BO21:BO320) -> 3.23 | BP20: =AVERAGE(BP21:BP320) -> 10086.89
D21: 1 | E21: =RAND() -> 0.9938884094 | F21: =RANK(E21,$E$21:$E$320) -> 1 | G21: =SUM(AJ22:BM22) -> 1485 | H21: =SUM(AJ23:BM23) -> 650 | I21: =G21-H21 -> 835 | J21: =ROUNDDOWN(I21/$Y$8,0)*$Y$8 -> 800 | K21: =I21-J21 -> 35 | O21: =IF(R17>0,1,"") -> 1 | P21: =IF($O21>$R$17,"",INDEX($D$21:$D$320,MATCH(O21,$F$21:$F$320,0))) -> 1 | Q21: =IF($O21>$R$17,"",VLOOKUP(P21,$D$21:$J$320,6,FALSE)) -> 835 | R21: =IF($O21>$R$17,"",RANDBETWEEN(1,10)) -> 2 | S21: =IF($O21>$R$17,"",HLOOKUP(R21,$P$10:$Y$11,2,FALSE)) -> 1500 | T21: =IF($O21>$R$17,"",IF(Q21=0,"--",RAND())) -> 0.5981171064 | U21: =IF($O21>$R$17,"",IF(Q21=0,"--",IF(RANK(T21,$T$21:$T$60)<=ROUND($R$17*$U$8,0),"●","×"))) -> × | V21: =IF($O21>$R$17,"",IF(AND(U21="●",Q21<S21),Q21,IF(AND(U21="●",Q21>=S21),S21,0))) -> 0 | W21: =IF($O21>$R$17,"",S21-V21) -> 1500 | X21: =IF($O21>$R$17,"",$Q$8) -> 0.1 | Y21: =IF($O21>$R$17,"",ROUNDDOWN(W21*X21,0)) -> 150 | AD21: =IF(ISERROR(VLOOKUP(D21,$P$21:$P$60,1,FALSE)),"",VLOOKUP(D21,$P$21:$W$60,8,FALSE)) -> 1500 | AH21: 1 | AI21: a | AO21: 5000 | AR21: 1500 | AX21: 3350 | BG21: 3500 | BK21: 1500 | BO21: =COUNT(AJ21:BM21) -> 5 | BP21: =IF(BO21=0,0,SUM(AJ21:BM21)) -> 14850
O22: =IF(O21="","",IF(O21+1<=$R$17,O21+1,"")) -> 2 | P22: 38 | Q22: 950 | R22: 1 | S22: 1000 | T22: 0.7961552652 | U22: =IF($O22>$R$17,"",IF(Q22=0,"--",IF(RANK(T22,$T$21:$T$60)<=ROUND($R$17*$U$8,0),"●","×"))) -> ● | V22: 950 | W22: 50 | X22: 0.1 | Y22: 5 | AD22: =IF(ISERROR(VLOOKUP(D21,$P$21:$P$60,1,FALSE)),"",VLOOKUP(D21,$P$21:$Y$60,10,FALSE)) -> 150 | AI22: b | AO22: 500 | AR22: 150 | AX22: 335 | BG22: 350 | BK22: 150
O23: 3 | P23: 67 | Q23: 745 | R23: 10 | S23: 5500 | T23: 0.07732657322 | U23: =IF($O23>$R$17,"",IF(Q23=0,"--",IF(RANK(T23,$T$21:$T$60)<=ROUND($R$17*$U$8,0),"●","×"))) -> × | V23: 0 | W23: 5500 | X23: 0.1 | Y23: 550 | AD23: =IF(ISERROR(VLOOKUP(D21,$P$21:$P$60,1,FALSE)),"",VLOOKUP(D21,$P$21:$V$60,7,FALSE)) -> 0 | AI23: c | AO23: 0 | AR23: 0 | AX23: 650 | BG23: 0 | BK23: 0
D24: 2 | E24: =RAND() -> 0.3353163283 | F24: =RANK(E24,$E$21:$E$320) -> 64 | G24: =SUM(AJ25:BM25) -> 1400 | H24: =SUM(AJ26:BM26) -> 0 | I24: =G24-H24 -> 1400 | J24: =ROUNDDOWN(I24/$Y$8,0)*$Y$8 -> 1400 | K24: =I24-J24 -> 0 | O24: 4 | P24: 87 | Q24: 340 | R24: 5 | S24: 3000 | T24: 0.0911633797 | U24: × | V24: 0 | W24: 3000 | X24: 0.1 | Y24: 300 | AD24: =IF(ISERROR(VLOOKUP(D24,$P$21:$P$60,1,FALSE)),"",VLOOKUP(D24,$P$21:$W$60,8,FALSE)) ->  | AH24: 2 | AI24: a | AL24: 3000 | AX24: 5500 | BA24: 5500 | BO24: =COUNT(AJ24:BM24) -> 3 | BP24: =IF(BO24=0,0,SUM(AJ24:BM24)) -> 14000
O25: 5 | P25: 51 | Q25: 795 | R25: 5 | S25: 3000 | T25: 0.7162061737 | U25: × | V25: 0 | W25: 3000 | X25: 0.1 | Y25: 300 | AD25: =IF(ISERROR(VLOOKUP(D24,$P$21:$P$60,1,FALSE)),"",VLOOKUP(D24,$P$21:$Y$60,10,FALSE)) ->  | AI25: b | AL25: 300 | AX25: 550 | BA25: 550
O26: 6 | P26: 31 | Q26: 600 | R26: 6 | S26: 3500 | T26: 0.5501842166 | U26: × | V26: 0 | W26: 3500 | X26: 0.1 | Y26: 350 | AD26: =IF(ISERROR(VLOOKUP(D24,$P$21:$P$60,1,FALSE)),"",VLOOKUP(D24,$P$21:$V$60,7,FALSE)) ->  | AI26: c | AL26: 0 | AX26: 0 | BA26: 0
D27: 3 | E27: =RAND() -> 0.05410276005 | F27: =RANK(E27,$E$21:$E$320) -> 94 | G27: =SUM(AJ28:BM28) -> 645 | H27: =SUM(AJ29:BM29) -> 550 | I27: =G27-H27 -> 95 | J27: =ROUNDDOWN(I27/$Y$8,0)*$Y$8 -> 0 | K27: =I27-J27 -> 95 | O27: 7 | P27: 18 | Q27: 280 | R27: 1 | S27: 1000 | T27: 0.1280962136 | U27: × | V27: 0 | W27: 1000 | X27: 0.1 | Y27: 100 | AD27: =IF(ISERROR(VLOOKUP(D27,$P$21:$P$60,1,FALSE)),"",VLOOKUP(D27,$P$21:$W$60,8,FALSE)) ->  | AH27: 3 | AI27: a | AN27: 5500 | AW27: 950 | BO27: =COUNT(AJ27:BM27) -> 2 | BP27: =IF(BO27=0,0,SUM(AJ27:BM27)) -> 6450
O28: 8 | P28: 48 | Q28: 910 | R28: 9 | S28: 5000 | T28: 0.8296935578 | U28: ● | V28: 910 | W28: 4090 | X28: 0.1 | Y28: 409 | AD28: =IF(ISERROR(VLOOKUP(D27,$P$21:$P$60,1,FALSE)),"",VLOOKUP(D27,$P$21:$Y$60,10,FALSE)) ->  | AI28: b | AN28: 550 | AW28: 95
AD29: =IF(ISERROR(VLOOKUP(D27,$P$21:$P$60,1,FALSE)),"",VLOOKUP(D27,$P$21:$V$60,7,FALSE)) ->  | AI29: c | AN29: 0 | AW29: 550
D30: 4 | E30: =RAND() -> 0.435816919 | F30: =RANK(E30,$E$21:$E$320) -> 52 | G30: =SUM(AJ31:BM31) -> 1850 | H30: =SUM(AJ32:BM32) -> 500 | I30: =G30-H30 -> 1350 | J30: =ROUNDDOWN(I30/$Y$8,0)*$Y$8 -> 1300 | K30: =I30-J30 -> 50 | AD30: =IF(ISERROR(VLOOKUP(D30,$P$21:$P$60,1,FALSE)),"",VLOOKUP(D30,$P$21:$W$60,8,FALSE)) ->  | AH30: 4 | AI30: a | AK30: 1500 | AO30: 3500 | AU30: 4500 | BH30: 4500 | BM30: 4500 | BO30: =COUNT(AJ30:BM30) -> 5 | BP30: =IF(BO30=0,0,SUM(AJ30:BM30)) -> 18500
AD31: =IF(ISERROR(VLOOKUP(D30,$P$21:$P$60,1,FALSE)),"",VLOOKUP(D30,$P$21:$Y$60,10,FALSE)) ->  | AI31: b | AK31: 150 | AO31: 350 | AU31: 450 | BH31: 450 | BM31: 450
AD32: =IF(ISERROR(VLOOKUP(D30,$P$21:$P$60,1,FALSE)),"",VLOOKUP(D30,$P$21:$V$60,7,FALSE)) ->  | AI32: c | AK32: 0 | AO32: 0 | AU32: 500 | BH32: 0 | BM32: 0
D33: 5 | E33: =RAND() -> 0.2134876052 | F33: =RANK(E33,$E$21:$E$320) -> 76 | G33: =SUM(AJ34:BM34) -> 650 | H33: =SUM(AJ35:BM35) -> 0 | I33: =G33-H33 -> 650 | J33: =ROUNDDOWN(I33/$Y$8,0)*$Y$8 -> 600 | K33: =I33-J33 -> 50 | AD33: =IF(ISERROR(VLOOKUP(D33,$P$21:$P$60,1,FALSE)),"",VLOOKUP(D33,$P$21:$W$60,8,FALSE)) ->  | AH33: 5 | AI33: a | BA33: 2000 | BD33: 4500 | BO33: =COUNT(AJ33:BM33) -> 2 | BP33: =IF(BO33=0,0,SUM(AJ33:BM33)) -> 6500
AD34: =IF(ISERROR(VLOOKUP(D33,$P$21:$P$60,1,FALSE)),"",VLOOKUP(D33,$P$21:$Y$60,10,FALSE)) ->  | AI34: b | BA34: 200 | BD34: 450
AD35: =IF(ISERROR(VLOOKUP(D33,$P$21:$P$60,1,FALSE)),"",VLOOKUP(D33,$P$21:$V$60,7,FALSE)) ->  | AI35: c | BA35: 0 | BD35: 0
D36: 6 | E36: =RAND() -> 0.5887760105 | F36: =RANK(E36,$E$21:$E$320) -> 34 | G36: =SUM(AJ37:BM37) -> 1190 | H36: =SUM(AJ38:BM38) -> 1100 | I36: =G36-H36 -> 90 | J36: =ROUNDDOWN(I36/$Y$8,0)*$Y$8 -> 0 | K36: =I36-J36 -> 90 | AD36: =IF(ISERROR(VLOOKUP(D36,$P$21:$P$60,1,FALSE)),"",VLOOKUP(D36,$P$21:$W$60,8,FALSE)) ->  | AH36: 6 | AI36: a | AT36: 2000 | AV36: 2500 | AX36: 1000 | AY36: 5500 | BM36: 900 | BO36: =COUNT(AJ36:BM36) -> 5 | BP36: =IF(BO36=0,0,SUM(AJ36:BM36)) -> 11900
U37: =IF($O37>$R$17,"",IF(Q37=0,"--",IF(RANK(T37,$T$21:$T$60)<=ROUND($R$17*$U$8,0),"●","×"))) ->  | AD37: =IF(ISERROR(VLOOKUP(D36,$P$21:$P$60,1,FALSE)),"",VLOOKUP(D36,$P$21:$Y$60,10,FALSE)) ->  | AI37: b | AT37: 200 | AV37: 250 | AX37: 100 | AY37: 550 | BM37: 90
AD38: =IF(ISERROR(VLOOKUP(D36,$P$21:$P$60,1,FALSE)),"",VLOOKUP(D36,$P$21:$V$60,7,FALSE)) ->  | AI38: c | AT38: 0 | AV38: 0 | AX38: 0 | AY38: 0 | BM38: 1100
D39: 7 | E39: =RAND() -> 0.7559211662 | F39: =RANK(E39,$E$21:$E$320) -> 22 | G39: =SUM(AJ40:BM40) -> 1055 | H39: =SUM(AJ41:BM41) -> 950 | I39: =G39-H39 -> 105 | J39: =ROUNDDOWN(I39/$Y$8,0)*$Y$8 -> 100 | K39: =I39-J39 -> 5 | AD39: =IF(ISERROR(VLOOKUP(D39,$P$21:$P$60,1,FALSE)),"",VLOOKUP(D39,$P$21:$W$60,8,FALSE)) ->  | AH39: 7 | AI39: a | AT39: 4000 | BE39: 5500 | BL39: 1050 | BO39: =COUNT(AJ39:BM39) -> 3 | BP39: =IF(BO39=0,0,SUM(AJ39:BM39)) -> 10550
AD40: =IF(ISERROR(VLOOKUP(D39,$P$21:$P$60,1,FALSE)),"",VLOOKUP(D39,$P$21:$Y$60,10,FALSE)) ->  | AI40: b | AT40: 400 | BE40: 550 | BL40: 105
AD41: =IF(ISERROR(VLOOKUP(D39,$P$21:$P$60,1,FALSE)),"",VLOOKUP(D39,$P$21:$V$60,7,FALSE)) ->  | AI41: c | AT41: 0 | BE41: 0 | BL41: 950
D42: 8 | E42: =RAND() -> 0.6982012237 | F42: =RANK(E42,$E$21:$E$320) -> 26 | G42: =SUM(AJ43:BM43) -> 700 | H42: =SUM(AJ44:BM44) -> 0 | I42: =G42-H42 -> 700 | J42: =ROUNDDOWN(I42/$Y$8,0)*$Y$8 -> 700 | K42: =I42-J42 -> 0 | AD42: =IF(ISERROR(VLOOKUP(D42,$P$21:$P$60,1,FALSE)),"",VLOOKUP(D42,$P$21:$W$60,8,FALSE)) ->  | AH42: 8 | AI42: a | AW42: 1500 | BB42: 4500 | BD42: 1000 | BO42: =COUNT(AJ42:BM42) -> 3 | BP42: =IF(BO42=0,0,SUM(AJ42:BM42)) -> 7000
AD43: =IF(ISERROR(VLOOKUP(D42,$P$21:$P$60,1,FALSE)),"",VLOOKUP(D42,$P$21:$Y$60,10,FALSE)) ->  | AI43: b | AW43: 150 | BB43: 450 | BD43: 100
AD44: =IF(ISERROR(VLOOKUP(D42,$P$21:$P$60,1,FALSE)),"",VLOOKUP(D42,$P$21:$V$60,7,FALSE)) ->  | AI44: c | AW44: 0 | BB44: 0 | BD44: 0
D45: 9 | E45: =RAND() -> 0.4335611616 | F45: =RANK(E45,$E$21:$E$320) -> 54 | G45: =SUM(AJ46:BM46) -> 1500 | H45: =SUM(AJ47:BM47) -> 0 | I45: =G45-H45 -> 1500 | J45: =ROUNDDOWN(I45/$Y$8,0)*$Y$8 -> 1500 | K45: =I45-J45 -> 0 | AD45: =IF(ISERROR(VLOOKUP(D45,$P$21:$P$60,1,FALSE)),"",VLOOKUP(D45,$P$21:$W$60,8,FALSE)) ->  | AH45: 9 | AI45: a | AU45: 1000 | AW45: 2000 | AZ45: 3500 | BB45: 1000 | BC45: 4000 | BK45: 1500 | BL45: 2000 | BO45: =COUNT(AJ45:BM45) -> 7 | BP45: =IF(BO45=0,0,SUM(AJ45:BM45)) -> 15000
AD46: =IF(ISERROR(VLOOKUP(D45,$P$21:$P$60,1,FALSE)),"",VLOOKUP(D45,$P$21:$Y$60,10,FALSE)) ->  | AI46: b | AU46: 100 | AW46: 200 | AZ46: 350 | BB46: 100 | BC46: 400 | BK46: 150 | BL46: 200
AD47: =IF(ISERROR(VLOOKUP(D45,$P$21:$P$60,1,FALSE)),"",VLOOKUP(D45,$P$21:$V$60,7,FALSE)) ->  | AI47: c | AU47: 0 | AW47: 0 | AZ47: 0 | BB47: 0 | BC47: 0 | BK47: 0 | BL47: 0
D48: 10 | E48: =RAND() -> 0.5430905368 | F48: =RANK(E48,$E$21:$E$320) -> 39 | G48: =SUM(AJ49:BM49) -> 100 | H48: =SUM(AJ50:BM50) -> 0 | I48: =G48-H48 -> 100 | J48: =ROUNDDOWN(I48/$Y$8,0)*$Y$8 -> 100 | K48: =I48-J48 -> 0 | AD48: =IF(ISERROR(VLOOKUP(D48,$P$21:$P$60,1,FALSE)),"",VLOOKUP(D48,$P$21:$W$60,8,FALSE)) ->  | AH48: 10 | AI48: a | AY48: 1000 | BO48: =COUNT(AJ48:BM48) -> 1 | BP48: =IF(BO48=0,0,SUM(AJ48:BM48)) -> 1000
U49: =IF($O49>$R$17,"",IF(Q49=0,"--",IF(RANK(T49,$T$21:$T$60)<=ROUND($R$17*$U$8,0),"●","×"))) ->  | AD49: =IF(ISERROR(VLOOKUP(D48,$P$21:$P$60,1,FALSE)),"",VLOOKUP(D48,$P$21:$Y$60,10,FALSE)) ->  | AI49: b | AY49: 100
AD50: =IF(ISERROR(VLOOKUP(D48,$P$21:$P$60,1,FALSE)),"",VLOOKUP(D48,$P$21:$V$60,7,FALSE)) ->  | AI50: c | AY50: 0
D51: 11 | E51: =RAND() -> 0.2856520794 | F51: =RANK(E51,$E$21:$E$320) -> 70 | G51: =SUM(AJ52:BM52) -> 1000 | H51: =SUM(AJ53:BM53) -> 0 | I51: =G51-H51 -> 1000 | J51: =ROUNDDOWN(I51/$Y$8,0)*$Y$8 -> 1000 | K51: =I51-J51 -> 0 | AD51: =IF(ISERROR(VLOOKUP(D51,$P$21:$P$60,1,FALSE)),"",VLOOKUP(D51,$P$21:$W$60,8,FALSE)) ->  | AH51: 11 | AI51: a | BA51: 3000 | BL51: 4000 | BM51: 3000 | BO51: =COUNT(AJ51:BM51) -> 3 | BP51: =IF(BO51=0,0,SUM(AJ51:BM51)) -> 10000
AD52: =IF(ISERROR(VLOOKUP(D51,$P$21:$P$60,1,FALSE)),"",VLOOKUP(D51,$P$21:$Y$60,10,FALSE)) ->  | AI52: b | BA52: 300 | BL52: 400 | BM52: 300
AD53: =IF(ISERROR(VLOOKUP(D51,$P$21:$P$60,1,FALSE)),"",VLOOKUP(D51,$P$21:$V$60,7,FALSE)) ->  | AI53: c | BA53: 0 | BL53: 0 | BM53: 0
D54: 12 | E54: =RAND() -> 0.4075328908 | F54: =RANK(E54,$E$21:$E$320) -> 57 | G54: =SUM(AJ55:BM55) -> 250 | H54: =SUM(AJ56:BM56) -> 0 | I54: =G54-H54 -> 250 | J54: =ROUNDDOWN(I54/$Y$8,0)*$Y$8 -> 200 | K54: =I54-J54 -> 50 | AD54: =IF(ISERROR(VLOOKUP(D54,$P$21:$P$60,1,FALSE)),"",VLOOKUP(D54,$P$21:$W$60,8,FALSE)) ->  | AH54: 12 | AI54: a | AT54: 2500 | BO54: =COUNT(AJ54:BM54) -> 1 | BP54: =IF(BO54=0,0,SUM(AJ54:BM54)) -> 2500
AD55: =IF(ISERROR(VLOOKUP(D54,$P$21:$P$60,1,FALSE)),"",VLOOKUP(D54,$P$21:$Y$60,10,FALSE)) ->  | AI55: b | AT55: 250
AD56: =IF(ISERROR(VLOOKUP(D54,$P$21:$P$60,1,FALSE)),"",VLOOKUP(D54,$P$21:$V$60,7,FALSE)) ->  | AI56: c | AT56: 0
D57: 13 | E57: =RAND() -> 0.5652925723 | F57: =RANK(E57,$E$21:$E$320) -> 35 | G57: =SUM(AJ58:BM58) -> 1428 | H57: =SUM(AJ59:BM59) -> 1220 | I57: =G57-H57 -> 208 | J57: =ROUNDDOWN(I57/$Y$8,0)*$Y$8 -> 200 | K57: =I57-J57 -> 8 | AD57: =IF(ISERROR(VLOOKUP(D57,$P$21:$P$60,1,FALSE)),"",VLOOKUP(D57,$P$21:$W$60,8,FALSE)) ->  | AH57: 13 | AI57: a | AM57: 4500 | AP57: 3500 | AQ57: 4200 | AY57: 2080 | BO57: =COUNT(AJ57:BM57) -> 4 | BP57: =IF(BO57=0,0,SUM(AJ57:BM57)) -> 14280
AD58: =IF(ISERROR(VLOOKUP(D57,$P$21:$P$60,1,FALSE)),"",VLOOKUP(D57,$P$21:$Y$60,10,FALSE)) ->  | AI58: b | AM58: 450 | AP58: 350 | AQ58: 420 | AY58: 208
AD59: =IF(ISERROR(VLOOKUP(D57,$P$21:$P$60,1,FALSE)),"",VLOOKUP(D57,$P$21:$V$60,7,FALSE)) ->  | AI59: c | AM59: 0 | AP59: 0 | AQ59: 800 | AY59: 420
D60: 14 | E60: =RAND() -> 0.03497529941 | F60: =RANK(E60,$E$21:$E$320) -> 96 | G60: =SUM(AJ61:BM61) -> 0 | H60: =SUM(AJ62:BM62) -> 0 | I60: =G60-H60 -> 0 | J60: =ROUNDDOWN(I60/$Y$8,0)*$Y$8 -> 0 | K60: =I60-J60 -> 0 | AD60: =IF(ISERROR(VLOOKUP(D60,$P$21:$P$60,1,FALSE)),"",VLOOKUP(D60,$P$21:$W$60,8,FALSE)) ->  | AH60: 14 | AI60: a | BO60: =COUNT(AJ60:BM60) -> 0 | BP60: =IF(BO60=0,0,SUM(AJ60:BM60)) -> 0
AD61: =IF(ISERROR(VLOOKUP(D60,$P$21:$P$60,1,FALSE)),"",VLOOKUP(D60,$P$21:$Y$60,10,FALSE)) ->  | AI61: b
AD62: =IF(ISERROR(VLOOKUP(D60,$P$21:$P$60,1,FALSE)),"",VLOOKUP(D60,$P$21:$V$60,7,FALSE)) ->  | AI62: c
D63: 15 | E63: =RAND() -> 0.1546386387 | F63: =RANK(E63,$E$21:$E$320) -> 82 | G63: =SUM(AJ64:BM64) -> 1785 | H63: =SUM(AJ65:BM65) -> 650 | I63: =G63-H63 -> 1135 | J63: =ROUNDDOWN(I63/$Y$8,0)*$Y$8 -> 1100 | K63: =I63-J63 -> 35 | AD63: =IF(ISERROR(VLOOKUP(D63,$P$21:$P$60,1,FALSE)),"",VLOOKUP(D63,$P$21:$W$60,8,FALSE)) ->  | AH63: 15 | AI63: a | AK63: 4000 | AZ63: 2500 | BF63: 4350 | BG63: 2000 | BJ63: 5000 | BO63: =COUNT(AJ63:BM63) -> 5 | BP63: =IF(BO63=0,0,SUM(AJ63:BM63)) -> 17850
O64: 境界 | P64: 人数 | Q64: 未使用PT計 | AD64: =IF(ISERROR(VLOOKUP(D63,$P$21:$P$60,1,FALSE)),"",VLOOKUP(D63,$P$21:$Y$60,10,FALSE)) ->  | AI64: b | AK64: 400 | AZ64: 250 | BF64: 435 | BG64: 200 | BJ64: 500
O65: 0 | P65: =COUNTIF($I$21:$I$320,">="&O65)-COUNTIF($I$21:$I$320,">="&O66) -> 7 | Q65: =SUMIF($I$21:$I$320,">="&O65,$I$21:$I$320)-SUMIF($I$21:$I$320,">="&O66,$I$21:$I$320) -> 185 | AD65: =IF(ISERROR(VLOOKUP(D63,$P$21:$P$60,1,FALSE)),"",VLOOKUP(D63,$P$21:$V$60,7,FALSE)) ->  | AI65: c | AK65: 0 | AZ65: 0 | BF65: 650 | BG65: 0 | BJ65: 0
D66: 16 | E66: =RAND() -> 0.1099895029 | F66: =RANK(E66,$E$21:$E$320) -> 87 | G66: =SUM(AJ67:BM67) -> 1450 | H66: =SUM(AJ68:BM68) -> 0 | I66: =G66-H66 -> 1450 | J66: =ROUNDDOWN(I66/$Y$8,0)*$Y$8 -> 1400 | K66: =I66-J66 -> 50 | O66: 100 | P66: 5 | Q66: 605 | AD66: =IF(ISERROR(VLOOKUP(D66,$P$21:$P$60,1,FALSE)),"",VLOOKUP(D66,$P$21:$W$60,8,FALSE)) ->  | AH66: 16 | AI66: a | AL66: 5000 | BJ66: 2500 | BL66: 2000 | BM66: 5000 | BO66: =COUNT(AJ66:BM66) -> 4 | BP66: =IF(BO66=0,0,SUM(AJ66:BM66)) -> 14500
O67: 200 | P67: 8 | Q67: 1860 | AD67: =IF(ISERROR(VLOOKUP(D66,$P$21:$P$60,1,FALSE)),"",VLOOKUP(D66,$P$21:$Y$60,10,FALSE)) ->  | AI67: b | AL67: 500 | BJ67: 250 | BL67: 200 | BM67: 500
O68: 300 | P68: 9 | Q68: 3149 | AD68: =IF(ISERROR(VLOOKUP(D66,$P$21:$P$60,1,FALSE)),"",VLOOKUP(D66,$P$21:$V$60,7,FALSE)) ->  | AI68: c | AL68: 0 | BJ68: 0 | BL68: 0 | BM68: 0
D69: 17 | E69: =RAND() -> 0.05804741585 | F69: =RANK(E69,$E$21:$E$320) -> 93 | G69: =SUM(AJ70:BM70) -> 600 | H69: =SUM(AJ71:BM71) -> 0 | I69: =G69-H69 -> 600 | J69: =ROUNDDOWN(I69/$Y$8,0)*$Y$8 -> 600 | K69: =I69-J69 -> 0 | O69: 400 | P69: 11 | Q69: 4852 | AD69: =IF(ISERROR(VLOOKUP(D69,$P$21:$P$60,1,FALSE)),"",VLOOKUP(D69,$P$21:$W$60,8,FALSE)) ->  | AH69: 17 | AI69: a | AK69: 2500 | AZ69: 3500 | BO69: =COUNT(AJ69:BM69) -> 2 | BP69: =IF(BO69=0,0,SUM(AJ69:BM69)) -> 6000
O70: 500 | P70: 11 | Q70: 5788 | AD70: =IF(ISERROR(VLOOKUP(D69,$P$21:$P$60,1,FALSE)),"",VLOOKUP(D69,$P$21:$Y$60,10,FALSE)) ->  | AI70: b | AK70: 250 | AZ70: 350
O71: 600 | P71: 9 | Q71: 5725 | AD71: =IF(ISERROR(VLOOKUP(D69,$P$21:$P$60,1,FALSE)),"",VLOOKUP(D69,$P$21:$V$60,7,FALSE)) ->  | AI71: c | AK71: 0 | AZ71: 0
D72: 18 | E72: =RAND() -> 0.8820636796 | F72: =RANK(E72,$E$21:$E$320) -> 7 | G72: =SUM(AJ73:BM73) -> 980 | H72: =SUM(AJ74:BM74) -> 700 | I72: =G72-H72 -> 280 | J72: =ROUNDDOWN(I72/$Y$8,0)*$Y$8 -> 200 | K72: =I72-J72 -> 80 | O72: 700 | P72: 7 | Q72: 5180 | AD72: =IF(ISERROR(VLOOKUP(D72,$P$21:$P$60,1,FALSE)),"",VLOOKUP(D72,$P$21:$W$60,8,FALSE)) -> 1000 | AH72: 18 | AI72: a | AS72: 5000 | BD72: 500 | BH72: 1500 | BJ72: 2800 | BO72: =COUNT(AJ72:BM72) -> 4 | BP72: =IF(BO72=0,0,SUM(AJ72:BM72)) -> 9800
O73: 800 | P73: 1 | Q73: 835 | AD73: =IF(ISERROR(VLOOKUP(D72,$P$21:$P$60,1,FALSE)),"",VLOOKUP(D72,$P$21:$Y$60,10,FALSE)) -> 100 | AI73: b | AS73: 500 | BD73: 50 | BH73: 150 | BJ73: 280
O74: 900 | P74: 8 | Q74: 7455 | AD74: =IF(ISERROR(VLOOKUP(D72,$P$21:$P$60,1,FALSE)),"",VLOOKUP(D72,$P$21:$V$60,7,FALSE)) -> 0 | AI74: c | AS74: 0 | BD74: 500 | BH74: 0 | BJ74: 200
D75: 19 | E75: =RAND() -> 0.6447924951 | F75: =RANK(E75,$E$21:$E$320) -> 31 | G75: =SUM(AJ76:BM76) -> 300 | H75: =SUM(AJ77:BM77) -> 0 | I75: =G75-H75 -> 300 | J75: =ROUNDDOWN(I75/$Y$8,0)*$Y$8 -> 300 | K75: =I75-J75 -> 0 | O75: 1000 | P75: 3 | Q75: 3080 | AD75: =IF(ISERROR(VLOOKUP(D75,$P$21:$P$60,1,FALSE)),"",VLOOKUP(D75,$P$21:$W$60,8,FALSE)) ->  | AH75: 19 | AI75: a | AO75: 3000 | BO75: =COUNT(AJ75:BM75) -> 1 | BP75: =IF(BO75=0,0,SUM(AJ75:BM75)) -> 3000
O76: 1100 | P76: 5 | Q76: 5535 | AD76: =IF(ISERROR(VLOOKUP(D75,$P$21:$P$60,1,FALSE)),"",VLOOKUP(D75,$P$21:$Y$60,10,FALSE)) ->  | AI76: b | AO76: 300
O77: 1200 | P77: 3 | Q77: 3680 | AD77: =IF(ISERROR(VLOOKUP(D75,$P$21:$P$60,1,FALSE)),"",VLOOKUP(D75,$P$21:$V$60,7,FALSE)) ->  | AI77: c | AO77: 0
D78: 20 | E78: =RAND() -> 0.4499017027 | F78: =RANK(E78,$E$21:$E$320) -> 50 | G78: =SUM(AJ79:BM79) -> 1350 | H78: =SUM(AJ80:BM80) -> 0 | I78: =G78-H78 -> 1350 | J78: =ROUNDDOWN(I78/$Y$8,0)*$Y$8 -> 1300 | K78: =I78-J78 -> 50 | O78: 1300 | P78: 2 | Q78: 2700 | AD78: =IF(ISERROR(VLOOKUP(D78,$P$21:$P$60,1,FALSE)),"",VLOOKUP(D78,$P$21:$W$60,8,FALSE)) ->  | AH78: 20 | AI78: a | AQ78: 3500 | AX78: 5500 | BG78: 2000 | BJ78: 2500 | BO78: =COUNT(AJ78:BM78) -> 4 | BP78: =IF(BO78=0,0,SUM(AJ78:BM78)) -> 13500
O79: 1400 | P79: 4 | Q79: 5700 | AD79: =IF(ISERROR(VLOOKUP(D78,$P$21:$P$60,1,FALSE)),"",VLOOKUP(D78,$P$21:$Y$60,10,FALSE)) ->  | AI79: b | AQ79: 350 | AX79: 550 | BG79: 200 | BJ79: 250
O80: 1500 | P80: 2 | Q80: 3000 | AD80: =IF(ISERROR(VLOOKUP(D78,$P$21:$P$60,1,FALSE)),"",VLOOKUP(D78,$P$21:$V$60,7,FALSE)) ->  | AI80: c | AQ80: 0 | AX80: 0 | BG80: 0 | BJ80: 0
D81: 21 | E81: =RAND() -> 0.8392783106 | F81: =RANK(E81,$E$21:$E$320) -> 10 | G81: =SUM(AJ82:BM82) -> 950 | H81: =SUM(AJ83:BM83) -> 0 | I81: =G81-H81 -> 950 | J81: =ROUNDDOWN(I81/$Y$8,0)*$Y$8 -> 900 | K81: =I81-J81 -> 50 | O81: 1600 | P81: 1 | Q81: 1600 | AD81: =IF(ISERROR(VLOOKUP(D81,$P$21:$P$60,1,FALSE)),"",VLOOKUP(D81,$P$21:$W$60,8,FALSE)) ->  | AH81: 21 | AI81: a | AT81: 4500 | BH81: 5000 | BO81: =COUNT(AJ81:BM81) -> 2 | BP81: =IF(BO81=0,0,SUM(AJ81:BM81)) -> 9500
O82: 1700 | P82: 1 | Q82: 1750 | AD82: =IF(ISERROR(VLOOKUP(D81,$P$21:$P$60,1,FALSE)),"",VLOOKUP(D81,$P$21:$Y$60,10,FALSE)) ->  | AI82: b | AT82: 450 | BH82: 500
O83: 1800 | P83: 0 | Q83: 0 | AD83: =IF(ISERROR(VLOOKUP(D81,$P$21:$P$60,1,FALSE)),"",VLOOKUP(D81,$P$21:$V$60,7,FALSE)) ->  | AI83: c | AT83: 0 | BH83: 0
D84: 22 | E84: =RAND() -> 0.4175957919 | F84: =RANK(E84,$E$21:$E$320) -> 56 | G84: =SUM(AJ85:BM85) -> 1450 | H84: =SUM(AJ86:BM86) -> 0 | I84: =G84-H84 -> 1450 | J84: =ROUNDDOWN(I84/$Y$8,0)*$Y$8 -> 1400 | K84: =I84-J84 -> 50 | O84: 1900 | P84: 2 | Q84: 3825 | AD84: =IF(ISERROR(VLOOKUP(D84,$P$21:$P$60,1,FALSE)),"",VLOOKUP(D84,$P$21:$W$60,8,FALSE)) ->  | AH84: 22 | AI84: a | AQ84: 5500 | AU84: 4500 | BF84: 3500 | BM84: 1000 | BO84: =COUNT(AJ84:BM84) -> 4 | BP84: =IF(BO84=0,0,SUM(AJ84:BM84)) -> 14500
O85: 2000 | P85: 1 | Q85: 2050 | AD85: =IF(ISERROR(VLOOKUP(D84,$P$21:$P$60,1,FALSE)),"",VLOOKUP(D84,$P$21:$Y$60,10,FALSE)) ->  | AI85: b | AQ85: 550 | AU85: 450 | BF85: 350 | BM85: 100
O86: 2100 | P86: 0 | Q86: 0 | AD86: =IF(ISERROR(VLOOKUP(D84,$P$21:$P$60,1,FALSE)),"",VLOOKUP(D84,$P$21:$V$60,7,FALSE)) ->  | AI86: c | AQ86: 0 | AU86: 0 | BF86: 0 | BM86: 0
D87: 23 | E87: =RAND() -> 0.07168681326 | F87: =RANK(E87,$E$21:$E$320) -> 92 | G87: =SUM(AJ88:BM88) -> 1600 | H87: =SUM(AJ89:BM89) -> 1000 | I87: =G87-H87 -> 600 | J87: =ROUNDDOWN(I87/$Y$8,0)*$Y$8 -> 600 | K87: =I87-J87 -> 0 | O87: 2200 | P87: 0 | Q87: 0 | AD87: =IF(ISERROR(VLOOKUP(D87,$P$21:$P$60,1,FALSE)),"",VLOOKUP(D87,$P$21:$W$60,8,FALSE)) ->  | AH87: 23 | AI87: a | AO87: 4500 | BB87: 3500 | BE87: 5000 | BF87: 0 | BM87: 3000 | BO87: =COUNT(AJ87:BM87) -> 5 | BP87: =IF(BO87=0,0,SUM(AJ87:BM87)) -> 16000
O88: 2300 | P88: 0 | Q88: 0 | AD88: =IF(ISERROR(VLOOKUP(D87,$P$21:$P$60,1,FALSE)),"",VLOOKUP(D87,$P$21:$Y$60,10,FALSE)) ->  | AI88: b | AO88: 450 | BB88: 350 | BE88: 500 | BF88: 0 | BM88: 300
O89: 2400 | P89: 0 | Q89: 0 | AD89: =IF(ISERROR(VLOOKUP(D87,$P$21:$P$60,1,FALSE)),"",VLOOKUP(D87,$P$21:$V$60,7,FALSE)) ->  | AI89: c | AO89: 0 | BB89: 0 | BE89: 0 | BF89: 1000 | BM89: 0
D90: 24 | E90: =RAND() -> 0.4549013235 | F90: =RANK(E90,$E$21:$E$320) -> 49 | G90: =SUM(AJ91:BM91) -> 250 | H90: =SUM(AJ92:BM92) -> 0 | I90: =G90-H90 -> 250 | J90: =ROUNDDOWN(I90/$Y$8,0)*$Y$8 -> 200 | K90: =I90-J90 -> 50 | O90: 2500 | P90: 0 | Q90: 0 | AD90: =IF(ISERROR(VLOOKUP(D90,$P$21:$P$60,1,FALSE)),"",VLOOKUP(D90,$P$21:$W$60,8,FALSE)) ->  | AH90: 24 | AI90: a | AS90: 2500 | BO90: =COUNT(AJ90:BM90) -> 1 | BP90: =IF(BO90=0,0,SUM(AJ90:BM90)) -> 2500
O91: 合計 | P91: =SUM(P65:P90) -> 100 | Q91: =SUM(Q65:Q90) -> 68554 | AD91: =IF(ISERROR(VLOOKUP(D90,$P$21:$P$60,1,FALSE)),"",VLOOKUP(D90,$P$21:$Y$60,10,FALSE)) ->  | AI91: b | AS91: 250
AD92: =IF(ISERROR(VLOOKUP(D90,$P$21:$P$60,1,FALSE)),"",VLOOKUP(D90,$P$21:$V$60,7,FALSE)) ->  | AI92: c | AS92: 0
D93: 25 | E93: =RAND() -> 0.2519754649 | F93: =RANK(E93,$E$21:$E$320) -> 72 | G93: =SUM(AJ94:BM94) -> 0 | H93: =SUM(AJ95:BM95) -> 0 | I93: =G93-H93 -> 0 | J93: =ROUNDDOWN(I93/$Y$8,0)*$Y$8 -> 0 | K93: =I93-J93 -> 0 | AD93: =IF(ISERROR(VLOOKUP(D93,$P$21:$P$60,1,FALSE)),"",VLOOKUP(D93,$P$21:$W$60,8,FALSE)) ->  | AH93: 25 | AI93: a | BO93: =COUNT(AJ93:BM93) -> 0 | BP93: =IF(BO93=0,0,SUM(AJ93:BM93)) -> 0
AD94: =IF(ISERROR(VLOOKUP(D93,$P$21:$P$60,1,FALSE)),"",VLOOKUP(D93,$P$21:$Y$60,10,FALSE)) ->  | AI94: b
AD95: =IF(ISERROR(VLOOKUP(D93,$P$21:$P$60,1,FALSE)),"",VLOOKUP(D93,$P$21:$V$60,7,FALSE)) ->  | AI95: c
D96: 26 | E96: =RAND() -> 0.5565394095 | F96: =RANK(E96,$E$21:$E$320) -> 38 | G96: =SUM(AJ97:BM97) -> 1100 | H96: =SUM(AJ98:BM98) -> 0 | I96: =G96-H96 -> 1100 | J96: =ROUNDDOWN(I96/$Y$8,0)*$Y$8 -> 1100 | K96: =I96-J96 -> 0 | AD96: =IF(ISERROR(VLOOKUP(D96,$P$21:$P$60,1,FALSE)),"",VLOOKUP(D96,$P$21:$W$60,8,FALSE)) ->  | AH96: 26 | AI96: a | AN96: 5000 | AR96: 3500 | AS96: 2500 | BO96: =COUNT(AJ96:BM96) -> 3 | BP96: =IF(BO96=0,0,SUM(AJ96:BM96)) -> 11000
AD97: =IF(ISERROR(VLOOKUP(D96,$P$21:$P$60,1,FALSE)),"",VLOOKUP(D96,$P$21:$Y$60,10,FALSE)) ->  | AI97: b | AN97: 500 | AR97: 350 | AS97: 250
AD98: =IF(ISERROR(VLOOKUP(D96,$P$21:$P$60,1,FALSE)),"",VLOOKUP(D96,$P$21:$V$60,7,FALSE)) ->  | AI98: c | AN98: 0 | AR98: 0 | AS98: 0
D99: 27 | E99: =RAND() -> 0.2074498706 | F99: =RANK(E99,$E$21:$E$320) -> 78 | G99: =SUM(AJ100:BM100) -> 675 | H99: =SUM(AJ101:BM101) -> 250 | I99: =G99-H99 -> 425 | J99: =ROUNDDOWN(I99/$Y$8,0)*$Y$8 -> 400 | K99: =I99-J99 -> 25 | AD99: =IF(ISERROR(VLOOKUP(D99,$P$21:$P$60,1,FALSE)),"",VLOOKUP(D99,$P$21:$W$60,8,FALSE)) ->  | AH99: 27 | AI99: a | AL99: 1000 | AR99: 1500 | BB99: 4250 | BO99: =COUNT(AJ99:BM99) -> 3 | BP99: =IF(BO99=0,0,SUM(AJ99:BM99)) -> 6750
AD100: =IF(ISERROR(VLOOKUP(D99,$P$21:$P$60,1,FALSE)),"",VLOOKUP(D99,$P$21:$Y$60,10,FALSE)) ->  | AI100: b | AL100: 100 | AR100: 150 | BB100: 425
AD101: =IF(ISERROR(VLOOKUP(D99,$P$21:$P$60,1,FALSE)),"",VLOOKUP(D99,$P$21:$V$60,7,FALSE)) ->  | AI101: c | AL101: 0 | AR101: 0 | BB101: 250
D102: 28 | E102: =RAND() -> 0.6909747541 | F102: =RANK(E102,$E$21:$E$320) -> 28 | G102: =SUM(AJ103:BM103) -> 1400 | H102: =SUM(AJ104:BM104) -> 0 | I102: =G102-H102 -> 1400 | J102: =ROUNDDOWN(I102/$Y$8,0)*$Y$8 -> 1400 | K102: =I102-J102 -> 0 | AD102: =IF(ISERROR(VLOOKUP(D102,$P$21:$P$60,1,FALSE)),"",VLOOKUP(D102,$P$21:$W$60,8,FALSE)) ->  | AH102: 28 | AI102: a | AK102: 2000 | AZ102: 5500 | BA102: 5000 | BC102: 1500 | BO102: =COUNT(AJ102:BM102) -> 4 | BP102: =IF(BO102=0,0,SUM(AJ102:BM102)) -> 14000
AD103: =IF(ISERROR(VLOOKUP(D102,$P$21:$P$60,1,FALSE)),"",VLOOKUP(D102,$P$21:$Y$60,10,FALSE)) ->  | AI103: b | AK103: 200 | AZ103: 550 | BA103: 500 | BC103: 150
AD104: =IF(ISERROR(VLOOKUP(D102,$P$21:$P$60,1,FALSE)),"",VLOOKUP(D102,$P$21:$V$60,7,FALSE)) ->  | AI104: c | AK104: 0 | AZ104: 0 | BA104: 0 | BC104: 0
D105: 29 | E105: =RAND() -> 0.003194858144 | F105: =RANK(E105,$E$21:$E$320) -> 100 | G105: =SUM(AJ106:BM106) -> 585 | H105: =SUM(AJ107:BM107) -> 150 | I105: =G105-H105 -> 435 | J105: =ROUNDDOWN(I105/$Y$8,0)*$Y$8 -> 400 | K105: =I105-J105 -> 35 | AD105: =IF(ISERROR(VLOOKUP(D105,$P$21:$P$60,1,FALSE)),"",VLOOKUP(D105,$P$21:$W$60,8,FALSE)) ->  | AH105: 29 | AI105: a | AS105: 1500 | BH105: 2850 | BK105: 1500 | BO105: =COUNT(AJ105:BM105) -> 3 | BP105: =IF(BO105=0,0,SUM(AJ105:BM105)) -> 5850
AD106: =IF(ISERROR(VLOOKUP(D105,$P$21:$P$60,1,FALSE)),"",VLOOKUP(D105,$P$21:$Y$60,10,FALSE)) ->  | AI106: b | AS106: 150 | BH106: 285 | BK106: 150
AD107: =IF(ISERROR(VLOOKUP(D105,$P$21:$P$60,1,FALSE)),"",VLOOKUP(D105,$P$21:$V$60,7,FALSE)) ->  | AI107: c | AS107: 0 | BH107: 150 | BK107: 0
D108: 30 | E108: =RAND() -> 0.4239733763 | F108: =RANK(E108,$E$21:$E$320) -> 55 | G108: =SUM(AJ109:BM109) -> 2050 | H108: =SUM(AJ110:BM110) -> 0 | I108: =G108-H108 -> 2050 | J108: =ROUNDDOWN(I108/$Y$8,0)*$Y$8 -> 2000 | K108: =I108-J108 -> 50 | AD108: =IF(ISERROR(VLOOKUP(D108,$P$21:$P$60,1,FALSE)),"",VLOOKUP(D108,$P$21:$W$60,8,FALSE)) ->  | AH108: 30 | AI108: a | AM108: 5500 | AS108: 2500 | BC108: 3000 | BH108: 3500 | BK108: 1000 | BM108: 5000 | BO108: =COUNT(AJ108:BM108) -> 6 | BP108: =IF(BO108=0,0,SUM(AJ108:BM108)) -> 20500
AD109: =IF(ISERROR(VLOOKUP(D108,$P$21:$P$60,1,FALSE)),"",VLOOKUP(D108,$P$21:$Y$60,10,FALSE)) ->  | AI109: b | AM109: 550 | AS109: 250 | BC109: 300 | BH109: 350 | BK109: 100 | BM109: 500
AD110: =IF(ISERROR(VLOOKUP(D108,$P$21:$P$60,1,FALSE)),"",VLOOKUP(D108,$P$21:$V$60,7,FALSE)) ->  | AI110: c | AM110: 0 | AS110: 0 | BC110: 0 | BH110: 0 | BK110: 0 | BM110: 0
D111: 31 | E111: =RAND() -> 0.882776391 | F111: =RANK(E111,$E$21:$E$320) -> 6 | G111: =SUM(AJ112:BM112) -> 600 | H111: =SUM(AJ113:BM113) -> 0 | I111: =G111-H111 -> 600 | J111: =ROUNDDOWN(I111/$Y$8,0)*$Y$8 -> 600 | K111: =I111-J111 -> 0 | AD111: =IF(ISERROR(VLOOKUP(D111,$P$21:$P$60,1,FALSE)),"",VLOOKUP(D111,$P$21:$W$60,8,FALSE)) -> 3500 | AH111: 31 | AI111: a | AV111: 4000 | BF111: 2000 | BO111: =COUNT(AJ111:BM111) -> 2 | BP111: =IF(BO111=0,0,SUM(AJ111:BM111)) -> 6000
AD112: =IF(ISERROR(VLOOKUP(D111,$P$21:$P$60,1,FALSE)),"",VLOOKUP(D111,$P$21:$Y$60,10,FALSE)) -> 350 | AI112: b | AV112: 400 | BF112: 200
AD113: =IF(ISERROR(VLOOKUP(D111,$P$21:$P$60,1,FALSE)),"",VLOOKUP(D111,$P$21:$V$60,7,FALSE)) -> 0 | AI113: c | AV113: 0 | BF113: 0
D114: 32 | E114: =RAND() -> 0.1230113083 | F114: =RANK(E114,$E$21:$E$320) -> 86 | G114: =SUM(AJ115:BM115) -> 775 | H114: =SUM(AJ116:BM116) -> 250 | I114: =G114-H114 -> 525 | J114: =ROUNDDOWN(I114/$Y$8,0)*$Y$8 -> 500 | K114: =I114-J114 -> 25 | AD114: =IF(ISERROR(VLOOKUP(D114,$P$21:$P$60,1,FALSE)),"",VLOOKUP(D114,$P$21:$W$60,8,FALSE)) ->  | AH114: 32 | AI114: a | AK114: 2500 | AU114: 5250 | BO114: =COUNT(AJ114:BM114) -> 2 | BP114: =IF(BO114=0,0,SUM(AJ114:BM114)) -> 7750
AD115: =IF(ISERROR(VLOOKUP(D114,$P$21:$P$60,1,FALSE)),"",VLOOKUP(D114,$P$21:$Y$60,10,FALSE)) ->  | AI115: b | AK115: 250 | AU115: 525
AD116: =IF(ISERROR(VLOOKUP(D114,$P$21:$P$60,1,FALSE)),"",VLOOKUP(D114,$P$21:$V$60,7,FALSE)) ->  | AI116: c | AK116: 0 | AU116: 250
D117: 33 | E117: =RAND() -> 0.02135264444 | F117: =RANK(E117,$E$21:$E$320) -> 99 | G117: =SUM(AJ118:BM118) -> 2175 | H117: =SUM(AJ119:BM119) -> 250 | I117: =G117-H117 -> 1925 | J117: =ROUNDDOWN(I117/$Y$8,0)*$Y$8 -> 1900 | K117: =I117-J117 -> 25 | AD117: =IF(ISERROR(VLOOKUP(D117,$P$21:$P$60,1,FALSE)),"",VLOOKUP(D117,$P$21:$W$60,8,FALSE)) ->  | AH117: 33 | AI117: a | AL117: 2500 | AM117: 5250 | AU117: 2000 | BB117: 4500 | BF117: 3500 | BL117: 4000 | BO117: =COUNT(AJ117:BM117) -> 6 | BP117: =IF(BO117=0,0,SUM(AJ117:BM117)) -> 21750
AD118: =IF(ISERROR(VLOOKUP(D117,$P$21:$P$60,1,FALSE)),"",VLOOKUP(D117,$P$21:$Y$60,10,FALSE)) ->  | AI118: b | AL118: 250 | AM118: 525 | AU118: 200 | BB118: 450 | BF118: 350 | BL118: 400
AD119: =IF(ISERROR(VLOOKUP(D117,$P$21:$P$60,1,FALSE)),"",VLOOKUP(D117,$P$21:$V$60,7,FALSE)) ->  | AI119: c | AL119: 0 | AM119: 250 | AU119: 0 | BB119: 0 | BF119: 0 | BL119: 0
D120: 34 | E120: =RAND() -> 0.7220197967 | F120: =RANK(E120,$E$21:$E$320) -> 25 | G120: =SUM(AJ121:BM121) -> 450 | H120: =SUM(AJ122:BM122) -> 0 | I120: =G120-H120 -> 450 | J120: =ROUNDDOWN(I120/$Y$8,0)*$Y$8 -> 400 | K120: =I120-J120 -> 50 | AD120: =IF(ISERROR(VLOOKUP(D120,$P$21:$P$60,1,FALSE)),"",VLOOKUP(D120,$P$21:$W$60,8,FALSE)) ->  | AH120: 34 | AI120: a | AT120: 2000 | BI120: 2500 | BO120: =COUNT(AJ120:BM120) -> 2 | BP120: =IF(BO120=0,0,SUM(AJ120:BM120)) -> 4500
AD121: =IF(ISERROR(VLOOKUP(D120,$P$21:$P$60,1,FALSE)),"",VLOOKUP(D120,$P$21:$Y$60,10,FALSE)) ->  | AI121: b | AT121: 200 | BI121: 250
AD122: =IF(ISERROR(VLOOKUP(D120,$P$21:$P$60,1,FALSE)),"",VLOOKUP(D120,$P$21:$V$60,7,FALSE)) ->  | AI122: c | AT122: 0 | BI122: 0
D123: 35 | E123: =RAND() -> 0.4420127047 | F123: =RANK(E123,$E$21:$E$320) -> 51 | G123: =SUM(AJ124:BM124) -> 1702 | H123: =SUM(AJ125:BM125) -> 1480 | I123: =G123-H123 -> 222 | J123: =ROUNDDOWN(I123/$Y$8,0)*$Y$8 -> 200 | K123: =I123-J123 -> 22 | AD123: =IF(ISERROR(VLOOKUP(D123,$P$21:$P$60,1,FALSE)),"",VLOOKUP(D123,$P$21:$W$60,8,FALSE)) ->  | AH123: 35 | AI123: a | AN123: 2000 | AS123: 3300 | AV123: 4500 | BI123: 1500 | BJ123: 3500 | BK123: 2220 | BO123: =COUNT(AJ123:BM123) -> 6 | BP123: =IF(BO123=0,0,SUM(AJ123:BM123)) -> 17020
AD124: =IF(ISERROR(VLOOKUP(D123,$P$21:$P$60,1,FALSE)),"",VLOOKUP(D123,$P$21:$Y$60,10,FALSE)) ->  | AI124: b | AN124: 200 | AS124: 330 | AV124: 450 | BI124: 150 | BJ124: 350 | BK124: 222
AD125: =IF(ISERROR(VLOOKUP(D123,$P$21:$P$60,1,FALSE)),"",VLOOKUP(D123,$P$21:$V$60,7,FALSE)) ->  | AI125: c | AN125: 0 | AS125: 200 | AV125: 0 | BI125: 0 | BJ125: 0 | BK125: 1280
D126: 36 | E126: =RAND() -> 0.2169560458 | F126: =RANK(E126,$E$21:$E$320) -> 75 | G126: =SUM(AJ127:BM127) -> 100 | H126: =SUM(AJ128:BM128) -> 0 | I126: =G126-H126 -> 100 | J126: =ROUNDDOWN(I126/$Y$8,0)*$Y$8 -> 100 | K126: =I126-J126 -> 0 | AD126: =IF(ISERROR(VLOOKUP(D126,$P$21:$P$60,1,FALSE)),"",VLOOKUP(D126,$P$21:$W$60,8,FALSE)) ->  | AH126: 36 | AI126: a | AL126: 1000 | BO126: =COUNT(AJ126:BM126) -> 1 | BP126: =IF(BO126=0,0,SUM(AJ126:BM126)) -> 1000
AD127: =IF(ISERROR(VLOOKUP(D126,$P$21:$P$60,1,FALSE)),"",VLOOKUP(D126,$P$21:$Y$60,10,FALSE)) ->  | AI127: b | AL127: 100
AD128: =IF(ISERROR(VLOOKUP(D126,$P$21:$P$60,1,FALSE)),"",VLOOKUP(D126,$P$21:$V$60,7,FALSE)) ->  | AI128: c | AL128: 0
D129: 37 | E129: =RAND() -> 0.4635076223 | F129: =RANK(E129,$E$21:$E$320) -> 48 | G129: =SUM(AJ130:BM130) -> 900 | H129: =SUM(AJ131:BM131) -> 0 | I129: =G129-H129 -> 900 | J129: =ROUNDDOWN(I129/$Y$8,0)*$Y$8 -> 900 | K129: =I129-J129 -> 0 | AD129: =IF(ISERROR(VLOOKUP(D129,$P$21:$P$60,1,FALSE)),"",VLOOKUP(D129,$P$21:$W$60,8,FALSE)) ->  | AH129: 37 | AI129: a | AM129: 5500 | AN129: 3500 | BO129: =COUNT(AJ129:BM129) -> 2 | BP129: =IF(BO129=0,0,SUM(AJ129:BM129)) -> 9000
AD130: =IF(ISERROR(VLOOKUP(D129,$P$21:$P$60,1,FALSE)),"",VLOOKUP(D129,$P$21:$Y$60,10,FALSE)) ->  | AI130: b | AM130: 550 | AN130: 350
AD131: =IF(ISERROR(VLOOKUP(D129,$P$21:$P$60,1,FALSE)),"",VLOOKUP(D129,$P$21:$V$60,7,FALSE)) ->  | AI131: c | AM131: 0 | AN131: 0
D132: 38 | E132: =RAND() -> 0.9752954205 | F132: =RANK(E132,$E$21:$E$320) -> 2 | G132: =SUM(AJ133:BM133) -> 950 | H132: =SUM(AJ134:BM134) -> 0 | I132: =G132-H132 -> 950 | J132: =ROUNDDOWN(I132/$Y$8,0)*$Y$8 -> 900 | K132: =I132-J132 -> 50 | AD132: =IF(ISERROR(VLOOKUP(D132,$P$21:$P$60,1,FALSE)),"",VLOOKUP(D132,$P$21:$W$60,8,FALSE)) -> 50 | AH132: 38 | AI132: a | AJ132: 2500 | AQ132: 3000 | AW132: 3000 | BC132: 1000 | BO132: =COUNT(AJ132:BM132) -> 4 | BP132: =IF(BO132=0,0,SUM(AJ132:BM132)) -> 9500
AD133: =IF(ISERROR(VLOOKUP(D132,$P$21:$P$60,1,FALSE)),"",VLOOKUP(D132,$P$21:$Y$60,10,FALSE)) -> 5 | AI133: b | AJ133: 250 | AQ133: 300 | AW133: 300 | BC133: 100
AD134: =IF(ISERROR(VLOOKUP(D132,$P$21:$P$60,1,FALSE)),"",VLOOKUP(D132,$P$21:$V$60,7,FALSE)) -> 950 | AI134: c | AJ134: 0 | AQ134: 0 | AW134: 0 | BC134: 0
D135: 39 | E135: =RAND() -> 0.08175915695 | F135: =RANK(E135,$E$21:$E$320) -> 90 | G135: =SUM(AJ136:BM136) -> 1165 | H135: =SUM(AJ137:BM137) -> 850 | I135: =G135-H135 -> 315 | J135: =ROUNDDOWN(I135/$Y$8,0)*$Y$8 -> 300 | K135: =I135-J135 -> 15 | AD135: =IF(ISERROR(VLOOKUP(D135,$P$21:$P$60,1,FALSE)),"",VLOOKUP(D135,$P$21:$W$60,8,FALSE)) ->  | AH135: 39 | AI135: a | AL135: 4000 | AV135: 1500 | BG135: 3000 | BJ135: 3150 | BO135: =COUNT(AJ135:BM135) -> 4 | BP135: =IF(BO135=0,0,SUM(AJ135:BM135)) -> 11650
AD136: =IF(ISERROR(VLOOKUP(D135,$P$21:$P$60,1,FALSE)),"",VLOOKUP(D135,$P$21:$Y$60,10,FALSE)) ->  | AI136: b | AL136: 400 | AV136: 150 | BG136: 300 | BJ136: 315
AD137: =IF(ISERROR(VLOOKUP(D135,$P$21:$P$60,1,FALSE)),"",VLOOKUP(D135,$P$21:$V$60,7,FALSE)) ->  | AI137: c | AL137: 0 | AV137: 0 | BG137: 0 | BJ137: 850
D138: 40 | E138: =RAND() -> 0.7884136299 | F138: =RANK(E138,$E$21:$E$320) -> 17 | G138: =SUM(AJ139:BM139) -> 1200 | H138: =SUM(AJ140:BM140) -> 0 | I138: =G138-H138 -> 1200 | J138: =ROUNDDOWN(I138/$Y$8,0)*$Y$8 -> 1200 | K138: =I138-J138 -> 0 | AD138: =IF(ISERROR(VLOOKUP(D138,$P$21:$P$60,1,FALSE)),"",VLOOKUP(D138,$P$21:$W$60,8,FALSE)) ->  | AH138: 40 | AI138: a | BA138: 2000 | BB138: 2500 | BH138: 3000 | BK138: 4500 | BO138: =COUNT(AJ138:BM138) -> 4 | BP138: =IF(BO138=0,0,SUM(AJ138:BM138)) -> 12000
AD139: =IF(ISERROR(VLOOKUP(D138,$P$21:$P$60,1,FALSE)),"",VLOOKUP(D138,$P$21:$Y$60,10,FALSE)) ->  | AI139: b | BA139: 200 | BB139: 250 | BH139: 300 | BK139: 450
AD140: =IF(ISERROR(VLOOKUP(D138,$P$21:$P$60,1,FALSE)),"",VLOOKUP(D138,$P$21:$V$60,7,FALSE)) ->  | AI140: c | BA140: 0 | BB140: 0 | BH140: 0 | BK140: 0
D141: 41 | E141: =RAND() -> 0.09519526865 | F141: =RANK(E141,$E$21:$E$320) -> 88 | G141: =SUM(AJ142:BM142) -> 1500 | H141: =SUM(AJ143:BM143) -> 0 | I141: =G141-H141 -> 1500 | J141: =ROUNDDOWN(I141/$Y$8,0)*$Y$8 -> 1500 | K141: =I141-J141 -> 0 | AD141: =IF(ISERROR(VLOOKUP(D141,$P$21:$P$60,1,FALSE)),"",VLOOKUP(D141,$P$21:$W$60,8,FALSE)) ->  | AH141: 41 | AI141: a | AU141: 5500 | BA141: 4000 | BJ141: 5500 | BO141: =COUNT(AJ141:BM141) -> 3 | BP141: =IF(BO141=0,0,SUM(AJ141:BM141)) -> 15000
AD142: =IF(ISERROR(VLOOKUP(D141,$P$21:$P$60,1,FALSE)),"",VLOOKUP(D141,$P$21:$Y$60,10,FALSE)) ->  | AI142: b | AU142: 550 | BA142: 400 | BJ142: 550
AD143: =IF(ISERROR(VLOOKUP(D141,$P$21:$P$60,1,FALSE)),"",VLOOKUP(D141,$P$21:$V$60,7,FALSE)) ->  | AI143: c | AU143: 0 | BA143: 0 | BJ143: 0
D144: 42 | E144: =RAND() -> 0.7713331673 | F144: =RANK(E144,$E$21:$E$320) -> 21 | G144: =SUM(AJ145:BM145) -> 945 | H144: =SUM(AJ146:BM146) -> 550 | I144: =G144-H144 -> 395 | J144: =ROUNDDOWN(I144/$Y$8,0)*$Y$8 -> 300 | K144: =I144-J144 -> 95 | AD144: =IF(ISERROR(VLOOKUP(D144,$P$21:$P$60,1,FALSE)),"",VLOOKUP(D144,$P$21:$W$60,8,FALSE)) ->  | AH144: 42 | AI144: a | AL144: 2500 | AW144: 3000 | BI144: 3950 | BO144: =COUNT(AJ144:BM144) -> 3 | BP144: =IF(BO144=0,0,SUM(AJ144:BM144)) -> 9450
AD145: =IF(ISERROR(VLOOKUP(D144,$P$21:$P$60,1,FALSE)),"",VLOOKUP(D144,$P$21:$Y$60,10,FALSE)) ->  | AI145: b | AL145: 250 | AW145: 300 | BI145: 395
AD146: =IF(ISERROR(VLOOKUP(D144,$P$21:$P$60,1,FALSE)),"",VLOOKUP(D144,$P$21:$V$60,7,FALSE)) ->  | AI146: c | AL146: 0 | AW146: 0 | BI146: 550
D147: 43 | E147: =RAND() -> 0.4773959543 | F147: =RANK(E147,$E$21:$E$320) -> 45 | G147: =SUM(AJ148:BM148) -> 1241 | H147: =SUM(AJ149:BM149) -> 585 | I147: =G147-H147 -> 656 | J147: =ROUNDDOWN(I147/$Y$8,0)*$Y$8 -> 600 | K147: =I147-J147 -> 56 | AD147: =IF(ISERROR(VLOOKUP(D147,$P$21:$P$60,1,FALSE)),"",VLOOKUP(D147,$P$21:$W$60,8,FALSE)) ->  | AH147: 43 | AI147: a | AJ147: 1500 | AQ147: 4350 | BJ147: 1565 | BL147: 2500 | BM147: 2500 | BO147: =COUNT(AJ147:BM147) -> 5 | BP147: =IF(BO147=0,0,SUM(AJ147:BM147)) -> 12415
AD148: =IF(ISERROR(VLOOKUP(D147,$P$21:$P$60,1,FALSE)),"",VLOOKUP(D147,$P$21:$Y$60,10,FALSE)) ->  | AI148: b | AJ148: 150 | AQ148: 435 | BJ148: 156 | BL148: 250 | BM148: 250
AD149: =IF(ISERROR(VLOOKUP(D147,$P$21:$P$60,1,FALSE)),"",VLOOKUP(D147,$P$21:$V$60,7,FALSE)) ->  | AI149: c | AJ149: 0 | AQ149: 150 | BJ149: 435 | BL149: 0 | BM149: 0
D150: 44 | E150: =RAND() -> 0.3867826498 | F150: =RANK(E150,$E$21:$E$320) -> 59 | G150: =SUM(AJ151:BM151) -> 450 | H150: =SUM(AJ152:BM152) -> 0 | I150: =G150-H150 -> 450 | J150: =ROUNDDOWN(I150/$Y$8,0)*$Y$8 -> 400 | K150: =I150-J150 -> 50 | AD150: =IF(ISERROR(VLOOKUP(D150,$P$21:$P$60,1,FALSE)),"",VLOOKUP(D150,$P$21:$W$60,8,FALSE)) ->  | AH150: 44 | AI150: a | AU150: 4500 | BO150: =COUNT(AJ150:BM150) -> 1 | BP150: =IF(BO150=0,0,SUM(AJ150:BM150)) -> 4500
AD151: =IF(ISERROR(VLOOKUP(D150,$P$21:$P$60,1,FALSE)),"",VLOOKUP(D150,$P$21:$Y$60,10,FALSE)) ->  | AI151: b | AU151: 450
AD152: =IF(ISERROR(VLOOKUP(D150,$P$21:$P$60,1,FALSE)),"",VLOOKUP(D150,$P$21:$V$60,7,FALSE)) ->  | AI152: c | AU152: 0
D153: 45 | E153: =RAND() -> 0.7862747523 | F153: =RANK(E153,$E$21:$E$320) -> 18 | G153: =SUM(AJ154:BM154) -> 1250 | H153: =SUM(AJ155:BM155) -> 0 | I153: =G153-H153 -> 1250 | J153: =ROUNDDOWN(I153/$Y$8,0)*$Y$8 -> 1200 | K153: =I153-J153 -> 50 | AD153: =IF(ISERROR(VLOOKUP(D153,$P$21:$P$60,1,FALSE)),"",VLOOKUP(D153,$P$21:$W$60,8,FALSE)) ->  | AH153: 45 | AI153: a | AU153: 1000 | AX153: 1500 | BB153: 3500 | BH153: 5500 | BI153: 1000 | BO153: =COUNT(AJ153:BM153) -> 5 | BP153: =IF(BO153=0,0,SUM(AJ153:BM153)) -> 12500
AD154: =IF(ISERROR(VLOOKUP(D153,$P$21:$P$60,1,FALSE)),"",VLOOKUP(D153,$P$21:$Y$60,10,FALSE)) ->  | AI154: b | AU154: 100 | AX154: 150 | BB154: 350 | BH154: 550 | BI154: 100
AD155: =IF(ISERROR(VLOOKUP(D153,$P$21:$P$60,1,FALSE)),"",VLOOKUP(D153,$P$21:$V$60,7,FALSE)) ->  | AI155: c | AU155: 0 | AX155: 0 | BB155: 0 | BH155: 0 | BI155: 0
D156: 46 | E156: =RAND() -> 0.2258986904 | F156: =RANK(E156,$E$21:$E$320) -> 73 | G156: =SUM(AJ157:BM157) -> 1170 | H156: =SUM(AJ158:BM158) -> 800 | I156: =G156-H156 -> 370 | J156: =ROUNDDOWN(I156/$Y$8,0)*$Y$8 -> 300 | K156: =I156-J156 -> 70 | AD156: =IF(ISERROR(VLOOKUP(D156,$P$21:$P$60,1,FALSE)),"",VLOOKUP(D156,$P$21:$W$60,8,FALSE)) ->  | AH156: 46 | AI156: a | AT156: 3000 | BH156: 5000 | BM156: 3700 | BO156: =COUNT(AJ156:BM156) -> 3 | BP156: =IF(BO156=0,0,SUM(AJ156:BM156)) -> 11700
AD157: =IF(ISERROR(VLOOKUP(D156,$P$21:$P$60,1,FALSE)),"",VLOOKUP(D156,$P$21:$Y$60,10,FALSE)) ->  | AI157: b | AT157: 300 | BH157: 500 | BM157: 370
AD158: =IF(ISERROR(VLOOKUP(D156,$P$21:$P$60,1,FALSE)),"",VLOOKUP(D156,$P$21:$V$60,7,FALSE)) ->  | AI158: c | AT158: 0 | BH158: 0 | BM158: 800
D159: 47 | E159: =RAND() -> 0.3681214478 | F159: =RANK(E159,$E$21:$E$320) -> 61 | G159: =SUM(AJ160:BM160) -> 950 | H159: =SUM(AJ161:BM161) -> 0 | I159: =G159-H159 -> 950 | J159: =ROUNDDOWN(I159/$Y$8,0)*$Y$8 -> 900 | K159: =I159-J159 -> 50 | AD159: =IF(ISERROR(VLOOKUP(D159,$P$21:$P$60,1,FALSE)),"",VLOOKUP(D159,$P$21:$W$60,8,FALSE)) ->  | AH159: 47 | AI159: a | AT159: 1000 | BA159: 3000 | BD159: 5500 | BO159: =COUNT(AJ159:BM159) -> 3 | BP159: =IF(BO159=0,0,SUM(AJ159:BM159)) -> 9500
AD160: =IF(ISERROR(VLOOKUP(D159,$P$21:$P$60,1,FALSE)),"",VLOOKUP(D159,$P$21:$Y$60,10,FALSE)) ->  | AI160: b | AT160: 100 | BA160: 300 | BD160: 550
AD161: =IF(ISERROR(VLOOKUP(D159,$P$21:$P$60,1,FALSE)),"",VLOOKUP(D159,$P$21:$V$60,7,FALSE)) ->  | AI161: c | AT161: 0 | BA161: 0 | BD161: 0
D162: 48 | E162: =RAND() -> 0.8638680122 | F162: =RANK(E162,$E$21:$E$320) -> 8 | G162: =SUM(AJ163:BM163) -> 1810 | H162: =SUM(AJ164:BM164) -> 900 | I162: =G162-H162 -> 910 | J162: =ROUNDDOWN(I162/$Y$8,0)*$Y$8 -> 900 | K162: =I162-J162 -> 10 | AD162: =IF(ISERROR(VLOOKUP(D162,$P$21:$P$60,1,FALSE)),"",VLOOKUP(D162,$P$21:$W$60,8,FALSE)) -> 4090 | AH162: 48 | AI162: a | AN162: 2000 | AO162: 3500 | AZ162: 3500 | BE162: 1600 | BI162: 3500 | BJ162: 4000 | BO162: =COUNT(AJ162:BM162) -> 6 | BP162: =IF(BO162=0,0,SUM(AJ162:BM162)) -> 18100
AD163: =IF(ISERROR(VLOOKUP(D162,$P$21:$P$60,1,FALSE)),"",VLOOKUP(D162,$P$21:$Y$60,10,FALSE)) -> 409 | AI163: b | AN163: 200 | AO163: 350 | AZ163: 350 | BE163: 160 | BI163: 350 | BJ163: 400
AD164: =IF(ISERROR(VLOOKUP(D162,$P$21:$P$60,1,FALSE)),"",VLOOKUP(D162,$P$21:$V$60,7,FALSE)) -> 910 | AI164: c | AN164: 0 | AO164: 0 | AZ164: 0 | BE164: 900 | BI164: 0 | BJ164: 0
D165: 49 | E165: =RAND() -> 0.3073654733 | F165: =RANK(E165,$E$21:$E$320) -> 67 | G165: =SUM(AJ166:BM166) -> 350 | H165: =SUM(AJ167:BM167) -> 0 | I165: =G165-H165 -> 350 | J165: =ROUNDDOWN(I165/$Y$8,0)*$Y$8 -> 300 | K165: =I165-J165 -> 50 | AD165: =IF(ISERROR(VLOOKUP(D165,$P$21:$P$60,1,FALSE)),"",VLOOKUP(D165,$P$21:$W$60,8,FALSE)) ->  | AH165: 49 | AI165: a | AW165: 3500 | BO165: =COUNT(AJ165:BM165) -> 1 | BP165: =IF(BO165=0,0,SUM(AJ165:BM165)) -> 3500
AD166: =IF(ISERROR(VLOOKUP(D165,$P$21:$P$60,1,FALSE)),"",VLOOKUP(D165,$P$21:$Y$60,10,FALSE)) ->  | AI166: b | AW166: 350
AD167: =IF(ISERROR(VLOOKUP(D165,$P$21:$P$60,1,FALSE)),"",VLOOKUP(D165,$P$21:$V$60,7,FALSE)) ->  | AI167: c | AW167: 0
D168: 50 | E168: =RAND() -> 0.6956404156 | F168: =RANK(E168,$E$21:$E$320) -> 27 | G168: =SUM(AJ169:BM169) -> 955 | H168: =SUM(AJ170:BM170) -> 450 | I168: =G168-H168 -> 505 | J168: =ROUNDDOWN(I168/$Y$8,0)*$Y$8 -> 500 | K168: =I168-J168 -> 5 | AD168: =IF(ISERROR(VLOOKUP(D168,$P$21:$P$60,1,FALSE)),"",VLOOKUP(D168,$P$21:$W$60,8,FALSE)) ->  | AH168: 50 | AI168: a | AJ168: 3500 | AX168: 1000 | BB168: 1550 | BM168: 3500 | BO168: =COUNT(AJ168:BM168) -> 4 | BP168: =IF(BO168=0,0,SUM(AJ168:BM168)) -> 9550
AD169: =IF(ISERROR(VLOOKUP(D168,$P$21:$P$60,1,FALSE)),"",VLOOKUP(D168,$P$21:$Y$60,10,FALSE)) ->  | AI169: b | AJ169: 350 | AX169: 100 | BB169: 155 | BM169: 350
AD170: =IF(ISERROR(VLOOKUP(D168,$P$21:$P$60,1,FALSE)),"",VLOOKUP(D168,$P$21:$V$60,7,FALSE)) ->  | AI170: c | AJ170: 0 | AX170: 0 | BB170: 450 | BM170: 0
D171: 51 | E171: =RAND() -> 0.8974884031 | F171: =RANK(E171,$E$21:$E$320) -> 5 | G171: =SUM(AJ172:BM172) -> 1345 | H171: =SUM(AJ173:BM173) -> 550 | I171: =G171-H171 -> 795 | J171: =ROUNDDOWN(I171/$Y$8,0)*$Y$8 -> 700 | K171: =I171-J171 -> 95 | AD171: =IF(ISERROR(VLOOKUP(D171,$P$21:$P$60,1,FALSE)),"",VLOOKUP(D171,$P$21:$W$60,8,FALSE)) -> 3000 | AH171: 51 | AI171: a | AL171: 4500 | AQ171: 1000 | AT171: 4950 | BI171: 3000 | BO171: =COUNT(AJ171:BM171) -> 4 | BP171: =IF(BO171=0,0,SUM(AJ171:BM171)) -> 13450
AD172: =IF(ISERROR(VLOOKUP(D171,$P$21:$P$60,1,FALSE)),"",VLOOKUP(D171,$P$21:$Y$60,10,FALSE)) -> 300 | AI172: b | AL172: 450 | AQ172: 100 | AT172: 495 | BI172: 300
AD173: =IF(ISERROR(VLOOKUP(D171,$P$21:$P$60,1,FALSE)),"",VLOOKUP(D171,$P$21:$V$60,7,FALSE)) -> 0 | AI173: c | AL173: 0 | AQ173: 0 | AT173: 550 | BI173: 0
D174: 52 | E174: =RAND() -> 0.4340294487 | F174: =RANK(E174,$E$21:$E$320) -> 53 | G174: =SUM(AJ175:BM175) -> 1600 | H174: =SUM(AJ176:BM176) -> 0 | I174: =G174-H174 -> 1600 | J174: =ROUNDDOWN(I174/$Y$8,0)*$Y$8 -> 1600 | K174: =I174-J174 -> 0 | AD174: =IF(ISERROR(VLOOKUP(D174,$P$21:$P$60,1,FALSE)),"",VLOOKUP(D174,$P$21:$W$60,8,FALSE)) ->  | AH174: 52 | AI174: a | AP174: 1500 | AS174: 4000 | AY174: 5000 | BF174: 5500 | BO174: =COUNT(AJ174:BM174) -> 4 | BP174: =IF(BO174=0,0,SUM(AJ174:BM174)) -> 16000
AD175: =IF(ISERROR(VLOOKUP(D174,$P$21:$P$60,1,FALSE)),"",VLOOKUP(D174,$P$21:$Y$60,10,FALSE)) ->  | AI175: b | AP175: 150 | AS175: 400 | AY175: 500 | BF175: 550
AD176: =IF(ISERROR(VLOOKUP(D174,$P$21:$P$60,1,FALSE)),"",VLOOKUP(D174,$P$21:$V$60,7,FALSE)) ->  | AI176: c | AP176: 0 | AS176: 0 | AY176: 0 | BF176: 0
D177: 53 | E177: =RAND() -> 0.8553173981 | F177: =RANK(E177,$E$21:$E$320) -> 9 | G177: =SUM(AJ178:BM178) -> 1233 | H177: =SUM(AJ179:BM179) -> 666 | I177: =G177-H177 -> 567 | J177: =ROUNDDOWN(I177/$Y$8,0)*$Y$8 -> 500 | K177: =I177-J177 -> 67 | AD177: =IF(ISERROR(VLOOKUP(D177,$P$21:$P$60,1,FALSE)),"",VLOOKUP(D177,$P$21:$W$60,8,FALSE)) ->  | AH177: 53 | AI177: a | AN177: 1000 | AR177: 2400 | AT177: 3260 | AZ177: 3174 | BG177: 1500 | BK177: 1000 | BO177: =COUNT(AJ177:BM177) -> 6 | BP177: =IF(BO177=0,0,SUM(AJ177:BM177)) -> 12334
AD178: =IF(ISERROR(VLOOKUP(D177,$P$21:$P$60,1,FALSE)),"",VLOOKUP(D177,$P$21:$Y$60,10,FALSE)) ->  | AI178: b | AN178: 100 | AR178: 240 | AT178: 326 | AZ178: 317 | BG178: 150 | BK178: 100
AD179: =IF(ISERROR(VLOOKUP(D177,$P$21:$P$60,1,FALSE)),"",VLOOKUP(D177,$P$21:$V$60,7,FALSE)) ->  | AI179: c | AN179: 0 | AR179: 100 | AT179: 240 | AZ179: 326 | BG179: 0 | BK179: 0
D180: 54 | E180: =RAND() -> 0.05233066323 | F180: =RANK(E180,$E$21:$E$320) -> 95 | G180: =SUM(AJ181:BM181) -> 610 | H180: =SUM(AJ182:BM182) -> 400 | I180: =G180-H180 -> 210 | J180: =ROUNDDOWN(I180/$Y$8,0)*$Y$8 -> 200 | K180: =I180-J180 -> 10 | AD180: =IF(ISERROR(VLOOKUP(D180,$P$21:$P$60,1,FALSE)),"",VLOOKUP(D180,$P$21:$W$60,8,FALSE)) ->  | AH180: 54 | AI180: a | AO180: 4000 | BC180: 2100 | BO180: =COUNT(AJ180:BM180) -> 2 | BP180: =IF(BO180=0,0,SUM(AJ180:BM180)) -> 6100
AD181: =IF(ISERROR(VLOOKUP(D180,$P$21:$P$60,1,FALSE)),"",VLOOKUP(D180,$P$21:$Y$60,10,FALSE)) ->  | AI181: b | AO181: 400 | BC181: 210
AD182: =IF(ISERROR(VLOOKUP(D180,$P$21:$P$60,1,FALSE)),"",VLOOKUP(D180,$P$21:$V$60,7,FALSE)) ->  | AI182: c | AO182: 0 | BC182: 400
D183: 55 | E183: =RAND() -> 0.1881581321 | F183: =RANK(E183,$E$21:$E$320) -> 79 | G183: =SUM(AJ184:BM184) -> 0 | H183: =SUM(AJ185:BM185) -> 0 | I183: =G183-H183 -> 0 | J183: =ROUNDDOWN(I183/$Y$8,0)*$Y$8 -> 0 | K183: =I183-J183 -> 0 | AD183: =IF(ISERROR(VLOOKUP(D183,$P$21:$P$60,1,FALSE)),"",VLOOKUP(D183,$P$21:$W$60,8,FALSE)) ->  | AH183: 55 | AI183: a | BO183: =COUNT(AJ183:BM183) -> 0 | BP183: =IF(BO183=0,0,SUM(AJ183:BM183)) -> 0
AD184: =IF(ISERROR(VLOOKUP(D183,$P$21:$P$60,1,FALSE)),"",VLOOKUP(D183,$P$21:$Y$60,10,FALSE)) ->  | AI184: b
AD185: =IF(ISERROR(VLOOKUP(D183,$P$21:$P$60,1,FALSE)),"",VLOOKUP(D183,$P$21:$V$60,7,FALSE)) ->  | AI185: c
D186: 56 | E186: =RAND() -> 0.4725018851 | F186: =RANK(E186,$E$21:$E$320) -> 46 | G186: =SUM(AJ187:BM187) -> 955 | H186: =SUM(AJ188:BM188) -> 450 | I186: =G186-H186 -> 505 | J186: =ROUNDDOWN(I186/$Y$8,0)*$Y$8 -> 500 | K186: =I186-J186 -> 5 | AD186: =IF(ISERROR(VLOOKUP(D186,$P$21:$P$60,1,FALSE)),"",VLOOKUP(D186,$P$21:$W$60,8,FALSE)) ->  | AH186: 56 | AI186: a | AW186: 1000 | BE186: 3500 | BG186: 5050 | BO186: =COUNT(AJ186:BM186) -> 3 | BP186: =IF(BO186=0,0,SUM(AJ186:BM186)) -> 9550
AD187: =IF(ISERROR(VLOOKUP(D186,$P$21:$P$60,1,FALSE)),"",VLOOKUP(D186,$P$21:$Y$60,10,FALSE)) ->  | AI187: b | AW187: 100 | BE187: 350 | BG187: 505
AD188: =IF(ISERROR(VLOOKUP(D186,$P$21:$P$60,1,FALSE)),"",VLOOKUP(D186,$P$21:$V$60,7,FALSE)) ->  | AI188: c | AW188: 0 | BE188: 0 | BG188: 450
D189: 57 | E189: =RAND() -> 0.2191653239 | F189: =RANK(E189,$E$21:$E$320) -> 74 | G189: =SUM(AJ190:BM190) -> 1038 | H189: =SUM(AJ191:BM191) -> 620 | I189: =G189-H189 -> 418 | J189: =ROUNDDOWN(I189/$Y$8,0)*$Y$8 -> 400 | K189: =I189-J189 -> 18 | AD189: =IF(ISERROR(VLOOKUP(D189,$P$21:$P$60,1,FALSE)),"",VLOOKUP(D189,$P$21:$W$60,8,FALSE)) ->  | AH189: 57 | AI189: a | AJ189: 3000 | AL189: 3200 | AM189: 4180 | BO189: =COUNT(AJ189:BM189) -> 3 | BP189: =IF(BO189=0,0,SUM(AJ189:BM189)) -> 10380
AD190: =IF(ISERROR(VLOOKUP(D189,$P$21:$P$60,1,FALSE)),"",VLOOKUP(D189,$P$21:$Y$60,10,FALSE)) ->  | AI190: b | AJ190: 300 | AL190: 320 | AM190: 418
AD191: =IF(ISERROR(VLOOKUP(D189,$P$21:$P$60,1,FALSE)),"",VLOOKUP(D189,$P$21:$V$60,7,FALSE)) ->  | AI191: c | AJ191: 0 | AL191: 300 | AM191: 320
D192: 58 | E192: =RAND() -> 0.3725487752 | F192: =RANK(E192,$E$21:$E$320) -> 60 | G192: =SUM(AJ193:BM193) -> 1629 | H192: =SUM(AJ194:BM194) -> 1205 | I192: =G192-H192 -> 424 | J192: =ROUNDDOWN(I192/$Y$8,0)*$Y$8 -> 400 | K192: =I192-J192 -> 24 | AD192: =IF(ISERROR(VLOOKUP(D192,$P$21:$P$60,1,FALSE)),"",VLOOKUP(D192,$P$21:$W$60,8,FALSE)) ->  | AH192: 58 | AI192: a | AK192: 4500 | AO192: 1050 | AV192: 1000 | BJ192: 5500 | BL192: 4245 | BO192: =COUNT(AJ192:BM192) -> 5 | BP192: =IF(BO192=0,0,SUM(AJ192:BM192)) -> 16295
AD193: =IF(ISERROR(VLOOKUP(D192,$P$21:$P$60,1,FALSE)),"",VLOOKUP(D192,$P$21:$Y$60,10,FALSE)) ->  | AI193: b | AK193: 450 | AO193: 105 | AV193: 100 | BJ193: 550 | BL193: 424
AD194: =IF(ISERROR(VLOOKUP(D192,$P$21:$P$60,1,FALSE)),"",VLOOKUP(D192,$P$21:$V$60,7,FALSE)) ->  | AI194: c | AK194: 0 | AO194: 450 | AV194: 0 | BJ194: 0 | BL194: 755
D195: 59 | E195: =RAND() -> 0.2105236632 | F195: =RANK(E195,$E$21:$E$320) -> 77 | G195: =SUM(AJ196:BM196) -> 1430 | H195: =SUM(AJ197:BM197) -> 200 | I195: =G195-H195 -> 1230 | J195: =ROUNDDOWN(I195/$Y$8,0)*$Y$8 -> 1200 | K195: =I195-J195 -> 30 | AD195: =IF(ISERROR(VLOOKUP(D195,$P$21:$P$60,1,FALSE)),"",VLOOKUP(D195,$P$21:$W$60,8,FALSE)) ->  | AH195: 59 | AI195: a | AQ195: 2000 | AX195: 3800 | AZ195: 3000 | BF195: 1000 | BG195: 4500 | BO195: =COUNT(AJ195:BM195) -> 5 | BP195: =IF(BO195=0,0,SUM(AJ195:BM195)) -> 14300
AD196: =IF(ISERROR(VLOOKUP(D195,$P$21:$P$60,1,FALSE)),"",VLOOKUP(D195,$P$21:$Y$60,10,FALSE)) ->  | AI196: b | AQ196: 200 | AX196: 380 | AZ196: 300 | BF196: 100 | BG196: 450
AD197: =IF(ISERROR(VLOOKUP(D195,$P$21:$P$60,1,FALSE)),"",VLOOKUP(D195,$P$21:$V$60,7,FALSE)) ->  | AI197: c | AQ197: 0 | AX197: 200 | AZ197: 0 | BF197: 0 | BG197: 0
D198: 60 | E198: =RAND() -> 0.627735608 | F198: =RANK(E198,$E$21:$E$320) -> 33 | G198: =SUM(AJ199:BM199) -> 500 | H198: =SUM(AJ200:BM200) -> 0 | I198: =G198-H198 -> 500 | J198: =ROUNDDOWN(I198/$Y$8,0)*$Y$8 -> 500 | K198: =I198-J198 -> 0 | AD198: =IF(ISERROR(VLOOKUP(D198,$P$21:$P$60,1,FALSE)),"",VLOOKUP(D198,$P$21:$W$60,8,FALSE)) ->  | AH198: 60 | AI198: a | AK198: 3500 | BK198: 1500 | BO198: =COUNT(AJ198:BM198) -> 2 | BP198: =IF(BO198=0,0,SUM(AJ198:BM198)) -> 5000
AD199: =IF(ISERROR(VLOOKUP(D198,$P$21:$P$60,1,FALSE)),"",VLOOKUP(D198,$P$21:$Y$60,10,FALSE)) ->  | AI199: b | AK199: 350 | BK199: 150
AD200: =IF(ISERROR(VLOOKUP(D198,$P$21:$P$60,1,FALSE)),"",VLOOKUP(D198,$P$21:$V$60,7,FALSE)) ->  | AI200: c | AK200: 0 | BK200: 0
D201: 61 | E201: =RAND() -> 0.1811135584 | F201: =RANK(E201,$E$21:$E$320) -> 80 | G201: =SUM(AJ202:BM202) -> 1416 | H201: =SUM(AJ203:BM203) -> 835 | I201: =G201-H201 -> 581 | J201: =ROUNDDOWN(I201/$Y$8,0)*$Y$8 -> 500 | K201: =I201-J201 -> 81 | AD201: =IF(ISERROR(VLOOKUP(D201,$P$21:$P$60,1,FALSE)),"",VLOOKUP(D201,$P$21:$W$60,8,FALSE)) ->  | AH201: 61 | AI201: a | AK201: 2500 | AU201: 4000 | BA201: 1850 | BG201: 815 | BM201: 5000 | BO201: =COUNT(AJ201:BM201) -> 5 | BP201: =IF(BO201=0,0,SUM(AJ201:BM201)) -> 14165
AD202: =IF(ISERROR(VLOOKUP(D201,$P$21:$P$60,1,FALSE)),"",VLOOKUP(D201,$P$21:$Y$60,10,FALSE)) ->  | AI202: b | AK202: 250 | AU202: 400 | BA202: 185 | BG202: 81 | BM202: 500
AD203: =IF(ISERROR(VLOOKUP(D201,$P$21:$P$60,1,FALSE)),"",VLOOKUP(D201,$P$21:$V$60,7,FALSE)) ->  | AI203: c | AK203: 0 | AU203: 0 | BA203: 650 | BG203: 185 | BM203: 0
D204: 62 | E204: =RAND() -> 0.1252693989 | F204: =RANK(E204,$E$21:$E$320) -> 84 | G204: =SUM(AJ205:BM205) -> 0 | H204: =SUM(AJ206:BM206) -> 0 | I204: =G204-H204 -> 0 | J204: =ROUNDDOWN(I204/$Y$8,0)*$Y$8 -> 0 | K204: =I204-J204 -> 0 | AD204: =IF(ISERROR(VLOOKUP(D204,$P$21:$P$60,1,FALSE)),"",VLOOKUP(D204,$P$21:$W$60,8,FALSE)) ->  | AH204: 62 | AI204: a | BO204: =COUNT(AJ204:BM204) -> 0 | BP204: =IF(BO204=0,0,SUM(AJ204:BM204)) -> 0
AD205: =IF(ISERROR(VLOOKUP(D204,$P$21:$P$60,1,FALSE)),"",VLOOKUP(D204,$P$21:$Y$60,10,FALSE)) ->  | AI205: b
AD206: =IF(ISERROR(VLOOKUP(D204,$P$21:$P$60,1,FALSE)),"",VLOOKUP(D204,$P$21:$V$60,7,FALSE)) ->  | AI206: c
D207: 63 | E207: =RAND() -> 0.5587546991 | F207: =RANK(E207,$E$21:$E$320) -> 37 | G207: =SUM(AJ208:BM208) -> 450 | H207: =SUM(AJ209:BM209) -> 0 | I207: =G207-H207 -> 450 | J207: =ROUNDDOWN(I207/$Y$8,0)*$Y$8 -> 400 | K207: =I207-J207 -> 50 | AD207: =IF(ISERROR(VLOOKUP(D207,$P$21:$P$60,1,FALSE)),"",VLOOKUP(D207,$P$21:$W$60,8,FALSE)) ->  | AH207: 63 | AI207: a | BG207: 4500 | BO207: =COUNT(AJ207:BM207) -> 1 | BP207: =IF(BO207=0,0,SUM(AJ207:BM207)) -> 4500
... 113 more rows
